Workbook

Sheet Control Panel
A1: GO TO
A2: Utah | C2: FILING INFORMATION | J2: Model Checks
A3: 1.1 | J3: (Must Be 0)
A4: 1.2 | E4: UTAH | J4: ='Model Checks'!D7 -> 1.144663155
A5: 1.3 pg 1 | D5: Current Case No. | E5: 19-057-18 | J5: (If this is not 0, or very close, go to
A6: 1.3 pg 2 | D6: Filing Date | E6: 2019-08-30 | J6: the "Model Checks"
D7: Test-Year Ending | E7: 2020-09-30 | J7: Tab and find the
A8: 1.4 pg 1 | D8: Proposed Effective Date | E8: 2020-10-01 | J8: problem.)
A9: 1.4 pg 2 | D9: Prior Case No. | E9: 19-057-04
A10: 1.4 pg 3 | J10: Go To
A11: 1.5 | C11: Total Increase (Decrease) | E11: ='Utah Summary-by class'!Q24 -> 11352448.55 | G11: =E11-F11 -> 11352448.55 | J11: Model Checks'
A12: 1.6 pg 1
A13: 1.6 pg 2
A14: 1.6 pg 3 | C14: Typical Customer's Bill | J14: Old Ut Data color
A15: 1.7 pg 1
A16: 1.7 pg 2 | D16: Previous | E16: ='Ut 1.6'!F30 -> 623.47 | J16: New Data color
A17: 1.8 | D17: Proposed | E17: ='Ut 1.6'!H30 -> 631.71
A18: 1.9 | D18: Difference | E18: ='Ut 1.6'!J30 -> 8.24 | G18: =E18-F18 -> 8.24
A19: Monthly Inputs | D19: % Difference | E19: ='Ut 1.6'!J32 -> 1.32 | G19: =E19-F19 -> 1.32
A20: Other Inputs
A21: Expenses
A22: Rate Base
C29: Exhibit Headings
C31: UTAH
E32: Dominion Energy Utah
E33: ="Docket No. "&E5 -> Docket No. 19-057-18
C39: Test-Year (enter as text)
D40: from | E40: 2019-10-01
D41: to | E41: 2020-09-30

Sheet Monthly Inputs
A1: MONTHLY INPUTS
G2: TEST-YEAR COLUMNS | S2: 12-Month
E3: Aug19 | F3: Sep19 | G3: Oct19 | H3: Nov19 | I3: Dec19 | J3: Jan20 | K3: Feb20 | L3: Mar20 | M3: Apr20 | N3: May20 | O3: Jun20 | P3: Jul20 | Q3: Aug20 | R3: Sep20 | S3: =+R3 -> Sep20
E4: 8 | F4: 9 | G4: 10 | H4: 11 | I4: 12 | J4: 1 | K4: 2 | L4: 3 | M4: 4 | N4: 5 | O4: 6 | P4: 7 | Q4: 8 | R4: 9
A5: QGC Company Produced Gas In MDth | I5: Updated: | J5: 2019-08-05
A6: WEXPRO I
B7: Company Production In Dth | E7: 4507108.671 | F7: 4267514.98 | G7: 4510066 | H7: 4273743 | I7: 4462731 | J7: 4358163 | K7: 4113329 | L7: 4291851 | M7: 4070250 | N7: 4130935 | O7: 3931044 | P7: 4000312 | Q7: 4001024 | R7: 3914310 | S7: =SUM(G7:R7) -> 50057758
B8: Birch Cr Gathering | E8: 0 | F8: 0 | G8: 0 | H8: 0 | I8: 0 | J8: 0 | K8: 0 | L8: 0 | M8: 0 | N8: 0 | O8: 0 | P8: 0 | Q8: 0 | R8: =R7/$S$7*$S$8 -> 0 | S8: ='Other Inputs'!$D$172 -> 0
B9: Gathering | E9: 3068601.439 | F9: 2905477.45 | G9: =G7/$S$7*$S$9 -> 3159956.211 | H9: 2994377.629 | I9: 3126791.169 | J9: 3053526.099 | K9: 2881984.326 | L9: 3007064.913 | M9: 2851801.23 | N9: 2894319.886 | O9: 2754267.211 | P9: 2802799.504 | Q9: 2803298.364 | R9: 2742542.614 | S9: =+'Ex 1.1 Data'!E1 -> 35072729.15
A12: WEXPRO II
B13: Company Production In Dth | E13: 1059733.902 | F13: 1017635.99 | G13: 1148158 | H13: 1086762 | I13: 1099931 | J13: 1075453 | K13: 982880 | L13: 1028537 | M13: 975834 | N13: 989735 | O13: 940995 | P13: 956076 | Q13: 998334 | R13: 896292 | S13: =SUM(G13:R13) -> 12178987
B14: Samson Gathering | E14: 938881.4596 | F14: 901584.4094 | G14: =G13/$S$13*$S$14 -> 962497.4705 | H14: 911029.3845 | I14: 922068.9184 | J14: 901549.0831 | K14: 823945.4098 | L14: 862219.5384 | M14: 818038.7687 | N14: 829691.9361 | O14: 788833.3376 | P14: 801475.6955 | Q14: 836900.4525 | R14: 751358.9443 | S14: =+'Ex 1.1 Data'!L1 -> 10209608.94
D21: 1000
B23: Injections in Dth
C24: Chalk Creek | E24: 0 | F24: 0 | G24: 132000 | H24: 76600 | I24: 0 | J24: 0 | K24: 0 | L24: 0 | M24: 0 | N24: 0 | O24: 0 | P24: 0 | Q24: 0 | R24: 93650 | S24: =SUM(G24:R24) -> 302250
C25: Clay Basin | E25: =2543589.72167969+15000*31+500000 -> 3508589.722 | F25: =1816826.72119141+1750000 -> 3566826.721 | G25: 2812405 | H25: 1500000 | I25: 0 | J25: 0 | K25: 0 | L25: 0 | M25: 0 | N25: 1412352 | O25: 2700000 | P25: 1910380 | Q25: 1945950 | R25: 2400000 | S25: 14681087
C26: Coalville | E26: 0 | F26: 22993.12592 | G26: 310000 | H26: 50186 | I26: 0 | J26: 0 | K26: 0 | L26: 0 | M26: 0 | N26: 0 | O26: 0 | P26: 0 | Q26: 0 | R26: 50190 | S26: 410376
C27: Leroy | E27: 0 | F27: 36504.89426 | G27: 443966 | H27: 0 | I27: 0 | J27: 0 | K27: 0 | L27: 0 | M27: 0 | N27: 0 | O27: 0 | P27: 0 | Q27: 0 | R27: 0 | S27: 443966
C28: Spire | E28: 362173.0042 | F28: 350489.9902 | G28: 238343 | H28: 0 | I28: 0 | J28: 0 | K28: 0 | L28: 0 | M28: 335461 | N28: 353119 | O28: 341730 | P28: 353120 | Q28: 353120 | R28: 341730 | S28: 2316623
C29: Total Injections | E29: 2905762.726 | F29: 2226814.732 | G29: =SUM(G24:G28) -> 3936714 | H29: 1626786 | I29: 0 | J29: 0 | K29: 0 | L29: 0 | M29: 335461 | N29: 1765471 | O29: 3041730 | P29: 2263500 | Q29: 2299070 | R29: 2885570 | S29: =SUM(G29:R29) -> 18154302
B31: Withdrawls In Dth
C32: Chalk Creek | E32: 0 | F32: 0 | G32: 0 | H32: 0 | I32: 0 | J32: 60079 | K32: 0 | L32: 300107 | M32: 0 | N32: 0 | O32: 0 | P32: 0 | Q32: 0 | R32: 0 | S32: =SUM(G32:R32) -> 360186
C33: Clay Basin | E33: 0 | F33: 0 | G33: 0 | H33: 957328 | I33: 3317046 | J33: 3160050 | K33: 3190046 | L33: 1500000 | M33: 0 | N33: 0 | O33: 0 | P33: 0 | Q33: 0 | R33: 0 | S33: 12124470
C34: Coalville | E34: 0 | F34: 0 | G34: 0 | H34: 0 | I34: 0 | J34: 78940 | K34: 0 | L34: 364543 | M34: 0 | N34: 0 | O34: 0 | P34: 0 | Q34: 0 | R34: 0 | S34: 443483
C35: Leroy | E35: 0 | F35: 0 | G35: 0 | H35: 0 | I35: 0 | J35: 184023 | K35: 0 | L35: 921900 | M35: 0 | N35: 0 | O35: 0 | P35: 0 | Q35: 0 | R35: 0 | S35: 1105923
C36: Spire | E36: 0 | F36: 0 | G36: 0 | H36: 498000 | I36: 514600 | J36: 514600 | K36: 481400 | L36: 0 | M36: 0 | N36: 0 | O36: 0 | P36: 0 | Q36: 0 | R36: 0 | S36: 2008600
C37: Total Withdrawls | E37: 0 | F37: 0 | G37: =SUM(G32:G36) -> 0 | H37: 1455328 | I37: 3831646 | J37: 3997692 | K37: 3671446 | L37: 3086550 | M37: 0 | N37: 0 | O37: 0 | P37: 0 | Q37: 0 | R37: 0 | S37: 16042662
B39: Lost & Unaccounted for on QPC
A42: Injection and Withdrawl Used, Lost and Unaccounted For
D43: Gas Use
D44: %
B45: Injections in Dth
C46: Chalk Creek | D46: ='Other Inputs'!E147 -> 0.0099 | E46: =E24*-$D46 -> 0 | F46: 0 | G46: =G24*-$D46 -> -1306.8 | H46: =H24*-$D46 -> -758.34 | I46: 0 | J46: 0 | K46: 0 | L46: 0 | M46: 0 | N46: 0 | O46: 0 | P46: 0 | Q46: 0 | R46: -927.135 | S46: =SUM(G46:R46) -> -2992.275
C47: Clay Basin | D47: ='Other Inputs'!E156 -> 0.025 | E47: -87714.74304 | F47: -89170.66803 | G47: =G25*-$D47 -> -70310.125 | H47: =H25*-$D47 -> -37500 | I47: 0 | J47: 0 | K47: 0 | L47: 0 | M47: 0 | N47: -35308.8 | O47: -67500 | P47: -47759.5 | Q47: -48648.75 | R47: -60000 | S47: =SUM(G47:R47) -> -367027.175
C48: Coalville | D48: ='Other Inputs'!E159 -> 0.0108 | E48: =E26*-$D48 -> 0 | F48: -248.3257599 | G48: =G26*-$D48 -> -3348 | H48: -542.0088 | I48: 0 | J48: 0 | K48: 0 | L48: 0 | M48: 0 | N48: 0 | O48: 0 | P48: 0 | Q48: 0 | R48: -542.052 | S48: =SUM(G48:R48) -> -4432.0608
C49: Leroy | D49: ='Other Inputs'!E153 -> 0.0295 | E49: =E27*-$D49 -> 0 | F49: -1076.894381 | G49: -13096.997 | H49: 0 | I49: 0 | J49: 0 | K49: 0 | L49: 0 | M49: 0 | N49: 0 | O49: 0 | P49: 0 | Q49: 0 | R49: 0 | S49: =SUM(G49:R49) -> -13096.997
C50: Ryckman | D50: ='Other Inputs'!E150 -> 0.025 | E50: =E28*-$D50 -> -9054.325104 | F50: -8762.249756 | G50: -5958.575 | H50: 0 | I50: 0 | J50: 0 | K50: 0 | L50: 0 | M50: -8386.525 | N50: -8827.975 | O50: -8543.25 | P50: -8828 | Q50: -8828 | R50: -8543.25 | S50: =SUM(G50:R50) -> -57915.575
C51: Total Injections | E51: =SUM(E46:E50) -> -96769.06815 | F51: -99258.13793 | G51: -94020.497 | H51: -38800.3488 | I51: 0 | J51: 0 | K51: 0 | L51: 0 | M51: -8386.525 | N51: -44136.775 | O51: -76043.25 | P51: -56587.5 | Q51: -57476.75 | R51: -70012.437 | S51: =SUM(S46:S50) -> -445464.0828
B53: Withdrawls In Dth
C54: Chalk Creek | D54: ='Other Inputs'!E148 -> 0.0184 | E54: =E32*-$D54 -> 0 | F54: 0 | G54: =G32*-$D54 -> 0 | H54: 0 | I54: 0 | J54: -1105.4536 | K54: 0 | L54: -5521.9688 | M54: 0 | N54: 0 | O54: 0 | P54: 0 | Q54: 0 | R54: 0 | S54: =SUM(G54:R54) -> -6627.4224
C55: Clay Basin | D55: ='Other Inputs'!E157 -> 0.0155 | E55: =E33*-$D55 -> 0 | F55: 0 | G55: 0 | H55: -14838.584 | I55: -51414.213 | J55: -48980.775 | K55: -49445.713 | L55: -23250 | M55: 0 | N55: 0 | O55: 0 | P55: 0 | Q55: 0 | R55: 0 | S55: =SUM(G55:R55) -> -187929.285
C56: Coalville | D56: ='Other Inputs'!E160 -> 0.0239 | E56: =E34*-$D56 -> 0 | F56: 0 | G56: 0 | H56: 0 | I56: 0 | J56: -1886.666 | K56: 0 | L56: -8712.5777 | M56: 0 | N56: 0 | O56: 0 | P56: 0 | Q56: 0 | R56: 0 | S56: =SUM(G56:R56) -> -10599.2437
C57: Leroy | D57: ='Other Inputs'!E154 -> 0.0243 | E57: =E35*-$D57 -> 0 | F57: 0 | G57: 0 | H57: 0 | I57: 0 | J57: -4471.7589 | K57: 0 | L57: -22402.17 | M57: 0 | N57: 0 | O57: 0 | P57: 0 | Q57: 0 | R57: 0 | S57: =SUM(G57:R57) -> -26873.9289
C58: Ryckman | D58: ='Other Inputs'!E151 -> 0 | E58: =E36*-$D58 -> 0 | F58: 0 | G58: 0 | H58: 0 | I58: 0 | J58: 0 | K58: 0 | L58: 0 | M58: 0 | N58: 0 | O58: 0 | P58: 0 | Q58: 0 | R58: 0 | S58: =SUM(G58:R58) -> 0
C59: Total Withdrawls | E59: =SUM(E54:E58) -> 0 | F59: 0 | G59: =SUM(G54:G58) -> 0 | H59: -14838.584 | I59: -51414.213 | J59: -56444.6535 | K59: -49445.713 | L59: -59886.7165 | M59: 0 | N59: 0 | O59: 0 | P59: 0 | Q59: 0 | R59: 0 | S59: =SUM(S54:S58) -> -232029.88
B61: QPC Transportation Loss
C62: Chalk Creek | D62: ='Other Inputs'!$E$268 -> 0.0157 | E62: =E32*-$D62 -> 0 | F62: 0 | G62: =G32*-$D62 -> 0 | H62: =H32*-$D62 -> 0 | I62: 0 | J62: -943.2403 | K62: 0 | L62: -4711.6799 | M62: 0 | N62: 0 | O62: 0 | P62: 0 | Q62: 0 | R62: 0 | S62: =SUM(G62:R62) -> -5654.9202
C63: Clay Basin | D63: ='Other Inputs'!$E$268 -> 0.0157 | E63: =E33*-$D63 -> 0 | F63: 0 | G63: =G33*-$D63 -> 0 | H63: -15030.0496 | I63: -52077.6222 | J63: -49612.785 | K63: -50083.7222 | L63: -23550 | M63: 0 | N63: 0 | O63: 0 | P63: 0 | Q63: 0 | R63: 0 | S63: =SUM(G63:R63) -> -190354.179
C64: Coalville | D64: ='Other Inputs'!$E$268 -> 0.0157 | E64: =E34*-$D64 -> 0 | F64: 0 | G64: 0 | H64: 0 | I64: 0 | J64: -1239.358 | K64: 0 | L64: -5723.3251 | M64: 0 | N64: 0 | O64: 0 | P64: 0 | Q64: 0 | R64: 0 | S64: =SUM(G64:R64) -> -6962.6831
C65: Leroy | D65: ='Other Inputs'!$E$268 -> 0.0157 | E65: =E35*-$D65 -> 0 | F65: 0 | G65: 0 | H65: 0 | I65: 0 | J65: -2889.1611 | K65: 0 | L65: -14473.83 | M65: 0 | N65: 0 | O65: 0 | P65: 0 | Q65: 0 | R65: 0 | S65: =SUM(G65:R65) -> -17362.9911
C66: Ryckman | D66: ='Other Inputs'!$E$268 -> 0.0157 | E66: =E36*-$D66 -> 0 | F66: 0 | G66: 0 | H66: -7818.6 | I66: -8079.22 | J66: -8079.22 | K66: -7557.98 | L66: 0 | M66: 0 | N66: 0 | O66: 0 | P66: 0 | Q66: 0 | R66: 0 | S66: =SUM(G66:R66) -> -31535.02
C67: Total Withdrawls | E67: =SUM(E62:E66) -> 0 | F67: 0 | G67: =SUM(G62:G66) -> 0 | H67: -22848.6496 | I67: -60156.8422 | J67: -62763.7644 | K67: -57641.7022 | L67: -48458.835 | M67: 0 | N67: 0 | O67: 0 | P67: 0 | Q67: 0 | R67: 0 | S67: -251869.7934
B70: Total Injections & Withdrawls | E70: =E51+E59 -> -96769.06815 | F70: -99258.13793 | G70: =G51+G59 -> -94020.497 | H70: =H51+H59 -> -53638.9328 | I70: -51414.213 | J70: -56444.6535 | K70: -49445.713 | L70: -59886.7165 | M70: -8386.525 | N70: -44136.775 | O70: -76043.25 | P70: -56587.5 | Q70: -57476.75 | R70: -70012.437 | S70: =S51+S59 -> -677493.9628
R72: Fuel Factor | S72: =-S70/(S37+S29) -> 0.0198115237
S74: 12-Month
E75: =E3 -> Aug19 | F75: Sep19 | G75: =G3 -> Oct19 | H75: =H3 -> Nov19 | I75: Dec19 | J75: Jan20 | K75: Feb20 | L75: Mar20 | M75: Apr20 | N75: May20 | O75: Jun20 | P75: Jul20 | Q75: Aug20 | R75: Sep20 | S75: Total
I77: Updated: | J77: 2019-08-07 | K77: EXH 1.2
A78: Natural Gas Spot Price Forecast - Average of GI, Cera & Pira | G78: (Forecast --->)
B79: Kern River Opal, Wyoming | E79: 2.000268174 | F79: 1.955685 | G79: 1.88 | H79: 2.11 | I79: 2.42 | J79: 2.4 | K79: 2.24 | L79: 1.8 | M79: 1.75 | N79: 1.64 | O79: 1.59 | P79: 1.83 | Q79: 1.88 | R79: 1.7
B82: Spot Purchases from IRP | G82: 4222.72 | H82: 4431.064 | I82: 4395.821 | J82: 4949.876 | K82: 4467.148 | L82: 5104.54 | M82: 3985.452 | N82: 2600.38 | O82: 1639.95 | P82: 0 | Q82: 0 | R82: 1246.986 | S82: =SUM(G82:R82) -> 37043.937
C83: In DTH | G83: =G82*1000 -> 4222720 | H83: =H82*1000 -> 4431064 | I83: 4395821 | J83: 4949876 | K83: 4467148 | L83: =L82*1000 -> 5104540 | M83: =M82*1000 -> 3985452 | N83: 2600380 | O83: =O82*1000 -> 1639950 | P83: 0 | Q83: 0 | R83: 1246986 | S83: =SUM(G83:R83) -> 37043937
C84: In $ | G84: =G83*G79 -> 7938713.6 | H84: 9349545.04 | I84: 10637886.82 | J84: 11879702.4 | K84: =K83*K79 -> 10006411.52 | L84: 9188172 | M84: 6974541 | N84: 4264623.2 | O84: 2607520.5 | P84: 0 | Q84: 0 | R84: 2119876.2 | S84: =SUM(G84:R84) -> 74966992.28
A87: CONTRACT PURCHASES | I87: Updated: | J87: 2019-08-19
B88: RESET FORMULAS TO WORKSHEET
B89: Peaking Purchases (DTH) | G89: 0 | H89: 1000000 | I89: 4000000 | J89: 5000000 | K89: 3000000 | L89: 0 | M89: 0 | N89: 0 | O89: 0 | P89: 0 | Q89: 0 | R89: 0 | S89: =SUM(G89:R89) -> 13000000
B90: Peaking Purchases ($) | G90: 0 | H90: 2170248.254 | I90: 8680993.014 | J90: 10851241.27 | K90: 6510744.761 | L90: 0 | M90: 0 | N90: 0 | O90: 0 | P90: 0 | Q90: 0 | R90: 0 | S90: =SUM(G90:R90) -> 28213227.3
B92: Term Purchases (DTH) | G92: 930000 | H92: 1110000 | I92: 2077000 | J92: 2077000 | K92: 1943000 | L92: 930000 | M92: 900000 | N92: 0 | O92: 0 | P92: 0 | Q92: 0 | R92: 0 | S92: =SUM(G92:R92) -> 9967000
B93: Term Purchases ($) | G93: 1973995.68 | H93: 2569666.728 | I93: 5332390.575 | J93: 5289964.744 | K93: 4631167.25 | L93: 1898464.8 | M93: 1791540 | N93: 0 | O93: 0 | P93: 0 | Q93: 0 | R93: 0 | S93: =SUM(G93:R93) -> 23487189.78
B94: Stabilization Costs (Winter Months - Oct to Mar) | G94: 0 | H94: 0 | I94: 0 | J94: 0 | K94: 0 | L94: 0 | M94: 0 | N94: 0 | O94: 0 | P94: 0 | Q94: 0 | R94: 0 | S94: =SUM(G94:R94) -> 0
B97: Total Purchases (DTH) | E97: 0 | F97: 0 | G97: =G89+G92 -> 930000 | H97: =H89+H92 -> 2110000 | I97: 6077000 | J97: 7077000 | K97: 4943000 | L97: =L89+L92 -> 930000 | M97: 900000 | N97: 0 | O97: 0 | P97: 0 | Q97: 0 | R97: 0 | S97: =SUM(G97:R97) -> 22967000
B98: Total Purchases ($) | E98: 0 | F98: 0 | G98: 1973995.68 | H98: 4739914.982 | I98: 14013383.59 | J98: 16141206.01 | K98: 11141912.01 | L98: =L90+L93 -> 1898464.8 | M98: 1791540 | N98: 0 | O98: 0 | P98: 0 | Q98: 0 | R98: 0 | S98: =SUM(G98:R98) -> 51700417.07
A101: Typical Customer Monthly Usage in Dth
B102: Utah | G102: =VLOOKUP(MONTH(H3),$F$116:$G$127,2,FALSE) -> 6.3 | H102: 11.5 | I102: 14.9 | J102: 12.5 | K102: 10.1 | L102: 8.3 | M102: 4.4 | N102: 3.1 | O102: 2 | P102: 1.8 | Q102: 2 | R102: =VLOOKUP(MONTH(G3),$F$116:$G$127,2,FALSE) -> 3.1 | S102: =SUM(G102:R102) -> 80
B103: Wyoming | G103: =VLOOKUP(MONTH(H3),$F$116:$H$127,3,FALSE) -> 0 | H103: 0 | I103: 0 | J103: 0 | K103: 0 | L103: 0 | M103: 0 | N103: 0 | O103: 0 | P103: 0 | Q103: 0 | R103: =VLOOKUP(MONTH(G3),$F$116:$H$127,3,FALSE) -> 0 | S103: =SUM(G103:R103) -> 0
A105: INPUTS FROM WEXPRO | G105: =G3 -> Oct19 | H105: =H3 -> Nov19 | I105: Dec19 | J105: Jan20 | K105: Feb20 | L105: Mar20 | M105: Apr20 | N105: May20 | O105: Jun20 | P105: Jul20 | Q105: Aug20 | R105: Sep20 | S105: 12-Month
S106: Total
A107: Wexpro I Operator Fee (Wexpro forecast) | E107: Updated: | F107: 2019-08-19 | G107: 14859104.01 | H107: 14565282.5 | I107: 14474469.93 | J107: 14519360.7 | K107: 14219918.77 | L107: 14182504.27 | M107: 13979078.04 | N107: 14205625.6 | O107: 13892652.5 | P107: 13728783.58 | Q107: 13509837.53 | R107: 13368204.31 | S107: =SUM(G107:R107) -> 169504821.8
A109: Wexpro II Operator Fee (Wexpro forecast) | E109: Updated: | F109: 2019-08-19 | G109: 3062547.573 | H109: 3008995.674 | I109: 2971908.479 | J109: 2942803.218 | K109: 2868625.658 | L109: 2817070.74 | M109: 2764974.974 | N109: 2729455.898 | O109: 2700485.162 | P109: 2670796.652 | Q109: 2751303.783 | R109: 2890131.234 | S109: =SUM(G109:R109) -> 34179099.04
F115: Typical UPC | G115: UT
F116: 1 | G116: 14.9
F117: 2 | G117: 12.5
F118: 3 | G118: 10.1
F119: 4 | G119: 8.3
F120: 5 | G120: 4.4
F121: 6 | G121: 3.1
F122: 7 | G122: 2
F123: 8 | G123: 1.8
F124: 9 | G124: 2
F125: 10 | G125: 3.1
F126: 11 | G126: 6.3
F127: 12 | G127: 11.5
F128: Total | G128: =SUM(G116:G127) -> 80

Sheet Other Inputs
A2: INPUT SECTION | J2: Source
A3: INPUTS FROM QUESTAR PIPELINE TARIFF AND CONTRACTS
B5: Storage Commodity Rates | E5: Rate | F5: Effective
B6: Peaking Injections | E6: 0.03872 | F6: 2019-01-01 | J6: QPC Tariff Statement of Rates
B7: Peaking Withdrawals | E7: 0.03872 | F7: =$F$6 -> 2019-01-01 | J7: =J6 -> QPC Tariff Statement of Rates
B8: Spire Injections | E8: 0.015 | F8: =$F$6 -> 2019-01-01
B9: Spire Withdrawals | E9: 0.01 | F9: 2019-01-01
B10: Clay Basin Injections | E10: 0.01049 | F10: 2019-01-01 | J10: QPC Tariff Statement of Rates
B11: Clay Basin Withdrawals | E11: 0.01781 | F11: =$F$6 -> 2019-01-01 | J11: =J10 -> QPC Tariff Statement of Rates
B13: Storage Field Reservation Charges
B14: Peaking Storage Fields Demand (Leroy, Chalk Creek, Coalville) | E14: 2.87375 | F14: =$F$6 -> 2019-01-01 | J14: =$J$6 -> QPC Tariff Statement of Rates
B15: Spire | E15: 0.09 | F15: =$F$6 -> 2019-01-01
B16: Clay Basin Demand | E16: 2.85338 | F16: =$F$6 -> 2019-01-01 | J16: =$J$6 -> QPC Tariff Statement of Rates
B17: Clay Basin Capacity | E17: 0.02378 | F17: =$F$6 -> 2019-01-01 | J17: =$J$6 -> QPC Tariff Statement of Rates
B19: Peak Hour Service
B20: Kern River | D20: 28752 | E20: 3 | F20: =+F21*E21/E20 -> 11.65333333
B21: mid Nov - mid Feb | E21: =16+31+31+14 -> 92 | F21: 0.38
B23: Dominion Energy Questar Pipeline | D23: =(142000+49000)/24*8 -> 63666.66667 | E23: 3 | F23: =(1044762+360516)/(D23*E23) -> 7.35747644
B24: mid Nov - mid Feb | E24: =16+31+31+14 -> 92 | F24: =+F23/E24*E23 -> 0.23991771
J26: used in Exhibit 1.3
B27: FIRM TRANSPORTATION | D27: Contract Dth | E27: Months | F27: Maximum Rate | G27: Effective
B28: T-1 Transportation - Yearly (MT241) | D28: =798902 -> 798902 | E28: 12 | F28: 5.28804 | G28: 2019-01-01 | J28: =$J$6 -> QPC Tariff Statement of Rates
B29: T-1 Transportation - Yearly (Mainline 104) | D29: 30000 | E29: 12 | F29: 5.28804 | G29: =$G$28 -> 2019-01-01 | J29: =$J$6 -> QPC Tariff Statement of Rates
B30: T-1 Transportation - Yearly (Tieline 112) | D30: 12000 | E30: 12 | F30: 5.28804 | G30: =$G$28 -> 2019-01-01 | J30: =$J$6 -> QPC Tariff Statement of Rates
B31: T-1 Transportation - Nov-Mar | D31: 75000 | E31: 5 | F31: 6.80887 | G31: =$G$28 -> 2019-01-01
B32: T-1 Transportation - Yearly (Hyrum) | D32: 100000 | E32: 11 | F32: 5.28804 | G32: =$G$28 -> 2019-01-01 | J32: Begins November 2019
B33: Total Yearly T-1 Transportation | D33: =SUM(D28:D32) -> 1015902 | E33: 12
B35: No-Notice Transportation (BASE TARIFF RATE) | D35: 203542 | E35: 12 | F35: 0.86753 | G35: =$G$28 -> 2019-01-01 | J35: =$J$6 -> QPC Tariff Statement of Rates
B37: TRANSPORTATION COMMODITY
B38: PIPELINE USAGE CHARGE TO VOLUMETRIC RELEASES
B39: QPC Commodity
B40: QPC Firm Transportation Usage Charge (Max & Min) (BASE TARIFF RATE) | F40: 0.00267 | G40: 2019-01-01 | J40: =$J$6 -> QPC Tariff Statement of Rates
B41: QPC (ANNUAL CHARGE ADJUSTMENT) | F41: 0.0013 | G41: 2019-10-01 | J41: FERC Website
E43: Current | F43: Proposed
B44: INTER TRANS (T-2 PIPELINE BASE TARIFF) MAX | D44: Base Tariff | E44: 0.17652 | F44: 0.17652 | G44: 2019-01-01 | J44: =$J$6 -> QPC Tariff Statement of Rates
D45: Annual Charge | E45: 0.0013 | F45: 0.0013 | G45: 2019-10-01 | J45: ferc.gov
D46: Total | E46: =SUM(E44:E45) -> 0.17782 | F46: =SUM(F44:F45) -> 0.17782
B49: Utah | E49: =ROUND((E46)/(1-$E265),5) -> 0.17862 | F49: =ROUND((F46)/(1-E265),5) -> 0.17862 | J49: Before Adjustment for Bad Debt (Transport grossed up for QGC fuel)
B50: Wyoming | F50: =ROUND((F46)/(1-E266),5) -> 0.18053
A52: INPUTS FROM KERN RIVER PIPELINE TARIFF AND CONTRACTS
B53: Kern River 2003 Expansion | D53: Contract Dth | E53: Months | F53: Maximum Rate | G53: Effective
F54: 0.1796 | G54: 2019-04-01 | J54: KR Tariff 5-A
B55: Jan - Dec #20029 | D55: 33000 | E55: 12 | F55: =(F54*(E58-153))/E55 -> 3.1879
B56: November - March #20029 | D56: 50000 | E56: 5 | F56: =F55 -> 3.1879
B57: Jan - Dec #1829 | D57: 1885 | E57: 12 | F57: =F58*E58/E57 -> 15.83255
B58: Days in Tariff Rate | E58: 366 | F58: 0.5191 | G58: =G54 -> 2019-04-01
B60: Citadel Energy Marketing
B61: Dec - Feb #20017 | D61: 56925 | E61: 3 | F61: =+E62*F62/E61 -> 8.796666667
B62: Days in Tariff Rate | E62: =31+31+29 -> 91 | F62: 0.29
B63: Nov & Mar #20017 | D63: 6000 | E63: 2 | F63: =+F64*E64/E63 -> 8.845
B64: Days in Tariff Rate | E64: =30+31 -> 61 | F64: 0.29
B65: Nov - Mar #20024 | D65: 27000 | E65: 5 | F65: =+F66*E66/E65 -> 8.816
B66: Days in Tariff Rate | E66: =30+31+31+29+31 -> 152 | F66: 0.29
B68: Kern River 2003 Expansion | E68: Days in TEST PERIOD
B69: Jan - Dec | C69: 0.673536602 | D69: =D55+D57 -> 34885 | E69: 366 | F69: 0.0044 | G69: =G58 -> 2019-04-01 | J69: KR Tariff 5-A
B70: November - March | C70: =C69 -> 0.673536602 | D70: =D56 -> 50000 | E70: =30+31+31+29+31 -> 152 | F70: 0.0044 | G70: =G58 -> 2019-04-01 | J70: KR Tariff 5-A
B72: Kern River Original System Period Two Rates #20017
B73: Dec - Feb #20017 | C73: =+C69 -> 0.673536602 | D73: 56925 | E73: =31+31+29 -> 91 | F73: 0.0044 | G73: =+G70 -> 2019-04-01 | J73: KR Tariff 5.01
B74: Nov & Mar #20017 | C74: =+C69 -> 0.673536602 | D74: 6000 | E74: 61 | F74: 0.0044 | G74: =+G70 -> 2019-04-01 | J74: KR Tariff 5.01
B75: Kern River 2002 Expansion Period Two Rates #20024
B76: Nov - Mar #20024 | C76: =+C69 -> 0.673536602 | D76: 27000 | E76: =30+31+31+29+31 -> 152 | F76: 0.0044 | G76: =+G70 -> 2019-04-01
A79: INPUTS FROM TARIFF
A82: Current SNG Rates
B83: UTAH | E83: Current SNG Base | F83: Current SNG Amort. | G83: Current SNG Total | J83: Effective
B84: GS | D84: Winter | E84: 1.13909 | F84: 0.0259 | G84: =E84+F84 -> 1.16499 | J84: 2019-08-01
D85: Summer | E85: 0.53482 | F85: 0.01216 | G85: =E85+F85 -> 0.54698 | J85: =J84 -> 2019-08-01
B87: FS | D87: Winter | E87: 1.10943 | F87: 0.02523 | G87: =E87+F87 -> 1.13466 | J87: 2019-08-01
D88: Summer | E88: 0.53482 | F88: 0.01216 | G88: =E88+F88 -> 0.54698 | J88: =J87 -> 2019-08-01
B90: NGV | E90: 0.82198 | F90: 0.0187 | G90: =E90+F90 -> 0.84068 | J90: 2019-08-01
B92: (This includes bad debt adjustment) IS | E92: 0.17907 | F92: 0 | G92: =E92+F92 -> 0.17907 | J92: 2019-08-01
A94: Current Rates
B95: Utah GS | J95: Effective
B96: Block 1 | D96: Summer | G96: 5.90287 | J96: 2019-08-01
B97: Block 2 | D97: Summer | G97: 4.76604 | J97: 2019-08-01
B98: Block 1 | D98: Winter | G98: 7.1728 | J98: 2019-08-01
B99: Block 2 | D99: Winter | G99: 6.03597 | J99: 2019-08-01
B100: #1 BSF | G100: 6.75 | J100: 2019-08-01
B102: Wyoming GS
B103: Block 1 | G103: 6.46035 | J103: 2019-06-01
B104: Block 2 | G104: 6.2043 | J104: 2019-06-01
B105: BSF | G105: 12 | J105: 2019-06-01
A107: INPUTS FROM PREVIOUS PASS THROUGH CASE
B108: PRIOR PERIOD COMPANY PRODUCTION AVERAGE GAS COST
E109: PROPOSED | F109: PRIOR CASE | G109: Most Recent
B110: VOLUMES DTH | E110: =+'Monthly Inputs'!S7+'Monthly Inputs'!S13 -> 62236745 | F110: 68888319 | G110: EXH 1.1
B111: AMOUNT | E111: =+D195+D216 -> 223281987.8 | F111: 256382692 | G111: EXH 1.1
B112: AVG COST | E112: =+E111/E110 -> 3.587623161 | F112: =ROUND(+F111/F110,5) -> 3.72172
B114: Utah Cost of Gas by Component
B115: Unit Cost Of Gas (Line 7) | F115: 3.21635
B116: 191 Account Amortization (Line 8) | F116: 0.06922
B117: Total Unit Cost In Rates (Line 9) | F117: =SUM(F115:F116) -> 3.28557
B119: I-2 Commodity Cost (excluding bad debt) | E119: 0
B121: Wyoming Cost of Gas by Component
B122: Unit Cost Of Gas (Line 9) | F122: 4.02276
B123: 191 Account Amortization (Line 10) | F123: 0.26602
B124: Total Unit Cost In Rates (Line 11) | F124: =F122+F123 -> 4.28878
A129: INPUTS FROM 191 ACCOUNT MONTH END BALANCE ACTUAL OR FORECAST | E129: Utah | F129: Wyoming
E130: 2019 | F130: 2019-07-31
D132: current yr /mo(text)
B133: July 2019 191 account (Actual/Forecast) | D133: 2019 | E133: 53500538 | F133: 1142631.74
B134: Supplier Non-Gas Cost Under (Over) Collected through July 2019 (act/fcst) | D134: July | E134: 3746511
B135: Commodity Cost Under (Over) Collected during YEAR (Act/Fcst) | E135: =E133-E134 -> 49754027
B137: SPRING SNG Amortization Balance March 2019 | D137: -17559983 | E137: -20000000 | F137: =+D137-E137 -> 2440017
A139: INPUTS FROM IRP
B140: #1 Peak Day Demand Forecast | E140: 2019 | F140: Source
B141: Utah | E141: =E143-E142 -> 1182617 | F141: 2019 IRP
B142: Wyoming | E142: 37416
B143: System Total Peak Day Demand Forecast | E143: 1220033 | F143: 2019-2020 Heating Season
A146: STORAGE FIELD INPUTS | E146: Storage
B147: Chalk Creek Injections Factor | E147: 0.0099
B148: Chalk Creek Withdrawls Factor | E148: 0.0184
B150: Spire Injections Factor | E150: 0.025
B151: Spire Withdrawls Factor | E151: 0
B153: Leroy Injections Factor | E153: 0.0295
B154: Leroy Withdrawls Factor | E154: 0.0243
B156: Clay Basin Injections Factor | E156: 0.025
B157: Clay Basin Withdrawls Factor | E157: 0.0155
B159: Coalville Injections Factor | E159: 0.0108
B160: Coalville Withdrawls Factor | E160: 0.0239
B162: QPC Storage Field Reservation Charges | E162: Monthly Dth
B163: Peaking Storage Fields Maximum Daily Withdrawal Qty (Leroy, Chalk Creek, Coalville) | E163: 184625
B164: Ryckman Maximum Storage Qty | E164: =2500000 -> 2500000
B165: Clay Basin Minimum Required Deliverability | E165: 111827
B166: Clay Basin Capacity | E166: 13419000
A168: OTHER INPUTS | D168: Revenue
B169: OTHER GATHERING
B173: Total Forecasted Birch Creek | D173: 269835.7037 | E173: 2019-07-31
B175: Other gathering | D175: 1638069.243 | E175: 2019-07-31
B176: Total Gathering | D176: =SUM(D173:D175) -> 1907904.947
B178: Other Transportation | D178: 3792842.548 | E178: 2019-07-31
B180: Forecast Future Contracts Premium over spot price | E180: 0.02 | F180: Verified with Tina 8/19/19
D182: Commodity | E182: Demand
D183: Charge | E183: Charge | F183: Effective
B184: Gathering Rates -System wide Gathering agreement #163 (SWGA) | D184: 8260977.687 | E184: 12340512 | F184: 2019-01-01
B187: Gathering Rate Wexpro II | D187: 2549704.139
A190: OTHER INPUTS | D190: Volume (Dth) | E190: Revenue
A191: WEXPRO I
B192: Questar Gas Production 1/ | D192: Current
B193: Test-Year Royalties | D193: ='Royalty Detail'!I1432 -> 15728560.62
B194: Operator Service Fee | D194: ='Monthly Inputs'!S107 -> 169504821.8
B195: Total Questar Gas Production Costs | D195: =SUM(D193:D194) -> 185233382.4
B197: Total Questar Gas Production Dth | D197: ='Royalty Detail'!F1437 -> 50057758
F198: Hot | G198: Hot
B199: Other Revenue Credits | D199: 1 | E199: 2 | F199: 2 | G199: 2 | I199: 1
D200: Historical | E200: Forecast | F200: =HLOOKUP(F$199,$D$199:$E$207,$I200) -> Forecast | G200: =HLOOKUP(G$199,$D$199:$E$207,$I200) -> Forecast | I200: 2
D201: 12 Mo Ending | E201: 12 Mo Ending | F201: Utah | G201: Wyoming | I201: 3
B202: 483 Sales for Resale | E202: 2269440.72 | F202: =HLOOKUP(F$199,$D$199:$E$207,$I202) -> 2269440.72 | G202: 2269440.72 | I202: 4
B203: 490 Incidental Plant Prod Sales | E203: 3053673 | F203: 3053673 | G203: 3053673 | I203: 5
B204: 492 Incidental Gasoline_Oil Sales | E204: 542819.1323 | F204: 542819.1323 | G204: 542819.1323 | I204: 6
B205: 4951 Overriding Royalty Revenue from Celsius | E205: 7921111.019 | F205: 7921111.019 | G205: 7921111.019 | I205: 7
B206: 4952 Oil Revenue Received from Wexpro | E206: 0 | F206: 0 | G206: 0 | I206: 8
B207: 758001 Gas Well Royalities - Other | E207: -89510.87492 | F207: -89510.87492 | G207: -89510.87492 | I207: 9
B210: Total Other Revenue Credits | D210: =SUM(D202:D207) -> 0 | E210: =SUM(E202:E207) -> 13697533 | F210: =SUM(F202:F207) -> 13697533 | G210: =SUM(G202:G207) -> 13697533
A212: WEXPRO II
B213: Questar Gas Production 1/ | D213: Current
B214: Test-Year Royalties | D214: ='Royalty Detail'!I1687 -> 3869506.409
B215: Operator Service Fee | D215: ='Monthly Inputs'!S109 -> 34179099.04
B216: Total Questar Gas Production Costs | D216: =SUM(D214:D215) -> 38048605.45
B218: Total Questar Gas Production Dth | D218: ='Royalty Detail'!F1692 -> 12178987 | J218: this formula changes each time
F219: Hot | G219: Hot
B220: Other Revenue Credits | D220: 1 | E220: 2 | F220: 2 | G220: 2 | I220: 1
D221: Historical | E221: Forecast | F221: =HLOOKUP(F$199,$D$199:$E$207,$I221) -> Forecast | G221: =HLOOKUP(G$199,$D$199:$E$207,$I221) -> Forecast | I221: 2
D222: 12 Mo Ending | E222: 12 Mo Ending | F222: Utah | G222: Wyoming | I222: 3
B223: 483 Sales for Resale | E223: 0 | F223: =HLOOKUP(F$220,$D$220:$E$228,$I223) -> 0 | G223: 0 | I223: 4
B224: 490 Incidental Plant Prod Sales | E224: 480000 | F224: 480000 | G224: 480000 | I224: 5
B225: 492 Incidental Gasoline_Oil Sales | E225: 1457997.725 | F225: 1457997.725 | G225: 1457997.725 | I225: 6
B226: 4951 Overriding Royalty Revenue from Celsius | E226: 0 | F226: 0 | G226: 0 | I226: 7
B227: 4952 Oil Revenue Received from Wexpro | E227: -216209.268 | F227: -216209.268 | G227: -216209.268 | I227: 8
B228: 758001 Gas Well Royalities - Other | E228: -237507.8294 | F228: -237507.8294 | G228: -237507.8294 | I228: 9
B231: Total Other Revenue Credits | D231: =SUM(D223:D228) -> 0 | E231: =SUM(E223:E229) -> 1484280.628 | F231: =SUM(F223:F228) -> 1484280.628 | G231: =SUM(G223:G228) -> 1484280.628
E233: Proceeds | F233: Dths | G233: Price
B234: Sales of Wexpro Gas | E234: 0 | F234: 0 | G234: 0
A236: SUMMARY INPUTS FROM REVRUN, RATE BASE, EXPENSES, ETC.
B238: Supplier Non-Gas Costs Recovered at Current Rates 3/ | E238: ='RevRun Fcst'!T$199 -> 112213609.3
B239: MT Supplier Non-Gas | E239: ='RevRun Fcst'!T142 -> 0
B240: Net Supplier Non-Gas | E240: =E238-E239 -> 112213609.3
B241: UT Current Int Sales SNG Rate - not including Bad Debt adj. | E241: ='RevRun Fcst'!T102+'RevRun Fcst'!T93 -> 130911 | F241: 0.17862
E243: ='Rate Base'!$U$8 -> 2019-07-31 | F243: update to most current
B244: Account 164-1 - Gas Stored Underground | D244: Dth | E244: Ending Balance | F244: $ per Dth
D245: ='Rate Base'!T285 -> -6908613 | E245: ='Rate Base'!T206 -> 33521823.38 | F245: =+E245/D245 -> -4.852178488
A248: UT CET and DSM AMORTIZATION FILING INPUTS
E249: Base DNG | F249: Current DNG
B250: GS Rates (Base rates are before CET, DSM, & EA Amortizations) | D250: Summer Blk 1 | E250: 1.7267 | F250: 2.07032
D251: Summer Blk 2 | E251: 0.7267 | F251: 0.93349
D252: Winter Blk 1 | E252: 2.34949 | F252: 2.72224
D253: Winter Blk 2 | E253: 1.34949 | F253: 1.58541
A257: MISCELLANEOUS INPUTS
B258: Test-Year | D258: ='Control Panel'!E40 -> 2019-10-01 | E258: ='Control Panel'!E41 -> 2020-09-30
B260: Wexpro Red. @ 6.3% | E260: -0.063
B262: Pre-Tax Rate of Return % | D262: WYO | E262: 0.0916 | F262: 2015-03-01
B263: Pre-Tax Rate of Return % | D263: UTAH | E263: 0.0933 | F263: 2018-03-01
B265: QGC Lost & Unaccounted For % (Utah | E265: 0.0045 | F265: 2016-06-01
B266: QGC Lost & Unaccounted For % (Wyoming) | E266: 0.015
B267: Gathering Lost & Unaccounted For | E267: 0.021421 | F267: 2016-06-01
B268: QPC Lost & Unaccounted For % | E268: 0.0157 | F268: 2010-04-23
B269: TOTAL | E269: =SUM(E267:E268) -> 0.037121
B271: Capacity Release Credits | E271: 3857070.84
B272: Capacity Release Credit Sharing % in Utah | E272: 0.9 | J272: Docket 97-057-03 Stipulation
B273: Capacity Release Credits for Utah | E273: =E271*E272 -> 3471363.756
B276: Bad Debt Allowance | E276: 0.0025 | F276: verified 9/13/18
... 34 more rows

Sheet CET & DSM WY (hidden)
A1: Rate Caclulation for the CET and DSM Amortizations WY
L3: Solver Cells
A4: CET Amortization % Calculation | L4: % Change | M4: Difference
B5: Balance | C5: Date | D5: GS Dth | F5: Amortization per Dth | L5: =J20/D20 ->  | M5: =G20-B11 ->  | O5: -> Difference should be at 0 (Use Goal Seek to Get Difference to Equal 0.
A6: DSM Balance | B6: ='Other Inputs'!#REF! ->  | C6: ='Other Inputs'!#REF! ->  | D6: =B20 ->  | F6: =B6/D6 -> 
O8: Typical Bill Rates
A9: CET Amortization Calculation
B10: Balance | C10: Date | D10: DNG Rev | F10: New DNG | I10: % Change | O10: Current | P10: Proposed
A11: CET Balance | B11: ='Other Inputs'!#REF! ->  | C11: ='Other Inputs'!#REF! ->  | D11: =D20 ->  | F11: =D11+B11 ->  | I11: =L5 ->  | O11: Effective | R11: SNG & | S11: CET, DSM
O12: ='Other Inputs'!$J$103 -> 2019-06-01 | P12: CET Only | Q12: DSM Only | R12: Commodity | S12: Commodity
O13: BSF | P13: BSF | Q13: BSF | R13: BSF | S13: BSF
B14: Revenue Calculation | F14: CET Amortization | I14: Total DNG | L14: REVRUN Calculation | O14: ='Other Inputs'!$G$105 -> 12 | P14: ='Other Inputs'!$G$105 -> 12 | Q14: ='Other Inputs'!$G$105 -> 12 | R14: ='Other Inputs'!$G$105 -> 12 | S14: =#REF! -> 
A15: WY GS | B15: Dth | C15: Base DNG | D15: DNG Revenue | F15: CET Rate | G15: Revenue | I15: DNG Rate | J15: Revenue | L15: CET Rate | M15: CET Amort
A16: Block 1 | B16: ='Other Inputs'!#REF! ->  | C16: ='Other Inputs'!#REF! ->  | D16: =B16*C16 ->  | F16: =ROUND((G16/B16),5) ->  | G16: =D16*$L$5 ->  | I16: =C16+F16 ->  | J16: =I16*B16 ->  | L16: =ROUND(F16,5) ->  | M16: =B16*L16 ->  | O16: ='Other Inputs'!$G$96 -> 5.90287 | P16: =J24 ->  | Q16: =J31 ->  | R16: =J36 ->  | S16: =J41 -> 
A17: Block 2 | B17: ='Other Inputs'!#REF! ->  | C17: ='Other Inputs'!#REF! ->  | D17: =B17*C17 ->  | F17: =ROUND((G17/B17),5) ->  | G17: =D17*$L$5 ->  | I17: =C17+F17 ->  | J17: =I17*B17 ->  | L17: =ROUND(F17,5) ->  | M17: =B17*L17 -> 
O18: ='Other Inputs'!$G$103 -> 6.46035 | P18: =J24 ->  | Q18: =J31 ->  | R18: =J36 ->  | S18: =J41 -> 
A20: GS-1 Block Rev | B20: =SUM(B16:B19) ->  | D20: =SUM(D16:D19) ->  | G20: =SUM(G16:G19) ->  | J20: =B11 ->  | M20: =SUM(M16:M19) -> 
A22: Total Rate Calculation With CET Amortization Only | J22: ='Control Panel'!#REF! ->  | L22: ='Other Inputs'!$J$103 -> 2019-06-01
A23: WY GS | B23: Total DNG | C23: CET | D23: DSM | F23: Total DNG | G23: Core Commodity Cost | J23: Total Rate | L23: Total Rate
A24: Block 1 | B24: =$C$16 ->  | C24: =$F$16 ->  | D24: 0.06792 | F24: =SUM(B24:D24) ->  | G24: 4.96884 | J24: =SUM(F24:G24) ->  | L24: ='Other Inputs'!G103 -> 6.46035 | M24: =J24-L24 -> 
A25: Block 2 | B25: =$C$17 ->  | C25: =$F$17 ->  | D25: =$D$24 -> 0.06792 | F25: =SUM(B25:D25) ->  | G25: =G24 -> 4.96884 | J25: =SUM(F25:G25) ->  | L25: ='Other Inputs'!$G$104 -> 6.2043 | M25: =J25-L25 -> 
A29: Total Rate Calculation With DSM Amortization Only | J29: =J22 ->  | L29: ='Other Inputs'!$J$103 -> 2019-06-01
A30: WY GS | B30: Base DNG | C30: CET | D30: DSM | F30: Total DNG | G30: Core Commodity Cost | J30: Total Rate | L30: Total Rate
A31: Block 1 | B31: =$C$16 ->  | C31: 0.04505 | D31: =$F$6 ->  | F31: =ROUND(SUM(B31:D31),5) ->  | G31: =G24 -> 4.96884 | J31: =SUM(F31:I31) ->  | L31: ='Other Inputs'!$G$96 -> 5.90287 | M31: =J31-L31 -> 
A32: Block 2 | B32: =$C$17 ->  | C32: 0.02848 | D32: =$F$6 ->  | F32: =ROUND(SUM(B32:D32),5) ->  | G32: =G25 -> 4.96884 | J32: =SUM(F32:I32) ->  | L32: ='Other Inputs'!$G$104 -> 6.2043 | M32: =J32-L32 -> 
A34: Total Rate Calculation With Core Commodity Cost Changes Only | J34: =J22 ->  | L34: ='Other Inputs'!$J$103 -> 2019-06-01
A35: WY GS | B35: Base DNG | C35: CET | D35: DSM | F35: Total DNG | G35: Core Commodity Cost | J35: Total Rate | L35: Total Rate
A36: Block 1 | B36: =$C$16 ->  | C36: =C31 -> 0.04505 | D36: =D24 -> 0.06792 | F36: =SUM(B36:D36) ->  | G36: =#REF! ->  | J36: =SUM(F36:I36) ->  | L36: ='Other Inputs'!$G$96 -> 5.90287 | M36: =J36-L36 -> 
A37: Block 2 | B37: =$C$17 ->  | C37: =C32 -> 0.02848 | D37: =D25 -> 0.06792 | F37: =SUM(B37:D37) ->  | G37: =#REF! ->  | J37: =SUM(F37:I37) ->  | L37: ='Other Inputs'!$G$104 -> 6.2043 | M37: =J37-L37 -> 
A39: Total Rate Calculation | J39: =J29 ->  | L39: ='Other Inputs'!$J$103 -> 2019-06-01
A40: WY GS | B40: Base DNG | C40: CET | D40: DSM | F40: Total DNG | G40: Core Commodity Cost | J40: Total Rate | L40: Total Rate
A41: Block 1 | B41: =$C$16 ->  | C41: =$F$16 ->  | D41: =$F$6 ->  | F41: =SUM(B41:D41) ->  | G41: =#REF! ->  | J41: =SUM(F41:I41) ->  | L41: ='Other Inputs'!$G$96 -> 5.90287 | M41: =J41-L41 -> 
A42: Block 2 | B42: =$C$17 ->  | C42: =$F$17 ->  | D42: =$F$6 ->  | F42: =SUM(B42:D42) ->  | G42: =#REF! ->  | J42: =SUM(F42:I42) ->  | L42: ='Other Inputs'!$G$104 -> 6.2043 | M42: =J42-L42 -> 
A44: Typical Customer Difference - CET Amortization Only
B45: Typical
A46: GS | B46: Dth | C46: =O12 -> 2019-06-01 | D46: =J39 ->  | F46: Change | G46: % Change
A47: January | B47: 14.7 | C47: =ROUND($O$14+(B47*$O$18),2) -> 106.97 | D47: =ROUND($P$14+(B47*$P$18),2) ->  | F47: =D47-C47 -> 
A48: February | B48: 14.1 | C48: =ROUND($O$14+(B48*$O$18),2) -> 103.09 | D48: =ROUND($P$14+(B48*$P$18),2) ->  | F48: =D48-C48 -> 
A49: March | B49: 11.8 | C49: =ROUND($O$14+(B49*$O$18),2) -> 88.23 | D49: =ROUND($P$14+(B49*$P$18),2) -> 
A50: April | B50: 9.4 | C50: =ROUND($O$14+(B50*$O$16),2) -> 67.49 | D50: =ROUND($P$14+(B50*$P$16),2) -> 
A51: May | B51: 5.8 | C51: 46.24 | D51: =ROUND($P$14+(B51*$P$16),2) -> 
A52: June | B52: 3.7 | C52: 33.84
A53: July | B53: 2.3 | C53: 25.58
A54: August | B54: 1.7 | C54: 22.03
A55: September | B55: 2.1 | C55: 24.4
A56: October | B56: 4.1 | C56: 36.2
A57: November | B57: 8 | C57: =ROUND($O$14+(B57*$O$18),2) -> 63.68 | D57: =ROUND($P$14+(B57*$P$18),2) -> 
A58: December | B58: 12.3 | C58: =ROUND($O$14+(B58*$O$18),2) -> 91.46 | D58: =ROUND($P$14+(B58*$P$18),2) -> 
B59: =SUM(B47:B58) -> 90 | C59: =SUM(C47:C58) -> 709.21 | D59: =SUM(D47:D58) ->  | F59: =SUM(F47:F58) ->  | G59: =F59/C59 -> 
A62: Typical Customer Difference - DSM Amortization Only
B63: Typical
A64: GS | B64: Dth | C64: =C46 -> 2019-06-01 | D64: =D46 ->  | F64: Change | G64: % Change
A65: January | B65: 14.7 | C65: =ROUND($O$14+(B65*$O$18),2) -> 106.97 | D65: =ROUND($Q$14+(B65*$Q$18),2) ->  | F65: =D65-C65 -> 
A66: February | B66: 14.1 | C66: =ROUND($O$14+(B66*$O$18),2) -> 103.09 | D66: =ROUND($Q$14+(B66*$Q$18),2) ->  | F66: =D66-C66 -> 
A67: March | B67: 11.8 | C67: =ROUND($O$14+(B67*$O$18),2) -> 88.23 | D67: =ROUND($Q$14+(B67*$Q$18),2) -> 
A68: April | B68: 9.4 | C68: =ROUND($O$14+(B68*$O$16),2) -> 67.49 | D68: =ROUND($Q$14+(B68*$Q$16),2) -> 
A69: May | B69: 5.8 | C69: 46.24
A70: June | B70: 3.7 | C70: 33.84
A71: July | B71: 2.3 | C71: 25.58
A72: August | B72: 1.7 | C72: 22.03
A73: September | B73: 2.1 | C73: 24.4
A74: October | B74: 4.1 | C74: 36.2
A75: November | B75: 8 | C75: =ROUND($O$14+(B75*$O$18),2) -> 63.68 | D75: =ROUND($Q$14+(B75*$Q$18),2) -> 
A76: December | B76: 12.3 | C76: =ROUND($O$14+(B76*$O$18),2) -> 91.46 | D76: =ROUND($Q$14+(B76*$Q$18),2) -> 
B77: =SUM(B65:B76) -> 90 | C77: =SUM(C65:C76) -> 709.21 | D77: =SUM(D65:D76) ->  | F77: =SUM(F65:F76) ->  | G77: =F77/C77 -> 
A80: Typical Customer Difference - SNG and Commodity Changes Only
B81: Typical
A82: GS | B82: Dth | C82: =C64 -> 2019-06-01 | D82: =D64 ->  | F82: Change | G82: % Change
A83: January | B83: 14.7 | C83: =ROUND($O$14+(B83*$O$18),2) -> 106.97 | D83: =ROUND($R$14+(B83*$R$18),2) ->  | F83: =D83-C83 -> 
A84: February | B84: 14.1 | C84: =ROUND($O$14+(B84*$O$18),2) -> 103.09 | D84: =ROUND($R$14+(B84*$R$18),2) ->  | F84: =D84-C84 -> 
A85: March | B85: 11.8 | C85: =ROUND($O$14+(B85*$O$18),2) -> 88.23 | D85: =ROUND($R$14+(B85*$R$18),2) -> 
A86: April | B86: 9.4 | C86: =ROUND($O$14+(B86*$O$16),2) -> 67.49 | D86: =ROUND($R$14+(B86*$R$16),2) -> 
A87: May | B87: 5.8 | C87: 46.24
A88: June | B88: 3.7 | C88: 33.84
A89: July | B89: 2.3 | C89: 25.58
A90: August | B90: 1.7 | C90: 22.03
A91: September | B91: 2.1 | C91: 24.4
A92: October | B92: 4.1 | C92: 36.2
A93: November | B93: 8 | C93: =ROUND($O$14+(B93*$O$18),2) -> 63.68 | D93: =ROUND($R$14+(B93*$R$18),2) -> 
A94: December | B94: 12.3 | C94: =ROUND($O$14+(B94*$O$18),2) -> 91.46 | D94: =ROUND($R$14+(B94*$R$18),2) -> 
B95: =SUM(B83:B94) -> 90 | C95: =SUM(C83:C94) -> 709.21 | D95: =SUM(D83:D94) ->  | F95: =SUM(F83:F94) ->  | G95: =F95/C95 -> 
A98: Typical Customer Difference - CET & DSM Amort, SNG and Commodity Changes
B99: Typical
A100: GS | B100: Dth | C100: =C46 -> 2019-06-01 | D100: =D46 ->  | F100: Change | G100: % Change
A101: January | B101: 14.7 | C101: =ROUND($O$14+(B101*$O$18),2) -> 106.97 | D101: =ROUND($S$14+(B101*$S$18),2) ->  | F101: =D101-C101 -> 
A102: February | B102: 14.1 | C102: =ROUND($O$14+(B102*$O$18),2) -> 103.09 | D102: =ROUND($S$14+(B102*$S$18),2) ->  | F102: =D102-C102 -> 
A103: March | B103: 11.8 | C103: =ROUND($O$14+(B103*$O$18),2) -> 88.23 | D103: =ROUND($S$14+(B103*$S$18),2) -> 
A104: April | B104: 9.4 | C104: =ROUND($O$14+(B104*$O$16),2) -> 67.49 | D104: =ROUND($S$14+(B104*$S$16),2) -> 
A105: May | B105: 5.8 | C105: 46.24
A106: June | B106: 3.7 | C106: 33.84
A107: July | B107: 2.3 | C107: 25.58
A108: August | B108: 1.7 | C108: 22.03
A109: September | B109: 2.1 | C109: 24.4
A110: October | B110: 4.1 | C110: 36.2
A111: November | B111: 8 | C111: =ROUND($O$14+(B111*$O$18),2) -> 63.68 | D111: =ROUND($S$14+(B111*$S$18),2) -> 
A112: December | B112: 12.3 | C112: =ROUND($O$14+(B112*$O$18),2) -> 91.46 | D112: =ROUND($S$14+(B112*$S$18),2) -> 
B113: =SUM(B101:B112) -> 90 | C113: =SUM(C101:C112) -> 709.21 | D113: =SUM(D101:D112) ->  | F113: =SUM(F101:F112) ->  | G113: =F113/C113 -> 

Sheet WY Tariff Sheets (hidden)
T2: Rates Per Dth Used Each Month
B3: 2.02 General Service Rate Schedule (GS) | K3: 2.02 General Service Rate Schedule (GS) | Q3: 2.03 Firm Sales Service Rate Schedule (FS) | T3: Dth = decatherm = 10 therms = 1,000,000 BTU | Z3: 4.02 INTERRUPTIBLE SALES RATE SERVICE SCHEDULE (IS) | BF3: 2.04 NATURAL GAS VEHICLE RATE (NGV)
L4: Rates Per Dth Used Each Month | R4: Summer Rates: Apr. 1 - Oct. 31
C5: Rates Per Dth Used Each Month | L5: Dth = decatherm = 10 therms = 1,000,000 BTU | R5: First | T5: Next | V5: All Over | Z5: IS VOLUMETRIC RATES | AA5: Rates Per Dth Used Each Month | BF5: NGV Volumetric Rate
C6: Dth = decatherm = 10 therms = 1,000,000 BTU | L6: First 45 Dth | M6: All Over 45 Dth | R6: 80 | T6: 730 | V6: 810 | AA6: Dth = decatherm = 10 therms = 1,000,000 BTU | BJ6: Rates Per Dth Used Each Month
C7: First 45 Dth | D7: All Over 45 Dth | K7: Non-Gas Cost | L7: ='CET & DSM WY'!B31 ->  | M7: ='CET & DSM WY'!B32 ->  | Q7: Non Gas Cost | R7: =#REF! ->  | T7: =#REF! ->  | V7: =#REF! ->  | AA7: First | AB7: Next | AC7: All Over | BJ7: Dth = decatherm = 10 therms = 1,000,000 BTU
B8: Non-Gas Cost | C8: ='CET & DSM WY'!B24 ->  | D8: ='CET & DSM WY'!B25 ->  | K8: Conservation Enabling Adjustment | L8: =ROUND('CET & DSM WY'!C31,5) -> 0.04505 | M8: ='CET & DSM WY'!C32 -> 0.02848 | Q8: Core Service Commodity Cost | R8: =#REF! ->  | T8: =#REF! ->  | V8: =#REF! ->  | AA8: 48600 | AB8: 72900 | AC8: 121500
B9: Conservation Enabling Adjustment | C9: ='CET & DSM WY'!C24 ->  | D9: ='CET & DSM WY'!C25 ->  | K9: Energy Efficiency Services | L9: ='CET & DSM WY'!D31 ->  | M9: ='CET & DSM WY'!D32 ->  | Z9: Distribution Non-Gas Rate | AA9: =#REF! ->  | AB9: =#REF! ->  | AC9: =#REF! ->  | BF9: Non-Gas Cost | BG9: =#REF! -> 
B10: Energy Efficiency Services | C10: ='CET & DSM WY'!D24 -> 0.06792 | D10: ='CET & DSM WY'!D25 -> 0.06792 | K10: Core Service Commodity Cost | L10: ='CET & DSM WY'!G31 -> 4.96884 | M10: =ROUND('CET & DSM WY'!G32,5) -> 4.96884 | Q10: Total Rate | R10: =SUM(R7:R8) ->  | T10: =SUM(T7:T8) ->  | V10: =SUM(V7:V8) ->  | Z10: Upstream Pipeline Cost | AA10: =#REF! ->  | AB10: =#REF! ->  | AC10: =#REF! ->  | BF10: Core Commodity Cost | BG10: =#REF! -> 
B11: Core Service Commodity Cost | C11: ='CET & DSM WY'!G24 -> 4.96884 | D11: ='CET & DSM WY'!G25 -> 4.96884 | Z11: Commodity Rate | BF11: Total Rate | BG11: =SUM(BG9:BJ10) -> 
K12: Total Rate | L12: =SUM(L7:L10) ->  | M12: =SUM(M7:M10) ->  | Q12: Minimum Monthly Distribution Non-Gas Charge | W12: =#REF! -> 
B13: Total Rate | C13: =SUM(C8:C11) ->  | D13: =SUM(D8:D11) -> 
M15: BSF Category 1 | N15: =E16 -> 12
D16: BSF Category 1 | E16: ='CET & DSM WY'!O14 -> 12 | M16: BSF Category 2 | N16: =E17 -> 44 | U16: BSF Category 1 | W16: ='Other Inputs'!G105 -> 12
D17: BSF Category 2 | E17: 44 | M17: BSF Category 3 | N17: =E18 -> 86 | U17: BSF Category 2 | W17: =#REF! -> 
D18: BSF Category 3 | E18: 86 | M18: BSF Category 4 | N18: =E19 -> 555 | U18: BSF Category 3 | W18: =#REF! ->  | Z18: Total Rate | AA18: $ | AB18: $ | AC18: $
D19: BSF Category 4 | E19: 555 | U19: BSF Category 4 | W19: =#REF! -> 
Z20: Minimum Monthly Distribution Non-Gas Charge
BF23: =B38 -> Issued by R. W. Jibson, President | BI23: Advice No | BJ23: Section Revision No.
AB24: BSF Category 1 | AC24: ='Other Inputs'!G105 -> 12
AB25: BSF Category 2 | AC25: =#REF! -> 
AB26: BSF Category 3 | AC26: =#REF! -> 
AB27: BSF Category 4 | AC27: =#REF! -> 
K37: Issued by R. W. Jibson, President | M37: Section Revision No. | N37: Effective Date
B38: Issued by R. W. Jibson, President | D38: Section Revision No. | E38: Effective Date | Q38: =B38 -> Issued by R. W. Jibson, President | T38: Advice No | U38: Section Revision No. | W38: Effective Date
B42: New CET ONLY | K42: New DSM ONLY | Q42: New Pass Through Values
Z47: =B38 -> Issued by R. W. Jibson, President | AC47: Advice No
Z50: New Pass Through Values

Sheet Calculations
A1: GAS BALANCE FOR 12 MONTHS ENDING: _________________
D3: SALES VOLUMES IN DEKATHERMS (12 Months of Forecast)
D4: Forecast | E4: Forecast | F4: Forecast | G4: Forecast | H4: Forecast | I4: Forecast | J4: Forecast | K4: Forecast | L4: Forecast | M4: Forecast | N4: Forecast | O4: Forecast | P4: 12-Month
A5: RATE CLASS | D5: =+'Monthly Inputs'!G3 -> Oct19 | E5: =+'Monthly Inputs'!H3 -> Nov19 | F5: =+'Monthly Inputs'!I3 -> Dec19 | G5: =+'Monthly Inputs'!J3 -> Jan20 | H5: =+'Monthly Inputs'!K3 -> Feb20 | I5: =+'Monthly Inputs'!L3 -> Mar20 | J5: =+'Monthly Inputs'!M3 -> Apr20 | K5: =+'Monthly Inputs'!N3 -> May20 | L5: =+'Monthly Inputs'!O3 -> Jun20 | M5: =+'Monthly Inputs'!P3 -> Jul20 | N5: =+'Monthly Inputs'!Q3 -> Aug20 | O5: =+'Monthly Inputs'!R3 -> Sep20 | P5: Total | Q5: 1
A6: UTAH | D6: =MONTH(D5) -> 10 | E6: =MONTH(E5) -> 11 | F6: 12 | G6: 1 | H6: 2 | I6: 3 | J6: 4 | K6: 5 | L6: 6 | M6: 7 | N6: 8 | O6: 9 | Q6: 2
B7: GSR | D7: ='RevRun Fcst'!H21 -> 6191522 | E7: ='RevRun Fcst'!I21 -> 11607446 | F7: ='RevRun Fcst'!J21 -> 18378309 | G7: ='RevRun Fcst'!K21 -> 19828276 | H7: ='RevRun Fcst'!L21 -> 16730313 | I7: ='RevRun Fcst'!M21 -> 13186230 | J7: ='RevRun Fcst'!N21 -> 8619471 | K7: ='RevRun Fcst'!O21 -> 5236696 | L7: ='RevRun Fcst'!P21 -> 3066537 | M7: ='RevRun Fcst'!Q21 -> 2464334 | N7: ='RevRun Fcst'!R21 -> 2256237 | O7: ='RevRun Fcst'!S21 -> 2603153 | P7: =SUM(D7:O7) -> 110168524 | Q7: 3
B8: GSC | D8: ='RevRun Fcst'!H30 -> 0 | E8: ='RevRun Fcst'!I30 -> 0 | F8: ='RevRun Fcst'!J30 -> 0 | G8: ='RevRun Fcst'!K30 -> 0 | H8: ='RevRun Fcst'!L30 -> 0 | I8: ='RevRun Fcst'!M30 -> 0 | J8: ='RevRun Fcst'!N30 -> 0 | K8: ='RevRun Fcst'!O30 -> 0 | L8: ='RevRun Fcst'!P30 -> 0 | M8: ='RevRun Fcst'!Q30 -> 0 | N8: ='RevRun Fcst'!R30 -> 0 | O8: ='RevRun Fcst'!S30 -> 0 | P8: 0 | Q8: 4
B9: GSS | D9: ='RevRun Fcst'!H39 -> 0 | E9: ='RevRun Fcst'!I39 -> 0 | F9: ='RevRun Fcst'!J39 -> 0 | G9: ='RevRun Fcst'!K39 -> 0 | H9: ='RevRun Fcst'!L39 -> 0 | I9: ='RevRun Fcst'!M39 -> 0 | J9: ='RevRun Fcst'!N39 -> 0 | K9: ='RevRun Fcst'!O39 -> 0 | L9: ='RevRun Fcst'!P39 -> 0 | M9: ='RevRun Fcst'!Q39 -> 0 | N9: ='RevRun Fcst'!R39 -> 0 | O9: ='RevRun Fcst'!S39 -> 0 | P9: 0 | Q9: 5
B10: F-1 | D10: ='RevRun Fcst'!H48 -> 209640 | E10: ='RevRun Fcst'!I48 -> 236570 | F10: ='RevRun Fcst'!J48 -> 286797 | G10: ='RevRun Fcst'!K48 -> 354977 | H10: ='RevRun Fcst'!L48 -> 324886 | I10: ='RevRun Fcst'!M48 -> 275550 | J10: ='RevRun Fcst'!N48 -> 274533 | K10: ='RevRun Fcst'!O48 -> 232701 | L10: ='RevRun Fcst'!P48 -> 226914 | M10: ='RevRun Fcst'!Q48 -> 151829 | N10: ='RevRun Fcst'!R48 -> 137293 | O10: ='RevRun Fcst'!S48 -> 149426 | P10: 2861116 | Q10: 6
B11: F-4 | D11: ='RevRun Fcst'!H75 -> 0 | E11: ='RevRun Fcst'!I75 -> 0 | F11: ='RevRun Fcst'!J75 -> 0 | G11: ='RevRun Fcst'!K75 -> 0 | H11: ='RevRun Fcst'!L75 -> 0 | I11: ='RevRun Fcst'!M75 -> 0 | J11: ='RevRun Fcst'!N75 -> 0 | K11: ='RevRun Fcst'!O75 -> 0 | L11: ='RevRun Fcst'!P75 -> 0 | M11: ='RevRun Fcst'!Q75 -> 0 | N11: ='RevRun Fcst'!R75 -> 0 | O11: ='RevRun Fcst'!S75 -> 0 | P11: 0 | Q11: 7
B12: NGV | D12: ='RevRun Fcst'!H66 -> 24022 | E12: ='RevRun Fcst'!I66 -> 23246 | F12: ='RevRun Fcst'!J66 -> 21109 | G12: ='RevRun Fcst'!K66 -> 19319 | H12: ='RevRun Fcst'!L66 -> 21910 | I12: ='RevRun Fcst'!M66 -> 20666 | J12: ='RevRun Fcst'!N66 -> 20255 | K12: ='RevRun Fcst'!O66 -> 22198 | L12: ='RevRun Fcst'!P66 -> 23019 | M12: ='RevRun Fcst'!Q66 -> 21668 | N12: ='RevRun Fcst'!R66 -> 24538 | O12: ='RevRun Fcst'!S66 -> 21971 | P12: 263921 | Q12: 8
A13: Total Firm Sales | D13: =SUM(D7:D12) -> 6425184 | E13: 11867262 | F13: =SUM(F7:F12) -> 18686215 | G13: 20202572 | H13: 17077109 | I13: 13482446 | J13: 8914259 | K13: 5491595 | L13: 3316470 | M13: 2637831 | N13: 2418068 | O13: 2774550 | P13: =SUM(P7:P12) -> 113293561 | Q13: 9
Q14: 10
B15: I-4 | D15: ='RevRun Fcst'!H102 -> 8472 | E15: ='RevRun Fcst'!I102 -> 11833 | F15: ='RevRun Fcst'!J102 -> 18631 | G15: ='RevRun Fcst'!K102 -> 17090 | H15: ='RevRun Fcst'!L102 -> 12135 | I15: ='RevRun Fcst'!M102 -> 13579 | J15: ='RevRun Fcst'!N102 -> 10979 | K15: ='RevRun Fcst'!O102 -> 8294 | L15: ='RevRun Fcst'!P102 -> 8433 | M15: ='RevRun Fcst'!Q102 -> 6398 | N15: ='RevRun Fcst'!R102 -> 7067 | O15: ='RevRun Fcst'!S102 -> 8000 | P15: =SUM(D15:O15) -> 130911 | Q15: 11
B16: IS-4 | D16: ='RevRun Fcst'!H93 -> 0 | E16: ='RevRun Fcst'!I93 -> 0 | F16: ='RevRun Fcst'!J93 -> 0 | G16: ='RevRun Fcst'!K93 -> 0 | H16: ='RevRun Fcst'!L93 -> 0 | I16: ='RevRun Fcst'!M93 -> 0 | J16: ='RevRun Fcst'!N93 -> 0 | K16: ='RevRun Fcst'!O93 -> 0 | L16: ='RevRun Fcst'!P93 -> 0 | M16: ='RevRun Fcst'!Q93 -> 0 | N16: ='RevRun Fcst'!R93 -> 0 | O16: ='RevRun Fcst'!S93 -> 0 | P16: =SUM(D16:O16) -> 0 | Q16: 12
A17: Total Interruptible Sales | D17: =SUM(D15:D16) -> 8472 | E17: 11833 | F17: 18631 | G17: 17090 | H17: 12135 | I17: 13579 | J17: 10979 | K17: 8294 | L17: 8433 | M17: 6398 | N17: 7067 | O17: 8000 | P17: 130911 | Q17: 13
Q18: 14
Q19: 15
A20: Total Utah Sales | D20: =+D13+D17 -> 6433656 | E20: =+E13+E17 -> 11879095 | F20: =+F13+F17 -> 18704846 | G20: =+G13+G17 -> 20219662 | H20: 17089244 | I20: 13496025 | J20: 8925238 | K20: 5499889 | L20: 3324903 | M20: 2644229 | N20: 2425135 | O20: 2782550 | P20: =+P13+P17 -> 113424472 | Q20: 16
Q21: 17
A22: Total Utah Transportation | D22: ='RevRun Fcst'!H204 -> 6925192 | E22: ='RevRun Fcst'!I204 -> 7687087 | F22: ='RevRun Fcst'!J204 -> 9032142 | G22: ='RevRun Fcst'!K204 -> 9308206 | H22: ='RevRun Fcst'!L204 -> 7799181 | I22: ='RevRun Fcst'!M204 -> 7235512 | J22: ='RevRun Fcst'!N204 -> 6923651 | K22: ='RevRun Fcst'!O204 -> 6515141 | L22: ='RevRun Fcst'!P204 -> 6751365 | M22: ='RevRun Fcst'!Q204 -> 8113255 | N22: ='RevRun Fcst'!R204 -> 8212123 | O22: ='RevRun Fcst'!S204 -> 6723872 | P22: =SUM(D22:O22) -> 91226727 | Q22: 18
Q23: 19
Q24: 20
A25: Total Utah Sales & Trans | D25: =+D20+D22 -> 13358848 | E25: 19566182 | F25: 27736988 | G25: 29527868 | H25: 24888425 | I25: 20731537 | J25: 15848889 | K25: 12015030 | L25: 10076268 | M25: 10757484 | N25: 10637258 | O25: 9506422 | P25: =+P20+P22 -> 204651199 | Q25: 21
Q26: 22
A27: WYOMING | Q27: 23
A28: GS-1 | D28: ='RevRun Fcst'!H244 -> 225596 | E28: ='RevRun Fcst'!I244 -> 394942 | F28: ='RevRun Fcst'!J244 -> 556529 | G28: ='RevRun Fcst'!K244 -> 596147 | H28: ='RevRun Fcst'!L244 -> 529942 | I28: ='RevRun Fcst'!M244 -> 448950 | J28: ='RevRun Fcst'!N244 -> 326936 | K28: ='RevRun Fcst'!O244 -> 210750 | L28: ='RevRun Fcst'!P244 -> 107772 | M28: ='RevRun Fcst'!Q244 -> 61438 | N28: ='RevRun Fcst'!R244 -> 57538 | O28: ='RevRun Fcst'!S244 -> 91086 | P28: =SUM(D28:O28) -> 3607626 | Q28: 24
A29: GS-W | D29: ='RevRun Fcst'!H271 -> 0 | E29: ='RevRun Fcst'!I271 -> 0 | F29: ='RevRun Fcst'!J271 -> 0 | G29: ='RevRun Fcst'!K271 -> 0 | H29: ='RevRun Fcst'!L271 -> 0 | I29: ='RevRun Fcst'!M271 -> 0 | J29: ='RevRun Fcst'!N271 -> 0 | K29: ='RevRun Fcst'!O271 -> 0 | L29: ='RevRun Fcst'!P271 -> 0 | M29: ='RevRun Fcst'!Q271 -> 0 | N29: ='RevRun Fcst'!R271 -> 0 | O29: ='RevRun Fcst'!S271 -> 0 | P29: =SUM(D29:O29) -> 0 | Q29: 25
A30: F-1 | D30: ='RevRun Fcst'!H253 -> 18097 | E30: ='RevRun Fcst'!I253 -> 16648 | F30: ='RevRun Fcst'!J253 -> 21171 | G30: ='RevRun Fcst'!K253 -> 21297 | H30: ='RevRun Fcst'!L253 -> 18948 | I30: ='RevRun Fcst'!M253 -> 16684 | J30: ='RevRun Fcst'!N253 -> 14905 | K30: ='RevRun Fcst'!O253 -> 14685 | L30: ='RevRun Fcst'!P253 -> 9557 | M30: ='RevRun Fcst'!Q253 -> 8689 | N30: ='RevRun Fcst'!R253 -> 9589 | O30: ='RevRun Fcst'!S253 -> 11697 | P30: =SUM(D30:O30) -> 181967 | Q30: 26
A31: NGV | D31: ='RevRun Fcst'!H262 -> 351 | E31: ='RevRun Fcst'!I262 -> 533 | F31: ='RevRun Fcst'!J262 -> 222 | G31: ='RevRun Fcst'!K262 -> 204 | H31: ='RevRun Fcst'!L262 -> 242 | I31: ='RevRun Fcst'!M262 -> 297 | J31: ='RevRun Fcst'!N262 -> 333 | K31: ='RevRun Fcst'!O262 -> 295 | L31: ='RevRun Fcst'!P262 -> 401 | M31: ='RevRun Fcst'!Q262 -> 338 | N31: ='RevRun Fcst'!R262 -> 399 | O31: ='RevRun Fcst'!S262 -> 375 | P31: =SUM(D31:O31) -> 3990 | Q31: 27
A32: Total Firm Sales | D32: =SUM(D28:D31) -> 244044 | E32: 412123 | F32: 577922 | G32: 617648 | H32: 549132 | I32: 465931 | J32: 342174 | K32: 225730 | L32: 117730 | M32: 70465 | N32: 67526 | O32: 103158 | P32: 3793583 | Q32: 28
Q33: 29
A34: I-2 | D34: ='RevRun Fcst'!H280 -> 8719 | E34: ='RevRun Fcst'!I280 -> 15002 | F34: ='RevRun Fcst'!J280 -> 14644 | G34: ='RevRun Fcst'!K280 -> 16875 | H34: ='RevRun Fcst'!L280 -> 15622 | I34: ='RevRun Fcst'!M280 -> 15752 | J34: ='RevRun Fcst'!N280 -> 14302 | K34: ='RevRun Fcst'!O280 -> 10909 | L34: ='RevRun Fcst'!P280 -> 7844 | M34: ='RevRun Fcst'!Q280 -> 5893 | N34: ='RevRun Fcst'!R280 -> 3957 | O34: ='RevRun Fcst'!S280 -> 5079 | P34: =SUM(D34:O34) -> 134598 | Q34: 30
A35: I-4 | D35: ='RevRun Fcst'!H289 -> 0 | E35: ='RevRun Fcst'!I289 -> 0 | F35: ='RevRun Fcst'!J289 -> 0 | G35: ='RevRun Fcst'!K289 -> 0 | H35: ='RevRun Fcst'!L289 -> 0 | I35: ='RevRun Fcst'!M289 -> 0 | J35: ='RevRun Fcst'!N289 -> 0 | K35: ='RevRun Fcst'!O289 -> 0 | L35: ='RevRun Fcst'!P289 -> 0 | M35: ='RevRun Fcst'!Q289 -> 0 | N35: ='RevRun Fcst'!R289 -> 0 | O35: ='RevRun Fcst'!S289 -> 0 | P35: =SUM(D35:O35) -> 0 | Q35: 31
A36: Total Interruptible Sales | D36: =SUM(D34:D35) -> 8719 | E36: 15002 | F36: 14644 | G36: 16875 | H36: 15622 | I36: 15752 | J36: 14302 | K36: 10909 | L36: 7844 | M36: 5893 | N36: 3957 | O36: 5079 | P36: 134598 | Q36: 32
Q37: 33
Q38: 34
A39: Total Wyoming Sales | D39: =+D32+D36 -> 252763 | E39: =+E32+E36 -> 427125 | F39: 592566 | G39: 634523 | H39: 564754 | I39: 481683 | J39: 356476 | K39: 236639 | L39: 125574 | M39: 76358 | N39: 71483 | O39: 108237 | P39: 3928181 | Q39: 35
Q40: 36
A41: Total Wyoming Transportation | D41: ='RevRun Fcst'!H328 -> 49421 | E41: ='RevRun Fcst'!I328 -> 41415 | F41: ='RevRun Fcst'!J328 -> 59747 | G41: ='RevRun Fcst'!K328 -> 35956 | H41: ='RevRun Fcst'!L328 -> 43122 | I41: ='RevRun Fcst'!M328 -> 46289 | J41: ='RevRun Fcst'!N328 -> 30204 | K41: ='RevRun Fcst'!O328 -> 19005 | L41: ='RevRun Fcst'!P328 -> 19460 | M41: ='RevRun Fcst'!Q328 -> 18365 | N41: ='RevRun Fcst'!R328 -> 16464 | O41: ='RevRun Fcst'!S328 -> 41451 | P41: =SUM(D41:O41) -> 420899 | Q41: 37
Q42: 38
Q43: 39
A44: Total Wyoming Sales & Trans | D44: =+D39+D41 -> 302184 | E44: 468540 | F44: 652313 | G44: 670479 | H44: 607876 | I44: 527972 | J44: 386680 | K44: 255644 | L44: 145034 | M44: 94723 | N44: 87947 | O44: 149688 | P44: 4349080 | Q44: 40
Q45: 41
Q46: 42
A47: Total System Sales and Trans | D47: =+D25+D44 -> 13661032 | E47: 20034722 | F47: 28389301 | G47: 30198347 | H47: 25496301 | I47: 21259509 | J47: 16235569 | K47: 12270674 | L47: 10221302 | M47: 10852207 | N47: 10725205 | O47: =+O25+O44 -> 9656110 | P47: 209000279 | Q47: 43
Q48: 44
A49: Usage by Season | Q49: 45
C50: Month | D50: =MONTH(D5) -> 10 | E50: 11 | F50: 12 | G50: 1 | H50: 2 | I50: 3 | J50: 4 | K50: 5 | L50: 6 | M50: 7 | N50: 8 | O50: 9 | Q50: 46
A51: GS | C51: Season (0=Winter, 1=Summer) | D51: =IF(D$50<4,0,IF(D$50>10,0,1)) -> 1 | E51: =IF(E$50<4,0,IF(E$50>10,0,1)) -> 0 | F51: 0 | G51: 0 | H51: 0 | I51: 0 | J51: 1 | K51: 1 | L51: 1 | M51: 1 | N51: 1 | O51: 1 | P51: Total | Q51: 47
B52: Winter | D52: =IF(D51=0,D7+D8,0) -> 0 | E52: =IF(E51=0,E7+E8,0) -> 11607446 | F52: 18378309 | G52: 19828276 | H52: 16730313 | I52: 13186230 | J52: 0 | K52: 0 | L52: 0 | M52: 0 | N52: 0 | O52: 0 | P52: =SUM(D52:O52) -> 79730574 | Q52: 48
B53: Summer | D53: =IF(D51=1,D7+D8,0) -> 6191522 | E53: 0 | F53: 0 | G53: 0 | H53: 0 | I53: 0 | J53: 8619471 | K53: 5236696 | L53: 3066537 | M53: 2464334 | N53: 2256237 | O53: 2603153 | P53: =SUM(D53:O53) -> 30437950 | Q53: 49
A54: GSS | Q54: 50
B55: Winter | D55: =IF(D51=0,D9,0) -> 0 | E55: 0 | F55: 0 | G55: 0 | H55: 0 | I55: 0 | J55: 0 | K55: 0 | L55: 0 | M55: 0 | N55: 0 | O55: 0 | P55: =SUM(D55:O55) -> 0 | Q55: 51
B56: Summer | D56: =IF(D51=1,D9,0) -> 0 | E56: 0 | F56: 0 | G56: 0 | H56: 0 | I56: 0 | J56: 0 | K56: 0 | L56: 0 | M56: 0 | N56: 0 | O56: 0 | P56: =SUM(D56:O56) -> 0 | Q56: 52
A57: F-S | Q57: 53
B58: Winter | D58: =IF(D51=0,D10,0) -> 0 | E58: 236570 | F58: 286797 | G58: 354977 | H58: 324886 | I58: 275550 | J58: 0 | K58: 0 | L58: 0 | M58: 0 | N58: 0 | O58: 0 | P58: =SUM(D58:O58) -> 1478780 | Q58: 54
B59: Summer | D59: =IF(D51=1,D10,0) -> 209640 | E59: 0 | F59: 0 | G59: 0 | H59: 0 | I59: 0 | J59: 274533 | K59: 232701 | L59: 226914 | M59: 151829 | N59: 137293 | O59: 149426 | P59: =SUM(D59:O59) -> 1382336 | Q59: 55
Q60: 56
Q61: 57
B62: Rates: R050201.R1 | C62: WYOMING NON-CORE DNG REVENUES FROM DEMAND FORECAST AND CURRENTLY EFFECTIVE I-SALES GAS COST RATES | Q62: 58
D63: Forecast | E63: Forecast | F63: Forecast | G63: Forecast | H63: Forecast | I63: Forecast | J63: Forecast | K63: Forecast | L63: Forecast | M63: Forecast | N63: Forecast | O63: Forecast | P63: 12-Month | Q63: 59
D64: =D5 -> Oct19 | E64: =E5 -> Nov19 | F64: =F5 -> Dec19 | G64: Jan20 | H64: Feb20 | I64: Mar20 | J64: Apr20 | K64: May20 | L64: Jun20 | M64: Jul20 | N64: Aug20 | O64: Sep20 | P64: Total | Q64: 60
A65: I-2 & 1-4 (Non-Gas Revenue) (Yearly) | D65: ='RevRun Fcst'!H273+'RevRun Fcst'!H282 -> 3734.59 | E65: ='RevRun Fcst'!I273+'RevRun Fcst'!I282 -> 5252.63 | F65: ='RevRun Fcst'!J273+'RevRun Fcst'!J282 -> 5166.14 | G65: ='RevRun Fcst'!K273+'RevRun Fcst'!K282 -> 5705.17 | H65: ='RevRun Fcst'!L273+'RevRun Fcst'!L282 -> 5402.42 | I65: ='RevRun Fcst'!M273+'RevRun Fcst'!M282 -> 5433.84 | J65: ='RevRun Fcst'!N273+'RevRun Fcst'!N282 -> 5083.52 | K65: ='RevRun Fcst'!O273+'RevRun Fcst'!O282 -> 4263.72 | L65: ='RevRun Fcst'!P273+'RevRun Fcst'!P282 -> 3523.19 | M65: ='RevRun Fcst'!Q273+'RevRun Fcst'!Q282 -> 3051.8 | N65: ='RevRun Fcst'!R273+'RevRun Fcst'!R282 -> 2584.06 | O65: ='RevRun Fcst'!S273+'RevRun Fcst'!S282 -> 2855.12 | P65: =SUM(D65:O65) -> 52056.2 | Q65: 61
A66: IC (Total Revenue) (Yearly) | D66: =ROUND(D41*$P66/$P41,0) -> 11861 | E66: 9939 | F66: 14339 | G66: 8629 | H66: 10349 | I66: 11109 | J66: 7249 | K66: 4561 | L66: 4670 | M66: 4407 | N66: 3951 | O66: =P66-SUM(D66:N66) -> 9947.62 | P66: ='RevRun Fcst'!T300+'RevRun Fcst'!T314 -> 101011.62 | Q66: 62
Q67: 63
A68: I-2 Gas Cost (Rate Effective ) | D68: 0 | E68: =+D68 -> 0 | F68: 0 | G68: 0 | H68: 0 | I68: 0 | J68: 0 | K68: 0 | L68: 0 | M68: 0 | N68: 0 | O68: 0 | Q68: 64
A69: I-4 Gas Cost (Rate Effective ) | D69: 0 | E69: 0 | F69: 0 | G69: 0 | H69: 0 | I69: 0 | J69: 0 | K69: 0 | L69: 0 | M69: 0 | N69: 0 | O69: 0 | Q69: 65
Q70: 66
Q71: 67
D72: ALLOCATION BASES | Q72: 68
D73: DEMAND | G73: OTHER COST | Q73: 69
A74: Utah Peak Day Demand | D74: =+D76-D75 -> 1182617 | E74: =D74/D76 -> 0.9693319771 | G74: Utah Sales | H74: =+P20 -> 113424472 | I74: =H74/H76 -> 0.9665266962 | Q74: 70
A75: Wyoming Peak Day Demand | D75: ='Other Inputs'!E142 -> 37416 | E75: =1-E74 -> 0.03066802291 | G75: Wyoming Sales | H75: =+P39 -> 3928181 | I75: =1-I74 -> 0.03347330375 | Q75: 71
A76: Peak Day Demand | D76: ='Other Inputs'!E143 -> 1220033 | E76: =ROUND(D76/D$76,4) -> 1 | G76: Total Sales | H76: =+H74+H75 -> 117352653 | I76: =ROUND(H76/H$76,4) -> 1 | Q76: 72
Q77: 73
Q78: 74
D79: Financial Report Information (Latest 12 Months of Actual Expenses and 13 Months of Rate Base) | Q79: 75
D80: Actual | E80: Actual | F80: Actual | G80: Actual | H80: Actual | I80: Actual | J80: Actual | K80: Actual | L80: Actual | M80: Actual | N80: Actual | O80: Actual | Q80: 76
A81: Accounts | D81: =+Expenses!G9 -> 2018-08-01 | E81: =+Expenses!H9 -> 2018-09-01 | F81: =+Expenses!I9 -> 2018-10-01 | G81: =+Expenses!J9 -> 2018-11-01 | H81: =+Expenses!K9 -> 2018-12-01 | I81: =+Expenses!L9 -> 2019-01-01 | J81: =+Expenses!M9 -> 2019-02-01 | K81: =+Expenses!N9 -> 2019-03-01 | L81: =+Expenses!O9 -> 2019-04-01 | M81: =+Expenses!P9 -> 2019-05-01 | N81: =+Expenses!Q9 -> 2019-06-01 | O81: =+Expenses!R9 -> 2019-07-01 | P81: =Expenses!S9 -> 2019-07-01 | Q81: 77
A82: EXPENSES | Q82: 78
B83: Gas Use In Dth (Acct 810 & 812) | D83: 0 | E83: 0 | F83: 0 | G83: 0 | H83: 0 | I83: 0 | J83: 0 | K83: 0 | L83: 0 | M83: 0 | N83: 0 | O83: 0 | P83: 0 | Q83: 79
Q84: 80
B85: Other Revenue (Yearly) | Q85: 81
B86: Sales for Resale (account 483) | D86: =Expenses!G445 -> 104401.96 | E86: =Expenses!H445 -> 101703.17 | F86: =Expenses!I445 -> 107037.77 | G86: =Expenses!J445 -> 103410.19 | H86: =Expenses!K445 -> 286991.75 | I86: =Expenses!L445 -> 117221.98 | J86: =Expenses!M445 -> 117002.1 | K86: =Expenses!N445 -> 135658.85 | L86: =Expenses!O445 -> 88880.37 | M86: =Expenses!P445 -> 54461.64 | N86: =Expenses!Q445 -> 62725.45 | O86: =Expenses!R445 -> 0 | P86: =Expenses!S445 -> 1279495.23 | Q86: 82
B87: Incidental Plant Prod Sales (Acct 490) | D87: =Expenses!G446 -> 806783.83 | E87: =Expenses!H446 -> 5924.37 | F87: =Expenses!I446 -> 700363.96 | G87: =Expenses!J446 -> 1446013.29 | H87: =Expenses!K446 -> 565424.75 | I87: =Expenses!L446 -> 193982.53 | J87: =Expenses!M446 -> 42747.12 | K87: =Expenses!N446 -> 209418.63 | L87: =Expenses!O446 -> 141834.57 | M87: =Expenses!P446 -> 200410.18 | N87: =Expenses!Q446 -> 237731.75 | O87: =Expenses!R446 -> 247756.64 | P87: =Expenses!S446 -> 4798391.62 | Q87: 83
B88: Gas Processed by Others (account 491) | D88: =Expenses!G461 -> 0 | E88: =Expenses!H461 -> 0 | F88: =Expenses!I461 -> 0 | G88: =Expenses!J461 -> 0 | H88: =Expenses!K461 -> 0 | I88: =Expenses!L461 -> 0 | J88: =Expenses!M461 -> 0 | K88: =Expenses!N461 -> 0 | L88: =Expenses!O461 -> 0 | M88: =Expenses!P461 -> 0 | N88: =Expenses!Q461 -> 0 | O88: =Expenses!R461 -> 0 | P88: =Expenses!S461 -> 0 | Q88: 84
B89: Gasoline - Oil Sales (account 492) | D89: =Expenses!G447 -> 199984.13 | E89: =Expenses!H447 -> 177203.98 | F89: =Expenses!I447 -> 199772.08 | G89: =Expenses!J447 -> 203051.07 | H89: =Expenses!K447 -> 126320.59 | I89: =Expenses!L447 -> 440584.14 | J89: =Expenses!M447 -> 756.35 | K89: =Expenses!N447 -> 558792.03 | L89: =Expenses!O447 -> 618797.46 | M89: =Expenses!P447 -> 419615.32 | N89: =Expenses!Q447 -> 5.59 | O89: =Expenses!R447 -> 794619.12 | P89: =Expenses!S447 -> 3739501.86 | Q89: 85
B90: Gasoline - Oil Cost (account 758.001) | D90: =-Expenses!G450 -> 0 | E90: =-Expenses!H450 -> 0 | F90: =-Expenses!I450 -> 0 | G90: =-Expenses!J450 -> 0 | H90: =-Expenses!K450 -> 0 | I90: =-Expenses!L450 -> 0 | J90: =-Expenses!M450 -> -31057.84 | K90: =-Expenses!N450 -> 0 | L90: =-Expenses!O450 -> 0 | M90: =-Expenses!P450 -> 0 | N90: =-Expenses!Q450 -> 0 | O90: =-Expenses!R450 -> 0 | P90: =-Expenses!S450 -> -31057.84 | Q90: 86
Q91: 87
Q92: 88
B93: Overriding Royalty (account 495-1) | D93: =Expenses!G448 -> 958404.91 | E93: =Expenses!H448 -> 194516.61 | F93: =Expenses!I448 -> -547226.96 | G93: =Expenses!J448 -> 1295483.85 | H93: =Expenses!K448 -> 700029.49 | I93: =Expenses!L448 -> 880688.37 | J93: =Expenses!M448 -> 1500219.03 | K93: =Expenses!N448 -> 1301702.48 | L93: =Expenses!O448 -> 904140.09 | M93: =Expenses!P448 -> 933608.08 | N93: =Expenses!Q448 -> 855368.96 | O93: =Expenses!R448 -> 198797.73 | P93: =Expenses!S448 -> 9175732.64 | Q93: 89
B94: Wexpro Revenue Sharing (account 495-2) | D94: =Expenses!G449 -> 24691 | E94: =Expenses!H449 -> 15189 | F94: =Expenses!I449 -> 3296 | G94: =Expenses!J449 -> 10386 | H94: =Expenses!K449 -> 28291 | I94: =Expenses!L449 -> 20492 | J94: =Expenses!M449 -> 21667 | K94: =Expenses!N449 -> 35775 | L94: =Expenses!O449 -> 10652 | M94: =Expenses!P449 -> 28837 | N94: =Expenses!Q449 -> 12102 | O94: =Expenses!R449 -> 37299 | P94: =Expenses!S449 -> 248677 | Q94: 90
P95: Page 2 of 6 | Q95: 91
C96: Actual | D96: Actual | E96: Actual | F96: Actual | G96: Actual | H96: Actual | I96: Actual | J96: Actual | K96: Actual | L96: Actual | M96: Actual | N96: Actual | O96: Actual | P96: 13-Month | Q96: 92
A97: Accounts | C97: ='Rate Base'!H8 -> 2018-07-17 | D97: ='Rate Base'!I8 -> 2018-08-16 | E97: ='Rate Base'!J8 -> 2018-09-01 | F97: ='Rate Base'!K8 -> 2018-10-01 | G97: ='Rate Base'!L8 -> 2018-11-01 | H97: ='Rate Base'!M8 -> 2018-12-01 | I97: ='Rate Base'!N8 -> 2019-01-01 | J97: ='Rate Base'!O8 -> 2019-02-01 | K97: ='Rate Base'!P8 -> 2019-03-01 | L97: ='Rate Base'!Q8 -> 2019-04-01 | M97: ='Rate Base'!R8 -> 2019-05-01 | N97: ='Rate Base'!S8 -> 2019-06-01 | O97: ='Rate Base'!T8 -> 2019-07-01 | P97: Average | Q97: 93
A98: RATE BASE - PRODUCTION | Q98: 94
B99: Acct 164 (Working Gas) - Production | C99: ='Rate Base'!H206 -> 39219511.99 | D99: ='Rate Base'!I206 -> 43502522.79 | E99: ='Rate Base'!J206 -> 62143023.66 | F99: ='Rate Base'!K206 -> 62647436.72 | G99: ='Rate Base'!L206 -> 52783329.59 | H99: ='Rate Base'!M206 -> 44167774.48 | I99: ='Rate Base'!N206 -> 33177810.06 | J99: ='Rate Base'!O206 -> 24117118.76 | K99: ='Rate Base'!P206 -> 8155444.24 | L99: ='Rate Base'!Q206 -> 6352626.43 | M99: ='Rate Base'!R206 -> 8741282.39 | N99: ='Rate Base'!S206 -> 19062047.87 | O99: ='Rate Base'!T206 -> 33521823.38 | P99: =(((+C99+O99)/2)+SUM(D99:N99))/12 -> 33435090.39 | Q99: 95
B100: Acct 101 - Production | C100: ='Rate Base'!H148 -> 79968136 | D100: ='Rate Base'!I148 -> 79968136 | E100: ='Rate Base'!J148 -> 79968136 | F100: ='Rate Base'!K148 -> 79968136 | G100: ='Rate Base'!L148 -> 79968136 | H100: ='Rate Base'!M148 -> 79968136 | I100: ='Rate Base'!N148 -> 79968136 | J100: ='Rate Base'!O148 -> 79968136 | K100: ='Rate Base'!P148 -> 79968136 | L100: ='Rate Base'!Q148 -> 79968136 | M100: ='Rate Base'!R148 -> 79968136 | N100: ='Rate Base'!S148 -> 79968136 | O100: ='Rate Base'!T148 -> 79968136 | P100: 79968136 | Q100: 96
B101: Acct 108 - Production | C101: ='Rate Base'!H166 -> -69869425 | D101: ='Rate Base'!I166 -> -69910892 | E101: ='Rate Base'!J166 -> -69952359 | F101: ='Rate Base'!K166 -> -69993826 | G101: ='Rate Base'!L166 -> -70035293 | H101: ='Rate Base'!M166 -> -70076759 | I101: ='Rate Base'!N166 -> -70076759 | J101: ='Rate Base'!O166 -> -70118226 | K101: ='Rate Base'!P166 -> -70159693 | L101: ='Rate Base'!Q166 -> -70201160 | M101: ='Rate Base'!R166 -> -70242627 | N101: ='Rate Base'!S166 -> -70242627 | O101: ='Rate Base'!T166 -> -70325561 | P101: -70092309.5 | Q101: 97
B102: Acct 111 - Production | C102: ='Rate Base'!H173 -> -6150277 | D102: ='Rate Base'!I173 -> -6150277 | E102: ='Rate Base'!J173 -> -6150277 | F102: ='Rate Base'!K173 -> -6150277 | G102: ='Rate Base'!L173 -> -6150277 | H102: ='Rate Base'!M173 -> -6150277 | I102: ='Rate Base'!N173 -> -6150277 | J102: ='Rate Base'!O173 -> -6150277 | K102: ='Rate Base'!P173 -> -6150277 | L102: ='Rate Base'!Q173 -> -6150277 | M102: ='Rate Base'!R173 -> -6150277 | N102: ='Rate Base'!S173 -> -6150277 | O102: ='Rate Base'!T173 -> -6150277 | P102: -6150277 | Q102: 98
B103: Acct 2550 - Production | C103: ='Rate Base'!H241 -> -1311 | D103: ='Rate Base'!I241 -> -1311 | E103: ='Rate Base'!J241 -> -1311 | F103: ='Rate Base'!K241 -> -1311 | G103: ='Rate Base'!L241 -> -1311 | H103: ='Rate Base'!M241 -> 0 | I103: ='Rate Base'!N241 -> 0 | J103: ='Rate Base'!O241 -> 0 | K103: ='Rate Base'!P241 -> 0 | L103: ='Rate Base'!Q241 -> 0 | M103: ='Rate Base'!R241 -> 0 | N103: ='Rate Base'!S241 -> 0 | O103: ='Rate Base'!T241 -> 0 | P103: -491.625 | Q103: 99
B104: Acct 2820 - Production | C104: ='Rate Base'!H248 -> 1861750 | D104: ='Rate Base'!I248 -> -10016752 | E104: ='Rate Base'!J248 -> -8372698 | F104: ='Rate Base'!K248 -> -8172642 | G104: ='Rate Base'!L248 -> -8133451 | H104: ='Rate Base'!M248 -> -7045486 | I104: ='Rate Base'!N248 -> -7045486 | J104: ='Rate Base'!O248 -> -8226119 | K104: ='Rate Base'!P248 -> -8610267 | L104: ='Rate Base'!Q248 -> -8240231 | M104: ='Rate Base'!R248 -> -8638495 | N104: ='Rate Base'!S248 -> -8638495 | O104: ='Rate Base'!T248 -> -9435062 | P104: -7910564.833 | Q104: 100
B105: Acct 2821 - Production | C105: ='Rate Base'!H255 -> -700755.31 | D105: ='Rate Base'!I255 -> -700755.31 | E105: ='Rate Base'!J255 -> -700755.31 | F105: ='Rate Base'!K255 -> -700755.31 | G105: ='Rate Base'!L255 -> -700755.31 | H105: ='Rate Base'!M255 -> -700755.31 | I105: ='Rate Base'!N255 -> -700755.31 | J105: ='Rate Base'!O255 -> -700755.31 | K105: ='Rate Base'!P255 -> -700755.31 | L105: ='Rate Base'!Q255 -> -700755.31 | M105: ='Rate Base'!R255 -> -700755.31 | N105: ='Rate Base'!S255 -> -700755.31 | O105: ='Rate Base'!T255 -> -700755.31 | P105: -700755.31 | Q105: 101
Q106: 102
D107: Production | H107: Acct 101 | I107: Acct 108 | J107: Acct 111 | K107: Acct 2550 | L107: Acct 2820 | M107: Acct 2821 | N107: Total | Q107: 103
B108: Depreciation - Acct 403 | D108: =Expenses!S385 -> 497603 | F108: Thirteen month average | H108: =P100 -> 79968136 | I108: =P101 -> -70092309.5 | J108: =P102 -> -6150277 | K108: =P103 -> -491.625 | L108: =P104 -> -7910564.833 | M108: =P105 -> -700755.31 | N108: =SUM(H108:M108) -> -4886262.268 | Q108: 104
B109: Amortization & Depletion - Acct 404 | D109: =Expenses!S392 -> 0 | F109: =CONCATENATE("Wexpro Red. @ ",-'Other Inputs'!E260*100," %") -> Wexpro Red. @ 6.3 % | H109: =H108*'Other Inputs'!$E$260 -> -5037992.568 | I109: =I108*'Other Inputs'!$E$260 -> 4415815.498 | J109: =J108*'Other Inputs'!$E$260 -> 387467.451 | N109: =SUM(H109:M109) -> -234709.6185 | Q109: 105
B110: Utah Pre-Tax Return on Production Assets | D110: =+N111 -> -477786.677 | M110: =SUM(N108:N109) -> -5120971.887 | Q110: 106
B111: Utah Production Cost | D111: =SUM(D108:D110) -> 19816.32296 | M111: ="Utah Pre-Tax Rate of Return on Production Assets ("&'Other Inputs'!E263&")" -> Utah Pre-Tax Rate of Return on Production Assets (0.0933) | N111: =M110*'Other Inputs'!E263 -> -477786.677 | Q111: 107
M112: ="Wyoming Pre-Tax Rate of Return on Production Assets ("&'Other Inputs'!E262&")" -> Wyoming Pre-Tax Rate of Return on Production Assets (0.0916) | N112: =M110*'Other Inputs'!E262 -> -469081.0248 | Q112: 108
Q113: 109
A114: TACTICAL PLAN INFORMATION (IRP) | P114: 12-Month | Q114: 110
D115: =D5 -> Oct19 | E115: =E5 -> Nov19 | F115: Dec19 | G115: Jan20 | H115: Feb20 | I115: Mar20 | J115: Apr20 | K115: May20 | L115: Jun20 | M115: Jul20 | N115: Aug20 | O115: Sep20 | P115: Total | Q115: 111
A116: COMPANY PRODUCTION | Q116: 112
B117: Prior Company | Q117: 113
B118: D24 Wells | Q118: 114
B119: Brady & Powel | Q119: 115
B120: Total Company Production Wexpro I & II | D120: ='Monthly Inputs'!G7+'Monthly Inputs'!G13 -> 5658224 | E120: ='Monthly Inputs'!H7+'Monthly Inputs'!H13 -> 5360505 | F120: ='Monthly Inputs'!I7+'Monthly Inputs'!I13 -> 5562662 | G120: ='Monthly Inputs'!J7+'Monthly Inputs'!J13 -> 5433616 | H120: ='Monthly Inputs'!K7+'Monthly Inputs'!K13 -> 5096209 | I120: ='Monthly Inputs'!L7+'Monthly Inputs'!L13 -> 5320388 | J120: ='Monthly Inputs'!M7+'Monthly Inputs'!M13 -> 5046084 | K120: ='Monthly Inputs'!N7+'Monthly Inputs'!N13 -> 5120670 | L120: ='Monthly Inputs'!O7+'Monthly Inputs'!O13 -> 4872039 | M120: ='Monthly Inputs'!P7+'Monthly Inputs'!P13 -> 4956388 | N120: ='Monthly Inputs'!Q7+'Monthly Inputs'!Q13 -> 4999358 | O120: ='Monthly Inputs'!R7+'Monthly Inputs'!R13 -> 4810602 | P120: =SUM(D120:O120) -> 62236745 | Q120: 116
Q121: 117
A122: STORAGE INJECTIONS | Q122: 118
B123: Chalk Creek | D123: ='Monthly Inputs'!G24 -> 132000 | E123: ='Monthly Inputs'!H24 -> 76600 | F123: ='Monthly Inputs'!I24 -> 0 | G123: ='Monthly Inputs'!J24 -> 0 | H123: ='Monthly Inputs'!K24 -> 0 | I123: ='Monthly Inputs'!L24 -> 0 | J123: ='Monthly Inputs'!M24 -> 0 | K123: ='Monthly Inputs'!N24 -> 0 | L123: ='Monthly Inputs'!O24 -> 0 | M123: ='Monthly Inputs'!P24 -> 0 | N123: ='Monthly Inputs'!Q24 -> 0 | O123: ='Monthly Inputs'!R24 -> 93650 | P123: =SUM(D123:O123) -> 302250 | Q123: 119
B124: Coalville | D124: ='Monthly Inputs'!G26 -> 310000 | E124: ='Monthly Inputs'!H26 -> 50186 | F124: ='Monthly Inputs'!I26 -> 0 | G124: ='Monthly Inputs'!J26 -> 0 | H124: ='Monthly Inputs'!K26 -> 0 | I124: ='Monthly Inputs'!L26 -> 0 | J124: ='Monthly Inputs'!M26 -> 0 | K124: ='Monthly Inputs'!N26 -> 0 | L124: ='Monthly Inputs'!O26 -> 0 | M124: ='Monthly Inputs'!P26 -> 0 | N124: ='Monthly Inputs'!Q26 -> 0 | O124: ='Monthly Inputs'!R26 -> 50190 | P124: =SUM(D124:O124) -> 410376 | Q124: 120
B125: Leroy | D125: ='Monthly Inputs'!G27 -> 443966 | E125: ='Monthly Inputs'!H27 -> 0 | F125: ='Monthly Inputs'!I27 -> 0 | G125: ='Monthly Inputs'!J27 -> 0 | H125: ='Monthly Inputs'!K27 -> 0 | I125: ='Monthly Inputs'!L27 -> 0 | J125: ='Monthly Inputs'!M27 -> 0 | K125: ='Monthly Inputs'!N27 -> 0 | L125: ='Monthly Inputs'!O27 -> 0 | M125: ='Monthly Inputs'!P27 -> 0 | N125: ='Monthly Inputs'!Q27 -> 0 | O125: ='Monthly Inputs'!R27 -> 0 | P125: =SUM(D125:O125) -> 443966 | Q125: 121
B126: Ryckman | D126: ='Monthly Inputs'!G28 -> 238343 | E126: ='Monthly Inputs'!H28 -> 0 | F126: ='Monthly Inputs'!I28 -> 0 | G126: ='Monthly Inputs'!J28 -> 0 | H126: ='Monthly Inputs'!K28 -> 0 | I126: ='Monthly Inputs'!L28 -> 0 | J126: ='Monthly Inputs'!M28 -> 335461 | K126: ='Monthly Inputs'!N28 -> 353119 | L126: ='Monthly Inputs'!O28 -> 341730 | M126: ='Monthly Inputs'!P28 -> 353120 | N126: ='Monthly Inputs'!Q28 -> 353120 | O126: ='Monthly Inputs'!R28 -> 341730 | P126: =SUM(D126:O126) -> 2316623 | Q126: 122
B127: Total Peaking Storage | D127: =SUM(D123:D126) -> 1124309 | E127: =SUM(E123:E126) -> 126786 | F127: 0 | G127: 0 | H127: 0 | I127: 0 | J127: 335461 | K127: 353119 | L127: 341730 | M127: 353120 | N127: 353120 | O127: 485570 | P127: 3473215 | Q127: 123
B128: Clay Basin | D128: ='Monthly Inputs'!G25 -> 2812405 | E128: ='Monthly Inputs'!H25 -> 1500000 | F128: ='Monthly Inputs'!I25 -> 0 | G128: ='Monthly Inputs'!J25 -> 0 | H128: ='Monthly Inputs'!K25 -> 0 | I128: ='Monthly Inputs'!L25 -> 0 | J128: ='Monthly Inputs'!M25 -> 0 | K128: ='Monthly Inputs'!N25 -> 1412352 | L128: ='Monthly Inputs'!O25 -> 2700000 | M128: ='Monthly Inputs'!P25 -> 1910380 | N128: ='Monthly Inputs'!Q25 -> 1945950 | O128: ='Monthly Inputs'!R25 -> 2400000 | P128: =SUM(D128:O128) -> 14681087 | Q128: 124
B129: Total Storage Injections | D129: =SUM(D127:D128) -> 3936714 | E129: =SUM(E127:E128) -> 1626786 | F129: 0 | G129: 0 | H129: 0 | I129: 0 | J129: 335461 | K129: 1765471 | L129: 3041730 | M129: 2263500 | N129: 2299070 | O129: 2885570 | P129: =SUM(P127:P128) -> 18154302 | Q129: 125
A130: STORAGE WITHDRAWLS | Q130: 126
B131: Chalk Creek | D131: ='Monthly Inputs'!G32 -> 0 | E131: ='Monthly Inputs'!H32 -> 0 | F131: ='Monthly Inputs'!I32 -> 0 | G131: ='Monthly Inputs'!J32 -> 60079 | H131: ='Monthly Inputs'!K32 -> 0 | I131: ='Monthly Inputs'!L32 -> 300107 | J131: ='Monthly Inputs'!M32 -> 0 | K131: ='Monthly Inputs'!N32 -> 0 | L131: ='Monthly Inputs'!O32 -> 0 | M131: ='Monthly Inputs'!P32 -> 0 | N131: ='Monthly Inputs'!Q32 -> 0 | O131: ='Monthly Inputs'!R32 -> 0 | P131: =SUM(D131:O131) -> 360186 | Q131: 127
B132: Coalville | D132: ='Monthly Inputs'!G34 -> 0 | E132: ='Monthly Inputs'!H34 -> 0 | F132: ='Monthly Inputs'!I34 -> 0 | G132: ='Monthly Inputs'!J34 -> 78940 | H132: ='Monthly Inputs'!K34 -> 0 | I132: ='Monthly Inputs'!L34 -> 364543 | J132: ='Monthly Inputs'!M34 -> 0 | K132: ='Monthly Inputs'!N34 -> 0 | L132: ='Monthly Inputs'!O34 -> 0 | M132: ='Monthly Inputs'!P34 -> 0 | N132: ='Monthly Inputs'!Q34 -> 0 | O132: ='Monthly Inputs'!R34 -> 0 | P132: =SUM(D132:O132) -> 443483 | Q132: 128
B133: Leroy | D133: ='Monthly Inputs'!G35 -> 0 | E133: ='Monthly Inputs'!H35 -> 0 | F133: ='Monthly Inputs'!I35 -> 0 | G133: ='Monthly Inputs'!J35 -> 184023 | H133: ='Monthly Inputs'!K35 -> 0 | I133: ='Monthly Inputs'!L35 -> 921900 | J133: ='Monthly Inputs'!M35 -> 0 | K133: ='Monthly Inputs'!N35 -> 0 | L133: ='Monthly Inputs'!O35 -> 0 | M133: ='Monthly Inputs'!P35 -> 0 | N133: ='Monthly Inputs'!Q35 -> 0 | O133: ='Monthly Inputs'!R35 -> 0 | P133: =SUM(D133:O133) -> 1105923 | Q133: 129
B134: Ryckman | D134: ='Monthly Inputs'!G36 -> 0 | E134: ='Monthly Inputs'!H36 -> 498000 | F134: ='Monthly Inputs'!I36 -> 514600 | G134: ='Monthly Inputs'!J36 -> 514600 | H134: ='Monthly Inputs'!K36 -> 481400 | I134: ='Monthly Inputs'!L36 -> 0 | J134: ='Monthly Inputs'!M36 -> 0 | K134: ='Monthly Inputs'!N36 -> 0 | L134: ='Monthly Inputs'!O36 -> 0 | M134: ='Monthly Inputs'!P36 -> 0 | N134: ='Monthly Inputs'!Q36 -> 0 | O134: ='Monthly Inputs'!R36 -> 0 | P134: =SUM(D134:O134) -> 2008600 | Q134: 130
B135: Total Peaking Storage | D135: =SUM(D131:D134) -> 0 | E135: =SUM(E131:E134) -> 498000 | F135: 514600 | G135: 837642 | H135: 481400 | I135: 1586550 | J135: 0 | K135: 0 | L135: 0 | M135: 0 | N135: 0 | O135: 0 | P135: 3918192 | Q135: 131
B136: Clay Basin | D136: ='Monthly Inputs'!G33 -> 0 | E136: ='Monthly Inputs'!H33 -> 957328 | F136: ='Monthly Inputs'!I33 -> 3317046 | G136: ='Monthly Inputs'!J33 -> 3160050 | H136: ='Monthly Inputs'!K33 -> 3190046 | I136: ='Monthly Inputs'!L33 -> 1500000 | J136: ='Monthly Inputs'!M33 -> 0 | K136: ='Monthly Inputs'!N33 -> 0 | L136: ='Monthly Inputs'!O33 -> 0 | M136: ='Monthly Inputs'!P33 -> 0 | N136: ='Monthly Inputs'!Q33 -> 0 | O136: ='Monthly Inputs'!R33 -> 0 | P136: =SUM(D136:O136) -> 12124470 | Q136: 132
B137: Total Storage Withdrawls | D137: =SUM(D135:D136) -> 0 | E137: 1455328 | F137: 3831646 | G137: 3997692 | H137: 3671446 | I137: 3086550 | J137: 0 | K137: 0 | L137: 0 | M137: 0 | N137: 0 | O137: 0 | P137: 16042662 | Q137: 133
Q138: 134
Q139: 135
A140: Gas Supply and Demand | D140: =D4 -> Forecast | E140: Forecast | F140: Forecast | G140: Forecast | H140: Forecast | I140: Forecast | J140: Forecast | K140: Forecast | L140: Forecast | M140: Forecast | N140: Forecast | O140: Forecast | P140: 12-Month | Q140: 136
A141: Demand | D141: =D5 -> Oct19 | E141: Nov19 | F141: Dec19 | G141: Jan20 | H141: Feb20 | I141: Mar20 | J141: Apr20 | K141: May20 | L141: Jun20 | M141: Jul20 | N141: Aug20 | O141: Sep20 | P141: Total | Q141: 137
Q142: 138
A143: Utah Sales | D143: =+D20 -> 6433656 | E143: =+E20 -> 11879095 | F143: 18704846 | G143: 20219662 | H143: 17089244 | I143: 13496025 | J143: 8925238 | K143: 5499889 | L143: 3324903 | M143: 2644229 | N143: 2425135 | O143: 2782550 | P143: =SUM(D143:O143) -> 113424472 | Q143: 139
A144: Wyoming Sales | D144: =+D39 -> 252763 | E144: 427125 | F144: 592566 | G144: 634523 | H144: 564754 | I144: 481683 | J144: 356476 | K144: 236639 | L144: 125574 | M144: 76358 | N144: 71483 | O144: 108237 | P144: =SUM(D144:O144) -> 3928181 | Q144: 140
A145: Total Sales | D145: =+D143+D144 -> 6686419 | E145: 12306220 | F145: 19297412 | G145: 20854185 | H145: 17653998 | I145: 13977708 | J145: 9281714 | K145: 5736528 | L145: 3450477 | M145: 2720587 | N145: 2496618 | O145: 2890787 | P145: 117352653 | Q145: 141
Q146: 142
A147: Distribution Use (Offices) | D147: =ROUND(O83,0) -> 0 | E147: =ROUND(D83,0) -> 0 | F147: =ROUND(E83,0) -> 0 | G147: 0 | H147: 0 | I147: 0 | J147: 0 | K147: 0 | L147: 0 | M147: 0 | N147: 0 | O147: 0 | P147: =SUM(D147:O147) -> 0 | Q147: 143
A148: Distribution Lost and Unaccounted for | D148: =+D150-D145-D147 -> 30225 | E148: =+E150-E145-E147 -> 55628 | F148: 87231 | G148: 94268 | H148: 79802 | I148: 63184 | J148: 41957 | K148: 25931 | L148: 15597 | M148: 12298 | N148: 11286 | O148: =+O150-O145-O147 -> 13067 | P148: =SUM(D148:O148) -> 530474 | Q148: 144
Q149: 145
A150: Total City Gate | D150: =ROUND((D145+D147)/(1-'Other Inputs'!$E$265),0) -> 6716644 | E150: =ROUND((E145+E147)/(1-'Other Inputs'!$E$265),0) -> 12361848 | F150: =ROUND((F145+F147)/(1-'Other Inputs'!$E$265),0) -> 19384643 | G150: =ROUND((G145+G147)/(1-'Other Inputs'!$E$265),0) -> 20948453 | H150: =ROUND((H145+H147)/(1-'Other Inputs'!$E$265),0) -> 17733800 | I150: =ROUND((I145+I147)/(1-'Other Inputs'!$E$265),0) -> 14040892 | J150: =ROUND((J145+J147)/(1-'Other Inputs'!$E$265),0) -> 9323671 | K150: =ROUND((K145+K147)/(1-'Other Inputs'!$E$265),0) -> 5762459 | L150: =ROUND((L145+L147)/(1-'Other Inputs'!$E$265),0) -> 3466074 | M150: =ROUND((M145+M147)/(1-'Other Inputs'!$E$265),0) -> 2732885 | N150: =ROUND((N145+N147)/(1-'Other Inputs'!$E$265),0) -> 2507904 | O150: =ROUND((O145+O147)/(1-'Other Inputs'!$E$265),0) -> 2903854 | P150: =SUM(D150:O150) -> 117883127 | Q150: 146
Q151: 147
A152: Peaking Injection | D152: =+D127 -> 1124309 | E152: 126786 | F152: 0 | G152: 0 | H152: 0 | I152: 0 | J152: 335461 | K152: 353119 | L152: 341730 | M152: 353120 | N152: 353120 | O152: 485570 | P152: =SUM(D152:O152) -> 3473215 | Q152: 148
A153: Clay Basin Injection | D153: =+D128 -> 2812405 | E153: 1500000 | F153: 0 | G153: 0 | H153: 0 | I153: 0 | J153: 0 | K153: 1412352 | L153: 2700000 | M153: 1910380 | N153: 1945950 | O153: 2400000 | P153: =SUM(D153:O153) -> 14681087 | Q153: 149
A154: Storage Lost & Unaccounted For | D154: =-'Monthly Inputs'!G51 -> 94020.497 | E154: =-'Monthly Inputs'!H51 -> 38800.3488 | F154: =-'Monthly Inputs'!I51 -> 0 | G154: =-'Monthly Inputs'!J51 -> 0 | H154: =-'Monthly Inputs'!K51 -> 0 | I154: =-'Monthly Inputs'!L51 -> 0 | J154: =-'Monthly Inputs'!M51 -> 8386.525 | K154: =-'Monthly Inputs'!N51 -> 44136.775 | L154: =-'Monthly Inputs'!O51 -> 76043.25 | M154: =-'Monthly Inputs'!P51 -> 56587.5 | N154: =-'Monthly Inputs'!Q51 -> 57476.75 | O154: =-'Monthly Inputs'!R51 -> 70012.437 | P154: =SUM(D154:O154) -> 445464.0828 | Q154: 150
A155: Total Demand | D155: =SUM(D150:D154) -> 10747378.5 | E155: =SUM(E150:E154) -> 14027434.35 | F155: 19384643 | G155: 20948453 | H155: =SUM(H150:H154) -> 17733800 | I155: 14040892 | J155: 9667518.525 | K155: 7572066.775 | L155: 6583847.25 | M155: 5052972.5 | N155: 4864450.75 | O155: =SUM(O150:O154) -> 5859436.437 | P155: =SUM(D155:O155) -> 136482893.1 | Q155: 151
Q156: 152
D157: Forecast | E157: Forecast | F157: Forecast | G157: Forecast | H157: Forecast | I157: Forecast | J157: Forecast | K157: Forecast | L157: Forecast | M157: Forecast | N157: Forecast | O157: Forecast | P157: 12-Month | Q157: 153
A158: Supply | D158: =D5 -> Oct19 | E158: Nov19 | F158: Dec19 | G158: Jan20 | H158: Feb20 | I158: Mar20 | J158: Apr20 | K158: May20 | L158: Jun20 | M158: Jul20 | N158: Aug20 | O158: Sep20 | P158: Total | Q158: 154
A159: Company Production | D159: =+D120 -> 5658224 | E159: =+E120 -> 5360505 | F159: 5562662 | G159: 5433616 | H159: 5096209 | I159: 5320388 | J159: 5046084 | K159: 5120670 | L159: 4872039 | M159: 4956388 | N159: 4999358 | O159: 4810602 | P159: =SUM(D159:O159) -> 62236745 | Q159: 155
A160: Co Prod Lost & Unaccounted For | D160: =ROUND(D159*(-'Other Inputs'!$E$267-'Other Inputs'!$E$268),0) -> -210039 | E160: =ROUND(E159*(-'Other Inputs'!$E$267-'Other Inputs'!$E$268),0) -> -198987 | F160: =ROUND(F159*(-'Other Inputs'!$E$267-'Other Inputs'!$E$268),0) -> -206492 | G160: =ROUND(G159*(-'Other Inputs'!$E$267-'Other Inputs'!$E$268),0) -> -201701 | H160: =ROUND(H159*(-'Other Inputs'!$E$267-'Other Inputs'!$E$268),0) -> -189176 | I160: =ROUND(I159*(-'Other Inputs'!$E$267-'Other Inputs'!$E$268),0) -> -197498 | J160: =ROUND(J159*(-'Other Inputs'!$E$267-'Other Inputs'!$E$268),0) -> -187316 | K160: =ROUND(K159*(-'Other Inputs'!$E$267-'Other Inputs'!$E$268),0) -> -190084 | L160: =ROUND(L159*(-'Other Inputs'!$E$267-'Other Inputs'!$E$268),0) -> -180855 | M160: =ROUND(M159*(-'Other Inputs'!$E$267-'Other Inputs'!$E$268),0) -> -183986 | N160: =ROUND(N159*(-'Other Inputs'!$E$267-'Other Inputs'!$E$268),0) -> -185581 | O160: =ROUND(O159*(-'Other Inputs'!$E$267-'Other Inputs'!$E$268),0) -> -178574 | P160: =SUM(D160:O160) -> -2310289 | Q160: 156
A161: Company Production @ City Gate | D161: =SUM(D159:D160) -> 5448185 | E161: =SUM(E159:E160) -> 5161518 | F161: 5356170 | G161: 5231915 | H161: 4907033 | I161: 5122890 | J161: 4858768 | K161: 4930586 | L161: 4691184 | M161: 4772402 | N161: 4813777 | O161: 4632028 | P161: =SUM(D161:O161) -> 59926456 | Q161: 157
Q162: 158
A163: Peaking Withdrawal | D163: =+D135 -> 0 | E163: 498000 | F163: 514600 | G163: 837642 | H163: 481400 | I163: 1586550 | J163: 0 | K163: 0 | L163: 0 | M163: 0 | N163: 0 | O163: 0 | P163: =SUM(D163:O163) -> 3918192 | Q163: 159
A164: Clay Basin Withdrawal | D164: =+D136 -> 0 | E164: 957328 | F164: 3317046 | G164: 3160050 | H164: 3190046 | I164: 1500000 | J164: 0 | K164: 0 | L164: 0 | M164: 0 | N164: 0 | O164: 0 | P164: =SUM(D164:O164) -> 12124470 | Q164: 160
A165: QPC Transportation Loss on Storage | D165: ='Monthly Inputs'!G67+'Monthly Inputs'!G59 -> 0 | E165: ='Monthly Inputs'!H67+'Monthly Inputs'!H59 -> -37687.2336 | F165: ='Monthly Inputs'!I67+'Monthly Inputs'!I59 -> -111571.0552 | G165: ='Monthly Inputs'!J67+'Monthly Inputs'!J59 -> -119208.4179 | H165: ='Monthly Inputs'!K67+'Monthly Inputs'!K59 -> -107087.4152 | I165: ='Monthly Inputs'!L67+'Monthly Inputs'!L59 -> -108345.5515 | J165: ='Monthly Inputs'!M67+'Monthly Inputs'!M59 -> 0 | K165: ='Monthly Inputs'!N67+'Monthly Inputs'!N59 -> 0 | L165: ='Monthly Inputs'!O67+'Monthly Inputs'!O59 -> 0 | M165: ='Monthly Inputs'!P67+'Monthly Inputs'!P59 -> 0 | N165: ='Monthly Inputs'!Q67+'Monthly Inputs'!Q59 -> 0 | O165: ='Monthly Inputs'!R67+'Monthly Inputs'!R59 -> 0 | P165: =SUM(D165:O165) -> -483899.6734 | Q165: 161
A166: Storage Lost & Unaccounted For | D166: ='Monthly Inputs'!G51 -> -94020.497 | E166: ='Monthly Inputs'!H51 -> -38800.3488 | F166: ='Monthly Inputs'!I51 -> 0 | G166: ='Monthly Inputs'!J51 -> 0 | H166: ='Monthly Inputs'!K51 -> 0 | I166: ='Monthly Inputs'!L51 -> 0 | J166: ='Monthly Inputs'!M51 -> -8386.525 | K166: ='Monthly Inputs'!N51 -> -44136.775 | L166: ='Monthly Inputs'!O51 -> -76043.25 | M166: ='Monthly Inputs'!P51 -> -56587.5 | N166: ='Monthly Inputs'!Q51 -> -57476.75 | O166: ='Monthly Inputs'!R51 -> -70012.437 | P166: =SUM(D166:O166) -> -445464.0828 | Q166: 162
A167: Storage Supply @ City Gate | D167: =SUM(D163:D166) -> -94020.497 | E167: =SUM(E163:E166) -> 1378840.418 | F167: 3720074.945 | G167: 3878483.582 | H167: 3564358.585 | I167: 2978204.448 | J167: -8386.525 | K167: -44136.775 | L167: -76043.25 | M167: -56587.5 | N167: -57476.75 | O167: -70012.437 | P167: 15113298.24 | Q167: 163
Q168: 164
A169: Gas Purchased @ City Gate | D169: =D155-D161-D167-D154 -> 5299193.497 | E169: =E155-E161-E167-E154 -> 7448275.582 | F169: 10308398.06 | G169: 11838054.42 | H169: 9262408.415 | I169: 5939797.552 | J169: 4808750.525 | K169: 2641480.775 | L169: 1892663.25 | M169: 280570.5 | N169: 50673.75 | O169: 1227408.437 | P169: =SUM(D169:O169) -> 60997674.76 | Q169: 165
A170: Gas Reimbursement | D170: =+D171-D169 -> 84524.503 | E170: =+E171-E169 -> 118803.4176 | F170: 164422.9448 | G170: 188821.5821 | H170: 147739.5848 | I170: 94742.4485 | J170: 76701.475 | K170: 42133.225 | L170: 30188.75 | M170: 4475.5 | N170: 808.25 | O170: 19577.563 | P170: =SUM(D170:O170) -> 972939.2438 | Q170: 166
A171: Gas Purchased - Dth ( /.98) | D171: =ROUND(D169/(1-'Other Inputs'!$E$268),0) -> 5383718 | E171: =ROUND(E169/(1-'Other Inputs'!$E$268),0) -> 7567079 | F171: =ROUND(F169/(1-'Other Inputs'!$E$268),0) -> 10472821 | G171: =ROUND(G169/(1-'Other Inputs'!$E$268),0) -> 12026876 | H171: =ROUND(H169/(1-'Other Inputs'!$E$268),0) -> 9410148 | I171: =ROUND(I169/(1-'Other Inputs'!$E$268),0) -> 6034540 | J171: =ROUND(J169/(1-'Other Inputs'!$E$268),0) -> 4885452 | K171: =ROUND(K169/(1-'Other Inputs'!$E$268),0) -> 2683614 | L171: =ROUND(L169/(1-'Other Inputs'!$E$268),0) -> 1922852 | M171: =ROUND(M169/(1-'Other Inputs'!$E$268),0) -> 285046 | N171: =ROUND(N169/(1-'Other Inputs'!$E$268),0) -> 51482 | O171: =ROUND(O169/(1-'Other Inputs'!$E$268),0) -> 1246986 | P171: =SUM(D171:O171) -> 61970614 | Q171: 167
Q172: 168
A173: Transported Volumes - total | D173: =+D161+D169+D137+D165 -> 10747378.5 | E173: =+E161+E169+E137+E165 -> 14027434.35 | F173: =+F161+F169+F137+F165 -> 19384643 | G173: 20948453 | H173: =+H161+H169+H137+H165 -> 17733800 | I173: 14040892 | J173: 9667518.525 | K173: 7572066.775 | L173: 6583847.25 | M173: 5052972.5 | N173: 4864450.75 | O173: 5859436.437 | P173: =+P161+P169+P137+P165 -> 136482893.1 | Q173: 169
A174: Kern transported volumes | D174: =HLOOKUP(MONTH(D5),kernrivertrans,6,FALSE) -> 728386.0552 | E174: =HLOOKUP(MONTH(E5),kernrivertrans,6,FALSE) -> 2381995.87 | F174: 3524691.128 | G174: 3524691.128 | H174: =HLOOKUP(MONTH(H5),kernrivertrans,6,FALSE) -> 3297291.7 | I174: 2461395.732 | J174: =HLOOKUP(MONTH(J5),kernrivertrans,6,FALSE) -> 704889.7309 | K174: 728386.0552 | L174: 704889.7309 | M174: 728386.0552 | N174: 728386.0552 | O174: 704889.7309 | Q174: 170
A175: Storage Fuel % | C175: =(P154-P166)/(P163+P164+P152+P153) -> 0.02605284392 | Q175: 171
Q176: 172
A177: Company Production as % of Total Supply / Demand | D177: =D159/(D171+D159) -> 0.5124301504 | E177: 0.4146563658 | F177: =F159/(F171+F159) -> 0.3468970657 | G177: 0.3111948965 | H177: =H159/(H171+H159) -> 0.3513086711 | I177: 0.4685532132 | J177: 0.5080869666 | K177: 0.6561357839 | L177: 0.7170150338 | M177: 0.9456167911 | N177: 0.98980724 | O177: =O159/(O171+O159) -> 0.7941447982 | P177: =P159/(P171+P159) -> 0.5010713174 | Q177: 173
Q178: 174
A179: Peak Hour Service | D179: =IF(OR(D6=11,D6=12,D6=1,D6=2),'Other Inputs'!D$20*16*'Other Inputs'!$F$21,0)+IF(OR(D6=11,D6=12,D6=1,D6=2),'Other Inputs'!$D$23*16*'Other Inputs'!$F$24,0) -> 0 | E179: =IF(OR(E6=11,E6=12,E6=1,E6=2),'Other Inputs'!E$20*16*'Other Inputs'!$F$21,0)+IF(OR(E6=11,E6=12,E6=1,E6=2),'Other Inputs'!$D$23*16*'Other Inputs'!$F$24,0) -> 244414.4139 | F179: =IF(OR(F6=11,F6=12,F6=1,F6=2),'Other Inputs'!F$20*31*'Other Inputs'!$F$21,0)+IF(OR(F6=11,F6=12,F6=1,F6=2),'Other Inputs'!$D$23*31*'Other Inputs'!$F$24,0) -> 473654.8632 | G179: =IF(OR(G6=11,G6=12,G6=1,G6=2),'Other Inputs'!G$20*31*'Other Inputs'!$F$21,0)+IF(OR(G6=11,G6=12,G6=1,G6=2),'Other Inputs'!$D$23*31*'Other Inputs'!$F$24,0) -> 473517.587 | H179: =IF(OR(H6=11,H6=12,H6=1,H6=2),'Other Inputs'!H$20*14*'Other Inputs'!$F$21,0)+IF(OR(H6=11,H6=12,H6=1,H6=2),'Other Inputs'!$D$23*14*'Other Inputs'!$F$24,0) -> 213846.6522 | I179: =IF(OR(I6=11,I6=12,I6=1,I6=2),'Other Inputs'!I$20*16*'Other Inputs'!$F$21,0)+IF(OR(I6=11,I6=12,I6=1,I6=2),'Other Inputs'!$D$23*16*'Other Inputs'!$F$24,0) -> 0 | J179: =IF(OR(J6=11,J6=12,J6=1,J6=2),'Other Inputs'!J$20*16*'Other Inputs'!$F$21,0)+IF(OR(J6=11,J6=12,J6=1,J6=2),'Other Inputs'!$D$23*16*'Other Inputs'!$F$24,0) -> 0 | K179: =IF(OR(K6=11,K6=12,K6=1,K6=2),'Other Inputs'!K$20*16*'Other Inputs'!$F$21,0)+IF(OR(K6=11,K6=12,K6=1,K6=2),'Other Inputs'!$D$23*16*'Other Inputs'!$F$24,0) -> 0 | L179: =IF(OR(L6=11,L6=12,L6=1,L6=2),'Other Inputs'!L$20*16*'Other Inputs'!$F$21,0)+IF(OR(L6=11,L6=12,L6=1,L6=2),'Other Inputs'!$D$23*16*'Other Inputs'!$F$24,0) -> 0 | M179: =IF(OR(M6=11,M6=12,M6=1,M6=2),'Other Inputs'!M$20*16*'Other Inputs'!$F$21,0)+IF(OR(M6=11,M6=12,M6=1,M6=2),'Other Inputs'!$D$23*16*'Other Inputs'!$F$24,0) -> 0 | N179: =IF(OR(N6=11,N6=12,N6=1,N6=2),'Other Inputs'!N$20*16*'Other Inputs'!$F$21,0)+IF(OR(N6=11,N6=12,N6=1,N6=2),'Other Inputs'!$D$23*16*'Other Inputs'!$F$24,0) -> 0 | O179: =IF(OR(O6=11,O6=12,O6=1,O6=2),'Other Inputs'!O$20*16*'Other Inputs'!$F$21,0)+IF(OR(O6=11,O6=12,O6=1,O6=2),'Other Inputs'!$D$23*16*'Other Inputs'!$F$24,0) -> 0 | P179: =SUM(D179:O179) -> 1405433.516 | Q179: 175
Q180: 176
A181: PURCHASES BREAKDOWN | Q181: 177
A182: Spot Market Purchases | D182: ='Monthly Inputs'!G83 -> 4222720 | E182: ='Monthly Inputs'!H83 -> 4431064 | F182: ='Monthly Inputs'!I83 -> 4395821 | G182: ='Monthly Inputs'!J83 -> 4949876 | H182: ='Monthly Inputs'!K83 -> 4467148 | I182: ='Monthly Inputs'!L83 -> 5104540 | J182: ='Monthly Inputs'!M83 -> 3985452 | K182: ='Monthly Inputs'!N83 -> 2600380 | L182: ='Monthly Inputs'!O83 -> 1639950 | M182: ='Monthly Inputs'!P83 -> 0 | N182: ='Monthly Inputs'!Q83 -> 0 | O182: ='Monthly Inputs'!R83 -> 1246986 | P182: =SUM(D182:O182) -> 37043937 | Q182: 178
A183: Spot Market Purchases Cost | D183: ='Monthly Inputs'!G84 -> 7938713.6 | E183: ='Monthly Inputs'!H84 -> 9349545.04 | F183: ='Monthly Inputs'!I84 -> 10637886.82 | G183: ='Monthly Inputs'!J84 -> 11879702.4 | H183: ='Monthly Inputs'!K84 -> 10006411.52 | I183: ='Monthly Inputs'!L84 -> 9188172 | J183: ='Monthly Inputs'!M84 -> 6974541 | K183: ='Monthly Inputs'!N84 -> 4264623.2 | L183: ='Monthly Inputs'!O84 -> 2607520.5 | M183: ='Monthly Inputs'!P84 -> 0 | N183: ='Monthly Inputs'!Q84 -> 0 | O183: ='Monthly Inputs'!R84 -> 2119876.2 | P183: =SUM(D183:O183) -> 74966992.28 | Q183: 179
Q184: 180
A185: Contract Purchases (Dth) | D185: ='Monthly Inputs'!G92 -> 930000 | E185: ='Monthly Inputs'!H92 -> 1110000 | F185: ='Monthly Inputs'!I92 -> 2077000 | G185: ='Monthly Inputs'!J92 -> 2077000 | H185: ='Monthly Inputs'!K92 -> 1943000 | I185: ='Monthly Inputs'!L92 -> 930000 | J185: ='Monthly Inputs'!M92 -> 900000 | K185: ='Monthly Inputs'!N92 -> 0 | L185: ='Monthly Inputs'!O92 -> 0 | M185: ='Monthly Inputs'!P92 -> 0 | N185: ='Monthly Inputs'!Q92 -> 0 | O185: ='Monthly Inputs'!R92 -> 0 | P185: =SUM(D185:O185) -> 9967000 | Q185: 181
A186: Contract Purchases Cost Including Stabalization Costs | D186: ='Monthly Inputs'!G93+'Monthly Inputs'!G94 -> 1973995.68 | E186: ='Monthly Inputs'!H93+'Monthly Inputs'!H94 -> 2569666.728 | F186: ='Monthly Inputs'!I93+'Monthly Inputs'!I94 -> 5332390.575 | G186: ='Monthly Inputs'!J93+'Monthly Inputs'!J94 -> 5289964.744 | H186: ='Monthly Inputs'!K93+'Monthly Inputs'!K94 -> 4631167.25 | I186: ='Monthly Inputs'!L93+'Monthly Inputs'!L94 -> 1898464.8 | J186: ='Monthly Inputs'!M93+'Monthly Inputs'!M94 -> 1791540 | K186: ='Monthly Inputs'!N93+'Monthly Inputs'!N94 -> 0 | L186: ='Monthly Inputs'!O93+'Monthly Inputs'!O94 -> 0 | M186: ='Monthly Inputs'!P93+'Monthly Inputs'!P94 -> 0 | N186: ='Monthly Inputs'!Q93+'Monthly Inputs'!Q94 -> 0 | O186: ='Monthly Inputs'!R93+'Monthly Inputs'!R94 -> 0 | P186: =SUM(D186:O186) -> 23487189.78 | Q186: 182
Q187: 183
A188: Peak Purchases (Dth) | D188: ='Monthly Inputs'!G89 -> 0 | E188: ='Monthly Inputs'!H89 -> 1000000 | F188: ='Monthly Inputs'!I89 -> 4000000 | G188: ='Monthly Inputs'!J89 -> 5000000 | H188: ='Monthly Inputs'!K89 -> 3000000 | I188: ='Monthly Inputs'!L89 -> 0 | J188: ='Monthly Inputs'!M89 -> 0 | K188: ='Monthly Inputs'!N89 -> 0 | L188: ='Monthly Inputs'!O89 -> 0 | M188: ='Monthly Inputs'!P89 -> 0 | N188: ='Monthly Inputs'!Q89 -> 0 | O188: ='Monthly Inputs'!R89 -> 0 | P188: =SUM(D188:O188) -> 13000000 | Q188: 184
A189: Peak Purchases Cost | D189: ='Monthly Inputs'!G90 -> 0 | E189: ='Monthly Inputs'!H90 -> 2170248.254 | F189: ='Monthly Inputs'!I90 -> 8680993.014 | G189: ='Monthly Inputs'!J90 -> 10851241.27 | H189: ='Monthly Inputs'!K90 -> 6510744.761 | I189: ='Monthly Inputs'!L90 -> 0 | J189: ='Monthly Inputs'!M90 -> 0 | K189: ='Monthly Inputs'!N90 -> 0 | L189: ='Monthly Inputs'!O90 -> 0 | M189: ='Monthly Inputs'!P90 -> 0 | N189: ='Monthly Inputs'!Q90 -> 0 | O189: ='Monthly Inputs'!R90 -> 0 | P189: =SUM(D189:O189) -> 28213227.3 | Q189: 185
Q190: 186
A191: Future Purchases | D191: =+D171-D182-D185-D188 -> 230998 | E191: =+E171-E182-E185-E188 -> 1026015 | F191: =+F171-F182-F185-F188 -> 0 | G191: =+G171-G182-G185-G188 -> 0 | H191: =+H171-H182-H185-H188 -> 0 | I191: =+I171-I182-I185-I188 -> 9.313225746e-10 | J191: =+J171-J182-J185-J188 -> 0 | K191: =+K171-K182-K185-K188 -> 83234 | L191: 282902 | M191: =+M171-M182-M185-M188 -> 285046 | N191: 51482 | O191: 0 | P191: =SUM(D191:O191) -> 1959677 | Q191: 187
A192: Future Purchases Cost | D192: =ROUND(D191*D199,0) -> 438896 | E192: =ROUND(E191*E199,0) -> 2185412 | F192: =ROUND(F191*F199,0) -> 0 | G192: =ROUND(G191*G199,0) -> 0 | H192: =ROUND(H191*H199,0) -> 0 | I192: 0 | J192: 0 | K192: 138168 | L192: 455472 | M192: 527335 | N192: 97816 | O192: 0 | P192: =SUM(D192:O192) -> 3843099 | Q192: 188
Q193: 189
A194: Total Purchases Cost | D194: =+D183+D186+D189+D192 -> 10351605.28 | E194: =+E183+E186+E189+E192 -> 16274872.02 | F194: =+F183+F186+F189+F192 -> 24651270.41 | G194: =+G183+G186+G189+G192 -> 28020908.41 | H194: =+H183+H186+H189+H192 -> 21148323.53 | I194: 11086636.8 | J194: =+J183+J186+J189+J192 -> 8766081 | K194: 4402791.2 | L194: 3062992.5 | M194: 527335 | N194: 97816 | O194: =+O183+O186+O189+O192 -> 2119876.2 | P194: 130510508.4 | Q194: 190
Q195: 191
A196: Gas Cost | Q196: 192
A197: Gas Cost Purchases | D197: =IF(D171=0,0,ROUND(D194/D171,5)) -> 1.92276 | E197: =IF(E171=0,0,ROUND(E194/E171,5)) -> 2.15075 | F197: 2.35383 | G197: 2.32986 | H197: 2.2474 | I197: 1.8372 | J197: 1.79432 | K197: 1.64062 | L197: 1.59294 | M197: 1.85 | N197: 1.9 | O197: 1.7 | Q197: 193
A198: Gas Cost Injection Rate | D198: ='Ut Storage'!K27 -> 3.255691991 | E198: =+D198 -> 3.255691991 | F198: 3.255691991 | G198: 3.255691991 | H198: 3.255691991 | I198: 3.255691991 | J198: 3.255691991 | K198: 3.255691991 | L198: 3.255691991 | M198: 3.255691991 | N198: 3.255691991 | O198: 3.255691991 | Q198: 194
A199: =CONCATENATE("'Future Contract Price (spot + $",'Other Inputs'!E180,")") -> 'Future Contract Price (spot + $0.02) | D199: =+D231+'Other Inputs'!$E$180 -> 1.9 | E199: =+E231+'Other Inputs'!$E$180 -> 2.13 | F199: =+F231+'Other Inputs'!$E$180 -> 2.44 | G199: =+G231+'Other Inputs'!$E$180 -> 2.42 | H199: =+H231+'Other Inputs'!$E$180 -> 2.26 | I199: =+I231+'Other Inputs'!$E$180 -> 1.82 | J199: =+J231+'Other Inputs'!$E$180 -> 1.77 | K199: =+K231+'Other Inputs'!$E$180 -> 1.66 | L199: =+L231+'Other Inputs'!$E$180 -> 1.61 | M199: =+M231+'Other Inputs'!$E$180 -> 1.85 | N199: =+N231+'Other Inputs'!$E$180 -> 1.9 | O199: =+O231+'Other Inputs'!$E$180 -> 1.72 | Q199: 195
Q200: 196
A201: System Production | D201: =+D161 -> 5448185 | E201: 5161518 | F201: 5356170 | G201: 5231915 | H201: 4907033 | I201: 5122890 | J201: 4858768 | K201: 4930586 | L201: 4691184 | M201: 4772402 | N201: 4813777 | O201: 4632028 | P201: =SUM(D201:O201) -> 59926456 | Q201: 197
... 52 more rows

Sheet CET & DSM (hidden)
A1: Rate Caclulation for the CET and DSM Amortizations
P3: Solver Cells
A4: CET Amortization % Calculation | P4: % Change | Q4: Difference
B5: Balance | C5: Date | D5: GS Dth | H5: Amortization per Dth | P5: =J20/D20 ->  | Q5: =J20-B11 ->  | S5: -> Difference should be at 0 (Use Goal Seek to Get Difference to Equal 0.
A6: DSM Balance | B6: ='Other Inputs'!#REF! ->  | C6: ='Other Inputs'!#REF! ->  | D6: =B20 ->  | H6: =ROUND(B6/D6,5) -> 
S8: Typical Bill Rates
A9: CET Amortization Calculation
B10: Balance | C10: Date | D10: DNG Rev | H10: New DNG | L10: % Change | S10: Current | T10: Proposed
A11: CET Balance | B11: ='Other Inputs'!#REF! ->  | C11: ='Other Inputs'!#REF! ->  | D11: =D20 ->  | H11: =D11+B11 ->  | L11: =P5 ->  | S11: Effective | V11: SNG & | W11: CET, DSM
S12: ='Other Inputs'!$J$96 -> 2019-08-01 | T12: CET Only | U12: DSM Only | V12: Commodity | W12: Commodity
S13: BSF | T13: BSF | U13: BSF | V13: BSF | W13: BSF
B14: Revenue Calculation | H14: CET Amortization | L14: Total DNG | P14: REVRUN Calculation | S14: ='Other Inputs'!$G$100 -> 6.75 | T14: ='Other Inputs'!$G$100 -> 6.75 | U14: ='Other Inputs'!$G$100 -> 6.75 | V14: ='Other Inputs'!$G$100 -> 6.75 | W14: ='Ut 1.7 Source'!$C$12 -> 6.75
A15: Utah GS | B15: Dth | C15: Base DNG | D15: DNG Revenue | H15: CET Rate | J15: Revenue | L15: DNG Rate | N15: Revenue | P15: CET Rate | Q15: CET Amort
A16: Block 1 Summer | B16: ='Other Inputs'!#REF! ->  | C16: ='Other Inputs'!E250 -> 1.7267 | D16: =B16*C16 ->  | H16: =ROUND((J16/B16),5) ->  | J16: =D16*$P$5 ->  | L16: =C16+H16 ->  | N16: =L16*B16 ->  | P16: =ROUND(H16,5) ->  | Q16: =B16*P16 ->  | S16: ='Other Inputs'!$G$96 -> 5.90287 | T16: =N24 ->  | U16: =N31 ->  | V16: =N38 ->  | W16: =N45 -> 
A17: Block 2 Summer | B17: ='Other Inputs'!#REF! ->  | C17: ='Other Inputs'!E251 -> 0.7267 | D17: =B17*C17 ->  | H17: =ROUND((J17/B17),5) ->  | J17: =D17*$P$5 ->  | L17: =C17+H17 ->  | N17: =L17*B17 ->  | P17: =ROUND(H17,5) ->  | Q17: =B17*P17 -> 
A18: Block 1 Winter | B18: ='Other Inputs'!#REF! ->  | C18: ='Other Inputs'!E252 -> 2.34949 | D18: =B18*C18 ->  | H18: =ROUND((J18/B18),5) ->  | J18: =D18*$P$5 ->  | L18: =C18+H18 ->  | N18: =L18*B18 ->  | P18: =ROUND(H18,5) ->  | Q18: =B18*P18 ->  | S18: ='Other Inputs'!$G$98 -> 7.1728 | T18: =N26 ->  | U18: =N33 ->  | V18: =N40 ->  | W18: =N47 -> 
A19: Block 2 Winter | B19: ='Other Inputs'!#REF! ->  | C19: ='Other Inputs'!E253 -> 1.34949 | D19: =B19*C19 ->  | H19: =ROUND((J19/B19),5) ->  | J19: =D19*$P$5 ->  | L19: =C19+H19 ->  | N19: =L19*B19 ->  | P19: =ROUND(H19,5) ->  | Q19: =B19*P19 -> 
A20: GS-1 Block Rev | B20: =SUM(B16:B19) ->  | D20: =SUM(D16:D19) ->  | J20: =B11 ->  | N20: =SUM(N16:N19) ->  | Q20: =SUM(Q16:Q19) -> 
A22: Total Rate Calculation With CET Amortization Only | N22: ='Control Panel'!E8 -> 2020-10-01 | P22: ='Other Inputs'!$J$96 -> 2019-08-01
A23: Utah GS | B23: Base DNG | C23: CET | D23: DSM | E23: Energy Assist | F23: Infrastructure | H23: Total DNG | I23: Base SNG | J23: SNG Amort | L23: Base Gas Cost | M23: 191 Amort | N23: Total Rate | P23: Total Rate
A24: Block 1 Summer | B24: =$C$16 -> 1.7267 | C24: =$H$16 ->  | D24: 0.44104 | E24: 0.01519 | F24: 0.02908 | H24: =SUM(B24:F24) ->  | I24: 0.55715 | J24: 0.01244 | L24: 4.21339 | M24: 0.14067 | N24: =SUM(H24:M24) ->  | P24: ='Other Inputs'!$G$96 -> 5.90287 | Q24: =N24-P24 -> 
A25: Block 2 Summer | B25: =$C$17 -> 0.7267 | C25: =$H$17 ->  | D25: =$D$24 -> 0.44104 | E25: =$E$24 -> 0.01519 | F25: 0.0108 | H25: =SUM(B25:F25) ->  | I25: =I24 -> 0.55715 | J25: =J24 -> 0.01244 | L25: =L24 -> 4.21339 | M25: =$M$24 -> 0.14067 | N25: =SUM(H25:M25) ->  | P25: ='Other Inputs'!$G$97 -> 4.76604 | Q25: =N25-P25 -> 
A26: Block 1 Winter | B26: =$C$18 -> 2.34949 | C26: =$H$18 ->  | D26: =$D$24 -> 0.44104 | E26: =$E$24 -> 0.01519 | F26: 0.03453 | H26: =SUM(B26:F26) ->  | I26: 1.18665 | J26: 0.02651 | L26: =L24 -> 4.21339 | M26: =$M$24 -> 0.14067 | N26: =SUM(H26:M26) ->  | P26: ='Other Inputs'!$G$98 -> 7.1728 | Q26: =N26-P26 -> 
A27: Block 2 Winter | B27: =$C$19 -> 1.34949 | C27: =$H$19 ->  | D27: =$D$24 -> 0.44104 | E27: =$E$24 -> 0.01519 | F27: 0.01434 | H27: =SUM(B27:F27) ->  | I27: =I26 -> 1.18665 | J27: =J26 -> 0.02651 | L27: =L24 -> 4.21339 | M27: =$M$24 -> 0.14067 | N27: =SUM(H27:M27) ->  | P27: ='Other Inputs'!$G$99 -> 6.03597 | Q27: =N27-P27 -> 
A29: Total Rate Calculation With DSM Amortization Only | N29: =N22 -> 2020-10-01 | P29: ='Other Inputs'!$J$96 -> 2019-08-01
A30: Utah GS | B30: Base DNG | C30: CET | D30: DSM | E30: Energy Assist | F30: Infrastructure | H30: Total DNG | I30: Base SNG | J30: SNG Amort | L30: Commodity | M30: 191 Amort | N30: Total Rate | P30: Total Rate
A31: Block 1 Summer | B31: =$C$16 -> 1.7267 | C31: -0.0599 | D31: =$H$6 ->  | E31: =$E$24 -> 0.01519 | F31: =F24 -> 0.02908 | H31: =SUM(B31:F31) ->  | I31: =$I$24 -> 0.55715 | J31: =J24 -> 0.01244 | L31: =$L$24 -> 4.21339 | M31: =$M$24 -> 0.14067 | N31: =SUM(H31:M31) ->  | P31: ='Other Inputs'!$G$96 -> 5.90287 | Q31: =N31-P31 -> 
A32: Block 2 Summer | B32: =$C$17 -> 0.7267 | C32: -0.02224 | D32: =$H$6 ->  | E32: =$E$24 -> 0.01519 | F32: =F25 -> 0.0108 | H32: =SUM(B32:F32) ->  | I32: =$I$24 -> 0.55715 | J32: =J25 -> 0.01244 | L32: =$L$24 -> 4.21339 | M32: =$M$24 -> 0.14067 | N32: =SUM(H32:M32) ->  | P32: ='Other Inputs'!$G$97 -> 4.76604 | Q32: =N32-P32 -> 
A33: Block 1 Winter | B33: =$C$18 -> 2.34949 | C33: -0.07112 | D33: =$H$6 ->  | E33: =$E$24 -> 0.01519 | F33: =F26 -> 0.03453 | H33: =SUM(B33:F33) ->  | I33: =$I$26 -> 1.18665 | J33: =J26 -> 0.02651 | L33: =$L$24 -> 4.21339 | M33: =$M$24 -> 0.14067 | N33: =SUM(H33:M33) ->  | P33: ='Other Inputs'!$G$98 -> 7.1728 | Q33: =N33-P33 -> 
A34: Block 2 Winter | B34: =$C$19 -> 1.34949 | C34: -0.02953 | D34: =$H$6 ->  | E34: =$E$24 -> 0.01519 | F34: =F27 -> 0.01434 | H34: =SUM(B34:F34) ->  | I34: =$I$26 -> 1.18665 | J34: =J27 -> 0.02651 | L34: =$L$24 -> 4.21339 | M34: =$M$24 -> 0.14067 | N34: =SUM(H34:M34) ->  | P34: ='Other Inputs'!$G$99 -> 6.03597 | Q34: =N34-P34 -> 
A36: Total Rate Calculation With SNG and Commodity Changes Only | N36: =N22 -> 2020-10-01 | P36: ='Other Inputs'!$J$96 -> 2019-08-01
A37: Utah GS | B37: Base DNG | C37: CET | D37: DSM | E37: Energy Assist | F37: Infrastructure | H37: Total DNG | I37: Base SNG | J37: SNG | L37: Commodity | M37: 191 Amort | N37: Total Rate | P37: Total Rate
A38: Block 1 Summer | B38: =$C$16 -> 1.7267 | C38: =C31 -> -0.0599 | D38: =D24 -> 0.44104 | E38: =$E$24 -> 0.01519 | F38: =F24 -> 0.02908 | H38: =SUM(B38:F38) -> 2.15211 | I38: =#REF! ->  | J38: =#REF! ->  | L38: ='Ut 1.5 p1'!$F$29 -> 3.14885 | M38: ='Ut 1.5 p1'!$F$30 -> 0.438653371 | N38: =SUM(H38:M38) ->  | P38: ='Other Inputs'!$G$96 -> 5.90287 | Q38: =N38-P38 -> 
A39: Block 2 Summer | B39: =$C$17 -> 0.7267 | C39: =C32 -> -0.02224 | D39: =D25 -> 0.44104 | E39: =$E$24 -> 0.01519 | F39: =F25 -> 0.0108 | H39: =SUM(B39:F39) -> 1.17149 | I39: =#REF! ->  | J39: =#REF! ->  | L39: ='Ut 1.5 p1'!$F$29 -> 3.14885 | M39: ='Ut 1.5 p1'!$F$30 -> 0.438653371 | N39: =SUM(H39:M39) ->  | P39: ='Other Inputs'!$G$97 -> 4.76604 | Q39: =N39-P39 -> 
A40: Block 1 Winter | B40: =$C$18 -> 2.34949 | C40: =C33 -> -0.07112 | D40: =D26 -> 0.44104 | E40: =$E$24 -> 0.01519 | F40: =F26 -> 0.03453 | H40: =SUM(B40:F40) -> 2.76913 | I40: =#REF! ->  | J40: =#REF! ->  | L40: ='Ut 1.5 p1'!$F$29 -> 3.14885 | M40: ='Ut 1.5 p1'!$F$30 -> 0.438653371 | N40: =SUM(H40:M40) ->  | P40: ='Other Inputs'!$G$98 -> 7.1728 | Q40: =N40-P40 -> 
A41: Block 2 Winter | B41: =$C$19 -> 1.34949 | C41: =C34 -> -0.02953 | D41: =D27 -> 0.44104 | E41: =$E$24 -> 0.01519 | F41: =F27 -> 0.01434 | H41: =SUM(B41:F41) -> 1.79053 | I41: =#REF! ->  | J41: =#REF! ->  | L41: ='Ut 1.5 p1'!$F$29 -> 3.14885 | M41: ='Ut 1.5 p1'!$F$30 -> 0.438653371 | N41: =SUM(H41:M41) ->  | P41: ='Other Inputs'!$G$99 -> 6.03597 | Q41: =N41-P41 -> 
A43: Total Rate Calculation | N43: =N29 -> 2020-10-01 | P43: ='Other Inputs'!$J$96 -> 2019-08-01
A44: Utah GS | B44: Base DNG | C44: CET | D44: DSM | E44: Energy Assist | F44: Infrastructure | H44: Total DNG | I44: Base SNG | J44: SNG | L44: Commodity | N44: Total Rate | P44: Total Rate
A45: Block 1 Summer | B45: =$C$16 -> 1.7267 | C45: =$H$16 ->  | D45: =$H$6 ->  | E45: =$E$24 -> 0.01519 | F45: =F38 -> 0.02908 | H45: =SUM(B45:F45) ->  | I45: =I38 ->  | J45: =#REF! ->  | L45: ='Ut 1.5 p1'!$F$31 -> 3.587503371 | N45: =SUM(H45:L45) ->  | P45: ='Other Inputs'!$G$96 -> 5.90287 | Q45: =N45-P45 -> 
A46: Block 2 Summer | B46: =$C$17 -> 0.7267 | C46: =$H$17 ->  | D46: =$H$6 ->  | E46: =$E$24 -> 0.01519 | F46: =F39 -> 0.0108 | H46: =SUM(B46:F46) ->  | I46: =I39 ->  | J46: =#REF! ->  | L46: =$L$45 -> 3.587503371 | N46: =SUM(H46:L46) ->  | P46: ='Other Inputs'!$G$97 -> 4.76604 | Q46: =N46-P46 -> 
A47: Block 1 Winter | B47: =$C$18 -> 2.34949 | C47: =$H$18 ->  | D47: =$H$6 ->  | E47: =$E$24 -> 0.01519 | F47: =F40 -> 0.03453 | H47: =SUM(B47:F47) ->  | I47: =I40 ->  | J47: =#REF! ->  | L47: =$L$45 -> 3.587503371 | N47: =SUM(H47:L47) ->  | P47: ='Other Inputs'!$G$98 -> 7.1728 | Q47: =N47-P47 -> 
A48: Block 2 Winter | B48: =$C$19 -> 1.34949 | C48: =$H$19 ->  | D48: =$H$6 ->  | E48: =$E$24 -> 0.01519 | F48: =F41 -> 0.01434 | H48: =SUM(B48:F48) ->  | I48: =I41 ->  | J48: =#REF! ->  | L48: =$L$45 -> 3.587503371 | N48: =SUM(H48:L48) ->  | P48: ='Other Inputs'!$G$99 -> 6.03597 | Q48: =N48-P48 -> 
A50: Typical Customer Difference - CET Amortization Only
B51: Typical
A52: GS | B52: Dth | C52: =S12 -> 2019-08-01 | D52: =N43 -> 2020-10-01 | H52: Change | J52: % Change
A53: January | B53: 14.9 | C53: =ROUND($S$14+(B53*$S$18),2) -> 113.62 | D53: =ROUND($T$14+(B53*$T$18),2) ->  | H53: =D53-C53 -> 
A54: February | B54: 12.5 | C54: =ROUND($S$14+(B54*$S$18),2) -> 96.41 | D54: =ROUND($T$14+(B54*$T$18),2) -> 
A55: March | B55: 10.1 | C55: =ROUND($S$14+(B55*$S$18),2) -> 79.2 | D55: =ROUND($T$14+(B55*$T$18),2) -> 
A56: April | B56: 8.3 | C56: =ROUND($S$14+(B56*$S$16),2) -> 55.74 | D56: =ROUND($T$14+(B56*$T$16),2) -> 
A57: May | B57: 4.4 | C57: 32.72 | D57: =ROUND($T$14+(B57*$T$16),2) -> 
A58: June | B58: 3.1 | C58: 25.05
A59: July | B59: 2 | C59: 18.56
A60: August | B60: 1.8 | C60: 17.38
A61: September | B61: 2 | C61: 18.56
A62: October | B62: 3.1 | C62: 25.05
A63: November | B63: 6.3 | C63: =ROUND($S$14+(B63*$S$18),2) -> 51.94 | D63: =ROUND($T$14+(B63*$T$18),2) -> 
A64: December | B64: 11.5 | C64: =ROUND($S$14+(B64*$S$18),2) -> 89.24 | D64: =ROUND($T$14+(B64*$T$18),2) -> 
B65: =SUM(B53:B64) -> 80 | C65: =SUM(C53:C64) -> 623.47 | D65: =SUM(D53:D64) ->  | H65: =SUM(H53:H64) ->  | J65: =H65/C65 -> 
A68: Typical Customer Difference - DSM Amortization Only
B69: Typical
A70: GS | B70: Dth | C70: =C52 -> 2019-08-01 | D70: =D52 -> 2020-10-01 | H70: Change | J70: % Change
A71: January | B71: 14.9 | C71: =ROUND($S$14+(B71*$S$18),2) -> 113.62 | D71: =ROUND($U$14+(B71*$U$18),2) ->  | H71: =D71-C71 -> 
A72: February | B72: 12.5 | C72: =ROUND($S$14+(B72*$S$18),2) -> 96.41 | D72: =ROUND($U$14+(B72*$U$18),2) -> 
A73: March | B73: 10.1 | C73: =ROUND($S$14+(B73*$S$18),2) -> 79.2 | D73: =ROUND($U$14+(B73*$U$18),2) -> 
A74: April | B74: 8.3 | C74: =ROUND($S$14+(B74*$S$16),2) -> 55.74 | D74: =ROUND($U$14+(B74*$U$16),2) -> 
A75: May | B75: 4.4 | C75: 32.72
A76: June | B76: 3.1 | C76: 25.05
A77: July | B77: 2 | C77: 18.56
A78: August | B78: 1.8 | C78: 17.38
A79: September | B79: 2 | C79: 18.56
A80: October | B80: 3.1 | C80: 25.05
A81: November | B81: 6.3 | C81: =ROUND($S$14+(B81*$S$18),2) -> 51.94 | D81: =ROUND($U$14+(B81*$U$18),2) -> 
A82: December | B82: 11.5 | C82: =ROUND($S$14+(B82*$S$18),2) -> 89.24 | D82: =ROUND($U$14+(B82*$U$18),2) -> 
B83: =SUM(B71:B82) -> 80 | C83: =SUM(C71:C82) -> 623.47 | D83: =SUM(D71:D82) ->  | H83: =SUM(H71:H82) ->  | J83: =H83/C83 -> 
A86: Typical Customer Difference - SNG and Commodity Changes Only
B87: Typical
A88: GS-1 | B88: Dth | C88: =C70 -> 2019-08-01 | D88: =D70 -> 2020-10-01 | H88: Change | J88: % Change
A89: January | B89: 14.9 | C89: =ROUND($S$14+(B89*$S$18),2) -> 113.62 | D89: =ROUND($V$14+(B89*$V$18),2) ->  | H89: =D89-C89 -> 
A90: February | B90: 12.5 | C90: =ROUND($S$14+(B90*$S$18),2) -> 96.41 | D90: =ROUND($V$14+(B90*$V$18),2) -> 
A91: March | B91: 10.1 | C91: =ROUND($S$14+(B91*$S$18),2) -> 79.2 | D91: =ROUND($V$14+(B91*$V$18),2) -> 
A92: April | B92: 8.3 | C92: =ROUND($S$14+(B92*$S$16),2) -> 55.74 | D92: =ROUND($V$14+(B92*$V$16),2) -> 
A93: May | B93: 4.4 | C93: 32.72
A94: June | B94: 3.1 | C94: 25.05
A95: July | B95: 2 | C95: 18.56
A96: August | B96: 1.8 | C96: 17.38
A97: September | B97: 2 | C97: 18.56
A98: October | B98: 3.1 | C98: 25.05
A99: November | B99: 6.3 | C99: =ROUND($S$14+(B99*$S$18),2) -> 51.94 | D99: =ROUND($V$14+(B99*$V$18),2) -> 
A100: December | B100: 11.5 | C100: =ROUND($S$14+(B100*$S$18),2) -> 89.24 | D100: =ROUND($V$14+(B100*$V$18),2) -> 
B101: =SUM(B89:B100) -> 80 | C101: =SUM(C89:C100) -> 623.47 | D101: =SUM(D89:D100) ->  | H101: =SUM(H89:H100) ->  | J101: =H101/C101 -> 
A104: Typical Customer Difference - CET & DSM Amort, SNG and Commodity Changes
B105: Typical
A106: GS-1 | B106: Dth | C106: =C52 -> 2019-08-01 | D106: =D52 -> 2020-10-01 | H106: Change | J106: % Change
A107: January | B107: 14.9 | C107: =ROUND($S$14+(B107*$S$18),2) -> 113.62 | D107: =ROUND($W$14+(B107*$W$18),2) ->  | H107: =D107-C107 -> 
A108: February | B108: 12.5 | C108: =ROUND($S$14+(B108*$S$18),2) -> 96.41 | D108: =ROUND($W$14+(B108*$W$18),2) -> 
A109: March | B109: 10.1 | C109: =ROUND($S$14+(B109*$S$18),2) -> 79.2 | D109: =ROUND($W$14+(B109*$W$18),2) -> 
A110: April | B110: 8.3 | C110: =ROUND($S$14+(B110*$S$16),2) -> 55.74 | D110: =ROUND($W$14+(B110*$W$16),2) -> 
A111: May | B111: 4.4 | C111: 32.72
A112: June | B112: 3.1 | C112: 25.05
A113: July | B113: 2 | C113: 18.56
A114: August | B114: 1.8 | C114: 17.38
A115: September | B115: 2 | C115: 18.56
A116: October | B116: 3.1 | C116: 25.05
A117: November | B117: 6.3 | C117: =ROUND($S$14+(B117*$S$18),2) -> 51.94 | D117: =ROUND($W$14+(B117*$W$18),2) -> 
A118: December | B118: 11.5 | C118: =ROUND($S$14+(B118*$S$18),2) -> 89.24 | D118: =ROUND($W$14+(B118*$W$18),2) -> 
B119: =SUM(B107:B118) -> 80 | C119: =SUM(C107:C118) -> 623.47 | D119: =SUM(D107:D118) ->  | H119: =SUM(H107:H118) ->  | J119: =H119/C119 -> 

Sheet UT Tariff Sheets PT (hidden)
B2: 2.02 GS Rate Schedule | J2: 2.03 FS Rate Schedule | AB2: 4.03 ES Rate Schedule | AI2: 2.05 NGV Rate Schedule
C3: Rates Per Dth Used Each Month | M3: Rates Per Dth Used Each Month | T3: 4.02 IS Rate Schedule | AB3: ES Volumetric Rates | AI3: NGV Volumetric Rate
C4: Summer Rates: Apr. 1 - Oct. 31 | E4: Winter Rates: Nov. 1 - Mar. 31 | M4: Dth = decatherm = 10 therms = 1,000,000 BTU | T4: IS Volumetric Rates
C5: First 45 Dth | D5: All Over 45 Dth | E5: First 45 Dth | F5: All Over 45 Dth | K5: Summer Rates: Apr. 1 - Oct. 31 | N5: Winter Rates: Nov. 1 - Mar. 31 | U5: Rates Per Dth Used Each Month | AE5: Rates Per Dth Used Each Month | AM5: Rates Per Dth Used Each Month
B6: Base DNG | C6: ='CET & DSM'!B38 -> 1.7267 | D6: ='CET & DSM'!B39 -> 0.7267 | E6: ='CET & DSM'!B40 -> 2.34949 | F6: ='CET & DSM'!B41 -> 1.34949 | K6: First | L6: Next | M6: All Over | N6: First | O6: Next | P6: All Over | U6: Dth = decatherm = 10 therms = 1,000,000 BTU | AE6: Dth = decatherm = 10 therms = 1,000,000 BTU | AM6: Dth = decatherm = 10 therms = 1,000,000 BTU
B7: CET Amortization | C7: ='CET & DSM'!C38 -> -0.0599 | D7: ='CET & DSM'!C39 -> -0.02224 | E7: ='CET & DSM'!C40 -> -0.07112 | F7: ='CET & DSM'!C41 -> -0.02953 | K7: 200 | L7: 1800 | M7: 2000 | N7: 200 | O7: 1800 | P7: 2000 | U7: First | V7: Next | W7: All Over | AB7: Distribution Non-Gas Rate | AC7: ='Ut 1.7 Source'!#REF! ->  | AI7: Base DNG | AK7: ='Ut 1.7 Source'!C52 -> 6.86015
B8: DSM Amortization | C8: =ROUND('CET & DSM'!D38,5) -> 0.44104 | D8: =ROUND('CET & DSM'!D39,5) -> 0.44104 | E8: =ROUND('CET & DSM'!D40,5) -> 0.44104 | F8: =ROUND('CET & DSM'!D41,5) -> 0.44104 | J8: Base DNG | K8: ='Ut 1.7 Source'!C19 -> 0.9411 | L8: ='Ut 1.7 Source'!D19 -> 0.48793 | M8: ='Ut 1.7 Source'!E19 -> 0.01091 | N8: ='Ut 1.7 Source'!F19 -> 1.41228 | O8: ='Ut 1.7 Source'!G19 -> 0.95911 | P8: ='Ut 1.7 Source'!H19 -> 0.48208 | U8: 2000 | V8: 18000 | W8: 20000 | AI8: Energy Assistance | AK8: ='Other Inputs'!#REF! -> 
B9: Energy Assistance | C9: ='Other Inputs'!#REF! ->  | D9: ='Other Inputs'!#REF! ->  | E9: ='Other Inputs'!#REF! ->  | F9: ='Other Inputs'!#REF! ->  | J9: Energy Assistance | K9: ='Other Inputs'!#REF! ->  | L9: ='Other Inputs'!#REF! ->  | M9: ='Other Inputs'!#REF! ->  | N9: ='Other Inputs'!#REF! ->  | O9: ='Other Inputs'!#REF! ->  | P9: ='Other Inputs'!#REF! ->  | T9: Base DNG | U9: ='Ut 1.7 Source'!C60 -> 0.97451 | V9: ='Ut 1.7 Source'!D60 -> 0.11832 | W9: ='Ut 1.7 Source'!E60 -> 0.10639 | AB9: Base SNG | AC9: =ROUND(#REF!,5) ->  | AI9: Distribution Non-Gas Rate | AK9: =SUM(AK7:AM8) -> 
B10: Distribution Non-Gas Rate | C10: =SUM(C6:C9) ->  | D10: =SUM(D6:D9) ->  | E10: =SUM(E6:E9) ->  | F10: =SUM(F6:F9) ->  | J10: Distribution Non-Gas Rate | K10: =SUM(K8:K9) ->  | T10: Energy Assistance | U10: ='Other Inputs'!#REF! ->  | V10: ='Other Inputs'!#REF! ->  | W10: ='Other Inputs'!#REF! ->  | AB10: SNG Amortization | AC10: =ROUND(#REF!,5) -> 
T11: Distribution Non-Gas Rate | U11: =SUM(U9:U10) ->  | V11: =SUM(V9:V10) ->  | W11: =SUM(W9:W10) ->  | AB11: Supplier Non-Gas Rate | AC11: =SUM(AC9:AF10) ->  | AI11: Base SNG | AK11: =ROUND(#REF!,5) -> 
B12: Base SNG | C12: ='CET & DSM'!I38 ->  | D12: ='CET & DSM'!I39 ->  | E12: ='CET & DSM'!I40 ->  | F12: ='CET & DSM'!I41 ->  | J12: Base SNG | K12: =ROUND(#REF!,5) ->  | L12: =ROUND(#REF!,5) ->  | M12: =ROUND(#REF!,5) ->  | N12: =ROUND(#REF!,5) ->  | O12: =ROUND(#REF!,5) ->  | P12: =ROUND(#REF!,5) ->  | T12: Supplier Non-Gas Rate | U12: =ROUND(#REF!/(1-'Other Inputs'!$E$276),5) ->  | V12: =ROUND(#REF!/(1-'Other Inputs'!$E$276),5) ->  | W12: =ROUND(#REF!/(1-'Other Inputs'!$E$276),5) ->  | AI12: SNG Amortization | AK12: =ROUND(#REF!,5) -> 
B13: SNG Amortization | C13: ='CET & DSM'!J38 ->  | D13: ='CET & DSM'!J39 ->  | E13: ='CET & DSM'!J40 ->  | F13: ='CET & DSM'!J41 ->  | J13: SNG Amortization | K13: =ROUND(#REF!,5) ->  | L13: =ROUND(#REF!,5) ->  | M13: =ROUND(#REF!,5) ->  | N13: =ROUND(#REF!,5) ->  | O13: =ROUND(#REF!,5) ->  | P13: =ROUND(#REF!,5) ->  | AB13: Commodity Rate | AC13: Highest Gas Cost | AI13: Supplier Non-Gas Rate | AK13: =SUM(AK11:AM12) -> 
B14: Supplier Non-Gas Rate | C14: =SUM(C12:C13) ->  | D14: =SUM(D12:D13) ->  | E14: =SUM(E12:E13) ->  | F14: =SUM(F12:F13) ->  | J14: Supplier Non-Gas Rate | K14: =SUM(K12:K13) ->  | AB14: Total Rate | AC14: $
AI15: Base Gas Cost | AK15: =ROUND('Ut 1.5 p1'!$F$29,5) -> 3.14885
B16: Base Gas Cost | C16: ='Ut 1.5 p1'!$F$29 -> 3.14885 | D16: ='Ut 1.5 p1'!$F$29 -> 3.14885 | E16: ='Ut 1.5 p1'!$F$29 -> 3.14885 | F16: ='Ut 1.5 p1'!$F$29 -> 3.14885 | J16: Base Gas Cost | K16: =ROUND('Ut 1.5 p1'!$F$29,5) -> 3.14885 | L16: =ROUND('Ut 1.5 p1'!$F$29,5) -> 3.14885 | M16: =ROUND('Ut 1.5 p1'!$F$29,5) -> 3.14885 | N16: =ROUND('Ut 1.5 p1'!$F$29,5) -> 3.14885 | O16: =ROUND('Ut 1.5 p1'!$F$29,5) -> 3.14885 | P16: =ROUND('Ut 1.5 p1'!$F$29,5) -> 3.14885 | AB16: Penalty for failure to interrupt or limit usage when requested by the Company. See See § 3.02 | AI16: Commodity Amortization | AK16: =ROUND('Ut 1.5 p1'!$F$30,5) -> 0.43865
B17: 191 Amortization | C17: ='Ut 1.5 p1'!$F$30 -> 0.438653371 | D17: ='Ut 1.5 p1'!$F$30 -> 0.438653371 | E17: ='Ut 1.5 p1'!$F$30 -> 0.438653371 | F17: ='Ut 1.5 p1'!$F$30 -> 0.438653371 | J17: 191 Amortization | K17: =ROUND('Ut 1.5 p1'!$F$30,5) -> 0.43865 | L17: =ROUND('Ut 1.5 p1'!$F$30,5) -> 0.43865 | M17: =ROUND('Ut 1.5 p1'!$F$30,5) -> 0.43865 | N17: =ROUND('Ut 1.5 p1'!$F$30,5) -> 0.43865 | O17: =ROUND('Ut 1.5 p1'!$F$30,5) -> 0.43865 | P17: =ROUND('Ut 1.5 p1'!$F$30,5) -> 0.43865 | AI17: Commodity Rate | AK17: =SUM(AK15:AM16) -> 3.5875
B18: Commodity Rate | C18: =SUM(C16:C17) -> 3.587503371 | D18: =SUM(D16:D17) -> 3.587503371 | E18: =SUM(E16:E17) -> 3.587503371 | F18: =SUM(F16:F17) -> 3.587503371 | J18: Commodity Rate | K18: =SUM(K16:K17) -> 3.5875 | L18: 3.5875 | M18: 3.5875 | N18: 3.5875 | O18: 3.5875 | P18: 3.5875 | T18: Total Rate | U18: $ | V18: $ | W18: $
AI19: Total Rate | AK19: =SUM(AK9,AK13,AK17) -> 
B20: Total Rate | C20: =SUM(C18,C14,C10) ->  | D20: =SUM(D18,D14,D10) ->  | E20: =SUM(E18,E14,E10) ->  | F20: =SUM(F18,F14,F10) ->  | J20: Total Rate | K20: =SUM(K18,K14,K10) ->  | T20: Minimum Monthly Distribution Non-Gas Charge
AI21: Penalty for failure to interrupt or limit usage when requested by the Company. See See § 3.02
E22: BSF Category 1 | F22: ='Ut 1.7 Source'!C12 -> 6.75 | J22: Minimum Monthly Distribution Non-Gas Charge | O22: Summer | P22: =ROUND(K8*175,0) -> 165
E23: BSF Category 2 | F23: ='Ut 1.7 Source'!C13 -> 18.25 | O23: Winter | P23: =ROUND(N8*175,0) -> 247
E24: BSF Category 3 | F24: ='Ut 1.7 Source'!C14 -> 63.5 | V24: BSF Category 1 | W24: 5
E25: BSF Category 4 | F25: ='Ut 1.7 Source'!C15 -> 420.25 | V25: BSF Category 2 | W25: 29
N26: BSF Category 1 | P26: 5 | V26: BSF Category 3 | W26: 67
N27: BSF Category 2 | P27: 21 | V27: BSF Category 4 | W27: 274
N28: BSF Category 3 | P28: 55
N29: BSF Category 4 | P29: 244
AI30: =B44 -> Issued by R. W. Jibson, President | AL30: Advice No | AM30: Section Revision No.
AB39: =B44 -> Issued by R. W. Jibson, President | AE39: Advice No | AF39: Section Revision No.
AB42: New Pass Through Values
B44: Issued by R. W. Jibson, President | D44: Advice No | E44: Section Revision No. | F44: Effective Date
T47: =B44 -> Issued by R. W. Jibson, President | W47: Advice No
B48: Pass Through Changes | J48: =B44 -> Issued by R. W. Jibson, President | M48: Advice No | N48: Section Revision No. | P48: Effective Date
T50: New Pass Through Values
J51: New Pass Through Values

Sheet UT Tariff Sheets (hidden)
B2: 2.02 GS Rate Schedule | I2: 2.02 GS Rate Schedule
C3: Rates Per Dth Used Each Month | J3: Rates Per Dth Used Each Month
C4: Summer Rates: Apr. 1 - Oct. 31 | E4: Winter Rates: Nov. 1 - Mar. 31 | J4: Summer Rates: Apr. 1 - Oct. 31 | L4: Winter Rates: Nov. 1 - Mar. 31
C5: First 45 Dth | D5: All Over 45 Dth | E5: First 45 Dth | F5: All Over 45 Dth | J5: First 45 Dth | K5: All Over 45 Dth | L5: First 45 Dth | M5: All Over 45 Dth
B6: Base DNG | C6: ='CET & DSM'!B24 -> 1.7267 | D6: ='CET & DSM'!B25 -> 0.7267 | E6: ='CET & DSM'!B26 -> 2.34949 | F6: ='CET & DSM'!B27 -> 1.34949 | I6: Base DNG | J6: ='CET & DSM'!B31 -> 1.7267 | K6: ='CET & DSM'!B32 -> 0.7267 | L6: ='CET & DSM'!B33 -> 2.34949 | M6: ='CET & DSM'!B34 -> 1.34949
B7: CET Amortization | C7: ='CET & DSM'!H16 ->  | D7: ='CET & DSM'!H17 ->  | E7: ='CET & DSM'!H18 ->  | F7: ='CET & DSM'!H19 ->  | I7: CET Amortization | J7: ='CET & DSM'!C31 -> -0.0599 | K7: ='CET & DSM'!C32 -> -0.02224 | L7: ='CET & DSM'!C33 -> -0.07112 | M7: ='CET & DSM'!C34 -> -0.02953
B8: DSM Amortization | C8: ='CET & DSM'!D24 -> 0.44104 | D8: ='CET & DSM'!D25 -> 0.44104 | E8: ='CET & DSM'!D26 -> 0.44104 | F8: ='CET & DSM'!D27 -> 0.44104 | I8: DSM Amortization | J8: =ROUND('CET & DSM'!D31,5) ->  | K8: =ROUND('CET & DSM'!D32,5) ->  | L8: =ROUND('CET & DSM'!D33,5) ->  | M8: =ROUND('CET & DSM'!D34,5) -> 
B9: Energy Assistance | C9: ='Other Inputs'!#REF! ->  | D9: ='Other Inputs'!#REF! ->  | E9: ='Other Inputs'!#REF! ->  | F9: ='Other Inputs'!#REF! ->  | I9: Energy Assistance | J9: ='Other Inputs'!#REF! ->  | K9: ='Other Inputs'!#REF! ->  | L9: ='Other Inputs'!#REF! ->  | M9: ='Other Inputs'!#REF! -> 
B10: Distribution Non-Gas Rate | C10: =SUM(C6:C9) ->  | D10: =SUM(D6:D9) ->  | E10: =SUM(E6:E9) ->  | F10: =SUM(F6:F9) ->  | I10: Distribution Non-Gas Rate | J10: =SUM(J6:J9) ->  | K10: =SUM(K6:K9) ->  | L10: =SUM(L6:L9) ->  | M10: =SUM(M6:M9) -> 
B12: Base SNG | C12: ='CET & DSM'!I24 -> 0.55715 | D12: ='CET & DSM'!I25 -> 0.55715 | E12: ='CET & DSM'!I26 -> 1.18665 | F12: ='CET & DSM'!I27 -> 1.18665 | I12: Base SNG | J12: ='CET & DSM'!I31 -> 0.55715 | K12: ='CET & DSM'!I32 -> 0.55715 | L12: ='CET & DSM'!I33 -> 1.18665 | M12: ='CET & DSM'!I34 -> 1.18665
B13: SNG Amortization | C13: ='CET & DSM'!J24 -> 0.01244 | D13: ='CET & DSM'!J25 -> 0.01244 | E13: ='CET & DSM'!J26 -> 0.02651 | F13: ='CET & DSM'!J27 -> 0.02651 | I13: SNG Amortization | J13: ='CET & DSM'!J31 -> 0.01244 | K13: ='CET & DSM'!J32 -> 0.01244 | L13: ='CET & DSM'!J33 -> 0.02651 | M13: ='CET & DSM'!J34 -> 0.02651
B14: Supplier Non-Gas Rate | C14: =SUM(C12:C13) -> 0.56959 | D14: =SUM(D12:D13) -> 0.56959 | E14: =SUM(E12:E13) -> 1.21316 | F14: =SUM(F12:F13) -> 1.21316 | I14: Supplier Non-Gas Rate | J14: =SUM(J12:J13) -> 0.56959 | K14: =SUM(K12:K13) -> 0.56959 | L14: =SUM(L12:L13) -> 1.21316 | M14: =SUM(M12:M13) -> 1.21316
B16: Base Gas Cost | C16: ='CET & DSM'!L24 -> 4.21339 | D16: ='CET & DSM'!L25 -> 4.21339 | E16: ='CET & DSM'!L26 -> 4.21339 | F16: ='CET & DSM'!L27 -> 4.21339 | I16: Base Gas Cost | J16: ='CET & DSM'!L31 -> 4.21339 | K16: ='CET & DSM'!L32 -> 4.21339 | L16: ='CET & DSM'!L33 -> 4.21339 | M16: ='CET & DSM'!L34 -> 4.21339
B17: 191 Amortization | C17: ='CET & DSM'!M24 -> 0.14067 | D17: ='CET & DSM'!M25 -> 0.14067 | E17: ='CET & DSM'!M26 -> 0.14067 | F17: ='CET & DSM'!M27 -> 0.14067 | I17: 191 Amortization | J17: ='CET & DSM'!M31 -> 0.14067 | K17: ='CET & DSM'!M32 -> 0.14067 | L17: ='CET & DSM'!M33 -> 0.14067 | M17: ='CET & DSM'!M34 -> 0.14067
B18: Commodity Rate | C18: =SUM(C16:C17) -> 4.35406 | D18: =SUM(D16:D17) -> 4.35406 | E18: =SUM(E16:E17) -> 4.35406 | F18: =SUM(F16:F17) -> 4.35406 | I18: Commodity Rate | J18: =SUM(J16:J17) -> 4.35406 | K18: =SUM(K16:K17) -> 4.35406 | L18: =SUM(L16:L17) -> 4.35406 | M18: =SUM(M16:M17) -> 4.35406
B20: Total Rate | C20: =SUM(C18,C14,C10) ->  | D20: =SUM(D18,D14,D10) ->  | E20: =SUM(E18,E14,E10) ->  | F20: =SUM(F18,F14,F10) ->  | I20: Total Rate | J20: =SUM(J18,J14,J10) ->  | K20: =SUM(K18,K14,K10) ->  | L20: =SUM(L18,L14,L10) ->  | M20: =SUM(M18,M14,M10) -> 
E23: BSF Category 1 | F23: ='Ut 1.7 Source'!C12 -> 6.75 | L23: BSF Category 1 | M23: ='Ut 1.7 Source'!C12 -> 6.75
E24: BSF Category 2 | F24: ='Ut 1.7 Source'!C13 -> 18.25 | L24: BSF Category 2 | M24: ='Ut 1.7 Source'!C13 -> 18.25
E25: BSF Category 3 | F25: ='Ut 1.7 Source'!C14 -> 63.5 | L25: BSF Category 3 | M25: ='Ut 1.7 Source'!C14 -> 63.5
E26: BSF Category 4 | F26: ='Ut 1.7 Source'!C15 -> 420.25 | L26: BSF Category 4 | M26: ='Ut 1.7 Source'!C15 -> 420.25
B45: Issued by R. W. Jibson, President | D45: Advice No | E45: Section Revision No. | F45: Effective Date | I45: Issued by R. W. Jibson, President | K45: Advice No | L45: Section Revision No. | M45: Effective Date
B49: New CET Only | I49: NEW DSM ONLY

Sheet Utah Summary-by class
A1: UTAH SUMMARY
B2: NOT AN EXHIBIT !!!
Q3: Sub Total
C4: COMMODITY | J4: SNG | Q4: TOTAL
C5: Current | D5: Proposed | E5: Current | F5: Proposed | G5: Revenue | H5: % | J5: Current | K5: Proposed | L5: Current | M5: Proposed | N5: Revenue | O5: % | Q5: Revenue | R5: %
A6: RATE | B6: Dth Sales | C6: Rates | D6: Rates | E6: Revenue | F6: Revenue | G6: Difference | H6: Change | J6: Rates | K6: Rates | L6: Revenue | M6: Revenue | N6: Difference | O6: Change | Q6: Difference | R6: Change
A8: GS (W) | B8: =Calculations!P52 -> 79730574 | C8: ='Ut 1.5 p1'!$H$31 -> 3.28557 | D8: =ROUND('Ut 1.5 p1'!$F$31,5) -> 3.5875 | E8: =ROUND(B8*C8,0) -> 261960382 | F8: =ROUND(B8*D8,0) -> 286033434 | G8: =(F8-E8) -> 24073052 | J8: ='Other Inputs'!G84 -> 1.16499 | K8: ='Ut 1.5 p3'!L16 -> 0.92726 | L8: =ROUND(B8*J8,0) -> 92885321 | M8: =B8*K8 -> 73930972.05 | N8: =(M8-L8) -> -18954348.95 | O8: =IF(N8=0,0,N8/L8) -> -0.204061834 | Q8: =G8+N8 -> 5118703.047
A9: GS (S) | B9: =Calculations!P53 -> 30437950 | C9: ='Ut 1.5 p1'!$H$31 -> 3.28557 | D9: =D8 -> 3.5875 | E9: =ROUND(B9*C9,0) -> 100006015 | F9: =ROUND(B9*D9,0) -> 109196146 | G9: =(F9-E9) -> 9190131 | J9: ='Other Inputs'!G85 -> 0.54698 | K9: ='Ut 1.5 p3'!L17 -> 0.43536 | L9: =ROUND(B9*J9,0) -> 16648950 | M9: =B9*K9 -> 13251465.91 | N9: =(M9-L9) -> -3397484.088 | O9: -0.2040659674 | Q9: =G9+N9 -> 5792646.912
A10: Total | B10: =SUM(B8:B9) -> 110168524 | E10: =SUM(E8:E9) -> 361966397 | F10: =SUM(F8:F9) -> 395229580 | G10: =SUM(G8:G9) -> 33263183 | H10: =IF(G10=0,0,G10/E10) -> 0.09189577617 | L10: =SUM(L8:L9) -> 109534271 | M10: =SUM(M8:M9) -> 87182437.96 | N10: =SUM(N8:N9) -> -22351833.04 | O10: =IF(N10=0,0,N10/L10) -> -0.2040624622 | Q10: =SUM(Q8:Q9) -> 10911349.96 | R10: =IF(Q10=0,0,Q10/(E10+L10)) -> 0.02314174868
A13: FS (W) | B13: =Calculations!P58 -> 1478780 | C13: ='Ut 1.5 p1'!$H$31 -> 3.28557 | D13: =D8 -> 3.5875 | E13: =ROUND(B13*C13,0) -> 4858635 | F13: =ROUND(B13*D13,0) -> 5305123 | G13: =(F13-E13) -> 446488 | J13: ='Other Inputs'!G87 -> 1.13466 | K13: ='Ut 1.5 p3'!L19 -> 0.90312 | L13: =ROUND(B13*J13,0) -> 1677913 | M13: =B13*K13 -> 1335515.794 | N13: =(M13-L13) -> -342397.2064 | O13: =IF(N13=0,0,N13/L13) -> -0.2040613586 | Q13: =G13+N13 -> 104090.7936
A14: FS (S) | B14: =Calculations!P59 -> 1382336 | C14: ='Ut 1.5 p1'!$H$31 -> 3.28557 | D14: =D9 -> 3.5875 | E14: =ROUND(B14*C14,0) -> 4541762 | F14: =ROUND(B14*D14,0) -> 4959130 | G14: =(F14-E14) -> 417368 | J14: ='Other Inputs'!G88 -> 0.54698 | K14: ='Ut 1.5 p3'!L20 -> 0.43536 | L14: =ROUND(B14*J14,0) -> 756110 | M14: =B14*K14 -> 601813.801 | N14: =(M14-L14) -> -154296.199 | O14: -0.2040658093 | Q14: =G14+N14 -> 263071.801
A15: Total | B15: =SUM(B13:B14) -> 2861116 | E15: =SUM(E13:E14) -> 9400397 | F15: =SUM(F13:F14) -> 10264253 | G15: =SUM(G13:G14) -> 863856 | H15: =IF(G15=0,0,G15/E15) -> 0.09189569334 | L15: =SUM(L13:L14) -> 2434023 | M15: =SUM(M13:M14) -> 1937329.595 | N15: =SUM(N13:N14) -> -496693.4054 | O15: =IF(N15=0,0,N15/L15) -> -0.2040627412 | Q15: =SUM(Q13:Q14) -> 367162.5946 | R15: =IF(Q15=0,0,Q15/(E15+L15)) -> 0.03102497584
A18: NGV | B18: =Calculations!P12 -> 263921 | C18: ='Ut 1.5 p1'!$H$31 -> 3.28557 | D18: =D8 -> 3.5875 | E18: =ROUND(B18*C18,0) -> 867131 | F18: =ROUND(B18*D18,0) -> 946817 | G18: =(F18-E18) -> 79686 | H18: =IF(G18=0,0,G18/E18) -> 0.09189614949 | J18: ='Other Inputs'!G90 -> 0.84068 | K18: ='Ut 1.5 p3'!L22 -> 0.66913 | L18: =ROUND(B18*J18,0) -> 221873 | M18: =ROUND(B18*K18,0) -> 176597 | N18: =(M18-L18) -> -45276 | O18: =IF(N18=0,0,N18/L18) -> -0.2040626845 | Q18: =G18+N18 -> 34410 | R18: =IF(Q18=0,0,Q18/(E18+L18)) -> 0.03159768008
A21: IS | B21: =Calculations!P17 -> 130911 | C21: ='Ut 1.5 p1'!$H$31 -> 3.28557 | D21: =D8 -> 3.5875 | E21: =ROUND(B21*C21,0) -> 430117 | F21: =ROUND(B21*D21,0) -> 469643 | G21: =(F21-E21) -> 39526 | H21: =IF(G21=0,0,G21/E21) -> 0.09189592599 | J21: ='Other Inputs'!G92 -> 0.17907 | K21: 0.17907 | L21: =ROUND(B21*J21,0) -> 23442 | M21: =ROUND(B21*K21,0) -> 23442 | N21: =(M21-L21) -> 0 | O21: =IF(N21=0,0,N21/L21) -> 0 | Q21: =G21+N21 -> 39526 | R21: =IF(Q21=0,0,Q21/(E21+L21)) -> 0.08714632495
B23: - | E23: - | F23: - | G23: - | L23: ------------------- | M23: ------------------- | N23: ------------------- | Q23: -------------------
B24: =B10+B15+B18+B21 -> 113424472 | E24: =E10+E15+E18+E21 -> 372664042 | F24: =F10+F15+F18+F21 -> 406910293 | G24: =G10+G15+G18+G21 -> 34246251 | H24: =IF(G24=0,0,G24/E24) -> 0.09189577512 | L24: =L10+L15+L18+L21 -> 112213609 | M24: =M10+M15+M18+M21 -> 89319806.55 | N24: =N10+N15+N18+N21 -> -22893802.45 | O24: =IF(N24=0,0,N24/L24) -> -0.204019839 | Q24: =Q10+Q15+Q18+Q21 -> 11352448.55 | R24: =IF(Q24=0,0,Q24/(E24+L24)) -> 0.02341301673
G25: =IF(G24>0,"Commodity Increase","Commodity Decrease") -> Commodity Increase | N25: =IF(N24>0,"Increase to SNG","Decrease to SNG") -> Decrease to SNG
B26: NOT AN EXHIBIT !!!
G27: =ROUND(G24,-3) -> 34246000 | N27: =ROUND(N24,-3) -> -22894000 | Q27: =ROUND(Q24,-3) -> 11352000
B28: =B24 -> 113424472 | G28: Rounded | N28: Rounded | Q28: Rounded

Sheet UT Summary - by cost (hidden)

Sheet WY Summary - by cost (hidden)

Sheet Model Checks
B2: Model Checks
B3: If the total of all checks is not zero, or very close to zero, find the checks below that are out of balance and follow the calculations
B4: back through the model and correct any errors.
D6: Total of all Checks
D7: =ABS(SUM(D10:D1993)) -> 1.144663155
B9: Forecasted Demand
C10: Utah | D10: =Calculations!P25-'RevRun Fcst'!T205 -> 0
C11: Wyoming | D11: =Calculations!P44-'RevRun Fcst'!T329 -> 0
C12: Total System | D12: =Calculations!P47-'RevRun Fcst'!T370 -> 0
B13: Forecasted Utah Demand Check by Month
C14: 1 | D14: =Calculations!D25-'RevRun Fcst'!H205 -> 0
C15: 2 | D15: =Calculations!E25-'RevRun Fcst'!I205 -> 0
C16: 3 | D16: =Calculations!F25-'RevRun Fcst'!J205 -> 0
C17: 4 | D17: =Calculations!G25-'RevRun Fcst'!K205 -> 0
C18: 5 | D18: =Calculations!H25-'RevRun Fcst'!L205 -> 0
C19: 6 | D19: =Calculations!I25-'RevRun Fcst'!M205 -> 0
C20: 7 | D20: =Calculations!J25-'RevRun Fcst'!N205 -> 0
C21: 8 | D21: =Calculations!K25-'RevRun Fcst'!O205 -> 0
C22: 9 | D22: =Calculations!L25-'RevRun Fcst'!P205 -> 0
C23: 10 | D23: =Calculations!M25-'RevRun Fcst'!Q205 -> 0
C24: 11 | D24: =Calculations!N25-'RevRun Fcst'!R205 -> 0
C25: 12 | D25: =Calculations!O25-'RevRun Fcst'!S205 -> 0
C26: Wyoming I-2 and I-4 Revenues | D26: =('RevRun Fcst'!T273+'RevRun Fcst'!T282)-Calculations!P65 -> 0
C27: System Sales Volumes | D27: =Calculations!H76-'RevRun Fcst'!T368 -> 0
C28: Utah Sales Volumes | D28: =Calculations!P20-'Utah Summary-by class'!B24 -> 0
B29: Company Production | D29: =Calculations!P120-'Monthly Inputs'!S7-'Monthly Inputs'!S13 -> 0
B30: Injections | D30: ='Monthly Inputs'!S29-SUM('Monthly Inputs'!S23:S28) -> 0
B31: Withdrawls | D31: ='Monthly Inputs'!S37-SUM('Monthly Inputs'!S32:S36) -> 0
B32: Injections & Withdrawls | D32: =SUM('Ut 1.4 p2'!D23:D28)-'Monthly Inputs'!S29-'Monthly Inputs'!S37 -> 0
B33: Injections | D33: =Calculations!P129-'Monthly Inputs'!S29 -> 0
B34: Withdrawls | D34: =Calculations!P137-'Monthly Inputs'!S37 -> 0
B35: Sales for Resale | D35: =Expenses!S445-Calculations!P86 -> 0
B36: Incidental Plant Prod Sales | D36: =Expenses!S446-Calculations!P87 -> 0
B37: Incidental Gas & Oil Sales | D37: =Expenses!S447-Calculations!P89 -> 0
B38: Gasoline and Oil Costs | D38: =Expenses!S450+Calculations!P90 -> 0
B39: Wexpro Revenue Sharing | D39: =Expenses!S449-Calculations!P94 -> 0
B40: Storage Gas | D40: ='Rate Base'!U206-Calculations!P99 -> 0
B41: 101 Production | D41: ='Rate Base'!U148-Calculations!P100 -> 0
B42: 108 Production | D42: ='Rate Base'!U166-Calculations!P101 -> 0
B43: 111 Production | D43: ='Rate Base'!U173-Calculations!P102 -> 0
B44: 255 Production | D44: ='Rate Base'!U241-Calculations!P103 -> 0
B45: 282 Production | D45: ='Rate Base'!U248-Calculations!P104 -> 0
B46: 282.1 Production | D46: ='Rate Base'!U255-Calculations!P105 -> 0
B47: Production Rate Base | D47: =SUM(Calculations!P99:P105)-'Rate Base'!U275 -> 0
B48: Purchased Gas Cost | D48: ='Ut 1.2 p4'!E24-Calculations!P194 -> -0.3532285839
B49: Working Gas Rate Base | D49: =Calculations!P99-'Ut 1.2 p5'!E43 -> 0
B50: Allocations | D50: ='Ut 1.1 p2'!F43-'Ut 1.1 p2'!G43-'Ut 1.1 p2'!H43+'Ut 1.1 p2'!H41 -> 0
B52: System Sales | D52: ='SDR#1'!C10-'RevRun Fcst'!T368 -> 0
B53: Lost & Unaccounted For | D53: ='SDR#1'!C15-(('SDR#1'!C10+'SDR#1'!C11)/(1-'Other Inputs'!E265)) -> -0.07182319462
B54: Supply / Demand | D54: ='SDR#1'!C36-'SDR#1'!C15 -> -1.607144997
B55: System Sales | D55: ='SDR#3'!H36-'SDR#1'!C10 -> 0
B56: SNG Revenue | D56: ='SDR#4'!G23-'Utah Summary-by class'!L24 -> 0.294389993
B57: Utah Sales | D57: ='SDR#3'!D36-'SDR#4'!E23 -> 0
B58: Utah Sales | D58: ='SDR#2'!G70-'Ut 1.1 p2'!H43 -> 0.593143627
B59: Seasonal Volumes | D59: =Calculations!P52+Calculations!P53-Calculations!P7-Calculations!P8 -> 0
B60: Seasonal Volumes | D60: =Calculations!P55+Calculations!P56-Calculations!P9 -> 0
B61: Seasonal Volumes | D61: =Calculations!P58+Calculations!P59-Calculations!P10 -> 0

Sheet Royalty Detail
D4: Test-Year Cost of Dominion Energy's Production
D5: October 2019 through September 2020
B7: WEXPRO I
B8: (A) | C8: (B) | D8: (C) | E8: (D) | F8: (E) | G8: (F) | H8: (G) | I8: (H)
F9: Base Year | G9: Market | H9: Royalty | I9: Test-Year
B10: Field Name | C10: Well Name | D10: Formation | E10: Price $ | F10: Dth | G10: Value $ | H10: Rate % | I10: Royalty $
A11: 1 | B11: ACE UNIT (CO) | C11: ACE UNIT 10 FT UN | D11: MESAVERDE | E11: 1.844553025 | F11: 33838.74 | G11: 62417.35022 | H11: 0.1268519763 | I11: 7917.764232
A12: 2 | C12: ACE UNIT 11 FT UN | D12: FORT UNION | E12: 1.844553025 | F12: 31156.736 | G12: 57470.25163 | H12: 0.1268519763 | I12: 7290.214998
A13: 3 | C13: ACE UNIT 12 FT UN | D13: FORT UNION | E13: 1.844553025 | F13: 60281.219 | G13: 111191.9048 | H13: 0.1268519763 | I13: 14104.91288
A14: 4 | C14: ACE UNIT 13 FT UN | D14: FORT UNION | E14: 1.844553025 | F14: 34439.552 | G14: 63525.57981 | H14: 0.1268519763 | I14: 8058.345346
A15: 5 | C15: ACE UNIT 2 FT UN | D15: FORT UNION | E15: 1.844553025 | F15: 49650.65 | G15: 91583.25664 | H15: 0.1268519763 | I15: 11617.5171
A16: 6 | B16: BIRCH CR (WY) | C16: BIRCH CREEK UNIT 1 BR | D16: BEAR RIVER | E16: 1.844553025 | F16: 7118.274 | G16: 13130.03384 | H16: 0.1329769324 | I16: 1745.991622
A17: 7 | C17: BIRCH CREEK UNIT 1 BR - D24 | D17: BEAR RIVER | E17: 1.844553025 | F17: 2126.084 | G17: 3921.674673 | H17: 0.1329769324 | I17: 521.492268
A18: 8 | C18: BIRCH CREEK UNIT 1 FR | D18: FRONTIER | E18: 1.844553025 | F18: 7117.036 | G18: 13127.75028 | H18: 0.1329769324 | I18: 1745.687962
A19: 9 | C19: BIRCH CREEK UNIT 1 FR - D24 | D19: FRONTIER | E19: 1.844553025 | F19: 2126.052 | G19: 3921.615647 | H19: 0.1329769324 | I19: 521.4844189
A20: 10 | C20: BIRCH CREEK UNIT 100 FR | D20: FRONTIER | E20: 1.844553025 | F20: 5962.905 | G20: 10998.89445 | H20: 0.1329769324 | I20: 1462.599244
A21: 11 | C21: BIRCH CREEK UNIT 101 BR | D21: BEAR RIVER | E21: 1.844553025 | F21: 578.037 | G21: 1066.219897 | H21: 0.1329769324 | I21: 141.7826512
A22: 12 | C22: BIRCH CREEK UNIT 101 FR | D22: FRONTIER | E22: 1.844553025 | F22: 10960.576 | G22: 20217.36361 | H22: 0.1329769324 | I22: 2688.442995
A23: 13 | C23: BIRCH CREEK UNIT 103 BR | D23: BEAR RIVER | E23: 1.844553025 | F23: 947.019 | G23: 1746.826761 | H23: 0.1329769324 | I23: 232.2876641
A24: 14 | C24: BIRCH CREEK UNIT 103 FR | D24: FRONTIER | E24: 1.844553025 | F24: 8513.953 | G24: 15704.43776 | H24: 0.1329769324 | I24: 2088.327958
A25: 15 | C25: BIRCH CREEK UNIT 104 BR | D25: BEAR RIVER | E25: 1.844553025 | F25: 2720.183 | G25: 5017.52178 | H25: 0.1329769324 | I25: 667.2146547
A26: 16 | C26: BIRCH CREEK UNIT 104 FR | D26: FRONTIER | E26: 1.844553025 | F26: 11603.158 | G26: 21402.64019 | H26: 0.1329769324 | I26: 2846.057437
A27: 17 | C27: BIRCH CREEK UNIT 105 BR | D27: BEAR RIVER | E27: 1.844553025 | F27: 8428.671 | G27: 15547.13059 | H27: 0.1329769324 | I27: 2067.409733
A28: 18 | C28: BIRCH CREEK UNIT 105 FR | D28: FRONTIER | E28: 1.844553025 | F28: 9498.267 | G28: 17520.05712 | H28: 0.1329769324 | I28: 2329.763452
A29: 19 | C29: BIRCH CREEK UNIT 106 BR | D29: BEAR RIVER | E29: 1.844553025 | F29: 5602.426 | G29: 10333.97182 | H29: 0.1329769324 | I29: 1374.179873
A30: 20 | C30: BIRCH CREEK UNIT 106 FR | D30: FRONTIER | E30: 1.844553025 | F30: 19859.934 | G30: 36632.70133 | H30: 0.1329769324 | I30: 4871.304249
A31: 21 | C31: BIRCH CREEK UNIT 107 BR | D31: BEAR RIVER | E31: 1.844553025 | F31: 2655.955 | G31: 4899.049829 | H31: 0.1329769324 | I31: 651.460618
A32: 22 | C32: BIRCH CREEK UNIT 107 FR | D32: FRONTIER | E32: 1.844553025 | F32: 2549.152 | G32: 4702.046032 | H32: 0.1329769324 | I32: 625.2636574
A33: 23 | C33: BIRCH CREEK UNIT 108 BR | D33: BEAR RIVER | E33: 1.844553025 | F33: 2129.564 | G33: 3928.093718 | H33: 0.1329769324 | I33: 522.3458528
A34: 24 | C34: BIRCH CREEK UNIT 108 FR | D34: FRONTIER | E34: 1.844553025 | F34: 10400.62 | G34: 19184.49508 | H34: 0.1329769324 | I34: 2551.095306
A35: 25 | C35: BIRCH CREEK UNIT 109 BAX | D35: BAXTER | E35: 1.844553025 | F35: 3479.332 | G35: 6417.812365 | H35: 0.13375 | I35: 858.3824038
A36: 26 | C36: BIRCH CREEK UNIT 109 BR | D36: BEAR RIVER | E36: 1.844553025 | F36: 8354.815 | G36: 15410.89928 | H36: 0.1329769324 | I36: 2049.294112
A37: 27 | C37: BIRCH CREEK UNIT 109 FR | D37: FRONTIER | E37: 1.844553025 | F37: 7601.566 | G37: 14021.49156 | H37: 0.1329769324 | I37: 1864.534935
A38: 28 | C38: BIRCH CREEK UNIT 110 BR | D38: BEAR RIVER | E38: 1.844553025 | F38: 10132.933 | G38: 18690.73221 | H38: 0.1329769324 | I38: 2485.436234
A39: 29 | C39: BIRCH CREEK UNIT 110 FR | D39: FRONTIER | E39: 1.844553025 | F39: 9351.399 | G39: 17249.15131 | H39: 0.1329769324 | I39: 2293.739228
A40: 30 | C40: BIRCH CREEK UNIT 111 BR | D40: BEAR RIVER | E40: 1.844553025 | F40: 11041.383 | G40: 20366.41641 | H40: 0.1329769324 | I40: 2708.263578
A41: 31 | C41: BIRCH CREEK UNIT 111 FR | D41: FRONTIER | E41: 1.844553025 | F41: 4082.388 | G41: 7530.181134 | H41: 0.1329769324 | I41: 1001.340388
A42: 32 | C42: BIRCH CREEK UNIT 112 BR | D42: BEAR RIVER | E42: 1.844553025 | F42: 4656.607 | G42: 8589.358527 | H42: 0.1329769324 | I42: 1142.186548
A43: 33 | C43: BIRCH CREEK UNIT 112 FR | D43: FRONTIER | E43: 1.844553025 | F43: 12592.046 | G43: 23226.69654 | H43: 0.1329769324 | I43: 3088.614856
A44: 34 | C44: BIRCH CREEK UNIT 113 BR | D44: BEAR RIVER | E44: 1.844553025 | F44: 15081.08 | G44: 27817.85173 | H44: 0.1329769324 | I44: 3699.132589
A45: 35 | C45: BIRCH CREEK UNIT 113 FR | D45: FRONTIER | E45: 1.844553025 | F45: 4509.801 | G45: 8318.567075 | H45: 0.1329769324 | I45: 1106.177532
A46: 36 | C46: BIRCH CREEK UNIT 114 BR | D46: BEAR RIVER | E46: 1.844553025 | F46: 16744.602 | G46: 30886.30627 | H46: 0.1329769324 | I46: 4107.166261
A47: 37 | C47: BIRCH CREEK UNIT 114 FR | D47: FRONTIER | E47: 1.844553025 | F47: 3922.68 | G47: 7235.591259 | H47: 0.1329769324 | I47: 962.1667298
A48: 38 | C48: BIRCH CREEK UNIT 115 BR | D48: BEAR RIVER | E48: 1.844553025 | F48: 3225.232 | G48: 5949.111441 | H48: 0.1329769324 | I48: 791.09459
A49: 39 | C49: BIRCH CREEK UNIT 115 FR | D49: FRONTIER | E49: 1.844553025 | F49: 10798.146 | G49: 19917.75287 | H49: 0.1329769324 | I49: 2648.601677
A50: 40 | C50: BIRCH CREEK UNIT 116 BR | D50: BEAR RIVER | E50: 1.844553025 | F50: 9447.838 | G50: 17427.03816 | H50: 0.1329769324 | I50: 2317.394076
A51: 41 | C51: BIRCH CREEK UNIT 116 FR | D51: FRONTIER | E51: 1.844553025 | F51: 3323.096 | G51: 6129.626778 | H51: 0.1329769324 | I51: 815.0989658
A52: 42 | C52: BIRCH CREEK UNIT 117 BAX | D52: BAXTER | E52: 1.844553025 | F52: 973.075 | G52: 1794.888435 | H52: 0.13375 | I52: 240.0663281
A53: 43 | C53: BIRCH CREEK UNIT 117 BR | D53: BEAR RIVER | E53: 1.844553025 | F53: 650.026 | G53: 1199.007424 | H53: 0.1329769324 | I53: 159.4403292
A54: 44 | C54: BIRCH CREEK UNIT 117 FR | D54: FRONTIER | E54: 1.844553025 | F54: 6498.701 | G54: 11987.19859 | H54: 0.1329769324 | I54: 1594.020896
A55: 45 | C55: BIRCH CREEK UNIT 118 BR | D55: BEAR RIVER | E55: 1.844553025 | F55: 867.179 | G55: 1599.557647 | H55: 0.1329769324 | I55: 212.7042692
A56: 46 | C56: BIRCH CREEK UNIT 118 FR | D56: FRONTIER | E56: 1.844553025 | F56: 7820.521 | G56: 14425.36567 | H56: 0.1329769324 | I56: 1918.240875
A57: 47 | C57: BIRCH CREEK UNIT 119 BR | D57: BEAR RIVER | E57: 1.844553025 | F57: 4227.436 | G57: 7797.729861 | H57: 0.1329769324 | I57: 1036.918197
A58: 48 | C58: BIRCH CREEK UNIT 119 FR | D58: FRONTIER | E58: 1.844553025 | F58: 16917.166 | G58: 31204.60972 | H58: 0.1329769324 | I58: 4149.493277
A59: 49 | C59: BIRCH CREEK UNIT 121 BR | D59: BEAR RIVER | E59: 1.844553025 | F59: 18803.29 | G59: 34683.66544 | H59: 0.1329769324 | I59: 4612.127436
A60: 50 | C60: BIRCH CREEK UNIT 121 FR | D60: FRONTIER | E60: 1.844553025 | F60: 3853.464 | G60: 7107.918677 | H60: 0.1329769324 | I60: 945.1892215
A61: 51 | C61: BIRCH CREEK UNIT 122 BR | D61: BEAR RIVER | E61: 1.844553025 | F61: 2763.562 | G61: 5097.536646 | H61: 0.1329769324 | I61: 677.8547861
A62: 52 | C62: BIRCH CREEK UNIT 122 FR | D62: FRONTIER | E62: 1.844553025 | F62: 9507.462 | G62: 17537.01779 | H62: 0.1329769324 | I62: 2332.018829
A63: 53 | C63: BIRCH CREEK UNIT 123 BR | D63: BEAR RIVER | E63: 1.844553025 | F63: 4538.8 | G63: 8372.057269 | H63: 0.1329769324 | I63: 1113.290494
A64: 54 | C64: BIRCH CREEK UNIT 123 FR | D64: FRONTIER | E64: 1.844553025 | F64: 13610.681 | G64: 25105.62281 | H64: 0.1329769324 | I64: 3338.468707
A65: 55 | C65: BIRCH CREEK UNIT 124 BR | D65: BEAR RIVER | E65: 1.844553025 | F65: 3158.185 | G65: 5825.439694 | H65: 0.1329769324 | I65: 774.6491005
A66: 56 | C66: BIRCH CREEK UNIT 124 FR | D66: FRONTIER | E66: 1.844553025 | F66: 12624.002 | G66: 23285.64107 | H66: 0.1329769324 | I66: 3096.453119
A67: 57 | C67: BIRCH CREEK UNIT 126 BR | D67: BEAR RIVER | E67: 1.844553025 | F67: 8136.807 | G67: 15008.77196 | H67: 0.1329769324 | I67: 1995.820455
A68: 58 | C68: BIRCH CREEK UNIT 126 FR | D68: FRONTIER | E68: 1.844553025 | F68: 12200.372 | G68: 22504.23308 | H68: 0.1329769324 | I68: 2992.543881
A69: 59 | C69: BIRCH CREEK UNIT 127 BR | D69: DAKOTA | E69: 1.844553025 | F69: 7387.527 | G69: 13626.68527 | H69: 0.1329769324 | I69: 1812.034807
A70: 60 | C70: BIRCH CREEK UNIT 127 FR | D70: FRONTIER | E70: 1.844553025 | F70: 1854.195 | G70: 3420.160996 | H70: 0.1329769324 | I70: 454.8025176
A71: 61 | C71: BIRCH CREEK UNIT 128 FR | D71: FRONTIER | E71: 1.844553025 | F71: 26355.701 | G71: 48614.488 | H71: 0.1329769324 | I71: 6464.605485
A72: 62 | C72: BIRCH CREEK UNIT 129 BR | D72: BEAR RIVER | E72: 1.844553025 | F72: 578.032 | G72: 1066.210674 | H72: 0.1329769324 | I72: 141.7814247
A73: 63 | C73: BIRCH CREEK UNIT 129 FR | D73: FRONTIER | E73: 1.844553025 | F73: 10919.841 | G73: 20142.22575 | H73: 0.1329769324 | I73: 2678.451392
A74: 64 | C74: BIRCH CREEK UNIT 130 BR | D74: BEAR RIVER | E74: 1.844553025 | F74: 10671.778 | G74: 19684.66039 | H74: 0.1329769324 | I74: 2617.605754
A75: 65 | C75: BIRCH CREEK UNIT 130 FR | D75: FRONTIER | E75: 1.844553025 | F75: 13043.549 | G75: 24059.51776 | H75: 0.1329769324 | I75: 3199.360867
A76: 66 | C76: BIRCH CREEK UNIT 131 FR | D76: FRONTIER | E76: 1.844553025 | F76: 16670.72 | G76: 30750.027 | H76: 0.1329769324 | I76: 4089.044262
A77: 67 | C77: BIRCH CREEK UNIT 132 BR | D77: BEAR RIVER | E77: 1.844553025 | F77: 2668.973 | G77: 4923.06222 | H77: 0.1329769324 | I77: 654.6537121
A78: 68 | C78: BIRCH CREEK UNIT 132 FR | D78: FRONTIER | E78: 1.844553025 | F78: 15089.848 | G78: 27834.02477 | H78: 0.1329769324 | I78: 3701.283231
A79: 69 | C79: BIRCH CREEK UNIT 133 BR | D79: BEAR RIVER | E79: 1.844553025 | F79: 5801.542 | G79: 10701.25184 | H79: 0.1329769324 | I79: 1423.019643
A80: 70 | C80: BIRCH CREEK UNIT 133 FR | D80: FRONTIER | E80: 1.844553025 | F80: 23202.109 | G80: 42797.52034 | H80: 0.1329769324 | I80: 5691.082969
A81: 71 | C81: BIRCH CREEK UNIT 134 BR | D81: BEAR RIVER | E81: 1.844553025 | F81: 14640.101 | G81: 27004.44258 | H81: 0.1329769324 | I81: 3590.967936
A82: 72 | C82: BIRCH CREEK UNIT 134 FR | D82: FRONTIER | E82: 1.844553025 | F82: 20222.35 | G82: 37301.19686 | H82: 0.1329769324 | I82: 4960.198734
A83: 73 | C83: BIRCH CREEK UNIT 135 BR | D83: BEAR RIVER | E83: 1.844553025 | F83: 2562.014 | G83: 4725.770673 | H83: 0.1329769324 | I83: 628.4184874
A84: 74 | C84: BIRCH CREEK UNIT 135 FR | D84: FRONTIER | E84: 1.844553025 | F84: 3838.692 | G84: 7080.67094 | H84: 0.1329769324 | I84: 941.565901
A85: 75 | C85: BIRCH CREEK UNIT 137 BR | D85: BEAR RIVER | E85: 1.844553025 | F85: 5183.273 | G85: 9560.82189 | H85: 0.1329769324 | I85: 1271.368766
A86: 76 | C86: BIRCH CREEK UNIT 137 FR | D86: FRONTIER | E86: 1.844553025 | F86: 8461.653 | G86: 15607.96764 | H86: 0.1329769324 | I86: 2075.499657
A87: 77 | C87: BIRCH CREEK UNIT 138 BR | D87: BEAR RIVER | E87: 1.844553025 | F87: 818.07 | G87: 1508.973493 | H87: 0.1329769324 | I87: 200.6586662
A88: 78 | C88: BIRCH CREEK UNIT 138 FR | D88: FRONTIER | E88: 1.844553025 | F88: 19721.667 | G88: 36377.66052 | H88: 0.1329769324 | I88: 4837.389704
A89: 79 | C89: BIRCH CREEK UNIT 139 BR | D89: BEAR RIVER | E89: 1.844553025 | F89: 3527.033 | G89: 6505.799388 | H89: 0.1329769324 | I89: 865.1212456
A90: 80 | C90: BIRCH CREEK UNIT 139 FR | D90: FRONTIER | E90: 1.844553025 | F90: 2531.669 | G90: 4669.797712 | H90: 0.1331519628 | I90: 621.792731
A91: 81 | C91: BIRCH CREEK UNIT 13A BR | D91: BEAR RIVER | E91: 1.844553025 | F91: 8557.285 | G91: 15784.36593 | H91: 0.1329769324 | I91: 2098.956562
A92: 82 | C92: BIRCH CREEK UNIT 13A FR | D92: FRONTIER | E92: 1.844553025 | F92: 8556.438 | G92: 15782.80359 | H92: 0.1329769324 | I92: 2098.748807
A93: 83 | C93: BIRCH CREEK UNIT 140 BR | D93: BEAR RIVER | E93: 1.844553025 | F93: 3355.135 | G93: 6188.724413 | H93: 0.1329769324 | I93: 822.957588
A94: 84 | C94: BIRCH CREEK UNIT 140 FR | D94: FRONTIER | E94: 1.844553025 | F94: 19019.184 | G94: 35081.89338 | H94: 0.1329769324 | I94: 4665.082564
A95: 85 | C95: BIRCH CREEK UNIT 141 BR | D95: BEAR RIVER | E95: 1.844553025 | F95: 13341.497 | G95: 24609.09865 | H95: 0.1329769324 | I95: 3272.442447
A96: 86 | C96: BIRCH CREEK UNIT 141 FR | D96: FRONTIER | E96: 1.844553025 | F96: 4444.309 | G96: 8197.763609 | H96: 0.1329769324 | I96: 1090.113457
A97: 87 | C97: BIRCH CREEK UNIT 142 BR | D97: BEAR RIVER | E97: 1.844553025 | F97: 3146.503 | G97: 5803.891626 | H97: 0.1329769324 | I97: 771.7837045
A98: 88 | C98: BIRCH CREEK UNIT 142 FR | D98: FRONTIER | E98: 1.844553025 | F98: 7329.992 | G98: 13520.55891 | H98: 0.1329769324 | I98: 1797.922449
A99: 89 | C99: BIRCH CREEK UNIT 144 BR | D99: BEAR RIVER | E99: 1.844553025 | F99: 670.969 | G99: 1237.637898 | H99: 0.1329769324 | I99: 164.5772912
A100: 90 | C100: BIRCH CREEK UNIT 144 FR | D100: FRONTIER | E100: 1.844553025 | F100: 10495.731 | G100: 19359.93236 | H100: 0.1329769324 | I100: 2574.424417
A101: 91 | C101: BIRCH CREEK UNIT 145 BR | D101: BEAR RIVER | E101: 1.844553025 | F101: 1362.905 | G101: 2513.95054 | H101: 0.1329769324 | I101: 334.2974311
A102: 92 | C102: BIRCH CREEK UNIT 145 FR | D102: FRONTIER | E102: 1.844553025 | F102: 10010.257 | G102: 18464.44983 | H102: 0.1329769324 | I102: 2455.345897
A103: 93 | C103: BIRCH CREEK UNIT 146 BR | D103: BEAR RIVER | E103: 1.844553025 | F103: 13447.156 | G103: 24803.99227 | H103: 0.1329769324 | I103: 3298.358804
A104: 94 | C104: BIRCH CREEK UNIT 146 FR | D104: FRONTIER | E104: 1.844553025 | F104: 4485.483 | G104: 8273.711235 | H104: 0.1329769324 | I104: 1100.21274
A105: 95 | C105: BIRCH CREEK UNIT 148 BR | D105: BEAR RIVER | E105: 1.844553025 | F105: 255.007 | G105: 470.3739332 | H105: 0.1329769324 | I105: 62.54888272
A106: 96 | C106: BIRCH CREEK UNIT 148 FR | D106: FRONTIER | E106: 1.844553025 | F106: 24522.596 | G106: 45233.22863 | H106: 0.1329769324 | I106: 6014.975986
A107: 97 | C107: BIRCH CREEK UNIT 149 BR | D107: BEAR RIVER | E107: 1.844553025 | F107: 5864.445 | G107: 10817.27976 | H107: 0.1329769324 | I107: 1438.44868
A108: 98 | C108: BIRCH CREEK UNIT 149 FR | D108: FRONTIER | E108: 1.844553025 | F108: 20800.222 | G108: 38367.11241 | H108: 0.1329769324 | I108: 5101.940913
A109: 99 | C109: BIRCH CREEK UNIT 151 BR | D109: BEAR RIVER | E109: 1.844553025 | F109: 5818.677 | G109: 10732.85826 | H109: 0.1329769324 | I109: 1427.222568
A110: 100 | C110: BIRCH CREEK UNIT 151 FR | D110: FRONTIER | E110: 1.844553025 | F110: 8043.075 | G110: 14835.87832 | H110: 0.1329769324 | I110: 1972.829589
A111: 101 | C111: BIRCH CREEK UNIT 153 ALMY | D111: ALMY | E111: 1.844553025 | F111: 153 | G111: 282.2166128 | H111: 0.13375 | I111: 37.74647196
A112: 102 | C112: BIRCH CREEK UNIT 157 MESA | D112: MESAVERDE | E112: 1.844553025 | F112: 1850.288 | G112: 3412.954327 | H112: 0.13375 | I112: 456.4826412
A113: 103 | C113: BIRCH CREEK UNIT 159 MESA | D113: MESAVERDE | E113: 1.844553025 | F113: 8786.624 | G113: 16207.39388 | H113: 0.13375 | I113: 2167.738931
A114: 104 | C114: BIRCH CREEK UNIT 164 FR | D114: FRONTIER | E114: 1.844553025 | F114: 20293.173 | G114: 37431.83364 | H114: 0.1329769324 | I114: 4977.570412
A115: 105 | C115: BIRCH CREEK UNIT 166 BR | D115: BEAR RIVER | E115: 1.844553025 | F115: 5209.665 | G115: 9609.503334 | H115: 0.1329769324 | I115: 1277.842275
A116: 106 | C116: BIRCH CREEK UNIT 166 FR | D116: FRONTIER | E116: 1.844553025 | F116: 1303.113 | G116: 2403.661026 | H116: 0.1329769324 | I116: 319.6314698
A117: 107 | C117: BIRCH CREEK UNIT 167 BR | D117: BEAR RIVER | E117: 1.844553025 | F117: 2305.31 | G117: 4252.266533 | H117: 0.1329769324 | I117: 565.4533594
A118: 108 | C118: BIRCH CREEK UNIT 167 FR | D118: FRONTIER | E118: 1.844553025 | F118: 9219.596 | G118: 17006.03369 | H118: 0.1329769324 | I118: 2261.410192
A119: 109 | C119: BIRCH CREEK UNIT 168 BR | D119: BEAR RIVER | E119: 1.844553025 | F119: 1152.193 | G119: 2125.281083 | H119: 0.1329769324 | I119: 282.613359
A120: 110 | C120: BIRCH CREEK UNIT 168 RECOM BAX | D120: BAXTER | E120: 1.844553025 | F120: 1957.273 | G120: 3610.293832 | H120: 0.13375 | I120: 482.8768001
A121: 111 | C121: BIRCH CREEK UNIT 168 RECOM FR | D121: FRONTIER | E121: 1.844553025 | F121: 4705.958 | G121: 8680.389063 | H121: 0.1329769324 | I121: 1154.29151
A122: 112 | C122: BIRCH CREEK UNIT 169 BR | D122: BEAR RIVER | E122: 1.844553025 | F122: 3468.084 | G122: 6397.064832 | H122: 0.1329769324 | I122: 850.6620579
A123: 113 | C123: BIRCH CREEK UNIT 169 FR | D123: FRONTIER | E123: 1.844553025 | F123: 13859.046 | G123: 25563.74522 | H123: 0.1329769324 | I123: 3399.38842
A124: 114 | C124: BIRCH CREEK UNIT 173 BR | D124: BEAR RIVER | E124: 1.844553025 | F124: 6807.592 | G124: 12556.96441 | H124: 0.1329769324 | I124: 1669.786608
A125: 115 | C125: BIRCH CREEK UNIT 173 FR | D125: FRONTIER | E125: 1.844553025 | F125: 19361.702 | G125: 35713.68599 | H125: 0.1329769324 | I125: 4749.096408
A126: 116 | C126: BIRCH CREEK UNIT 174 BR | D126: BEAR RIVER | E126: 1.844553025 | F126: 11771.925 | G126: 21713.93987 | H126: 0.1329769324 | I126: 2887.453114
A127: 117 | C127: BIRCH CREEK UNIT 174 FR | D127: FRONTIER | E127: 1.844553025 | F127: 11642.331 | G127: 21474.89686 | H127: 0.1329769324 | I127: 2855.665909
A128: 118 | C128: BIRCH CREEK UNIT 177 BR | D128: BEAR RIVER | E128: 1.844553025 | F128: 3681.28 | G128: 6790.316159 | H128: 0.1329769324 | I128: 902.9554129
A129: 119 | C129: BIRCH CREEK UNIT 177 FR | D129: FRONTIER | E129: 1.844553025 | F129: 14721.47 | G129: 27154.53202 | H129: 0.1329769324 | I129: 3610.926369
A130: 120 | C130: BIRCH CREEK UNIT 178 BR | D130: BEAR RIVER | E130: 1.844553025 | F130: 5271.963 | G130: 9724.415298 | H130: 0.1329769324 | I130: 1293.122916
A131: 121 | C131: BIRCH CREEK UNIT 178 FR | D131: FRONTIER | E131: 1.844553025 | F131: 21102.888 | G131: 38925.39589 | H131: 0.1329769324 | I131: 5176.179739
A132: 122 | C132: BIRCH CREEK UNIT 179 BR | D132: BEAR RIVER | E132: 1.844553025 | F132: 4767.414 | G132: 8793.747914 | H132: 0.1329769324 | I132: 1169.365622
A133: 123 | C133: BIRCH CREEK UNIT 179 FR | D133: FRONTIER | E133: 1.844553025 | F133: 3176.431 | G133: 5859.095409 | H133: 0.1329769324 | I133: 779.1245342
A134: 124 | C134: BIRCH CREEK UNIT 180 FR | D134: FRONTIER | E134: 1.844553025 | F134: 14229.417 | G134: 26246.91417 | H134: 0.1329769324 | I134: 3490.234131
A135: 125 | C135: BIRCH CREEK UNIT 181 BR | D135: BEAR RIVER | E135: 1.844553025 | F135: 3254.038 | G135: 6002.245635 | H135: 0.1329769324 | I135: 798.1602122
A136: 126 | C136: BIRCH CREEK UNIT 181 FR | D136: FRONTIER | E136: 1.844553025 | F136: 13006.205 | G136: 23990.63477 | H136: 0.1329769324 | I136: 3190.201019
A137: 127 | C137: BIRCH CREEK UNIT 182 BR | D137: BEAR RIVER | E137: 1.844553025 | F137: 3262.142 | G137: 6017.193893 | H137: 0.1329769324 | I137: 800.1479857
A138: 128 | C138: BIRCH CREEK UNIT 182 FR | D138: FRONTIER | E138: 1.844553025 | F138: 4891.239 | G138: 9022.149692 | H138: 0.1329769324 | I138: 1199.73779
A139: 129 | C139: BIRCH CREEK UNIT 183 BR | D139: BEAR RIVER | E139: 1.844553025 | F139: 8424.971 | G139: 15540.30574 | H139: 0.1329769324 | I139: 2066.502186
A140: 130 | C140: BIRCH CREEK UNIT 183 FR | D140: FRONTIER | E140: 1.844553025 | F140: 12636.584 | G140: 23308.84924 | H140: 0.1329769324 | I140: 3099.53927
A141: 131 | C141: BIRCH CREEK UNIT 184 BR | D141: BEAR RIVER | E141: 1.844553025 | F141: 2032.159 | G141: 3748.42503 | H141: 0.1329769324 | I141: 498.4540619
A142: 132 | C142: BIRCH CREEK UNIT 184 FR | D142: FRONTIER | E142: 1.844553025 | F142: 18298.684 | G142: 33752.89292 | H142: 0.1329769324 | I142: 4488.356161
A143: 133 | C143: BIRCH CREEK UNIT 185 BR | D143: BEAR RIVER | E143: 1.844553025 | F143: 7006.616 | G143: 12924.07474 | H143: 0.1329769324 | I143: 1718.603813
A144: 134 | C144: BIRCH CREEK UNIT 185 FR | D144: FRONTIER | E144: 1.844553025 | F144: 16341.766 | G144: 30143.2539 | H144: 0.1329769324 | I144: 4008.357437
A145: 135 | C145: BIRCH CREEK UNIT 187 BR | D145: BEAR RIVER | E145: 1.844553025 | F145: 7454.555 | G145: 13750.32197 | H145: 0.1329769324 | I145: 1828.475636
A146: 136 | C146: BIRCH CREEK UNIT 187 FR | D146: FRONTIER | E146: 1.844553025 | F146: 13252.869 | G146: 24445.6196 | H146: 0.1329769324 | I146: 3250.703505
A147: 137 | C147: BIRCH CREEK UNIT 188 FR | D147: FRONTIER | E147: 1.844553025 | F147: 21280.049 | G147: 39252.17875 | H147: 0.1329769324 | I147: 5219.634321
A148: 138 | C148: BIRCH CREEK UNIT 189 BR | D148: BEAR RIVER | E148: 1.844553025 | F148: 7375.203 | G148: 13603.953 | H148: 0.1329769324 | I148: 1809.011939
A149: 139 | C149: BIRCH CREEK UNIT 189 FR | D149: FRONTIER | E149: 1.844553025 | F149: 10615.311 | G149: 19580.50401 | H149: 0.1329769324 | I149: 2603.755359
A150: 140 | C150: BIRCH CREEK UNIT 190 BR | D150: BEAR RIVER | E150: 1.844553025 | F150: 2453.088 | G150: 4524.85089 | H150: 0.1329769324 | I150: 601.700791
A151: 141 | C151: BIRCH CREEK UNIT 190 FR | D151: FRONTIER | E151: 1.844553025 | F151: 22034.923 | G151: 40644.58387 | H151: 0.1329769324 | I151: 5404.792082
A152: 142 | C152: BIRCH CREEK UNIT 191 BR | D152: BEAR RIVER | E152: 1.844553025 | F152: 3386.815 | G152: 6247.159852 | H152: 0.1329769324 | I152: 830.7281535
A153: 143 | C153: BIRCH CREEK UNIT 191 FR | D153: FRONTIER | E153: 1.844553025 | F153: 14455.357 | G153: 26663.67248 | H153: 0.1329769324 | I153: 3545.653373
A154: 144 | C154: BIRCH CREEK UNIT 192 BR | D154: BEAR RIVER | E154: 1.844553025 | F154: 1643.066 | G154: 3030.72236 | H154: 0.1329769324 | I154: 403.0161625
A155: 145 | C155: BIRCH CREEK UNIT 192 FR | D155: FRONTIER | E155: 1.844553025 | F155: 25777.932 | G155: 47548.76244 | H155: 0.1329769324 | I155: 6322.88857
A156: 146 | C156: BIRCH CREEK UNIT 193 BR | D156: BEAR RIVER | E156: 1.844553025 | F156: 992.064 | G156: 1829.914652 | H156: 0.1329769324 | I156: 243.336437
A157: 147 | C157: BIRCH CREEK UNIT 193 FR | D157: FRONTIER | E157: 1.844553025 | F157: 18759.74 | G157: 34603.33516 | H157: 0.1329769324 | I157: 4601.445361
A158: 148 | C158: BIRCH CREEK UNIT 194 BR | D158: BEAR RIVER | E158: 1.844553025 | F158: 1597.24 | G158: 2946.193873 | H158: 0.1329769324 | I158: 391.7758236
A159: 149 | C159: BIRCH CREEK UNIT 194 FR | D159: FRONTIER | E159: 1.844553025 | F159: 25026.672 | G159: 46163.02354 | H159: 0.1329769324 | I159: 6138.617261
A160: 150 | C160: BIRCH CREEK UNIT 195 BR | D160: BEAR RIVER | E160: 1.844553025 | F160: 3818.374 | G160: 7043.193311 | H160: 0.1329769324 | I160: 936.5822409
A161: 151 | C161: BIRCH CREEK UNIT 195 FR | D161: FRONTIER | E161: 1.844553025 | F161: 27951.863 | G161: 51558.69344 | H161: 0.1329769324 | I161: 6856.116893
A162: 152 | C162: BIRCH CREEK UNIT 196 BR | D162: BEAR RIVER | E162: 1.844553025 | F162: 438.955 | G162: 809.675773 | H162: 0.1329769324 | I162: 107.6682005
A163: 153 | C163: BIRCH CREEK UNIT 196 FR | D163: FRONTIER | E163: 1.844553025 | F163: 21507.497 | G163: 39671.71865 | H163: 0.1329769324 | I163: 5275.423449
A164: 154 | C164: BIRCH CREEK UNIT 198 BR | D164: BEAR RIVER | E164: 1.844553025 | F164: 3991.837 | G164: 7363.155013 | H164: 0.1329769324 | I164: 979.1297665
A165: 155 | C165: BIRCH CREEK UNIT 198 FR | D165: FRONTIER | E165: 1.844553025 | F165: 2349.049 | G165: 4332.945438 | H165: 0.1329769324 | I165: 576.1817927
A166: 156 | C166: BIRCH CREEK UNIT 199 BR | D166: BEAR RIVER | E166: 1.844553025 | F166: 1117.074 | G166: 2060.502226 | H166: 0.1329769324 | I166: 273.9992652
A167: 157 | C167: BIRCH CREEK UNIT 199 FR | D167: FRONTIER | E167: 1.844553025 | F167: 11310.703 | G167: 20863.19143 | H167: 0.1329769324 | I167: 2774.323197
A168: 158 | C168: BIRCH CREEK UNIT 2 BR | D168: BEAR RIVER | E168: 1.844553025 | F168: 4420.777 | G168: 8154.357587 | H168: 0.1329769324 | I168: 1084.341458
A169: 159 | C169: BIRCH CREEK UNIT 2 FR | D169: FRONTIER | E169: 1.844553025 | F169: 7217.152 | G169: 13312.41955 | H169: 0.1329769324 | I169: 1770.244715
A170: 160 | C170: BIRCH CREEK UNIT 200 BR | D170: BEAR RIVER | E170: 1.844553025 | F170: 2766.16 | G170: 5102.328795 | H170: 0.1329769324 | I170: 678.4920313
A171: 161 | C171: BIRCH CREEK UNIT 200 FR | D171: FRONTIER | E171: 1.844553025 | F171: 8287.906 | G171: 15287.48208 | H171: 0.1329769324 | I171: 2032.882471
A172: 162 | C172: BIRCH CREEK UNIT 201-25 BR | D172: BEAR RIVER | E172: 1.844553025 | F172: 2778.508 | G172: 5125.105336 | H172: 0.1329769324 | I172: 681.5207858
A173: 163 | C173: BIRCH CREEK UNIT 201-25 FR | D173: FRONTIER | E173: 1.844553025 | F173: 6479.204 | G173: 11951.23534 | H173: 0.1329769324 | I173: 1589.238614
A174: 164 | C174: BIRCH CREEK UNIT 202-25 BR | D174: BEAR RIVER | E174: 1.844553025 | F174: 4902.807 | G174: 9043.487482 | H174: 0.1329769324 | I174: 1202.575224
A175: 165 | C175: BIRCH CREEK UNIT 202-25 FR | D175: FRONTIER | E175: 1.844553025 | F175: 11443.164 | G175: 21107.52277 | H175: 0.1329769324 | I175: 2806.813629
A176: 166 | C176: BIRCH CREEK UNIT 203-25 BR | D176: BEAR RIVER | E176: 1.844553025 | F176: 6914.34 | G176: 12753.86676 | H176: 0.1329769324 | I176: 1695.970078
A177: 167 | C177: BIRCH CREEK UNIT 203-25 FR | D177: FRONTIER | E177: 1.844553025 | F177: 16134.117 | G177: 29760.23431 | H177: 0.1329769324 | I177: 3957.424667
A178: 168 | C178: BIRCH CREEK UNIT 26 FR | D178: FRONTIER | E178: 1.844553025 | F178: 10398.681 | G178: 19180.91849 | H178: 0.1329769324 | I178: 2550.619702
A179: 169 | C179: BIRCH CREEK UNIT 28 ALMY | D179: ALMY | E179: 1.844553025 | F179: 679.125 | G179: 1252.682073 | H179: 0.13375 | I179: 167.5462273
A180: 170 | C180: BIRCH CREEK UNIT 3 FFR | D180: 1ST FRONTIER | E180: 1.844553025 | F180: 17256.951 | G180: 31831.36116 | H180: 0.1329769324 | I180: 4232.836762
A181: 171 | C181: BIRCH CREEK UNIT 36 ALMY | D181: ALMY | E181: 1.844553025 | F181: 1708.983 | G181: 3152.309762 | H181: 0.13375 | I181: 421.6214306
A182: 172 | C182: BIRCH CREEK UNIT 38 ALMY | D182: ALMY | E182: 1.844553025 | F182: 7602.919 | G182: 14023.98724 | H182: 0.13375 | I182: 1875.708293
A183: 173 | C183: BIRCH CREEK UNIT 40 ALMY | D183: ALMY | E183: 1.844553025 | F183: 179.034 | G183: 330.2377062 | H183: 0.13375 | I183: 44.16929321
A184: 174 | C184: BIRCH CREEK UNIT 43A BR | D184: BEAR RIVER | E184: 1.844553025 | F184: 1154.014 | G184: 2128.640014 | H184: 0.1329769324 | I184: 283.0600193
A185: 175 | C185: BIRCH CREEK UNIT 43A FR | D185: FRONTIER | E185: 1.844553025 | F185: 10408.783 | G185: 19199.55217 | H185: 0.1329769324 | I185: 2553.097551
A186: 176 | C186: BIRCH CREEK UNIT 48 ALMY | D186: ALMY | E186: 1.844553025 | F186: 6 | G186: 11.06731815 | H186: 0.13375 | I186: 1.480253802
A187: 177 | C187: BIRCH CREEK UNIT 5 2ND FR | D187: FRONTIER | E187: 1.844553025 | F187: 2914.051 | G187: 5375.121586 | H187: 0.1329769324 | I187: 714.7671799
A188: 178 | C188: BIRCH CREEK UNIT 5 FR | D188: FORT UNION | E188: 1.844553025 | F188: 3157.172 | G188: 5823.571162 | H188: 0.1329769324 | I188: 774.4006289
A189: 179 | C189: BIRCH CREEK UNIT 52 ALMY | D189: ALMY | E189: 1.844553025 | F189: 318.979 | G189: 588.3736793 | H189: 0.13375 | I189: 78.6949796
A190: 180 | C190: BIRCH CREEK UNIT 56 2ND FR | D190: FRONTIER | E190: 1.844553025 | F190: 5216.818 | G190: 9622.697421 | H190: 0.1329769324 | I190: 1279.596785
A191: 181 | C191: BIRCH CREEK UNIT 58 MESA | D191: MESAVERDE | E191: 1.844553025 | F191: 211.022 | G191: 389.2412684 | H191: 0.1337500665 | I191: 52.06104553
A192: 182 | C192: BIRCH CREEK UNIT 6 FR | D192: FRONTIER | E192: 1.844553025 | F192: 12435.481 | G192: 22937.90409 | H192: 0.1329769324 | I192: 3050.212122
A193: 183 | C193: BIRCH CREEK UNIT 61 BR | D193: BEAR RIVER | E193: 1.844553025 | F193: 1707.928 | G193: 3150.363758 | H193: 0.1329769324 | I193: 418.9257086
A194: 184 | C194: BIRCH CREEK UNIT 61 FR | D194: FRONTIER | E194: 1.844553025 | F194: 6808.165 | G194: 12558.02134 | H194: 0.1329769324 | I194: 1669.927155
A195: 185 | C195: BIRCH CREEK UNIT 62 MESA | D195: MESAVERDE | E195: 1.844553025 | F195: 188.02 | G195: 346.8128597 | H195: 0.1337500665 | I195: 46.38624305
A196: 186 | C196: BIRCH CREEK UNIT 66 MESA | D196: ALMY | E196: 1.844553025 | F196: 470.988 | G196: 868.76234 | H196: 0.13375 | I196: 116.196963
A197: 187 | C197: BIRCH CREEK UNIT 67 MESA | D197: MESAVERDE | E197: 1.844553025 | F197: 205.002 | G197: 378.1370592 | H197: 0.13375 | I197: 50.57583166
A198: 188 | C198: BIRCH CREEK UNIT 69 MESA | D198: MESAVERDE | E198: 1.844553025 | F198: 280.934 | G198: 518.1976594 | H198: 0.1337500665 | I198: 69.30897141
A199: 189 | C199: BIRCH CREEK UNIT 7 FR | D199: FRONTIER | E199: 1.844553025 | F199: 5306.901 | G199: 9788.860291 | H199: 0.1329769324 | I199: 1301.692613
A200: 190 | C200: BIRCH CREEK UNIT 74 ALMY (NP) | D200: ALMY | E200: 1.844553025 | F200: 76.976 | G200: 141.9863136 | H200: 0.1337500665 | I200: 18.99067889
A201: 191 | C201: BIRCH CREEK UNIT 8 FR | D201: FRONTIER | E201: 1.844553025 | F201: 18074.984 | G201: 33340.26641 | H201: 0.1329769324 | I201: 4433.486353
A202: 192 | C202: BIRCH CREEK UNIT 87 2ND FR | D202: FRONTIER | E202: 1.844553025 | F202: 8546.777 | G202: 15764.98337 | H202: 0.1329769324 | I202: 2096.379128
A203: 193 | C203: BIRCH CREEK UNIT 87 BR | D203: BEAR RIVER | E203: 1.844553025 | F203: 937.106 | G203: 1728.541707 | H203: 0.1329769324 | I203: 229.8561737
A204: 194 | C204: BIRCH CREEK UNIT 87 BR RECOMP | D204: BEAR RIVER | E204: 1.844553025 | F204: 2187.398 | G204: 4034.771597 | H204: 0.1329769324 | I204: 536.53155
... 1478 more rows

Sheet SDR#1
E1: ='Control Panel'!E32 -> Dominion Energy Utah
E2: ='Control Panel'!E33 -> Docket No. 19-057-18
B4: Standard Data Request #1
B5: Summary of Sources of Supply and Demand
A8: 1 | B8: DEMAND | C8: Total | D8: Utah | E8: Wyoming
A10: =A8+1 -> 2 | B10: SALES IN DTHS | C10: =D10+E10 -> 117352653 | D10: =Calculations!P20 -> 113424472 | E10: =Calculations!P39 -> 3928181
A11: =A10+1 -> 3 | B11: DIST. CO. USE & | C11: 0
A12: =A11+1 -> 4 | B12: DIST. LOST & UNACCT. (0.49%) | C12: =Calculations!P148 -> 530474
A15: =A12+1 -> 5 | B15: TOTAL | C15: =SUM(C10:C12) -> 117883127
A19: =A15+1 -> 6 | B19: SUPPLY | C19: Total | D19: Utah | E19: Wyoming
A21: =A19+1 -> 7 | B21: COMPANY PRODUCTION | C21: ='Royalty Detail'!F1437+'Royalty Detail'!F1692 -> 62236745 | D21: =$D$10/$C$10*C21 -> 60153475.53 | E21: =$E$10/$C$10*C21 -> 2083269.47
A22: =A21+1 -> 8 | B22: GAS REIMBURSEMENT | C22: =C21*-'Other Inputs'!$E$269 -> -2310290.211 | D22: =D21*-'Other Inputs'!$E$269 -> -2232957.165 | E22: =E21*-'Other Inputs'!$E$269 -> -77333.04599
A25: =A22+1 -> 9 | B25: CONTRACT GAS | C25: ='Ut 1.2 p4'!F24 -> 61970614 | D25: =$D$10/$C$10*C25 -> 59896252.81 | E25: =$E$10/$C$10*C25 -> 2074361.186
A26: =A25+1 -> 10 | B26: GAS REIMBURSEMENT | C26: =C25*-'Other Inputs'!$E$268 -> -972938.6398 | D26: =D25*-'Other Inputs'!$E$268 -> -940371.1692 | E26: =E25*-'Other Inputs'!$E$268 -> -32567.47062
A28: =A26+1 -> 11 | B28: STORAGE
A29: =A28+1 -> 12 | B29: INJECTIONS | C29: ='Ut 1.2 p5'!G18 -> -18154302 | D29: =$D$10/$C$10*C29 -> -17546617.53 | E29: =$E$10/$C$10*C29 -> -607684.4653
A30: =A29+1 -> 13 | B30: WITHDRAWALS | C30: ='Ut 1.2 p5'!G17 -> 16042662 | D30: =$D$10/$C$10*C30 -> 15505661.1 | E30: =$E$10/$C$10*C30 -> 537000.8981
A31: =A30+1 -> 14 | B31: NET (INJECTIONS) WITHDRAWALS | C31: =C29+C30 -> -2111640 | D31: =D29+D30 -> -2040956.433 | E31: =E29+E30 -> -70683.56714
A33: =A31+1 -> 15 | B33: Storage Fuel | C33: =Calculations!P165+Calculations!P166-1 -> -929364.7562 | D33: =D10/C10*C33 -> -898255.8474 | E33: =E10/C10*C33 -> -31108.90878
A36: =A33+1 -> 16 | B36: TOTAL SUPPLY | C36: =C21+C22+C25+C26+C29+C30+C33 -> 117883125.4 | D36: =SUM(D21:D30)+D33 -> 113937187.7 | E36: =SUM(E21:E30)+E33 -> 3945937.664
A38: =A36+1 -> 17 | B38: Company Use & Loss % | C38: =(+C36-C10)/C36 -> 0.004499985821 | D38: =(+D36-D10)/D36 -> 0.004499985821 | E38: =(+E36-E10)/E36 -> 0.004499985821
B41: Difference | C41: =C15-C36 -> 1.607144997

Sheet SDR#2
H1: ='Control Panel'!E32 -> Dominion Energy Utah
H2: ='Control Panel'!E33 -> Docket No. 19-057-18
A5: Standard Data Request #2
A6: Supplier Non-Gas Costs
B8: (A) | C8: (B) | D8: (C) | E8: (D) | F8: (E) | G8: (F) | T8: withdraw
A9: I. Transportation (QPC T-1) | C9: Volume (Dth) | G9: Utah Total | J9: Utah gas | K9: Utah Co. | L9: Utah gas | M9: Wyo gas | N9: Wyo Co. | O9: Wyo gas | Q9: @city gate | R9: @city gate | T9: loss | U9: Kern River
B10: Month | C10: Utah | D10: Wyoming | E10: $/dth | F10: Demand | G10: b*d+e*(Ut %) | J10: purchased | K10: production | L10: withdrawn | M10: purchased | N10: production | O10: withdrawn | P10: Total | Q10: purchased | R10: co production | S10: withdrawls | T10: =-Calculations!P165/Calculations!P137 -> 0.03016330291 | U10: Transportation
B12: Oct19 | C12: =J12+K12+L12-(T12+$B$48*U12)*$J$39 -> 9706333.489 | D12: =M12+N12+O12-(T12+$B$48*U12)*$K$39 -> 336155.2769 | E12: ='Other Inputs'!$F$40 -> 0.00267 | F12: =('Other Inputs'!$D$28)*('Other Inputs'!$F$28)-('Other Inputs'!$E$273/12)+('Other Inputs'!$D$35*'Other Inputs'!$F$35) -> 4111924.21 | G12: =(+C12)*E12+F12*$J$33/$L$33 -> 4011735.535 | J12: =Q12*$J$39 -> 5121811.983 | K12: =R12*$J$39 -> 5265816.249 | L12: =S12*$J$39 -> 0 | M12: =Q12-J12 -> 177381.5136 | N12: =R12-K12 -> 182368.7514 | O12: =S12-L12 -> 0 | P12: =SUM(J12:O12)-U12 -> 9700828.497 | Q12: =Calculations!D169 -> 5299193.497 | R12: =Calculations!D161 -> 5448185 | S12: =Calculations!D163+Calculations!D164 -> 0 | T12: =S12*$T$10 -> 0 | U12: =V12*W12 -> 1046550 | V12: 34885 | W12: 30 | X12: =B12 -> Oct19 | Y12: 4
B13: Nov19 | C13: =J13+K13+L13-(T13+$B$48*U13)*$J$39 -> 12847882.82 | D13: 444955.205 | E13: ='Other Inputs'!$F$40 -> 0.00267 | F13: =('Other Inputs'!$D$28)*('Other Inputs'!$F$28)-('Other Inputs'!$E$273/12)+('Other Inputs'!$D$35*'Other Inputs'!$F$35) -> 4111924.21 | G13: =(+C13)*E13+F13*$J$33/$L$33 -> 4020123.472 | J13: =Q13*$J$39 -> 7198957.191 | K13: =R13*$J$39 -> 4988744.94 | L13: 1406613.364 | M13: 249318.391 | N13: 172773.0598 | O13: 48714.6362 | P13: =SUM(J13:O13)-U13 -> 12983686.58 | Q13: =Calculations!E169 -> 7448275.582 | R13: =Calculations!E161 -> 5161518 | S13: =Calculations!E163+Calculations!E164 -> 1455328 | T13: =S13*$T$10 -> 43897.4993 | U13: =V18*W18 -> 1081435 | V13: 34885 | W13: 31 | X13: =B13 -> Nov19 | Y13: 5
B14: Dec19 | C14: 16429642.34 | D14: 569000.7434 | E14: ='Other Inputs'!$F$40 -> 0.00267 | F14: =('Other Inputs'!$D$28)*('Other Inputs'!$F$28)-('Other Inputs'!$E$273/12)+('Other Inputs'!$D$35*'Other Inputs'!$F$35) -> 4111924.21 | G14: =(+C14)*E14+F14*$J$33/$L$33 -> 4029686.769 | J14: =Q14*$J$39 -> 9963341.916 | K14: 5176881.295 | L14: 3703388.15 | M14: 345056.1393 | N14: 179288.7054 | O14: 128257.8504 | P14: 15959664.06 | Q14: =Calculations!F169 -> 10308398.06 | R14: =Calculations!F161 -> 5356170 | S14: =Calculations!F163+Calculations!F164 -> 3831646 | T14: 115575.0989 | U14: =V19*W19 -> 3536550 | V14: 34885 | W14: 30 | X14: Dec19 | Y14: 6
B15: Jan20 | C15: 16839201.85 | D15: 583184.842 | E15: ='Other Inputs'!$F$40 -> 0.00267 | F15: =('Other Inputs'!$D$28)*('Other Inputs'!$F$28)-('Other Inputs'!$E$273/12)+('Other Inputs'!$D$35*'Other Inputs'!$F$35) -> 4111924.21 | G15: 4030780.293 | J15: =Q15*$J$39 -> 11441795.63 | K15: 5056785.52 | L15: 3863876.041 | M15: 396258.7914 | N15: 175129.48 | O15: 133815.9586 | P15: 15834551.42 | Q15: =Calculations!G169 -> 11838054.42 | R15: =Calculations!G161 -> 5231915 | S15: =Calculations!G163+Calculations!G164 -> 3997692 | T15: 120583.5947 | U15: 5233110 | V15: 34885 | W15: 31 | X15: Jan20 | Y15: 7
B16: Feb20 | C16: 13729949.89 | D16: 475503.4549 | E16: ='Other Inputs'!$F$40 -> 0.00267 | F16: =('Other Inputs'!$D$28)*('Other Inputs'!$F$28)-('Other Inputs'!$E$273/12)+('Other Inputs'!$D$35*'Other Inputs'!$F$35) -> 4111924.21 | G16: 4022478.591 | J16: 8952365.005 | K16: 4742778.394 | L16: 3548550.573 | M16: 310043.4104 | N16: 164254.6061 | O16: 122895.4272 | P16: 12607777.42 | Q16: =Calculations!H169 -> 9262408.415 | R16: =Calculations!H161 -> 4907033 | S16: =Calculations!H163+Calculations!H164 -> 3671446 | T16: 110742.9378 | U16: 5233110 | V16: 34885 | W16: 31 | X16: Feb20 | Y16: 8
B17: Mar20 | C17: 10398711.21 | D17: 360134.0971 | E17: ='Other Inputs'!$F$40 -> 0.00267 | F17: =('Other Inputs'!$D$28)*('Other Inputs'!$F$28)-('Other Inputs'!$E$273/12)+('Other Inputs'!$D$35*'Other Inputs'!$F$35) -> 4111924.21 | G17: 4013584.183 | J17: 5740972.904 | K17: 4951409.947 | L17: 2983232.974 | M17: 198824.6477 | N17: 171480.0531 | O17: 103317.0257 | P17: 9253747.552 | Q17: =Calculations!I169 -> 5939797.552 | R17: =Calculations!I161 -> 5122890 | S17: =Calculations!I163+Calculations!I164 -> 3086550 | T17: 93100.5426 | U17: 4895490 | V17: 34885 | W17: 30 | X17: Mar20 | Y17: 9
B18: Apr20 | C18: 6964910.056 | D18: 241212.7371 | E18: ='Other Inputs'!$F$40 -> 0.00267 | F18: =('Other Inputs'!$D$28)*('Other Inputs'!$F$28)-('Other Inputs'!$E$273/12)+('Other Inputs'!$D$35*'Other Inputs'!$F$35) -> 4111924.21 | G18: =(+C18)*E18+F18*$J$33/$L$33 -> 4004415.934 | J18: 4647785.758 | K18: 4696128.983 | L18: 0 | M18: 160964.767 | N18: 162639.0171 | O18: 0 | P18: 6013083.525 | Q18: =Calculations!J169 -> 4808750.525 | R18: =Calculations!J161 -> 4858768 | S18: =Calculations!J163+Calculations!J164 -> 0 | T18: 0 | U18: 3654435 | V18: 34885 | W18: 31 | X18: Apr20 | Y18: 10
B19: May20 | C19: 6637309.941 | D19: 229867.1031 | E19: ='Other Inputs'!$F$40 -> 0.00267 | F19: =('Other Inputs'!$D$28)*('Other Inputs'!$F$28)-('Other Inputs'!$E$273/12)+('Other Inputs'!$D$35*'Other Inputs'!$F$35) -> 4111924.21 | G19: 4003541.242 | J19: 2553061.687 | K19: 4765542.997 | L19: 0 | M19: 88419.08834 | N19: 165043.0029 | O19: 0 | P19: 6525516.775 | Q19: =Calculations!K169 -> 2641480.775 | R19: =Calculations!K161 -> 4930586 | S19: =Calculations!K163+Calculations!K164 -> 0 | T19: 0 | U19: =V12*W12 -> 1046550 | V19: 117885 | W19: 30 | X19: May20 | Y19: 11
B20: Jun20 | C20: 5659459.564 | D20: 196001.6312 | E20: ='Other Inputs'!$F$40 -> 0.00267 | F20: =('Other Inputs'!$D$28)*('Other Inputs'!$F$28)-('Other Inputs'!$E$273/12)+('Other Inputs'!$D$35*'Other Inputs'!$F$35) -> 4111924.21 | G20: =(+C20)*E20+F20*$J$33/$L$33 -> 4000930.381 | J20: 1829309.558 | K20: 4534154.573 | L20: 0 | M20: 63353.69187 | N20: 157029.427 | O20: 0 | P20: 5502412.25 | Q20: =Calculations!L169 -> 1892663.25 | R20: =Calculations!L161 -> 4691184 | S20: =Calculations!L163+Calculations!L164 -> 0 | T20: 0 | U20: =V13*W13 -> 1081435 | V20: 168810 | W20: 31 | X20: Jun20 | Y20: 12
B21: Jul20 | C21: 4202538.074 | D21: 145544.6953 | E21: ='Other Inputs'!$F$40 -> 0.00267 | F21: =('Other Inputs'!$D$28)*('Other Inputs'!$F$28)-('Other Inputs'!$E$273/12)+('Other Inputs'!$D$35*'Other Inputs'!$F$35) -> 4111924.21 | G21: =(+C21)*E21+F21*$J$33/$L$33 -> 3997040.401 | J21: 271178.8784 | K21: 4612653.938 | L21: 0 | M21: 9391.62157 | N21: 159748.0618 | O21: 0 | P21: 4006422.5 | Q21: =Calculations!M169 -> 280570.5 | R21: =Calculations!M161 -> 4772402 | S21: =Calculations!M163+Calculations!M164 -> 0 | T21: 0 | U21: =V14*W14 -> 1046550 | V21: 168810 | W21: 31 | X21: Jul20 | Y21: 1
B22: Aug20 | C22: 3997616.945 | D22: 138447.7499 | E22: ='Other Inputs'!$F$40 -> 0.00267 | F22: =('Other Inputs'!$D$28)*('Other Inputs'!$F$28)-('Other Inputs'!$E$273/12)+('Other Inputs'!$D$35*'Other Inputs'!$F$35) -> 4111924.21 | G22: =(+C22)*E22+F22*$J$33/$L$33 -> 3996493.262 | J22: 48977.53217 | K22: 4652643.98 | L22: 0 | M22: 1696.217826 | N22: 161133.0197 | O22: 0 | P22: 3783015.75 | Q22: =Calculations!N169 -> 50673.75 | R22: =Calculations!N161 -> 4813777 | S22: =Calculations!N163+Calculations!N164 -> 0 | T22: 0 | U22: =V15*W15 -> 1081435 | V22: 168810 | W22: 29 | X22: Aug20 | Y22: 2
B23: Sep20 | C23: 4959297.174 | D23: 171753.208 | E23: ='Other Inputs'!$F$40 -> 0.00267 | F23: =('Other Inputs'!$D$28)*('Other Inputs'!$F$28)-('Other Inputs'!$E$273/12)+('Other Inputs'!$D$35*'Other Inputs'!$F$35) -> 4111924.21 | G23: =(+C23)*E23+F23*$J$33/$L$33 -> 3999060.948 | J23: 1186323.022 | K23: 4476978.72 | L23: 0 | M23: 41085.41544 | N23: 155049.2802 | O23: 0 | P23: 4778001.437 | Q23: =Calculations!O169 -> 1227408.437 | R23: =Calculations!O161 -> 4632028 | S23: =Calculations!O163+Calculations!O164 -> 0 | T23: 0 | U23: =V16*W16 -> 1081435 | V23: 117885 | W23: 31 | X23: Sep20 | Y23: 3
C26: =SUM(C12:C23) -> 112372853.4 | D26: =SUM(D12:D23) -> 3891760.744 | G26: =SUM(G12:G23) -> 48129871.01 | J26: =SUM(J12:J25) -> 58955881.06 | K26: 57920519.54 | L26: 15505661.1 | M26: 2041793.695 | N26: 2005936.464 | O26: 537000.8981 | P26: =SUM(P12:P23) -> 106948707.8 | Q26: 60997674.76 | R26: 59926456 | S26: 16042662 | T26: 483899.6734 | U26: 30018085
C29: Months | F29: System | G29: Utah | J29: Allocation Factors
C30: or Days | D30: Dth | E30: Rate | F30: Total | G30: Total
J31: Peak Demand Allocation Base
A32: II. Transportation (ML 104 demand) | C32: ='Other Inputs'!E29 -> 12 | D32: ='Other Inputs'!D29 -> 30000 | E32: ='Other Inputs'!F29 -> 5.28804 | F32: =C32*D32*E32 -> 1903694.4 | G32: =F32*J34 -> 1845311.857 | J32: Utah | K32: Wyo | L32: Total
J33: ='Other Inputs'!E141 -> 1182617 | K33: ='Other Inputs'!E142 -> 37416 | L33: =J33+K33 -> 1220033
A34: III. Transportation (TL 112 demand) | C34: ='Other Inputs'!E30 -> 12 | D34: ='Other Inputs'!D30 -> 12000 | E34: ='Other Inputs'!F30 -> 5.28804 | F34: =C34*D34*E34 -> 761477.76 | G34: =F34*J34 -> 738124.7426 | J34: =J33/L33 -> 0.9693319771 | K34: =K33/L33 -> 0.03066802291
C35: ='Other Inputs'!E31 -> 5 | D35: ='Other Inputs'!D31 -> 75000 | E35: ='Other Inputs'!F31 -> 6.80887 | F35: =C35*D35*E35 -> 2553326.25 | G35: =F35*J34 -> 2475020.782
J36: Dth Sales Allocation Base
A37: III. Transportation (Hyrum) | C37: =+'Other Inputs'!E32 -> 11 | D37: ='Other Inputs'!D32 -> 100000 | E37: ='Other Inputs'!F32 -> 5.28804 | F37: =C37*D37*E37 -> 5816844 | G37: =F37*J34 -> 5638452.895 | J37: Utah | K37: Wyo | L37: Total
J38: =Calculations!P20 -> 113424472 | K38: =Calculations!P39 -> 3928181 | L38: =J38+K38 -> 117352653
A39: IV. Transportation (KR 2003 Expansion) | C39: ='Other Inputs'!E55 -> 12 | D39: ='Other Inputs'!D55 -> 33000 | E39: ='Other Inputs'!F55 -> 3.1879 | F39: =C39*D39*E39 -> 1262408.4 | J39: =J38/L38 -> 0.9665266962 | K39: =K38/L38 -> 0.03347330375
C40: ='Other Inputs'!E56 -> 5 | D40: ='Other Inputs'!D56 -> 50000 | E40: ='Other Inputs'!F56 -> 3.1879 | F40: =C40*D40*E40 -> 796975 | G40: =(F39+F40+F41)*J34 -> 2343375.255
C41: ='Other Inputs'!E57 -> 12 | D41: ='Other Inputs'!D57 -> 1885 | E41: ='Other Inputs'!F57 -> 15.83255 | F41: =C41*D41*E41 -> 358132.281
A43: V. Transportation (KR #20024) | C43: =+'Other Inputs'!E65 -> 5 | D43: =+'Other Inputs'!D65 -> 27000 | E43: =+'Other Inputs'!F65 -> 8.816 | F43: =C43*D43*E43 -> 1190160 | G43: =F43*J34 -> 1153660.146
A45: VI. Transportation (KR #20017) | C45: =+'Other Inputs'!E61 -> 3 | D45: =+'Other Inputs'!D61 -> 56925 | E45: =+'Other Inputs'!F61 -> 8.796666667 | F45: 1502250.75 | G45: =F45*J34 -> 1456179.69
C46: =+'Other Inputs'!E63 -> 2 | D46: =+'Other Inputs'!D63 -> 6000 | E46: =+'Other Inputs'!F63 -> 8.845 | F46: 106140 | G46: =F46*J34 -> 102884.896
A48: VIII. Trans (KR 2003 Expansion) | B48: ='Other Inputs'!C70 -> 0.673536602 | C48: ='Other Inputs'!E69 -> 366 | D48: ='Other Inputs'!D69 -> 34885 | E48: ='Other Inputs'!F69 -> 0.0044 | F48: =B48*C48*D48*E48 -> 37838.48075
B49: ='Other Inputs'!C69 -> 0.673536602 | C49: ='Other Inputs'!E70 -> 152 | D49: ='Other Inputs'!D70 -> 50000 | E49: ='Other Inputs'!F70 -> 0.0044 | F49: =B49*C49*D49*E49 -> 22523.06397 | G49: =(F48+F49)*J39 -> 58341.0444
A51: IX. Transportation (KR #20024) | B51: =+'Other Inputs'!C76 -> 0.673536602 | C51: =+'Other Inputs'!E76 -> 152 | D51: =+'Other Inputs'!D76 -> 27000 | E51: =+'Other Inputs'!F76 -> 0.0044 | F51: =B51*C51*D51*E51 -> 12162.45455 | G51: =+F51*J39 -> 11755.33701
A53: X. Trans (KR #20017) | B53: =+'Other Inputs'!C73 -> 0.673536602 | C53: =+'Other Inputs'!E73 -> 91 | D53: =+'Other Inputs'!D73 -> 56925 | E53: =+'Other Inputs'!F73 -> 0.0044 | F53: =B53*C53*D53*E53 -> 15351.76486
B54: =+'Other Inputs'!C74 -> 0.673536602 | C54: =+'Other Inputs'!E74 -> 61 | D54: =+'Other Inputs'!D74 -> 6000 | E54: =+'Other Inputs'!F74 -> 0.0044 | F54: =B54*C54*D54*E54 -> 1084.663344 | G54: =(F53+F54)*J39 -> 15886.24665
A56: XII. Other Trans | F56: ='Other Inputs'!$D$178 -> 3792842.548 | G56: =F56*$J$39 -> 3665883.578
A58: Storage Commodity | F58: =+'Ut 1.4 p2'!J29 -> 543499 | G58: =+F58*J39 -> 525306.2929
A59: Total ACA | D59: =+'Ut 1.4 p1'!F38 -> 136482893.1 | E59: =+'Ut 1.4 p1'!J38 -> 0.0013 | F59: =+D59*E59 -> 177427.761 | G59: =+F59*J39 -> 171488.6677
A61: XIV. Storage Demand | C61: 12 | D61: ='Other Inputs'!E163 -> 184625 | E61: ='Other Inputs'!E14 -> 2.87375 | F61: =C61*D61*E61 -> 6366793.125
C62: 12 | D62: =+'Other Inputs'!E164 -> 2500000 | E62: =+'Other Inputs'!E15 -> 0.09 | F62: =C62*D62*E62 -> 2700000
C63: 12 | D63: ='Other Inputs'!E165 -> 111827 | E63: ='Other Inputs'!E16 -> 2.85338 | F63: =C63*D63*E63 -> 3829019.103
C64: 12 | D64: ='Other Inputs'!E166 -> 13419000 | E64: ='Other Inputs'!E17 -> 0.02378 | F64: =C64*D64*E64 -> 3829245.84 | G64: =SUM(F61:F64)*J34 -> 16212133.6
A66: XV. Peak Hour Service | C66: =+'Other Inputs'!E20 -> 3 | D66: =+'Other Inputs'!D20 -> 28752 | E66: =+'Other Inputs'!F20 -> 11.65333333 | F66: =C66*D66*E66 -> 1005169.92 | G66: =F66*J34 -> 974343.3459
C67: =+'Other Inputs'!E23 -> 3 | D67: =+'Other Inputs'!D23 -> 63666.66667 | E67: =+'Other Inputs'!F23 -> 7.35747644 | F67: =C67*D67*E67 -> 1405278 | G67: =F67*J34 -> 1362180.902
A70: Total Supplier Non-Gas Costs | G70: =G26+G32+G34+G35+G40+G49+G56+G64++G43+G45+G46+G51+G54+G66+G67+G58+G59+G37 -> 86880200.29

Sheet SDR#3
I1: ='Control Panel'!E32 -> Dominion Energy Utah
I2: ='Control Panel'!E33 -> Docket No. 19-057-18
C5: Standard Data Request #3
C6: Monthly Forecasted Sales
D8: Utah Sales | F8: Wyoming Sales | H8: System Total
C9: Month | D9: Dth | F9: Dth | H9: Dth
B11: 1 | C11: =Calculations!D141 -> Oct19 | D11: =Calculations!D20 -> 6433656 | F11: =Calculations!D39 -> 252763 | H11: =SUM(D11:F11) -> 6686419
B13: =B11+1 -> 2 | C13: =Calculations!E141 -> Nov19 | D13: =Calculations!E20 -> 11879095 | F13: =Calculations!E39 -> 427125 | H13: =SUM(D13:F13) -> 12306220
B15: =B13+1 -> 3 | C15: =Calculations!F141 -> Dec19 | D15: =Calculations!F20 -> 18704846 | F15: =Calculations!F39 -> 592566 | H15: 19297412
B17: =B15+1 -> 4 | C17: =Calculations!G141 -> Jan20 | D17: =Calculations!G20 -> 20219662 | F17: =Calculations!G39 -> 634523 | H17: 20854185
B19: =B17+1 -> 5 | C19: =Calculations!H141 -> Feb20 | D19: =Calculations!H20 -> 17089244 | F19: =Calculations!H39 -> 564754 | H19: 17653998
B21: =B19+1 -> 6 | C21: =Calculations!I141 -> Mar20 | D21: =Calculations!I20 -> 13496025 | F21: =Calculations!I39 -> 481683 | H21: 13977708
B23: =B21+1 -> 7 | C23: =Calculations!J141 -> Apr20 | D23: =Calculations!J20 -> 8925238 | F23: =Calculations!J39 -> 356476 | H23: 9281714
B25: =B23+1 -> 8 | C25: =Calculations!K141 -> May20 | D25: =Calculations!K20 -> 5499889 | F25: =Calculations!K39 -> 236639 | H25: 5736528
B27: =B25+1 -> 9 | C27: =Calculations!L141 -> Jun20 | D27: =Calculations!L20 -> 3324903 | F27: =Calculations!L39 -> 125574 | H27: 3450477
B29: =B27+1 -> 10 | C29: =Calculations!M141 -> Jul20 | D29: =Calculations!M20 -> 2644229 | F29: =Calculations!M39 -> 76358 | H29: 2720587
B31: =B29+1 -> 11 | C31: =Calculations!N141 -> Aug20 | D31: =Calculations!N20 -> 2425135 | F31: =Calculations!N39 -> 71483 | H31: 2496618
B33: =B31+1 -> 12 | C33: =Calculations!O141 -> Sep20 | D33: =Calculations!O20 -> 2782550 | F33: =Calculations!O39 -> 108237 | H33: 2890787
B36: =B33+1 -> 13 | C36: Total Sales (Dth) | D36: =SUM(D11:D33) -> 113424472 | F36: =SUM(F11:F33) -> 3928181 | H36: =SUM(H11:H33) -> 117352653

Sheet SDR#4
H1: ='Control Panel'!E32 -> Dominion Energy Utah
H2: ='Control Panel'!E33 -> Docket No. 19-057-18
C5: Standard Data Request #4
C6: Supplier Non-Gas Costs Recovered at Current Rates
C9: (A) | D9: (B) | E9: (C) | F9: (D) | G9: (E)
B10: 1 | C10: Rate Schedule | D10: Season | E10: Sales Dth | F10: SNG Rate | G10: SNG Revenue
B12: =B10+1 -> 2 | C12: GS | D12: winter | E12: ='Utah Summary-by class'!B8 -> 79730574 | F12: ='Utah Summary-by class'!J8 -> 1.16499 | G12: =E12*F12 -> 92885321.4
B13: =B12+1 -> 3 | D13: summer | E13: ='Utah Summary-by class'!B9 -> 30437950 | F13: ='Utah Summary-by class'!J9 -> 0.54698 | G13: =E13*F13 -> 16648949.89
B15: =B13+1 -> 4 | C15: FS | D15: winter | E15: ='Utah Summary-by class'!B13 -> 1478780 | F15: ='Utah Summary-by class'!J13 -> 1.13466 | G15: =E15*F15 -> 1677912.515
B16: =B15+1 -> 5 | D16: summer | E16: ='Utah Summary-by class'!B14 -> 1382336 | F16: ='Utah Summary-by class'!J14 -> 0.54698 | G16: =E16*F16 -> 756110.1453
B18: =B16+1 -> 6 | C18: NGV | D18: annual | E18: ='Utah Summary-by class'!B18 -> 263921 | F18: ='Utah Summary-by class'!J18 -> 0.84068 | G18: =E18*F18 -> 221873.1063
B20: =B18+1 -> 7 | C20: IS | D20: annual | E20: ='Utah Summary-by class'!B21 -> 130911 | F20: ='Utah Summary-by class'!J21 -> 0.17907 | G20: =E20*F20 -> 23442.23277
B23: =B20+1 -> 8 | C23: Total Supplier Non-Gas Costs | E23: =SUM(E12:E20) -> 113424472 | G23: =SUM(G12:G20) -> 112213609.3

Sheet Wy SDR#1 (hidden)
A1: Wyoming Standard Data Request #1
A2: Global Insights Forecast

Sheet Current Exh Updated Exh
B8: Current Exhibits to Proposed Exhibits
B12: Current Exhibit | C12: Description of Exhibit | D12: Proposed Exhibit | E12: Comments
B13: 1.1 | C13: Company Production with detailed well information | D13: 1.2 p1 | E13: Detail of well info in electronic model
B14: 1.2 | C14: Purchased Gas Costs | D14: 1.2 p4
B15: 1.3 p1 | C15: Transportation | D15: 1.4 p1
C16: Gathering | D16: 1.2 p3
B17: 1.3 p2 | C17: Storage | D17: 1.4 p3
C18: Working Gas Charges | D18: 1.2 p5
B19: 1.4 p1 | C19: Gas Related Costs and Revenue Credits | D19: 1.2 p3
B20: 1.4 p2 | C20: Cost of Storage Gas | D20: 1.2 p5
B21: 1.4 p3 | C21: Other Revenues | D21: 1.2 p2
B22: 1.5 | C22: Gas Cost Allocation | D22: 1.1 p2
B23: 1.6 p1 | C23: Commodity Change and New Rates | D23: 1.5 p1
B24: 1.6 p2 | C24: Supplier Non-Gas Change | D24: 1.5 p2
B25: 1.6 p3 | C25: Supplier Non-Gas New Rates | D25: 1.5 p3 | E25: Detail of calculation updated
B26: 1.7 | C26: Effect on GS Typical Customer | D26: 1.6
B27: 1.8 | C27: Legislative/Proposed Rate Schedules | D27: 1.7
B28: 1.9 | C28: Dominion Energy Questar Pipeline, LLC Tariff Rates | D28: - | E28: Removed as an exhibit
B29: 1.10 | C29: Confidential Comparison of Natural Gas Price Forecast | D29: 1.3
B30: 1.11 | C30: Legislative/Proposed Combined Rate Schedules | D30: 1.8

Sheet Ut 1.1 p1
F1: ='Control Panel'!$E$32 -> Dominion Energy Utah
F2: ='Control Panel'!$E$33 -> Docket No. 19-057-18
F3: DEU Exhibit 1.1
F4: Page 1 of 2
B9: TABLE OF CONTENTS
B14: Exhibit | D14: Description | E14: Type
B16: 1.1 | C16: Page 2 | D16: Test-Year Gas Cost Allocation | E16: Summary
B18: 1.2 | C18: Page 1 | D18: Test-Year Royalties & Company Production | E18: Commodity
C19: Page 2 | D19: Test-Year Other Revenues | E19: Commodity
C20: Page 3 | D20: Summary of Wexpro Test-Year Gas Costs and Revenue Credits | E20: Commodity
C21: Page 4 | D21: Test-Year Purchased Gas Costs | E21: Commodity
C22: Page 5 | D22: Test-Year Storage Gas & Working Gas Charges | E22: Commodity
B24: 1.3 | D24: Confidential Comparison of Natural Gas Price Forecasts | E24: Commodity
B26: 1.4 | C26: Page 1 | D26: Test-Year Transportation Charges | E26: SNG
C27: Page 2 | D27: Test-Year Storage Charges | E27: SNG
B29: 1.5 | C29: Page 1 | D29: Test-Year Gas Cost Change | E29: Commodity
C30: Page 2 | D30: Test-Year Supplier Non-Gas Cost Change | E30: SNG
C31: Page 3 | D31: Test-Year Change in Supplier Non-Gas Costs by Rate Class | E31: SNG
B33: 1.6 | D33: Effect on GS Typical Customer | E33: Summary
B35: 1.7 | C35: Page1-8 | D35: Legislative Rate Schedules | E35: Summary
C36: Page 9-17 | D36: Proposed Rate Schedules | E36: Summary
B38: 1.8 | C38: Page1-8 | D38: Legislative Combined Rate Schedules | E38: Summary
C39: Page 9-17 | D39: Proposed Combined Rate Schedules | E39: Summary

Sheet Ut 1.1 p2
I1: ='Control Panel'!$E$32 -> Dominion Energy Utah
I2: ='Control Panel'!$E$33 -> Docket No. 19-057-18
I3: DEU Exhibit 1.1
I4: Page 2 of 2
C8: TEST-YEAR GAS COST ALLOCATION
C11: (A) | E11: (B) | F11: (C) | G11: (D) | H11: (E)
E12: Allocation
E13: Factor 1/ | F13: System | G13: Wyoming | H13: Utah
B15: COMMODITY
A16: 1 | C16: Dominion Energy Production (Exhibit 1.2, p 1) | E16: 2 | F16: ='Ut 1.2 p3'!E15+'Ut 1.2 p3'!E28 -> 223281987.8 | G16: =CHOOSE($E16,G$53,G$56)*$F16 -> 7473985.801 | H16: 215808002
A17: =A16+1 -> 2 | C17: Other Revenue's Credit (Exhibit 1.2, p 2) | E17: 2 | F17: ='Ut 1.2 p3'!E16+'Ut 1.2 p3'!E29+'Ut 1.2 p3'!E47 -> -15181813.62 | G17: -508185.4589 | H17: -14673628.16
A18: =A17+1 -> 3 | C18: Gathering (Exhibit 1.2, p 3, ln 4) | D18: - Demand | E18: 1 | F18: ='Ut 1.2 p3'!E19 -> 12340512 | G18: 378459.1048 | H18: 11962052.9
A19: =A18+1 -> 4 | C19: Gathering (Exhibit 1.2, p 3, lns 5, 6, 12) | D19: - Commodity | E19: 2 | F19: ='Ut 1.2 p3'!E21+'Ut 1.2 p3'!E20+'Ut 1.2 p3'!E32 -> 12718586.83 | G19: 425733.1201 | H19: 12292853.71
A20: =A19+1 -> 5 | C20: Net Cost of Dominion Energy Production | F20: =SUM(F16:F19) -> 233159273 | G20: =SUM(G16:G19) -> 7769992.567 | H20: =SUM(H16:H19) -> 225389280.5
A22: =A20+1 -> 6 | C22: Dominion Energy Contract Gas (Exhibit 1.2, p 4) | E22: 2 | F22: ='Ut 1.2 p4'!E24 -> 130510508 | G22: =CHOOSE($E22,G$53,G$56)*$F22 -> 4368617.877 | H22: =CHOOSE($E22,H$53,H$56)*$F22 -> 126141890.1
A24: =A22+1 -> 7 | C24: Injection / Withdrawal Adjustment (Exhibit 1.2, p 5, ln 3) | E24: 2 | F24: ='Ut 1.2 p5'!E21 -> 2700390.809 | G24: =CHOOSE($E24,G$53,G$56)*$F24 -> 90391.00181 | H24: =CHOOSE($E24,H$53,H$56)*$F24 -> 2609999.808
A26: =A24+1 -> 8 | C26: Working Gas Costs (Exhibit 1.2, p 5, ln 17) | E26: 2 | F26: ='Ut 1.2 p5'!I43 -> 3119493.933 | G26: =CHOOSE($E26,G$53,G$56)*$F26 -> 104419.768 | H26: =CHOOSE($E26,H$53,H$56)*$F26 -> 3015074.165
A29: =A26+1 -> 9 | C29: TOTAL COMMODITY | F29: =SUM(F20:F27) -> 369489665.8 | G29: =SUM(G20:G27) -> 12333421.21 | H29: 357156244.6
B31: SNG
A32: =A29+1 -> 10 | C32: Transportation (Exhibit 1.4, p 1, ln 14) | D32: - Demand | E32: 1 | F32: ='Ut 1.4 p1'!M33 -> 65594498 | G32: =CHOOSE($E32,G$53,G$56)*$F32 -> 2011653.568 | H32: =CHOOSE($E32,H$53,H$56)*$F32 -> 63582844.43
A33: =A32+1 -> 11 | C33: Transportation (Exhibit 1.4, p 1, ln 23) | D33: - Commodity | E33: 2 | F33: ='Ut 1.4 p1'!M50 -> 576815 | G33: =CHOOSE($E33,G$53,G$56)*$F33 -> 19307.9037 | H33: =CHOOSE($E33,H$53,H$56)*$F33 -> 557507.0963
A35: =A33+1 -> 12 | C35: Other Transportation (Exhibit 1.4, p 1, ln 24) | E35: 2 | F35: ='Ut 1.4 p1'!M54 -> 3792843 | G35: =CHOOSE($E35,G$53,G$56)*$F35 -> 126958.9858 | H35: =CHOOSE($E35,H$53,H$56)*$F35 -> 3665884.014
A37: =A35+1 -> 13 | C37: Peak Hour Service (Exhibit 1.4, p 1, ln 27) | E37: 1 | F37: ='Ut 1.4 p1'!L60+'Ut 1.4 p1'!L61 -> 2410448 | G37: =CHOOSE($E37,G$53,G$56)*$F37 -> 73923.6745 | H37: =CHOOSE($E37,H$53,H$56)*$F37 -> 2336524.326
A39: =A37+1 -> 14 | C39: Storage (Exhibit 1.4, p 2, ln 5) | D39: - Demand | E39: 1 | F39: ='Ut 1.4 p2'!J20 -> 16725058 | G39: =CHOOSE($E39,G$53,G$56)*$F39 -> 512924.462 | H39: =CHOOSE($E39,H$53,H$56)*$F39 -> 16212133.54
A40: =A39+1 -> 15 | C40: Storage (Exhibit 1.4, p 2, ln 12) | D40: - Commodity | E40: 2 | F40: ='Ut 1.4 p2'!J29 -> 543499 | G40: =CHOOSE($E40,G$53,G$56)*$F40 -> 18192.70712 | H40: =CHOOSE($E40,H$53,H$56)*$F40 -> 525306.2929
A43: =A40+1 -> 16 | C43: TOTAL SNG | F43: =SUM(F32:F40) -> 89643161 | G43: =SUM(G32:G40) -> 2762961.301 | H43: 86880199.7
A46: =A43+1 -> 17 | C46: TOTAL GAS COST | F46: =F29+F43 -> 459132826.8 | G46: =G29+G43 -> 15096382.51 | H46: =H29+H43 -> 444036444.3
A50: 1/ | C50: Allocation Factors | F50: Total | G50: Wyoming | H50: Utah
C52: #1 Peak Day Demand | E52: Dth- | F52: =SUM(G52:H52) -> 1220033 | G52: ='Other Inputs'!$E$142 -> 37416 | H52: ='Other Inputs'!$E$141 -> 1182617
E53: Percent- | F53: =G53+H53 -> 1 | G53: =G52/F52 -> 0.03066802291 | H53: =H52/F52 -> 0.9693319771
C55: #2 Commodity Sales - All | E55: Dth- | F55: =G55+H55 -> 117352653 | G55: ='Ut 1.5 p1'!H21 -> 3928181 | H55: ='Ut 1.5 p1'!H20 -> 113424472
E56: Percent- | F56: =G56+H56 -> 1 | G56: =G55/F55 -> 0.03347330375 | H56: =H55/F55 -> 0.9665266962

Sheet Ut 1.2 p1
H1: Dominion Energy Utah
H2: ='Control Panel'!$E$33 -> Docket No. 19-057-18
H3: DEU Exhibit 1.2
H4: Page 1 of 5
C8: TEST-YEAR ROYALTIES & COMPANY PRODUCTION
B10: COMMODITY
C11: (A) | E11: (B) | G11: (C)
E12: Base Year | G12: Test-Year
E13: Dth | G13: Royalty $
B15: WEXPRO I
A16: =A15+1 -> 1 | C16: Royalties Based on Historical Production | E16: =+'Royalty Detail'!F1427 -> 55805228.91 | G16: =+'Royalty Detail'!I1427 -> 17534463.4
A18: =A16+1 -> 2 | C18: Test-Year Adjustment for IRP Production Forecast | E18: =+'Royalty Detail'!F1429 -> -5747470.905 | G18: =G16/E16*E18 -> -1805902.784
A21: =A18+1 -> 3 | C21: Total Wexpro I Test-Year Royalties | G21: =G16+G18 -> 15728560.62
A23: =A21+1 -> 4 | C23: Wexpro I Operator Service Fee | G23: ='Monthly Inputs'!S107 -> 169504821.8
A26: =A23+1 -> 5 | C26: Total Wexpro I Company Production (IRP Forecast) | E26: =+'Monthly Inputs'!S7 -> 50057758 | G26: =G21+G23 -> 185233382.4
B30: WEXPRO II
A31: =A26+1 -> 6 | C31: Royalties Based on Historical Production | E31: =+'Royalty Detail'!F1682 -> 16457522.49 | G31: =+'Royalty Detail'!I1682 -> 5228882.234
A33: =A31+1 -> 7 | C33: Test-Year Adjustment for IRP Production Forecast | E33: =+'Royalty Detail'!F1684 -> -4278535.488 | G33: =G31/E31*E33 -> -1359375.824
A36: =A33+1 -> 8 | C36: Total Wexpro II Test-Year Royalties | G36: =G31+G33 -> 3869506.409
A38: =A36+1 -> 9 | C38: Wexpro II Operator Service Fee | G38: ='Monthly Inputs'!S109 -> 34179099.04
A41: =A38+1 -> 10 | C41: Total Wexpro II Company Production (IRP Forecast) | E41: ='Monthly Inputs'!S13 -> 12178987 | G41: =G36+G38 -> 38048605.45
B45: TOTAL WEXPRO
A46: =A41+1 -> 11 | C46: Total Wexpro Test-Year Royalties | G46: =G36+G21 -> 19598067.03
A48: =A46+1 -> 12 | C48: Total Wexpro Operator Service Fee | G48: =G38+G23 -> 203683920.8
A51: =A48+1 -> 13 | C51: Total Wexpro Company Production | E51: =E41+E26 -> 62236745 | G51: =G46+G48 -> 223281987.8

Sheet Ut 1.2 p2
K1: ='Control Panel'!$E$32 -> Dominion Energy Utah
K2: ='Control Panel'!$E$33 -> Docket No. 19-057-18
K3: DEU Exhibit 1.2
K4: Page 2 of 5
D8: TEST-YEAR OTHER REVENUES 1/
B10: COMMODITY
C11: (A) | E11: (B) | F11: (C) | G11: (D)
C12: Account | G12: =Expenses!S8 -> 12 Months Ending
C13: Number | E13: Account Name | G13: ='Control Panel'!E7 -> 2020-09-30
C14: WEXPRO I
B15: 1 | D15: 483 | E15: Sales for Resale | H15: ='Other Inputs'!F202 -> 2269440.72
B17: =B15+1 -> 2 | D17: 490 | E17: Plant By-Product | H17: ='Other Inputs'!F203 -> 3053673
B19: =B17+1 -> 3 | D19: 492 | E19: Gasoline and Oil Sales | F19: ='Other Inputs'!F204 -> 542819.1323
B20: =B19+1 -> 4 | D20: 758-1 | E20: Gasoline and Oil Cost | F20: ='Other Inputs'!F207 -> -89510.87492
B21: =B20+1 -> 5 | E21: Net Gasoline and Oil Sales | H21: =F19+F20 -> 453308.2574
B23: =B21+1 -> 6 | D23: 495-1 | E23: Overriding Royalty Revenue | H23: ='Other Inputs'!F205 -> 7921111.019
B25: =B23+1 -> 7 | D25: 495-2 | E25: Oil Revenue Received from Wexpro | H25: ='Other Inputs'!F206 -> 0
B28: =B25+1 -> 8 | E28: Total Wexpro I | H28: =SUM(H15:H25) -> 13697533
C30: WEXPRO II
B31: =B28+1 -> 9 | D31: 483 | E31: Sales for Resale | H31: ='Other Inputs'!E223 -> 0
B33: =B31+1 -> 10 | D33: 490 | E33: Plant By-Product | H33: ='Other Inputs'!E224 -> 480000
B35: =B33+1 -> 11 | D35: 492 | E35: Gasoline and Oil Sales | F35: ='Other Inputs'!E225 -> 1457997.725
B36: =B35+1 -> 12 | D36: 758-1 | E36: Gasoline and Oil Cost | F36: ='Other Inputs'!E228 -> -237507.8294
B37: =B36+1 -> 13 | E37: Net Gasoline and Oil Sales | H37: =F35+F36 -> 1220489.896
B39: =B37+1 -> 14 | D39: 495-1 | E39: Overriding Royalty Revenue | H39: ='Other Inputs'!E226 -> 0
B41: =B39+1 -> 15 | D41: 495-2 | E41: Oil Revenue Received from Wexpro | H41: ='Other Inputs'!E227 -> -216209.268
B44: =B41+1 -> 16 | E44: Total Wexpro II | H44: =SUM(H31:H41) -> 1484280.628
B46: 17 | E46: Sales of Cost-of-Service Gas | H46: ='Other Inputs'!E234 -> 0
B49: 18 | E49: Grand Total (Line 8 + Line 16 + Line 17) | H49: =H28+H44+H46 -> 15181813.62
B53: 1/ | D53: Forecasted 12-month test year.

Sheet Ut 1.2 p3
G1: ='Control Panel'!$E$32 -> Dominion Energy Utah
G2: ='Control Panel'!$E$33 -> Docket No. 19-057-18
G3: DEU Exhibit 1.2
G4: Page 3 of 5
B8: SUMMARY OF WEXPRO TEST-YEAR GAS COSTS AND REVENUES CREDITS
B10: COMMODITY
B11: (A) | E11: (B) | F11: (C) | G11: (D)
B12: Component | E12: Costs | F12: Dth 1/ | G12: $ per Dth
B14: WEXPRO I
A15: 1 | C15: Dominion Energy Production 2/ | E15: ='Other Inputs'!D195 -> 185233382.4
A16: =A15+1 -> 2 | C16: Wexpro I Revenue Sharing Credits 3/ | E16: =-'Ut 1.2 p2'!H28 -> -13697533
A17: =A16+1 -> 3 | D17: Net Dominion Energy Production Costs | E17: =E15+E16 -> 171535849.4 | F17: =F25 -> 48985470.77 | G17: =E17/F25 -> 3.501769947
A19: =A17+1 -> 4 | C19: Gathering Demand | E19: ='Other Inputs'!E184 -> 12340512
A20: =A19+1 -> 5 | C20: Gathering Commodity | E20: ='Other Inputs'!D184 -> 8260977.687
A21: =A20+1 -> 6 | C21: Gathering Other Charges | E21: =ROUND('Other Inputs'!D176,0) -> 1907905
A22: =A21+1 -> 7 | D22: Gathering | E22: =SUM(E19:E21) -> 22509394.69
A25: =A22+1 -> 8 | B25: Total Wexpro I Cost of Production | E25: =E17+E22 -> 194045244.1 | F25: ='Monthly Inputs'!S7*(1-'Other Inputs'!E267) -> 48985470.77 | G25: =E25/F25 -> 3.961281601
B27: WEXPRO II
A28: =A25+1 -> 9 | C28: Wexpro II Production 4/ | E28: ='Other Inputs'!D216 -> 38048605.45
A29: =A28+1 -> 10 | C29: Wexpro II Revenue Sharing Credits 5/ | E29: =-'Ut 1.2 p2'!H44 -> -1484280.628
A30: =A29+1 -> 11 | D30: Net Cost of Wexpro II Production | E30: =E28+E29 -> 36564324.83 | F30: =F35 -> 11918100.92 | G30: =E30/F35 -> 3.0679657
A32: =A30+1 -> 12 | D32: Gathering | E32: ='Other Inputs'!D187 -> 2549704.139
A35: =A32+1 -> 13 | B35: Total Wexpro II Cost of Production | E35: =SUM(E30:E32) -> 39114028.97 | F35: ='Monthly Inputs'!S13*(1-'Other Inputs'!E267) -> 11918100.92 | G35: =E35/F35 -> 3.281901138
B37: TOTAL WEXPRO
A38: =A35+1 -> 14 | C38: Total Wexpro Production | E38: =E15+E28 -> 223281987.8
A39: =A38+1 -> 15 | C39: Total Wexpro Revenue Sharing Credits | E39: =E16+E29 -> -15181813.62
A40: =A39+1 -> 16 | D40: Net Cost of Total Wexpro Production | E40: =E38+E39 -> 208100174.2 | F40: =F25+F35 -> 60903571.69 | G40: =E40/F45 -> 3.416879642
A42: =A40+1 -> 17 | D42: Total Wexpro Gathering | E42: =E22+E32 -> 25059098.83
A45: =A42+1 -> 18 | B45: Total Wexpro Cost of Production | E45: =SUM(E40:E42) -> 233159273 | F45: =F25+F35 -> 60903571.69 | G45: =E45/F45 -> 3.828334966
A47: =A45+1 -> 19 | B47: Sales of Cost-of-Service Gas 6/ | E47: =-'Other Inputs'!E234 -> 0 | F47: ='Other Inputs'!F234 -> 0 | G47: ='Other Inputs'!G234 -> 0
A50: =A47+1 -> 20 | B50: Total Cost-of-Service Production | E50: =E25+E35+E47 -> 233159273 | F50: =F25+F35 -> 60903571.69 | G50: =E50/F50 -> 3.828334966
A54: 1/ | B54: Estimated into-pipe volumes used for Wexpro dths.
A55: 2/ | B55: Exhibit 1.2, Page 1, Line 5.
A56: 3/ | B56: Exhibit 1.2, Page 2, Line 8.
A57: 4/ | B57: Exhibit 1.2, Page 1, Line 10.
A58: 5/ | B58: Exhibit 1.2, Page 2, Line 16.
A59: 6/ | B59: Exhibit 1.2, Page 2, Line 17.

Sheet Ut 1.2 p4
H1: ='Control Panel'!$E$32 -> Dominion Energy Utah
H2: ='Control Panel'!$E$33 -> Docket No. 19-057-18
H3: DEU Exhibit 1.2
H4: Page 4 of 5
A8: TEST-YEAR PURCHASED GAS COSTS
B10: COMMODITY
D11: (A) | E11: (B) | F11: (C) | G11: (D)
G12: Cost
C13: Component | E13: Total Cost | F13: Dth | G13: per Dth
B15: 1 | C15: Current Contracts | E15: =ROUND(Calculations!$P$186+Calculations!$P$189-E16,0) -> 51700417
B16: =B15+1 -> 2 | C16: Stabilization Costs | E16: ='Monthly Inputs'!S94 -> 0
B17: =B16+1 -> 3 | D17: Total Current Contracts | E17: =E15+E16 -> 51700417 | F17: =Calculations!$P$185+Calculations!$P$188 -> 22967000 | G17: =E17/F17 -> 2.251074019
B19: =B17+1 -> 4 | C19: Forecast Spot | E19: =ROUND(Calculations!P183,0) -> 74966992 | F19: =Calculations!$P$182 -> 37043937 | G19: =E19/F19 -> 2.023731765
B21: =B19+1 -> 5 | C21: Future Contracts | E21: =ROUND(Calculations!P192,0) -> 3843099 | F21: =Calculations!P191 -> 1959677 | G21: =E21/F21 -> 1.961087975
B24: =B21+1 -> 6 | C24: Total Gas Purchased | E24: =E17+E19+E21 -> 130510508 | F24: =F17+F19+F21 -> 61970614 | G24: =E24/F24 -> 2.106006373

Sheet Ut 1.2 p5
K1: ='Control Panel'!$E$32 -> Dominion Energy Utah
K2: ='Control Panel'!$E$33 -> Docket No. 19-057-18
K3: DEU Exhibit 1.2
K4: Page 5 of 5
B8: TEST-YEAR STORAGE GAS & WORKING GAS CHARGES
B10: COMMODITY
C11: (A) | E11: (B) | G11: (C) | I11: (D)
I12: Average
E13: Total Costs | G13: Dth | I13: Rate
B15: STORAGE GAS 1/
B17: 1 | C17: Withdrawals | E17: =G17*I17 -> 61805206.43 | G17: ='Monthly Inputs'!S37 -> 16042662 | I17: ='Ut Storage'!L27 -> 3.852553051
B18: 2 | C18: Injections | E18: =G18*I18 -> -59104815.62 | G18: =-'Monthly Inputs'!S29 -> -18154302 | I18: ='Ut Storage'!K27 -> 3.255691991
B21: =B18+1 -> 3 | C21: Storage Adjustment | E21: =E17+E18 -> 2700390.809
B24: WORKING GAS CHARGES
D26: Month | E26: Amount | G26: Pre-Tax Return % | I26: Total
B28: =B21+1 -> 4 | D28: =+'Rate Base'!H8 -> 2018-07-17 | E28: =+'Rate Base'!H206 -> 39219511.99
B29: =B28+1 -> 5 | D29: =+'Rate Base'!I8 -> 2018-08-16 | E29: =+'Rate Base'!I206 -> 43502522.79
B30: 6 | D30: =+'Rate Base'!J8 -> 2018-09-01 | E30: =+'Rate Base'!J206 -> 62143023.66
B31: 7 | D31: =+'Rate Base'!K8 -> 2018-10-01 | E31: =+'Rate Base'!K206 -> 62647436.72
B32: 8 | D32: =+'Rate Base'!L8 -> 2018-11-01 | E32: =+'Rate Base'!L206 -> 52783329.59
B33: 9 | D33: =+'Rate Base'!M8 -> 2018-12-01 | E33: =+'Rate Base'!M206 -> 44167774.48
B34: 10 | D34: =+'Rate Base'!N8 -> 2019-01-01 | E34: =+'Rate Base'!N206 -> 33177810.06
B35: 11 | D35: =+'Rate Base'!O8 -> 2019-02-01 | E35: =+'Rate Base'!O206 -> 24117118.76
B36: 12 | D36: =+'Rate Base'!P8 -> 2019-03-01 | E36: =+'Rate Base'!P206 -> 8155444.24
B37: 13 | D37: =+'Rate Base'!Q8 -> 2019-04-01 | E37: =+'Rate Base'!Q206 -> 6352626.43
B38: 14 | D38: =+'Rate Base'!R8 -> 2019-05-01 | E38: =+'Rate Base'!R206 -> 8741282.39
B39: 15 | D39: =+'Rate Base'!S8 -> 2019-06-01 | E39: =+'Rate Base'!S206 -> 19062047.87
B40: 16 | D40: =+'Rate Base'!T8 -> 2019-07-01 | E40: =+'Rate Base'!T206 -> 33521823.38
B43: =B40+1 -> 17 | C43: 12-Month Average 2/ | E43: =(SUM(E29:E39)+E28/2+E40/2)/12 -> 33435090.39 | F43: x | G43: ='Other Inputs'!E263 -> 0.0933 | H43: = | I43: =E43*G43 -> 3119493.933
B48: 1/ | C48: Dominion Energy planned volumes.
B49: 2/ | C49: (1/2 of Line 4 + sum of Lines 5-15 + 1/2 of Line 16) / 12

Sheet Ut 1.3 Redacted
I1: REDACTED
P29: DEU Exhibit 1.3 | Q29: =CONCATENATE("Docket No. ",'Control Panel'!E5) -> Docket No. 19-057-18 | R29: Dominion Energy Utah

Sheet Ut 1.4 p1
N1: ='Control Panel'!$E$32 -> Dominion Energy Utah
N2: ='Control Panel'!$E$33 -> Docket No. 19-057-18
N3: DEU Exhibit 1.4
N4: Page 1 of 2
B8: TEST-YEAR TRANSPORTATION CHARGES
B10: SNG
B11: (A) | D11: (B) | F11: (C) | H11: (D) | J11: (E) | L11: (F) | M11: (G)
D12: Fctr | F12: Dth | H12: Months/Days | J12: Rate | M12: Total Costs
B14: TRANSPORTATION DEMAND
B16: QPC Demand
A17: 1 | B17: T-1 Transportation - Yearly | F17: ='Other Inputs'!D28+'Other Inputs'!D29+'Other Inputs'!D30 -> 840902 | G17: x | H17: ='Other Inputs'!E28 -> 12 | I17: x | J17: ='Other Inputs'!F28 -> 5.28804 | K17: = | L17: =ROUND(F17*H17*J17,0) -> 53360681
A18: =A17+1 -> 2 | B18: T-1 Transportation - Yearly (Begins Nov 2019) | F18: ='Other Inputs'!D32 -> 100000 | G18: x | H18: ='Other Inputs'!E32 -> 11 | I18: x | J18: ='Other Inputs'!F32 -> 5.28804 | K18: = | L18: =ROUND(F18*H18*J18,0) -> 5816844
A19: =A18+1 -> 3 | B19: T-1 Transportation Nov-Mar | F19: ='Other Inputs'!D31 -> 75000 | G19: x | H19: ='Other Inputs'!E31 -> 5 | I19: x | J19: ='Other Inputs'!F31 -> 6.80887 | K19: = | L19: =ROUND(F19*H19*J19,0) -> 2553326
A20: =A19+1 -> 4 | B20: No-Notice Transportation | F20: ='Other Inputs'!D35 -> 203542 | G20: x | H20: ='Other Inputs'!E35 -> 12 | I20: x | J20: ='Other Inputs'!F35 -> 0.86753 | K20: = | L20: =ROUND(F20*H20*J20,0) -> 2118945
A21: =A20+1 -> 5 | B21: Capacity Release Credits | L21: =-ROUND('Other Inputs'!E273,0) -> -3471364
A22: =A21+1 -> 6 | C22: Total | L22: =SUM(L17:L21) -> 60378432
B24: Kern River Demand
A25: =A22+1 -> 7 | B25: January - December | F25: ='Other Inputs'!D57 -> 1885 | G25: x | H25: ='Other Inputs'!E57 -> 12 | I25: x | J25: ='Other Inputs'!F57 -> 15.83255 | K25: = | L25: =ROUND(F25*H25*J25,0) -> 358132
A26: =A25+1 -> 8 | B26: October - April | F26: ='Other Inputs'!D55 -> 33000 | G26: x | H26: ='Other Inputs'!E55 -> 12 | I26: x | J26: ='Other Inputs'!F55 -> 3.1879 | K26: = | L26: 1262408
A27: 9 | B27: November - March | F27: ='Other Inputs'!D56 -> 50000 | G27: x | H27: ='Other Inputs'!E56 -> 5 | I27: x | J27: =J26 -> 3.1879 | K27: = | L27: 796975
A28: 10 | B28: December - February | F28: ='Other Inputs'!D61 -> 56925 | G28: x | H28: ='Other Inputs'!E61 -> 3 | I28: x | J28: ='Other Inputs'!F61 -> 8.796666667 | K28: = | L28: 1502251
A29: =A28+1 -> 11 | B29: November & March | F29: ='Other Inputs'!D63 -> 6000 | G29: x | H29: ='Other Inputs'!E63 -> 2 | I29: x | J29: ='Other Inputs'!F63 -> 8.845 | K29: = | L29: 106140
A30: 12 | B30: November - March | F30: ='Other Inputs'!D65 -> 27000 | G30: x | H30: ='Other Inputs'!E65 -> 5 | I30: x | J30: ='Other Inputs'!F65 -> 8.816 | K30: = | L30: 1190160
A31: =A30+1 -> 13 | C31: Total | L31: =SUM(L25:L30) -> 5216066
A33: =A31+1 -> 14 | B33: Total Transportation Demand (SNG) | M33: =L22+L31 -> 65594498
B36: TRANSPORTATION COMMODITY
A38: =A33+1 -> 15 | B38: Total ACA | F38: =Calculations!$P$173 -> 136482893.1 | I38: x | J38: ='Other Inputs'!F41 -> 0.0013 | K38: = | L38: =ROUND(F38*J38,0) -> 177428
A40: =A38+1 -> 16 | B40: QPC Commodity (SNG) | F40: ='Ut 1.4 p1'!F38-(D43*F43*H43)-(D44*F44*H44)-(D45*F45*H45)-(D46*F46*H46)-(D47*F47*H47) -> 116264614.1 | I40: x | J40: ='Other Inputs'!F40 -> 0.00267 | K40: = | L40: =ROUND(F40*J40,0) -> 310427
B42: Kern River Commodity
A43: =A40+1 -> 17 | B43: January - December | D43: ='Other Inputs'!C69 -> 0.673536602 | E43: x | F43: ='Other Inputs'!D69 -> 34885 | G43: x | H43: ='Other Inputs'!E69 -> 366 | I43: x | J43: ='Other Inputs'!F69 -> 0.0044 | K43: = | L43: =ROUND(D43*F43*H43*J43,0) -> 37838
A44: =A43+1 -> 18 | B44: November - March | D44: ='Other Inputs'!C70 -> 0.673536602 | E44: x | F44: ='Other Inputs'!D70 -> 50000 | G44: x | H44: ='Other Inputs'!E70 -> 152 | I44: x | J44: ='Other Inputs'!F70 -> 0.0044 | K44: = | L44: 22523
A45: 19 | B45: November & March | D45: ='Other Inputs'!C74 -> 0.673536602 | E45: x | F45: ='Other Inputs'!D74 -> 6000 | G45: x | H45: ='Other Inputs'!E74 -> 61 | I45: x | J45: ='Other Inputs'!F74 -> 0.0044 | K45: = | L45: 1085
A46: 20 | B46: December - February | D46: ='Other Inputs'!C73 -> 0.673536602 | E46: x | F46: ='Other Inputs'!D73 -> 56925 | G46: x | H46: ='Other Inputs'!E73 -> 91 | I46: x | J46: ='Other Inputs'!F73 -> 0.0044 | K46: = | L46: 15352
A47: 21 | B47: November - March | D47: ='Other Inputs'!C74 -> 0.673536602 | E47: x | F47: ='Other Inputs'!D76 -> 27000 | G47: x | H47: ='Other Inputs'!E76 -> 152 | I47: x | J47: ='Other Inputs'!F76 -> 0.0044 | K47: = | L47: 12162
A48: =A47+1 -> 22 | C48: Total (SNG) | L48: =SUM(L43:L47) -> 88960
A50: =A48+1 -> 23 | B50: Total Transportation Commodity | M50: =L48+L40+L38 -> 576815
B53: OTHER CHARGES
A54: =A50+1 -> 24 | B54: Other Transportation Charges | M54: =ROUND('Other Inputs'!$D$178,0) -> 3792843
B59: PEAK HOUR SERVICE
A60: =A54+1 -> 25 | B60: Mid November - Mid February | F60: ='Other Inputs'!D20 -> 28752 | G60: x | H60: ='Other Inputs'!E20 -> 3 | I60: x | J60: ='Other Inputs'!F20 -> 11.65333333 | K60: = | L60: =ROUND(F60*H60*J60,0) -> 1005170
A61: =A60+1 -> 26 | B61: Mid November - Mid February | F61: ='Other Inputs'!D23 -> 63666.66667 | G61: x | H61: ='Other Inputs'!E23 -> 3 | I61: x | J61: ='Other Inputs'!F23 -> 7.35747644 | K61: = | L61: =ROUND(F61*H61*J61,0) -> 1405278
A62: =A61+1 -> 27 | C62: Total Peak Hour Service | M62: =SUM(L60:L61) -> 2410448
A65: =A62+1 -> 28 | B65: TOTAL TRANSPORTATION AND OTHER CHARGES | M65: =SUM(M13:M63) -> 72374604

Sheet Ut 1.4 p2
L1: ='Control Panel'!$E$32 -> Dominion Energy Utah
L2: ='Control Panel'!$E$33 -> Docket No. 19-057-18
L3: DEU Exhibit 1.4
L4: Page 2 of 2
B7: TEST-YEAR STORAGE CHARGES
B9: SNG
B10: (A) | D10: (B) | F10: (C) | H10: (D) | J10: (E) | K10: (F)
B12: STORAGE CHARGES
B14: Component | D14: Dth | F14: Months | H14: Rate | K14: Total Costs
B15: Storage Demand
A16: 1 | B16: Aquifer Peaking Demand | D16: ='Other Inputs'!E163 -> 184625 | E16: x | F16: 12 | G16: x | H16: ='Other Inputs'!E14 -> 2.87375 | I16: = | J16: =ROUND(D16*F16*H16,0) -> 6366793
A17: =A16+1 -> 2 | B17: Spire Demand | D17: ='Other Inputs'!E164 -> 2500000 | E17: x | F17: 12 | G17: x | H17: ='Other Inputs'!E15 -> 0.09 | I17: = | J17: =ROUND(D17*F17*H17,0) -> 2700000
A18: =A17+1 -> 3 | B18: Clay Basin Demand | D18: ='Other Inputs'!E165 -> 111827 | E18: x | F18: 12 | G18: x | H18: ='Other Inputs'!E16 -> 2.85338 | I18: = | J18: =ROUND(D18*F18*H18,0) -> 3829019
A19: =A18+1 -> 4 | B19: Clay Basin Capacity | D19: ='Other Inputs'!E166 -> 13419000 | E19: x | F19: 12 | G19: x | H19: ='Other Inputs'!E17 -> 0.02378 | I19: = | J19: =ROUND(D19*F19*H19,0) -> 3829246
A20: =A19+1 -> 5 | C20: Total Demand Charges (SNG) | J20: =SUM(J16:J19) -> 16725058
B22: Storage Commodity 1/
A23: =A20+1 -> 6 | B23: Aquifer Peaking Injections | D23: =(+'Monthly Inputs'!S24+'Monthly Inputs'!S26+'Monthly Inputs'!S27) -> 1156592 | F23: x | H23: ='Other Inputs'!E6 -> 0.03872 | I23: = | J23: =ROUND(D23*H23,0) -> 44783
A24: =A23+1 -> 7 | B24: Aquifer Peaking Withdrawals | D24: =(+'Monthly Inputs'!S32+'Monthly Inputs'!S34+'Monthly Inputs'!S35) -> 1909592 | F24: x | H24: ='Other Inputs'!E7 -> 0.03872 | I24: = | J24: 73939
A25: 8 | B25: Spire Injections | D25: ='Monthly Inputs'!S28 -> 2316623 | F25: x | H25: ='Other Inputs'!E8 -> 0.015 | I25: = | J25: 34749
A26: 9 | B26: Spire Withdrawals | D26: ='Monthly Inputs'!S36 -> 2008600 | F26: x | H26: ='Other Inputs'!E9 -> 0.01 | I26: = | J26: 20086
A27: 10 | B27: Clay Basin Injections | D27: ='Monthly Inputs'!S25 -> 14681087 | F27: x | H27: ='Other Inputs'!E10 -> 0.01049 | I27: = | J27: 154005
A28: 11 | B28: Clay Basin Withdrawals | D28: ='Monthly Inputs'!S33 -> 12124470 | F28: x | H28: ='Other Inputs'!E11 -> 0.01781 | I28: = | J28: 215937
A29: 12 | C29: Total Commodity Charges | J29: =SUM(J23:J28) -> 543499
A31: =A29+1 -> 13 | B31: Total Storage Charges | K31: =J20+J29 -> 17268557
A39: 1/ | B39: Dominion Energy planned volumes.

Sheet Ut 1.5 p1
J1: ='Control Panel'!$E$32 -> Dominion Energy Utah
J2: ='Control Panel'!$E$33 -> Docket No. 19-057-18
J3: DEU Exhibit 1.5
J4: Page 1 of 3
B8: TEST-YEAR GAS COST CHANGE
B10: COMMODITY
B11: (A) | C11: (B) | D11: (C) | F11: (D) | H11: (E) | J11: (F)
F12: Average Rate | H12: x Dth | I12: = | J12: Total
A13: 1 | B13: Commodity Portion of Test-Year Gas Cost 1/ | J13: ='Ut 1.1 p2'!H29 -> 357156244.6
A14: =A13+1 -> 2 | B14: 191 Account Balance for Commodity Costs 2/ | J14: =D42 -> 49754027
A15: =A14+1 -> 3 | B15: Total | J15: =J13+J14 -> 406910271.6
H17: Total
B18: Test-Year Sales: | D18: Firm | F18: + Interruptible | H18: = Sales Dth
A20: =A15+1 -> 4 | B20: Utah | D20: =Calculations!P13 -> 113293561 | F20: =Calculations!P17 -> 130911 | H20: =D20+F20 -> 113424472
A21: =A20+1 -> 5 | B21: Wyoming | D21: =Calculations!P32 -> 3793583 | F21: =Calculations!P36 -> 134598 | H21: =D21+F21 -> 3928181
A22: =A21+1 -> 6 | B22: Total Dth | H22: =SUM(H20:H21) -> 117352653
F26: Current Case | H26: Prior Case
B27: COMMODITY RATES | F27: ='Control Panel'!E5 -> 19-057-18 | H27: ='Control Panel'!E9 -> 19-057-04 | J27: Difference
A29: =A22+1 -> 7 | B29: Gas Cost (line 1/Total Sales Dth, line 4) | F29: =ROUND((J13)/H20,5) -> 3.14885 | H29: ='Other Inputs'!F115 -> 3.21635 | J29: =F29-H29 -> -0.0675
A30: =A29+1 -> 8 | B30: 191 Account Amortization (Commodity Portion) | F30: =D42/H20 -> 0.438653371 | H30: ='Other Inputs'!F116 -> 0.06922 | J30: =F30-H30 -> 0.369433371
A31: =A30+1 -> 9 | B31: Total Sales Unit Commodity Cost (Lines 7 + 8) | F31: =F29+F30 -> 3.587503371 | H31: =H29+H30 -> 3.28557 | J31: =J29+J30 -> 0.301933371
A38: 1/ | B38: Exhibit 1.1, page 2, line 9, column E.
A40: 2/ | B40: 191 Account (July 2019) actual | D40: ='Other Inputs'!E133 -> 53500538
B41: Less: Supplier Non-Gas balance actual | D41: ='Other Inputs'!E134 -> 3746511
B42: 191 Account Commodity Portion | D42: =(D40-D41) -> 49754027 | F42: =H20 -> 113424472 | H42: =D42/F42 -> 0.438653371
B43: See Application, paragraph 15.

Sheet Ut 1.5 p2
G1: ='Control Panel'!$E$32 -> Dominion Energy Utah
G2: ='Control Panel'!$E$33 -> Docket No. 19-057-18
G3: DEU Exhibit 1.5
G4: Page 2 of 3
C8: TEST-YEAR SUPPLIER NON-GAS COST CHANGE
B10: SNG
C11: (A) | D11: (B) | E11: (C) | F11: (D)
D12: Dth | E12: Average Rate | F12: Total
B15: 1 | C15: Supplier Non-Gas (SNG) Costs 1/ | F15: ='Ut 1.1 p2'!H43 -> 86880199.7
B16: =B15+1 -> 2 | C16: 191 Account Balance for SNG Costs 2/ | F16: =E45 -> 2440017
B17: =1+B16 -> 3 | C17: SNG Total Costs Recovered for Test-Year 3/ | F17: =SUM(F15:F16) -> 89320216.7
B20: 4 | C20: Supplier Non-Gas Base Cost at Current Rates | F20: =F22-F16 -> 109773533.4
B21: 5 | C21: Amortization 2/ | F21: ='Other Inputs'!F137 -> 2440017
B22: 6 | C22: SNG Total Costs Recovered at Current Rates 3/ | F22: ='Other Inputs'!E240-(D30*('Other Inputs'!G92-'Other Inputs'!F241)) -> 112213550.4
B25: =1+B22 -> 7 | C25: SNG Costs Adjustment to Current Rates (Line 3 - Line 6) | F25: =F17-F22 -> -22893333.7
C29: Adjustment for SNG contributions from:
B30: 8 | C30: IS SNG current rate | D30: ='RevRun Fcst'!T102+'RevRun Fcst'!T93 -> 130911 | E30: 0.17864 | F30: =D30*E30 -> 23385.94104
B31: 9 | C31: IS SNG new rate | D31: ='RevRun Fcst'!T102+'RevRun Fcst'!T93 -> 130911 | E31: 0.17862 | F31: =D31*E31 -> 23383.32282
B35: 10 | C35: Percent Change to Current Base Rates | F35: =(((+F17-F31)-(F22-F30))/(F22-F30))*100 -> -20.40582719 | G35: %
C36: ((ln 1-ln 9)-(ln 4-ln 8))/(ln 4-8)
B38: =B35+1 -> 11 | C38: Percent Change to Amortization | F38: =(F16-F21)/F16 -> 0 | G38: %
C39: (ln 2-ln 5)/ln 2
B43: 1/ | C43: Exhibit 1.1, page 2, line 16, column E.
B45: 2/ | C45: Spring pass-through SNG amortization from Docket No. 19-057-04 | E45: ='Other Inputs'!F137 -> 2440017
C46: Amortization will be adjusted in the 2020 spring pass-through.
B48: 3/ | C48: ="Output of Revrun.Exe computer program dated "&'RevRun Fcst'!D4 -> Output of Revrun.Exe computer program dated 08/06/19

Sheet Ut 1.5 p3
M1: ='Control Panel'!$E$32 -> Dominion Energy Utah
M2: ='Control Panel'!$E$33 -> Docket No. 19-057-18
M3: DEU Exhibit 1.5
M4: Page 3 of 3
A7: TEST-YEAR CHANGE IN SUPPLIER NON-GAS COSTS
A8: BY RATE CLASS
B10: SNG
C11: (A) | D11: (B) | E11: (C) | I11: (D) | L11: (E)
B13: Calculation of Rate Change
C14: Rate Class | D14: Season | E14: Current Total 1/ | I14: Percent Change 2/ | L14: Proposed Total
B16: 1 | C16: GS | D16: Winter | E16: ='Other Inputs'!G84 -> 1.16499 | F16: x | G16: (1 | H16: + | I16: ='Ut 1.5 p2'!$F$35/100 -> -0.2040582719 | J16: ) | K16: = | L16: =ROUND(E16*(1+I16),5) -> 0.92726
B17: 2 | D17: Summer | E17: ='Other Inputs'!G85 -> 0.54698 | F17: x | G17: (1 | H17: + | I17: ='Ut 1.5 p2'!$F$35/100 -> -0.2040582719 | J17: ) | K17: = | L17: =ROUND(E17*(1+I17),5) -> 0.43536
B19: =B17+1 -> 3 | C19: FS | D19: Winter | E19: ='Other Inputs'!G87 -> 1.13466 | F19: x | G19: (1 | H19: + | I19: ='Ut 1.5 p2'!$F$35/100 -> -0.2040582719 | J19: ) | K19: = | L19: =ROUND(E19*(1+I19),5) -> 0.90312
B20: =B19+1 -> 4 | D20: Summer | E20: ='Other Inputs'!G88 -> 0.54698 | F20: x | G20: (1 | H20: + | I20: ='Ut 1.5 p2'!$F$35/100 -> -0.2040582719 | J20: ) | K20: = | L20: =ROUND(E20*(1+I20),5) -> 0.43536
B22: =B20+1 -> 5 | C22: NGV | E22: ='Other Inputs'!G90 -> 0.84068 | F22: x | G22: (1 | H22: + | I22: ='Ut 1.5 p2'!$F$35/100 -> -0.2040582719 | J22: ) | K22: = | L22: =ROUND(E22*(1+I22),5) -> 0.66913
B25: Calculation of Amortization
C26: Rate Class | D26: Season | E26: Current Amortization 1/ | I26: Percent Change 3/ | L26: Proposed Amortization
B28: =B22+1 -> 6 | C28: GS | D28: Winter | E28: ='Other Inputs'!F84 -> 0.0259 | F28: x | G28: (1 | H28: + | I28: ='Ut 1.5 p2'!$F$38/100 -> 0 | J28: ) | K28: = | L28: =ROUND(E28*ROUND(1+I28,7),5) -> 0.0259
B29: =B28+1 -> 7 | D29: Summer | E29: ='Other Inputs'!F85 -> 0.01216 | F29: x | G29: (1 | H29: + | I29: ='Ut 1.5 p2'!$F$38/100 -> 0 | J29: ) | K29: = | L29: =ROUND(E29*ROUND(1+I29,7),5) -> 0.01216
B31: =B29+1 -> 8 | C31: FS | D31: Winter | E31: ='Other Inputs'!F87 -> 0.02523 | F31: x | G31: (1 | H31: + | I31: ='Ut 1.5 p2'!$F$38/100 -> 0 | J31: ) | K31: = | L31: =ROUND(E31*ROUND(1+I31,7),5) -> 0.02523
B32: =B31+1 -> 9 | D32: Summer | E32: ='Other Inputs'!F88 -> 0.01216 | F32: x | G32: (1 | H32: + | I32: ='Ut 1.5 p2'!$F$38/100 -> 0 | J32: ) | K32: = | L32: =ROUND(E32*ROUND(1+I32,7),5) -> 0.01216
B34: =B32+1 -> 10 | C34: NGV | E34: ='Other Inputs'!F90 -> 0.0187 | F34: x | G34: (1 | H34: + | I34: ='Ut 1.5 p2'!$F$38/100 -> 0 | J34: ) | K34: = | L34: =ROUND(E34*ROUND(1+I34,7),5) -> 0.0187
B37: Calculation of Proposed Base
C38: Rate Class | D38: Season | E38: Proposed Total | I38: =L26 -> Proposed Amortization | L38: Proposed Base
B40: =B34+1 -> 11 | C40: GS | D40: Winter | E40: =L16 -> 0.92726 | G40: - | I40: =L28 -> 0.0259 | K40: = | L40: =E40-I40 -> 0.90136
B41: =B40+1 -> 12 | D41: Summer | E41: =L17 -> 0.43536 | G41: - | I41: =L29 -> 0.01216 | K41: = | L41: =E41-I41 -> 0.4232
B43: =B41+1 -> 13 | C43: FS | D43: Winter | E43: =L19 -> 0.90312 | G43: - | I43: =L31 -> 0.02523 | K43: = | L43: =E43-I43 -> 0.87789
B44: =B43+1 -> 14 | D44: Summer | E44: =L20 -> 0.43536 | G44: - | I44: =L32 -> 0.01216 | K44: = | L44: 0.4232
B46: =B44+1 -> 15 | C46: NGV | E46: =L22 -> 0.66913 | G46: - | I46: =L34 -> 0.0187 | K46: = | L46: =E46-I46 -> 0.65043
B48: =B46+1 -> 16 | C48: IS 4/ | E48: =(('Other Inputs'!$F$44+'Other Inputs'!$F$45)/(1-'Other Inputs'!$E$265))/(1-'Other Inputs'!$E$276) -> 0.1790714858
B51: 1/ | C51: Current Dominon Energy Utah Tariff (excluding bad debt surcharge).
B53: 2/ | C53: Exhibit 1.5, page 2, line 10
B55: 3/ | C55: Exhibit 1.5, page 2, line 11
B57: 4/ | C57: ="Calculated by adding QPC T-2 and ACA rates, then adjusting for distr. loss of "&TEXT('Other Inputs'!E265,"0.000%") -> Calculated by adding QPC T-2 and ACA rates, then adjusting for distr. loss of 0.450%
C58: ="= ("&TEXT('Other Inputs'!$F$44,"$0.00000")&" + "&TEXT('Other Inputs'!$F$45,"$0.00000")&") / ( 1 - "&TEXT('Other Inputs'!$E$265,"0.00000")&" ) = "&TEXT(('Other Inputs'!F44+'Other Inputs'!F45)/(1-('Other Inputs'!$E$265)),("$0.00000")) -> = ($0.17652 + $0.00130) / ( 1 - 0.00450 ) = $0.17862
C59: ="IS Tariff rate has an adjustment for bad debt of "&TEXT('Other Inputs'!$E$276,"0.00%") -> IS Tariff rate has an adjustment for bad debt of 0.25%
C60: =" = "&TEXT((('Other Inputs'!$F$44+'Other Inputs'!$F$45)/(1-'Other Inputs'!$E$265)),"$0.00000")&" / ( 1 - "&TEXT('Other Inputs'!$E$276,"0.00000")&" ) = "&TEXT((('Other Inputs'!$F$44+'Other Inputs'!$F$45)/(1-'Other Inputs'!$E$265))/(1-('Other Inputs'!$E$276)),("$0.00000")) -> = $0.17862 / ( 1 - 0.00250 ) = $0.17907
L61: =(#REF!/(1-('Other Inputs'!$E$276))) -> 

Sheet Ut 1.6
L1: ='Control Panel'!$E$32 -> Dominion Energy Utah
L2: ='Control Panel'!$E$33 -> Docket No. 19-057-18
L3: DEU Exhibit 1.6
C7: EFFECT ON GS TYPICAL CUSTOMER
C8: 80 DTHS - ANNUAL CONSUMPTION
C11: (A) | D11: (B) | E11: (C) | F11: (D) | H11: (E) | J11: (F)
F12: Billed at Current | H12: Billed at
C13: Rate | E13: Usage | F13: Rates Effective | H13: Proposed Rates
C14: Schedule | D14: Month | E14: In Dth | F14: ='Other Inputs'!J96 -> 2019-08-01 | H14: ='Control Panel'!E5 -> 19-057-18 | J14: Change
B16: 1 | C16: GS | D16: Jan | E16: ='Monthly Inputs'!G116 -> 14.9 | F16: =ROUND((+E16*'Other Inputs'!$G$98)+'Other Inputs'!$G$100,2) -> 113.62 | H16: =ROUND((+E16*'Ut 1.7 Source'!$F$10)+'Ut 1.7 Source'!$C$12,2) -> 114.58 | J16: =H16-F16 -> 0.96
B17: =B16+1 -> 2 | D17: Feb | E17: ='Monthly Inputs'!G117 -> 12.5 | F17: =ROUND((+E17*'Other Inputs'!$G$98)+'Other Inputs'!$G$100,2) -> 96.41 | H17: =ROUND((+E17*'Ut 1.7 Source'!$F$10)+'Ut 1.7 Source'!$C$12,2) -> 97.21 | J17: 0.8
B18: =B17+1 -> 3 | D18: Mar | E18: ='Monthly Inputs'!G118 -> 10.1 | F18: =ROUND((+E18*'Other Inputs'!$G$98)+'Other Inputs'!$G$100,2) -> 79.2 | H18: =ROUND((+E18*'Ut 1.7 Source'!$F$10)+'Ut 1.7 Source'!$C$12,2) -> 79.84 | J18: 0.64
B19: 4 | D19: Apr | E19: ='Monthly Inputs'!G119 -> 8.3 | F19: =ROUND((+E19*'Other Inputs'!$G$96)+'Other Inputs'!$G$100,2) -> 55.74 | H19: =ROUND((+E19*'Ut 1.7 Source'!$C$10)+'Ut 1.7 Source'!$C$12,2) -> 57.32 | J19: 1.58
B20: 5 | D20: May | E20: ='Monthly Inputs'!G120 -> 4.4 | F20: =ROUND((+E20*'Other Inputs'!$G$96)+'Other Inputs'!$G$100,2) -> 32.72 | H20: =ROUND((+E20*'Ut 1.7 Source'!$C$10)+'Ut 1.7 Source'!$C$12,2) -> 33.56 | J20: 0.84
B21: 6 | D21: Jun | E21: ='Monthly Inputs'!G121 -> 3.1 | F21: =ROUND((+E21*'Other Inputs'!$G$96)+'Other Inputs'!$G$100,2) -> 25.05 | H21: =ROUND((+E21*'Ut 1.7 Source'!$C$10)+'Ut 1.7 Source'!$C$12,2) -> 25.64 | J21: 0.59
B22: 7 | D22: Jul | E22: ='Monthly Inputs'!G122 -> 2 | F22: =ROUND((+E22*'Other Inputs'!$G$96)+'Other Inputs'!$G$100,2) -> 18.56 | H22: =ROUND((+E22*'Ut 1.7 Source'!$C$10)+'Ut 1.7 Source'!$C$12,2) -> 18.94 | J22: 0.38
B23: 8 | D23: Aug | E23: ='Monthly Inputs'!G123 -> 1.8 | F23: =ROUND((+E23*'Other Inputs'!$G$96)+'Other Inputs'!$G$100,2) -> 17.38 | H23: =ROUND((+E23*'Ut 1.7 Source'!$C$10)+'Ut 1.7 Source'!$C$12,2) -> 17.72 | J23: 0.34
B24: 9 | D24: Sep | E24: ='Monthly Inputs'!G124 -> 2 | F24: =ROUND((+E24*'Other Inputs'!$G$96)+'Other Inputs'!$G$100,2) -> 18.56 | H24: =ROUND((+E24*'Ut 1.7 Source'!$C$10)+'Ut 1.7 Source'!$C$12,2) -> 18.94 | J24: 0.38
B25: 10 | D25: Oct | E25: ='Monthly Inputs'!G125 -> 3.1 | F25: =ROUND((+E25*'Other Inputs'!$G$96)+'Other Inputs'!$G$100,2) -> 25.05 | H25: =ROUND((+E25*'Ut 1.7 Source'!$C$10)+'Ut 1.7 Source'!$C$12,2) -> 25.64 | J25: 0.59
B26: 11 | D26: Nov | E26: ='Monthly Inputs'!G126 -> 6.3 | F26: =ROUND((+E26*'Other Inputs'!$G$98)+'Other Inputs'!$G$100,2) -> 51.94 | H26: =ROUND((+E26*'Ut 1.7 Source'!$F$10)+'Ut 1.7 Source'!$C$12,2) -> 52.34 | J26: 0.4
B27: 12 | D27: Dec | E27: ='Monthly Inputs'!G127 -> 11.5 | F27: =ROUND((+E27*'Other Inputs'!$G$98)+'Other Inputs'!$G$100,2) -> 89.24 | H27: =ROUND((+E27*'Ut 1.7 Source'!$F$10)+'Ut 1.7 Source'!$C$12,2) -> 89.98 | J27: 0.74
B30: =B27+1 -> 13 | D30: Total | E30: =SUM(E16:E27) -> 80 | F30: =SUM(F16:F27) -> 623.47 | H30: =SUM(H16:H27) -> 631.71 | J30: =H30-F30 -> 8.24
B32: =B30+1 -> 14 | H32: Percent Change: | J32: =ROUND(J30/F30,4)*100 -> 1.32 | K32: %

Sheet Ut 1.7 Tot (hidden)
L1: ='Control Panel'!$E$32 -> Dominion Energy Utah
L2: Docket Nos. 08-057-15, 08-057-16 & 08-057-17
L3: Hearing Exhibit 2
A5: NOT USED
C7: EFFECT ON GS-1 TYPICAL CUSTOMER
B8: OF PROPOSED COMMODITY AND SNG RATES AND CET AND DSM AMORTIZATIONS
C9: 80 DTHS - ANNUAL CONSUMPTION
C12: (A) | D12: (B) | E12: (C) | F12: (D) | H12: (E) | J12: (F)
F13: Billed at Current | H13: Billed at
C14: Rate | E14: Usage | F14: Rates Effective | H14: Proposed
C15: Schedule | D15: Month | E15: In Dth | F15: ='Other Inputs'!J96 -> 2019-08-01 | H15: Rates | J15: Change
B17: 1 | C17: GS | D17: Jan | E17: ='Monthly Inputs'!G116 -> 14.9 | F17: =ROUND((+E17*'Other Inputs'!$G$98)+'Other Inputs'!$G$100,2) -> 113.62 | H17: ='CET & DSM'!D107 ->  | J17: =H17-F17 -> 
B18: =B17+1 -> 2 | D18: Feb | E18: ='Monthly Inputs'!G117 -> 12.5 | F18: =ROUND((+E18*'Other Inputs'!$G$98)+'Other Inputs'!$G$100,2) -> 96.41 | H18: ='CET & DSM'!D108 -> 
B19: 3 | D19: Mar | E19: ='Monthly Inputs'!G118 -> 10.1 | F19: =ROUND((+E19*'Other Inputs'!$G$98)+'Other Inputs'!$G$100,2) -> 79.2 | H19: ='CET & DSM'!D109 -> 
B20: 4 | D20: Apr | E20: ='Monthly Inputs'!G119 -> 8.3 | F20: =ROUND((+E20*'Other Inputs'!$G$96)+'Other Inputs'!$G$100,2) -> 55.74 | H20: ='CET & DSM'!D110 -> 
B21: 5 | D21: May | E21: ='Monthly Inputs'!G120 -> 4.4 | F21: =ROUND((+E21*'Other Inputs'!$G$96)+'Other Inputs'!$G$100,2) -> 32.72 | H21: ='CET & DSM'!D111 -> 
B22: 6 | D22: Jun | E22: ='Monthly Inputs'!G121 -> 3.1 | F22: =ROUND((+E22*'Other Inputs'!$G$96)+'Other Inputs'!$G$100,2) -> 25.05 | H22: ='CET & DSM'!D112 -> 
B23: 7 | D23: Jul | E23: ='Monthly Inputs'!G122 -> 2 | F23: =ROUND((+E23*'Other Inputs'!$G$96)+'Other Inputs'!$G$100,2) -> 18.56 | H23: ='CET & DSM'!D113 -> 
B24: 8 | D24: Aug | E24: ='Monthly Inputs'!G123 -> 1.8 | F24: =ROUND((+E24*'Other Inputs'!$G$96)+'Other Inputs'!$G$100,2) -> 17.38 | H24: ='CET & DSM'!D114 -> 
B25: 9 | D25: Sep | E25: ='Monthly Inputs'!G124 -> 2 | F25: =ROUND((+E25*'Other Inputs'!$G$96)+'Other Inputs'!$G$100,2) -> 18.56 | H25: ='CET & DSM'!D115 -> 
B26: 10 | D26: Oct | E26: ='Monthly Inputs'!G125 -> 3.1 | F26: =ROUND((+E26*'Other Inputs'!$G$96)+'Other Inputs'!$G$100,2) -> 25.05 | H26: ='CET & DSM'!D116 -> 
B27: 11 | D27: Nov | E27: ='Monthly Inputs'!G126 -> 6.3 | F27: =ROUND((+E27*'Other Inputs'!$G$98)+'Other Inputs'!$G$100,2) -> 51.94 | H27: ='CET & DSM'!D117 -> 
B28: 12 | D28: Dec | E28: ='Monthly Inputs'!G127 -> 11.5 | F28: =ROUND((+E28*'Other Inputs'!$G$98)+'Other Inputs'!$G$100,2) -> 89.24 | H28: ='CET & DSM'!D118 -> 
B31: =B28+1 -> 13 | D31: Total | E31: =SUM(E17:E28) -> 80 | F31: =SUM(F17:F28) -> 623.47 | H31: =SUM(H17:H28) ->  | J31: =H31-F31 -> 
H33: Percent Change: | J33: =ROUND(J31/F31,4)*100 ->  | K33: %

Sheet Ut 1.7 p1
F1: ='Control Panel'!E32 -> Dominion Energy Utah
F2: ='Control Panel'!E33 -> Docket No. 19-057-18
F3: DEU Exhibit 1.7
F4: Page 1 of 29
A15: DOMINION ENERGY UTAH
A16: 333 South State Street
A17: P.O. Box 45433
A18: Salt Lake City, Utah 84145-0433
A29: LEGISLATIVE/PROPOSED RATE SCHEDULES
A31: P.S.C. Utah No. 500
A32: Affecting All Firm Sales Rate Schedules
A33: and Classes of Service In
A34: Dominion Energy
A35: Utah Service Area
A37: Tariff Section 2.06, pages 2-9 through 2-14
A39: Date Issued: September 30, 2019
A40: To Become Effective October 1, 2019

Sheet LEG - PR
A2: LEGISLATIVE TARIFF
A3: SHEETS
A6: PROPOSED TARIFF
A7: SHEETS

Sheet Ut 1.7 Source
A1: SUMMARY OF PROPOSED RATES
A3: UTAH RATE CLASSES | C3: Rates per Dth Used Each Month
C4: All Season Rates or Summer Rates: Apr. 1 - Oct. 31 | F4: Winter Rates: Nov. 1 - Mar. 31
A5: UT GS | C5: First 45 Dth | D5: All Over 45 Dth | F5: First 45 Dth | G5: All Over 45 Dth
B6: Distribution Non-Gas Cost | C6: 2.07032 | D6: 0.93349 | F6: 2.72224 | G6: 1.58541
B7: Supplier Non-Gas Cost | C7: =+'Ut 1.5 p3'!L17 -> 0.43536 | D7: =C7 -> 0.43536 | F7: =+'Ut 1.5 p3'!L16 -> 0.92726 | G7: =F7 -> 0.92726
B8: Commodity Cost | C8: =('Ut 1.5 p1'!$F$31) -> 3.587503371 | D8: =C8 -> 3.587503371 | F8: =D8 -> 3.587503371 | G8: =F8 -> 3.587503371
B10: Total Rate | C10: =SUM(C6:C9) -> 6.093183371 | D10: =SUM(D6:D9) -> 4.956353371 | F10: =SUM(F6:F9) -> 7.237003371 | G10: =SUM(G6:G9) -> 6.100173371
B12: BSF Category 1 | C12: 6.75
B13: BSF Category 2 | C13: 18.25
B14: BSF Category 3 | C14: 63.5
B15: BSF Category 4 | C15: 420.25
A18: UT FS | C18: First 200 Dth | D18: Next 1,800 Dth | E18: All Over 2,000 Dth | F18: First 200 Dth | G18: Next 1,800 Dth | H18: All Over 2,000 Dth
B19: Distribution Non-Gas Cost | C19: 0.9411 | D19: 0.48793 | E19: 0.01091 | F19: 1.41228 | G19: 0.95911 | H19: 0.48208
B20: Supplier Non-Gas Cost | C20: =+'Ut 1.5 p3'!L20 -> 0.43536 | D20: =C20 -> 0.43536 | E20: =D20 -> 0.43536 | F20: =+'Ut 1.5 p3'!L19 -> 0.90312 | G20: =F20 -> 0.90312 | H20: =G20 -> 0.90312
B21: Commodity Cost | C21: =('Ut 1.5 p1'!$F$31) -> 3.587503371 | D21: =C21 -> 3.587503371 | E21: =D21 -> 3.587503371 | F21: =E21 -> 3.587503371 | G21: =F21 -> 3.587503371 | H21: =G21 -> 3.587503371
B23: Total Rate | C23: =SUM(C19:C22) -> 4.963963371 | D23: =SUM(D19:D22) -> 4.510793371 | E23: 4.033773371 | F23: 5.902903371 | G23: 5.449733371 | H23: 4.972703371
B25: Minimum Monthly DNG Charge: | C25: 143 | F25: 218
B27: BSF Category 1 | C27: =C12 -> 6.75
B28: BSF Category 2 | C28: =C13 -> 18.25
B29: BSF Category 3 | C29: =C14 -> 63.5
B30: BSF Category 4 | C30: =C15 -> 420.25
A33: UT Future Rate Class
C34: First 10,000 Dth | D34: All Over 10,000 Dth
B35: Distribution Non-Gas Cost
B36: Supplier Non-Gas Cost
B37: Commodity Cost
B39: Total Rate | C39: =SUM(C35:C38) -> 0 | D39: =SUM(D35:D38) -> 0
B41: Minimum Yearly Distribution Non-Gas Charge | D41: =ROUND(((10000*C35))*12,-2) -> 0
B44: BSF Category 1 | C44: =C12 -> 6.75
B45: BSF Category 2 | C45: =C13 -> 18.25
B46: BSF Category 3 | C46: =C14 -> 63.5
B47: BSF Category 4 | C47: =C15 -> 420.25
A51: UT NGV
B52: Distribution Non-Gas Cost | C52: 6.86015
B53: Supplier Non-Gas Cost | C53: =+'Ut 1.5 p3'!L22 -> 0.66913
B54: Commodity Cost | C54: ='Ut 1.5 p1'!F31 -> 3.587503371
B56: Total Rate | C56: =SUM(C52:C55) -> 11.11678337
A59: UT IS | C59: First 2,000 Dth | D59: Next 18,000 Dth | E59: All Over 20,000
B60: Distribution Non-Gas Cost | C60: 0.97451 | D60: 0.11832 | E60: 0.10639
B61: Supplier Non-Gas Cost | C61: =+'Ut 1.5 p3'!$E$48 -> 0.1790714858 | D61: =C61 -> 0.1790714858 | E61: =D61 -> 0.1790714858
B62: Commodity Cost | C62: =('Ut 1.5 p1'!$F$31) -> 3.587503371 | D62: =('Ut 1.5 p1'!$F$31) -> 3.587503371 | E62: =('Ut 1.5 p1'!$F$31) -> 3.587503371
B64: Total Rate | C64: =SUM(C60:C62) -> 4.741084857 | D64: =SUM(D60:D62) -> 3.884894857 | E64: 3.872964857
B66: BSF Category 1 | C66: =C12 -> 6.75
B67: BSF Category 2 | C67: =C13 -> 18.25
B68: BSF Category 3 | C68: 63.5
B69: BSF Category 4 | C69: 420.25

Sheet Ut 1.11 (hidden)
F1: ='Control Panel'!E36 -> 0
F2: ='Control Panel'!E33 -> Docket No. 19-057-18
F3: Exhibit 1.11
F4: Page 1 of 7
A17: DOMINION ENERGY UTAH
A18: 333 South State Street
A19: P.O. Box 45433
A20: Salt Lake City, Utah 84145-0433
A31: LEGISLATIVE/PROPOSED RATE SCHEDULES
A32: P.S.C. Utah Tariff

Sheet Ut 1.8 p1
F1: ='Control Panel'!E32 -> Dominion Energy Utah
F2: ='Control Panel'!E33 -> Docket No. 19-057-18
F3: DEU Exhibit 1.8
F4: Page 1 of 29
A15: DOMINION ENERGY UTAH
A16: 333 South State Street
A17: P.O. Box 45433
A18: Salt Lake City, Utah 84145-0433
A29: LEGISLATIVE/PROPOSED COMBINED RATE SCHEDULES
A31: P.S.C. Utah No. 500
A32: Affecting All Rate Schedules
A33: and Classes of Service In
A34: Dominion Energy
A35: Utah Service Area
A39: Date Issued: August 30, 2019
A40: To Become Effective October 1, 2019

Sheet Ut Storage
A1: Storage Injection / Withdrawal adjustment
C3: (A) | D3: (B) | E3: (C) | F3: (D) | G3: (E) | H3: (F) | I3: (G) | K3: (H) | L3: (I) | M3: (J)
G4: Injections | I4: (J) / (C)
E5: Storage | G5: ------------------------------------------------------------- | I5: Storage | M5: Storage
C6: Injection Dth | D6: Withdrawal Dth | E6: Inventory Dth | F6: % that is | G6: Co. Prod. | H6: Purchased | I6: Inventory | M6: Inventory
A7: Line | B7: Month | C7: Per IRPs | D7: Per IRPs | E7: Balance | F7: Co. Prod. (1) | G7: $/Dth (2) | H7: $/Dth (3) | I7: Average $/Dth | K7: Injection (4) | L7: Withdrawal (5) | M7: Balance
B8: =+Expenses!S9 -> 2019-07-01 | E8: =-1*'Other Inputs'!D245 -> 6908613 | I8: =M8/E8 -> 4.852178488 | M8: ='Other Inputs'!E245 -> 33521823.38
B9: ='Monthly Inputs'!E3 -> Aug19 | C9: ='Monthly Inputs'!E29 -> 2905762.726 | D9: =-'Monthly Inputs'!E37 -> 0 | E9: =E8+C9+D9 -> 9814375.726 | F9: =F21 -> 0.98980724 | G9: ='Other Inputs'!F112 -> 3.72172 | H9: ='Monthly Inputs'!E79 -> 2.000268174 | I9: =M9/E9 -> 4.512286298 | K9: =(+F9*C9*G9)+((1-F9)*C9*H9) -> 10763449.74 | L9: =D9*I8 -> 0 | M9: =M8+L9+K9 -> 44285273.12
B10: ='Monthly Inputs'!F3 -> Sep19 | C10: ='Monthly Inputs'!F29 -> 2226814.732 | D10: =-'Monthly Inputs'!F37 -> 0 | E10: =E9+C10+D10 -> 12041190.46 | F10: =F22 -> 0.7941447982 | G10: =G9 -> 3.72172 | H10: ='Monthly Inputs'!F79 -> 1.955685 | I10: 4.298852453 | K10: =(+F10*C10*G10)+((1-F10)*C10*H10) -> 7478028.014 | L10: =D10*I9 -> 0 | M10: =M9+L10+K10 -> 51763301.13
A11: 1. | B11: ='Monthly Inputs'!G3 -> Oct19 | C11: ='Monthly Inputs'!G29 -> 3936714 | D11: =-'Monthly Inputs'!G37 -> 0 | E11: =E10+C11+D11 -> 15977904.46 | F11: =Calculations!D177 -> 0.5124301504 | G11: ='Ut 1.2 p3'!$G$50 -> 3.828334966 | H11: =Calculations!D197 -> 1.92276 | I11: 3.954007651 | K11: 11413455.34 | L11: =D11*I10 -> 0 | M11: =M10+L11+K11 -> 63176756.47
A12: 2. | B12: ='Monthly Inputs'!H3 -> Nov19 | C12: ='Monthly Inputs'!H29 -> 1626786 | D12: =-'Monthly Inputs'!H37 -> -1455328 | E12: =E11+C12+D12 -> 16149362.46 | F12: =Calculations!E177 -> 0.4146563658 | G12: ='Ut 1.2 p3'!$G$50 -> 3.828334966 | H12: =Calculations!E197 -> 2.15075 | I12: 3.842431275 | K12: 4630436.958 | L12: =D12*I11 -> -5754378.046 | M12: =M11+L12+K12 -> 62052815.38
A13: 3. | B13: ='Monthly Inputs'!I3 -> Dec19 | C13: ='Monthly Inputs'!I29 -> 0 | D13: =-'Monthly Inputs'!I37 -> -3831646 | E13: =E12+C13+D13 -> 12317716.46 | F13: =Calculations!F177 -> 0.3468970657 | G13: ='Ut 1.2 p3'!$G$50 -> 3.828334966 | H13: =Calculations!F197 -> 2.35383 | I13: 3.842431275 | K13: 0 | L13: =D13*I12 -> -14722836.43 | M13: 47329978.95
A14: 4. | B14: ='Monthly Inputs'!J3 -> Jan20 | C14: ='Monthly Inputs'!J29 -> 0 | D14: =-'Monthly Inputs'!J37 -> -3997692 | E14: 8320024.457 | F14: =Calculations!G177 -> 0.3111948965 | G14: ='Ut 1.2 p3'!$G$50 -> 3.828334966 | H14: =Calculations!G197 -> 2.32986 | I14: =M14/E14 -> 3.842431275 | K14: 0 | L14: =D14*I13 -> -15360856.77 | M14: 31969122.18
A15: 5. | B15: ='Monthly Inputs'!K3 -> Feb20 | C15: ='Monthly Inputs'!K29 -> 0 | D15: =-'Monthly Inputs'!K37 -> -3671446 | E15: 4648578.457 | F15: =Calculations!H177 -> 0.3513086711 | G15: ='Ut 1.2 p3'!$G$50 -> 3.828334966 | H15: =Calculations!H197 -> 2.2474 | I15: 3.842431275 | K15: 0 | L15: -14107278.94 | M15: 17861843.25
A16: 6. | B16: ='Monthly Inputs'!L3 -> Mar20 | C16: ='Monthly Inputs'!L29 -> 0 | D16: =-'Monthly Inputs'!L37 -> -3086550 | E16: =E15+C16+D16 -> 1562028.457 | F16: =Calculations!I177 -> 0.4685532132 | G16: ='Ut 1.2 p3'!$G$50 -> 3.828334966 | H16: =Calculations!I197 -> 1.8372 | I16: =M16/E16 -> 3.842431275 | K16: 0 | L16: -11859856.25 | M16: 6001986.997
A17: 7. | B17: ='Monthly Inputs'!M3 -> Apr20 | C17: ='Monthly Inputs'!M29 -> 335461 | D17: =-'Monthly Inputs'!M37 -> 0 | E17: 1897489.457 | F17: =Calculations!J177 -> 0.5080869666 | G17: ='Ut 1.2 p3'!$G$50 -> 3.828334966 | H17: =Calculations!J197 -> 1.79432 | I17: =M17/E17 -> 3.663048404 | K17: 948608.7305 | L17: 0 | M17: 6950595.728
A18: 8. | B18: ='Monthly Inputs'!N3 -> May20 | C18: ='Monthly Inputs'!N29 -> 1765471 | D18: =-'Monthly Inputs'!N37 -> 0 | E18: 3662960.457 | F18: =Calculations!K177 -> 0.6561357839 | G18: ='Ut 1.2 p3'!$G$50 -> 3.828334966 | H18: =Calculations!K197 -> 1.64062 | I18: 3.380131234 | K18: 5430691.324 | L18: =D18*I17 -> 0 | M18: 12381287.05
A19: 9. | B19: ='Monthly Inputs'!O3 -> Jun20 | C19: ='Monthly Inputs'!O29 -> 3041730 | D19: =-'Monthly Inputs'!O37 -> 0 | E19: 6704690.457 | F19: =Calculations!L177 -> 0.7170150338 | G19: ='Ut 1.2 p3'!$G$50 -> 3.828334966 | H19: =Calculations!L197 -> 1.59294 | I19: 3.296483455 | K19: 9720614.113 | L19: 0 | M19: =M18+L19+K19 -> 22101901.17
A20: 10. | B20: ='Monthly Inputs'!P3 -> Jul20 | C20: ='Monthly Inputs'!P29 -> 2263500 | D20: =-'Monthly Inputs'!P37 -> 0 | E20: 8968190.457 | F20: =Calculations!M177 -> 0.9456167911 | G20: ='Ut 1.2 p3'!$G$50 -> 3.828334966 | H20: =Calculations!M197 -> 1.85 | I20: 3.403564142 | K20: 8421910.296 | L20: 0 | M20: =M19+L20+K20 -> 30523811.46
A21: 11. | B21: ='Monthly Inputs'!Q3 -> Aug20 | C21: ='Monthly Inputs'!Q29 -> 2299070 | D21: =-'Monthly Inputs'!Q37 -> 0 | E21: 11267260.46 | F21: =Calculations!N177 -> 0.98980724 | G21: ='Ut 1.2 p3'!$G$50 -> 3.828334966 | H21: =Calculations!N197 -> 1.9 | I21: 3.486227493 | K21: 8756421.721 | L21: 0 | M21: =M20+L21+K21 -> 39280233.18
A22: 12. | B22: ='Monthly Inputs'!R3 -> Sep20 | C22: ='Monthly Inputs'!R29 -> 2885570 | D22: =-'Monthly Inputs'!R37 -> 0 | E22: 14152830.46 | F22: =Calculations!O177 -> 0.7941447982 | G22: ='Ut 1.2 p3'!$G$50 -> 3.828334966 | H22: =Calculations!O197 -> 1.7 | I22: 3.466650043 | K22: 9782677.137 | L22: 0 | M22: =M21+L22+K22 -> 49062910.32
M25: Inj./With. Adj.
A26: 14. | B26: Total | C26: =SUM(C11:C22) -> 18154302 | D26: =SUM(D11:D22) -> -16042662 | K26: =SUM(K11:K22) -> 59104815.62 | L26: =SUM(L11:L22) -> -61805206.43 | M26: =L26+K26 -> -2700390.809
A27: 15. | B27: Average $ /Dth | K27: =K26/C26 -> 3.255691991 | L27: =L26/D26 -> 3.852553051
A31: ___________________________________________________________________

Sheet Ex 1.1 Data
A1: QEPFS gathered | B1: 39099667.2 | C1: Adjusted test year-> | D1: -0.1029916196 | E1: 35072729.15 | H1: Samson Gathered | I1: 13796292.64 | J1: Adjusted test year-> | K1: -0.2599744579 | L1: 10209608.94
A2: Birch Creek | B2: 1345871.532 | C2: Adjusted test year-> | D2: -0.1029916196 | E2: 1207258.043
A3: Other | B3: 15275436.28
C4: WEXPRO I | J4: WEXPRO II
A5: Input Operator Service Fee > | C5: =+'Monthly Inputs'!S107 -> 169504821.8 | H5: Input Operator Service Fee > | J5: =+'Monthly Inputs'!S109 -> 34179099.04
A8: \/ | C8: 2019-07-31 | H8: \/ | J8: 2019-07-31
A9: \/ | B9: Company | C9: Average Index | D9: Church Buttes | H9: \/ | I9: Company | J9: Average Index | K9: Church Buttes
A10: \/ | B10: Production | C10: Spot Prices | D10: & Canyon Cr | H10: \/ | I10: Production | J10: Spot Prices | K10: & Canyon Cr
A11: January | B11: 4358163 | C11: 2.4 | D11: =C11+0.1 -> 2.5 | E11: =B11*D11 -> 10895407.5 | H11: January | I11: 1075453 | J11: 2.4 | K11: =J11+0.1 -> 2.5 | L11: =I11*K11 -> 2688632.5
A12: February | B12: 4113329 | C12: 2.24 | D12: =C12+0.1 -> 2.34 | E12: =B12*D12 -> 9625189.86 | H12: February | I12: 982880 | J12: 2.24 | K12: =J12+0.1 -> 2.34 | L12: =I12*K12 -> 2299939.2
A13: March | B13: 4291851 | C13: 1.8 | D13: =C13+0.1 -> 1.9 | E13: 8154516.9 | H13: March | I13: 1028537 | J13: 1.8 | K13: 1.9 | L13: 1954220.3
A14: April | B14: 4070250 | C14: 1.75 | D14: 1.85 | E14: 7529962.5 | H14: April | I14: 975834 | J14: 1.75 | K14: 1.85 | L14: 1805292.9
A15: May | B15: 4130935 | C15: 1.64 | D15: =C15+0.1 -> 1.74 | E15: 7187826.9 | H15: May | I15: 989735 | J15: 1.64 | K15: 1.74 | L15: 1722138.9
A16: June | B16: 3931044 | C16: 1.59 | D16: 1.69 | E16: 6643464.36 | H16: June | I16: 940995 | J16: 1.59 | K16: 1.69 | L16: 1590281.55
A17: July | B17: 4000312 | C17: 1.83 | D17: 1.93 | E17: 7720602.16 | H17: July | I17: 956076 | J17: 1.83 | K17: 1.93 | L17: 1845226.68
A18: August | B18: 4001024 | C18: 1.88 | D18: 1.98 | E18: 7922027.52 | H18: August | I18: 998334 | J18: 1.88 | K18: 1.98 | L18: 1976701.32
A19: September | B19: 3914310 | C19: 1.7 | D19: 1.8 | E19: 7045758 | H19: September | I19: 896292 | J19: 1.7 | K19: 1.8 | L19: 1613325.6
A20: October | B20: 4510066 | C20: 1.88 | D20: 1.98 | E20: 8929930.68 | H20: October | I20: 1148158 | J20: 1.88 | K20: 1.98 | L20: 2273352.84
A21: November | B21: 4273743 | C21: 2.11 | D21: 2.21 | E21: 9444972.03 | H21: November | I21: 1086762 | J21: 2.11 | K21: 2.21 | L21: 2401744.02
A22: December | B22: 4462731 | C22: 2.42 | D22: 2.52 | E22: 11246082.12 | H22: December | I22: 1099931 | J22: 2.42 | K22: 2.52 | L22: 2771826.12
B24: =SUM(B11:B22) -> 50057758 | C24: CANYON CREEK | D24: =E24/B24 -> 2.044553025 | E24: =SUM(E11:E22) -> 102345740.5 | I24: =SUM(I11:I22) -> 12178987 | J24: CANYON CREEK | K24: =L24/I24 -> 2.04800957 | L24: =SUM(L11:L22) -> 24942681.93
C25: CHURCH BUTTES | J25: CHURCH BUTTES
C26: All Others -> | D26: =D24-0.2 -> 1.844553025 | J26: All Others -> | K26: =K24-0.2 -> 1.84800957

Sheet Expenses
A1: %,LACTUALS
S7: Historical
S8: 12 Months Ending
C9: FERC Acct | E9: Description | G9: 2018-08-01 | H9: 2018-09-01 | I9: 2018-10-01 | J9: 2018-11-01 | K9: 2018-12-01 | L9: 2019-01-01 | M9: 2019-02-01 | N9: 2019-03-01 | O9: 2019-04-01 | P9: 2019-05-01 | Q9: 2019-06-01 | R9: 2019-07-01 | S9: =+R9 -> 2019-07-01
B11: 497 | C11: UTILITY OPERATING EXPENSES
B12: 498 | C12: GAS PURCHASE EXPENSES
B13: 499
B14: 500 | D14: Utah % of Sales Dth from 191 Acct ===> | G14: 6 | H14: 7 | I14: 8 | J14: 9 | K14: 10 | L14: 11 | M14: 0 | N14: 1 | O14: 2 | P14: 3 | Q14: 4 | R14: 5 | S14: 12
B15: 501
A16: %,FACCOUNT,TQGCACCTS,V758000 | B16: 502 | C16: 758 | D16: Gas Well Royalties
B17: 503 | E17: Utah | G17: 0 | H17: 0 | I17: 0 | J17: 0 | K17: 0 | L17: 0 | M17: 0 | N17: 0 | O17: 0 | P17: 0 | Q17: 0 | R17: 0 | S17: 0
B18: 504 | E18: Wyoming | G18: 0 | H18: 0 | I18: 0 | J18: 0 | K18: 0 | L18: 0 | M18: 0 | N18: 0 | O18: 0 | P18: 0 | Q18: 0 | R18: 0 | S18: 0
B19: 505 | E19: Total | G19: 0 | H19: 0 | I19: 0 | J19: 0 | K19: 0 | L19: 0 | M19: 0 | N19: 0 | O19: 0 | P19: 0 | Q19: 0 | R19: 0 | S19: 0
B20: 506
A21: %,FACCOUNT,TQGCACCTS,V758001,V758002,V758003,V758004 | B21: 507 | C21: 758.1 | D21: Gas Well Royalties - Other
B22: 508 | E22: Utah | G22: 0 | H22: 0 | I22: 0 | J22: 0 | K22: 0 | L22: 0 | M22: 0 | N22: 0 | O22: 0 | P22: 0 | Q22: 0 | R22: 0 | S22: 0
B23: 509 | E23: Wyoming | G23: 0 | H23: 0 | I23: 0 | J23: 0 | K23: 0 | L23: 0 | M23: 0 | N23: 0 | O23: 0 | P23: 0 | Q23: 0 | R23: 0 | S23: 0
B24: 510 | E24: Total | G24: 0 | H24: 0 | I24: 0 | J24: 0 | K24: 0 | L24: 0 | M24: 0 | N24: 0 | O24: 0 | P24: 0 | Q24: 0 | R24: 0 | S24: 0
B25: 511
A26: %,FACCOUNT,TQGCACCTS,V759000,V759001,V759002,V759003,V759004 | B26: 512 | C26: 759 | D26: Gathering by Others, GRI & ACA - Gas Cost
B27: 513 | E27: Utah | G27: 0 | H27: 0 | I27: 0 | J27: 0 | K27: 0 | L27: 0 | M27: 0 | N27: 0 | O27: 0 | P27: 0 | Q27: 0 | R27: 0 | S27: 0
B28: 514 | E28: Wyoming | G28: 0 | H28: 0 | I28: 0 | J28: 0 | K28: 0 | L28: 0 | M28: 0 | N28: 0 | O28: 0 | P28: 0 | Q28: 0 | R28: 0 | S28: 0
B29: 515 | E29: Total | G29: 0 | H29: 0 | I29: 0 | J29: 0 | K29: 0 | L29: 0 | M29: 0 | N29: 0 | O29: 0 | P29: 0 | Q29: 0 | R29: 0 | S29: 0
B30: 516
A31: %,FACCOUNT,TQGCACCTS,V759005 | B31: 517 | C31: 759 | D31: Gathering by Others - SNG Cost
B32: 518 | E32: Utah | G32: 0 | H32: 0 | I32: 0 | J32: 0 | K32: 0 | L32: 0 | M32: 0 | N32: 0 | O32: 0 | P32: 0 | Q32: 0 | R32: 0 | S32: 0
B33: 519 | E33: Wyoming | G33: 0 | H33: 0 | I33: 0 | J33: 0 | K33: 0 | L33: 0 | M33: 0 | N33: 0 | O33: 0 | P33: 0 | Q33: 0 | R33: 0 | S33: 0
B34: 520 | E34: Total | G34: 0 | H34: 0 | I34: 0 | J34: 0 | K34: 0 | L34: 0 | M34: 0 | N34: 0 | O34: 0 | P34: 0 | Q34: 0 | R34: 0 | S34: 0
B35: 521
A36: %,FACCOUNT,TQGCACCTS,V800000,V800005,V800002 | B36: 522 | C36: 800 | D36: Natural Gas Well Head Purchases
B37: 523 | E37: Utah | G37: 0 | H37: 0 | I37: 0 | J37: 0 | K37: 0 | L37: 0 | M37: 0 | N37: 0 | O37: 0 | P37: 0 | Q37: 0 | R37: 0 | S37: 0
B38: 524 | E38: Wyoming | G38: 0 | H38: 0 | I38: 0 | J38: 0 | K38: 0 | L38: 0 | M38: 0 | N38: 0 | O38: 0 | P38: 0 | Q38: 0 | R38: 0 | S38: 0
B39: 525 | E39: Total | G39: 0 | H39: 0 | I39: 0 | J39: 0 | K39: 0 | L39: 0 | M39: 0 | N39: 0 | O39: 0 | P39: 0 | Q39: 0 | R39: 0 | S39: 0
B40: 526
A41: %,FACCOUNT,TQGCACCTS,V801000 | B41: 527 | C41: 801 | D41: Natural Gas Field Line Purchases
B42: 528 | E42: Utah | G42: 0 | H42: 0 | I42: 0 | J42: 0 | K42: 0 | L42: 0 | M42: 0 | N42: 0 | O42: 0 | P42: 0 | Q42: 0 | R42: 0 | S42: 0
B43: 529 | E43: Wyoming | G43: 0 | H43: 0 | I43: 0 | J43: 0 | K43: 0 | L43: 0 | M43: 0 | N43: 0 | O43: 0 | P43: 0 | Q43: 0 | R43: 0 | S43: 0
B44: 530 | E44: Total | G44: 0 | H44: 0 | I44: 0 | J44: 0 | K44: 0 | L44: 0 | M44: 0 | N44: 0 | O44: 0 | P44: 0 | Q44: 0 | R44: 0 | S44: 0
B45: 531
A46: %,FACCOUNT,TQGCACCTS,V802000 | B46: 532 | C46: 802 | D46: Natural Gas Gasoline Plant Outlet Purchase
B47: 533 | E47: Utah | G47: 0 | H47: 0 | I47: 0 | J47: 0 | K47: 0 | L47: 0 | M47: 0 | N47: 0 | O47: 0 | P47: 0 | Q47: 0 | R47: 0 | S47: 0
B48: 534 | E48: Wyoming | G48: 0 | H48: 0 | I48: 0 | J48: 0 | K48: 0 | L48: 0 | M48: 0 | N48: 0 | O48: 0 | P48: 0 | Q48: 0 | R48: 0 | S48: 0
B49: 535 | E49: Total | G49: 0 | H49: 0 | I49: 0 | J49: 0 | K49: 0 | L49: 0 | M49: 0 | N49: 0 | O49: 0 | P49: 0 | Q49: 0 | R49: 0 | S49: 0
B50: 536
A51: %,FACCOUNT,TQGCACCTS,V803000,V803002 | B51: 537 | C51: 803 | D51: Natural Gas Transmission Line - Purchases
B52: 538 | E52: Utah | G52: 0 | H52: 0 | I52: 0 | J52: 0 | K52: 0 | L52: 0 | M52: 0 | N52: 0 | O52: 0 | P52: 0 | Q52: 0 | R52: 0 | S52: 0
B53: 539 | E53: Wyoming | G53: 0 | H53: 0 | I53: 0 | J53: 0 | K53: 0 | L53: 0 | M53: 0 | N53: 0 | O53: 0 | P53: 0 | Q53: 0 | R53: 0 | S53: 0
B54: 540 | E54: Total | G54: 0 | H54: 0 | I54: 0 | J54: 0 | K54: 0 | L54: 0 | M54: 0 | N54: 0 | O54: 0 | P54: 0 | Q54: 0 | R54: 0 | S54: 0
B55: 541
A56: %,FACCOUNT,V804000,FAFFILIATE,V09 | B56: 542 | C56: 804 | D56: Natural Gas City Gate Purchases - Resources
B57: 543 | E57: Utah | G57: 0 | H57: 0 | I57: 0 | J57: 0 | K57: 0 | L57: 0 | M57: 0 | N57: 0 | O57: 0 | P57: 0 | Q57: 0 | R57: 0 | S57: 0
B58: 544 | E58: Wyoming | G58: 0 | H58: 0 | I58: 0 | J58: 0 | K58: 0 | L58: 0 | M58: 0 | N58: 0 | O58: 0 | P58: 0 | Q58: 0 | R58: 0 | S58: 0
B59: 545 | E59: Total | G59: 0 | H59: 0 | I59: 0 | J59: 0 | K59: 0 | L59: 0 | M59: 0 | N59: 0 | O59: 0 | P59: 0 | Q59: 0 | R59: 0 | S59: 0
B60: 546
A61: %,FACCOUNT,V804000,FAFFILIATE,V | B61: 547 | C61: 804.1 | D61: Natural Gas City Gate Purchases - Other
B62: 548 | E62: Utah | G62: 0 | H62: 0 | I62: 0 | J62: 0 | K62: 0 | L62: 0 | M62: 0 | N62: 0 | O62: 0 | P62: 0 | Q62: 0 | R62: 0 | S62: 0
B63: 549 | E63: Wyoming | G63: 0 | H63: 0 | I63: 0 | J63: 0 | K63: 0 | L63: 0 | M63: 0 | N63: 0 | O63: 0 | P63: 0 | Q63: 0 | R63: 0 | S63: 0
B64: 550 | E64: Total | G64: 0 | H64: 0 | I64: 0 | J64: 0 | K64: 0 | L64: 0 | M64: 0 | N64: 0 | O64: 0 | P64: 0 | Q64: 0 | R64: 0 | S64: 0
B65: 551
B66: 552 | C66: 805 | D66: Purchased Gas Cost Adjustments - Other
B67: 553 | E67: Utah | G67: 0 | H67: 0 | I67: 0 | J67: 0 | K67: 0 | L67: 0 | M67: 0 | N67: 0 | O67: 0 | P67: 0 | Q67: 0 | R67: 0 | S67: 0
B68: 554 | E68: Wyoming | G68: 0 | H68: 0 | I68: 0 | J68: 0 | K68: 0 | L68: 0 | M68: 0 | N68: 0 | O68: 0 | P68: 0 | Q68: 0 | R68: 0 | S68: 0
B69: 555 | E69: Total | G69: 0 | H69: 0 | I69: 0 | J69: 0 | K69: 0 | L69: 0 | M69: 0 | N69: 0 | O69: 0 | P69: 0 | Q69: 0 | R69: 0 | S69: 0
B70: 556
A71: %,FACCOUNT,TQGCACCTS,V805100 | B71: 557 | C71: 805.1 | D71: Purchased Gas Cost Adjustments - Utah
B72: 558 | E72: Utah | G72: 0 | H72: 0 | I72: 0 | J72: 0 | K72: 0 | L72: 0 | M72: 0 | N72: 0 | O72: 0 | P72: 0 | Q72: 0 | R72: 0 | S72: 0
B73: 559 | E73: Wyoming | G73: 0 | H73: 0 | I73: 0 | J73: 0 | K73: 0 | L73: 0 | M73: 0 | N73: 0 | O73: 0 | P73: 0 | Q73: 0 | R73: 0 | S73: 0
B74: 560 | E74: Total | G74: 0 | H74: 0 | I74: 0 | J74: 0 | K74: 0 | L74: 0 | M74: 0 | N74: 0 | O74: 0 | P74: 0 | Q74: 0 | R74: 0 | S74: 0
B75: 561
A76: %,FACCOUNT,TQGCACCTS,V806000 | B76: 562 | C76: 806 | D76: Exchange Gas
B77: 563 | E77: Utah | G77: 0 | H77: 0 | I77: 0 | J77: 0 | K77: 0 | L77: 0 | M77: 0 | N77: 0 | O77: 0 | P77: 0 | Q77: 0 | R77: 0 | S77: 0
B78: 564 | E78: Wyoming | G78: 0 | H78: 0 | I78: 0 | J78: 0 | K78: 0 | L78: 0 | M78: 0 | N78: 0 | O78: 0 | P78: 0 | Q78: 0 | R78: 0 | S78: 0
B79: 565 | E79: Total | G79: 0 | H79: 0 | I79: 0 | J79: 0 | K79: 0 | L79: 0 | M79: 0 | N79: 0 | O79: 0 | P79: 0 | Q79: 0 | R79: 0 | S79: 0
B80: 566
A81: %,FACCOUNT,TQGCACCTS,V808100 | B81: 567 | C81: 808.1 | D81: Gas Withdrawn from Underground Storage
B82: 568 | E82: Utah | G82: 0 | H82: 0 | I82: 0 | J82: 0 | K82: 0 | L82: 0 | M82: 0 | N82: 0 | O82: 0 | P82: 0 | Q82: 0 | R82: 0 | S82: 0
B83: 569 | E83: Wyoming | G83: 0 | H83: 0 | I83: 0 | J83: 0 | K83: 0 | L83: 0 | M83: 0 | N83: 0 | O83: 0 | P83: 0 | Q83: 0 | R83: 0 | S83: 0
B84: 570 | E84: Total | G84: 0 | H84: 0 | I84: 0 | J84: 0 | K84: 0 | L84: 0 | M84: 0 | N84: 0 | O84: 0 | P84: 0 | Q84: 0 | R84: 0 | S84: 0
B85: 571
A86: %,FACCOUNT,TQGCACCTS,V808200 | B86: 572 | C86: 808.2 | D86: Gas Delivered to Underground Storage
B87: 573 | E87: Utah | G87: 0 | H87: 0 | I87: 0 | J87: 0 | K87: 0 | L87: 0 | M87: 0 | N87: 0 | O87: 0 | P87: 0 | Q87: 0 | R87: 0 | S87: 0
B88: 574 | E88: Wyoming | G88: 0 | H88: 0 | I88: 0 | J88: 0 | K88: 0 | L88: 0 | M88: 0 | N88: 0 | O88: 0 | P88: 0 | Q88: 0 | R88: 0 | S88: 0
B89: 575 | E89: Total | G89: 0 | H89: 0 | I89: 0 | J89: 0 | K89: 0 | L89: 0 | M89: 0 | N89: 0 | O89: 0 | P89: 0 | Q89: 0 | R89: 0 | S89: 0
B90: 576
A91: %,FACCOUNT,TQGCACCTS,V808300 | B91: 577 | C91: 808.3 | D91: Exchange Gas
B92: 578 | E92: Utah | G92: 0 | H92: 0 | I92: 0 | J92: 0 | K92: 0 | L92: 0 | M92: 0 | N92: 0 | O92: 0 | P92: 0 | Q92: 0 | R92: 0 | S92: 0
B93: 579 | E93: Wyoming | G93: 0 | H93: 0 | I93: 0 | J93: 0 | K93: 0 | L93: 0 | M93: 0 | N93: 0 | O93: 0 | P93: 0 | Q93: 0 | R93: 0 | S93: 0
B94: 580 | E94: Total | G94: 0 | H94: 0 | I94: 0 | J94: 0 | K94: 0 | L94: 0 | M94: 0 | N94: 0 | O94: 0 | P94: 0 | Q94: 0 | R94: 0 | S94: 0
B95: 581
A96: %,FACCOUNT,TQGCACCTS,V813000,V813001,V813002,V813003,V813004 | B96: 582 | C96: 813 | D96: Other Gas Supply Expenses - Gas Cost
B97: 583 | E97: Utah | G97: 0 | H97: 0 | I97: 0 | J97: 0 | K97: 0 | L97: 0 | M97: 0 | N97: 0 | O97: 0 | P97: 0 | Q97: 0 | R97: 0 | S97: 0
B98: 584 | E98: Wyoming | G98: 0 | H98: 0 | I98: 0 | J98: 0 | K98: 0 | L98: 0 | M98: 0 | N98: 0 | O98: 0 | P98: 0 | Q98: 0 | R98: 0 | S98: 0
B99: 585 | E99: Total | G99: 0 | H99: 0 | I99: 0 | J99: 0 | K99: 0 | L99: 0 | M99: 0 | N99: 0 | O99: 0 | P99: 0 | Q99: 0 | R99: 0 | S99: 0
B100: 586
B101: 587 | C101: 813 | D101: Other Gas Supply Expenses - SNG Cost
B102: 588 | E102: Utah
B103: 589 | E103: Wyoming
B104: 590 | E104: Total | G104: 0 | H104: 0 | I104: 0 | J104: 0 | K104: 0 | L104: 0 | M104: 0 | N104: 0 | O104: 0 | P104: 0 | Q104: 0 | R104: 0 | S104: 0
B105: 591
B106: 592 | C106: 813.5 | D106: CO2 Processing Expenses
A107: %,FACCOUNT,TQGCACCTS,V813005,V813007,V813008 | B107: 593 | E107: Utah | G107: 0 | H107: 0 | I107: 0 | J107: 0 | K107: 0 | L107: 0 | M107: 0 | N107: 0 | O107: 0 | P107: 0 | Q107: 0 | R107: 0 | S107: 0
A108: %,FACCOUNT,TQGCACCTS,V813006 | B108: 594 | E108: Wyoming | G108: 0 | H108: 0 | I108: 0 | J108: 0 | K108: 0 | L108: 0 | M108: 0 | N108: 0 | O108: 0 | P108: 0 | Q108: 0 | R108: 0 | S108: 0
B109: 595 | E109: Total | G109: 0 | H109: 0 | I109: 0 | J109: 0 | K109: 0 | L109: 0 | M109: 0 | N109: 0 | O109: 0 | P109: 0 | Q109: 0 | R109: 0 | S109: 0
B110: 596
A111: %,FACCOUNT,TQGCACCTS,V858000 | B111: 597 | C111: 858 | D111: Transportation GRI & ACA - Gas Cost
B112: 598 | E112: Utah | G112: 0 | H112: 0 | I112: 0 | J112: 0 | K112: 0 | L112: 0 | M112: 0 | N112: 0 | O112: 0 | P112: 0 | Q112: 0 | R112: 0 | S112: 0
B113: 599 | E113: Wyoming | G113: 0 | H113: 0 | I113: 0 | J113: 0 | K113: 0 | L113: 0 | M113: 0 | N113: 0 | O113: 0 | P113: 0 | Q113: 0 | R113: 0 | S113: 0
B114: 600 | E114: Total | G114: 0 | H114: 0 | I114: 0 | J114: 0 | K114: 0 | L114: 0 | M114: 0 | N114: 0 | O114: 0 | P114: 0 | Q114: 0 | R114: 0 | S114: 0
B115: 601
A116: %,FACCOUNT,TQGCACCTS,V858001 | B116: 602 | C116: 858 | D116: Trans & Comp of Gas by Others - SNG Cost
B117: 603 | E117: Utah | G117: 0 | H117: 0 | I117: 0 | J117: 0 | K117: 0 | L117: 0 | M117: 0 | N117: 0 | O117: 0 | P117: 0 | Q117: 0 | R117: 0 | S117: 0
B118: 604 | E118: Wyoming | G118: 0 | H118: 0 | I118: 0 | J118: 0 | K118: 0 | L118: 0 | M118: 0 | N118: 0 | O118: 0 | P118: 0 | Q118: 0 | R118: 0 | S118: 0
B119: 605 | E119: Total | G119: 0 | H119: 0 | I119: 0 | J119: 0 | K119: 0 | L119: 0 | M119: 0 | N119: 0 | O119: 0 | P119: 0 | Q119: 0 | R119: 0 | S119: 0
B120: 606
B121: 607 | C121: System Total Gas Purchase Expenses
B122: 608 | D122: Utah Gas Purchase Expenses | G122: 0 | H122: 0 | I122: 0 | J122: 0 | K122: 0 | L122: 0 | M122: 0 | N122: 0 | O122: 0 | P122: 0 | Q122: 0 | R122: 0 | S122: 0
B123: 609 | D123: Wyoming Gas Purchase Expenses | G123: 0 | H123: 0 | I123: 0 | J123: 0 | K123: 0 | L123: 0 | M123: 0 | N123: 0 | O123: 0 | P123: 0 | Q123: 0 | R123: 0 | S123: 0
B124: 610
B125: 611
B126: 612 | D126: System Total Gas Purchase Expenses | G126: 0 | H126: 0 | I126: 0 | J126: 0 | K126: 0 | L126: 0 | M126: 0 | N126: 0 | O126: 0 | P126: 0 | Q126: 0 | R126: 0 | S126: 0
B127: 613
B128: 614
B129: 615 | C129: OPERATION AND MAINTENANCE EXPENSES
B130: 616
B131: 617 | C131: Production Expenses
B132: 618
A133: %,FACCOUNT,TQGCACCTS,V810000,V810001 | B133: 619 | C133: 810 | D133: Gas Used for Compressor Station Fuel | G133: 0 | H133: 0 | I133: 0 | J133: 0 | K133: 0 | L133: 0 | M133: 0 | N133: 0 | O133: 0 | P133: 0 | Q133: 0 | R133: 0 | S133: 0
A134: %,FACCOUNT,TQGCACCTS,V812000,V812001 | B134: 620 | C134: 812 | D134: Gas Used for Other Utility Operations | G134: 0 | H134: 0 | I134: 0 | J134: 0 | K134: 0 | L134: 0 | M134: 0 | N134: 0 | O134: 0 | P134: 0 | Q134: 0 | R134: 0 | S134: 0
B135: 621
B136: 622 | D136: Total Production Expenses | G136: 0 | H136: 0 | I136: 0 | J136: 0 | K136: 0 | L136: 0 | M136: 0 | N136: 0 | O136: 0 | P136: 0 | Q136: 0 | R136: 0 | S136: 0
B137: 623 | G137: 0 | H137: 0 | I137: 0 | J137: 0 | K137: 0 | L137: 0 | M137: 0 | N137: 0 | O137: 0 | P137: 0 | Q137: 0 | R137: 0 | S137: 0
B138: 624 | C138: Distribution Operations & Maintenance Expenses
B139: 625
B140: 626 | C140: 870 | D140: Operation Supervision & Engineering
B141: 627 | E141: Utah | G141: 0 | H141: 0 | I141: 0 | J141: 0 | K141: 0 | L141: 0 | M141: 0 | N141: 0 | O141: 0 | P141: 0 | Q141: 0 | R141: 0 | S141: 0
B142: 628 | E142: Wyoming | G142: 0 | H142: 0 | I142: 0 | J142: 0 | K142: 0 | L142: 0 | M142: 0 | N142: 0 | O142: 0 | P142: 0 | Q142: 0 | R142: 0 | S142: 0
A143: %,FACCOUNT,TQGCACCTS,N870 | B143: 629 | E143: Total | G143: 0 | H143: 0 | I143: 0 | J143: 0 | K143: 0 | L143: 0 | M143: 0 | N143: 0 | O143: 0 | P143: 0 | Q143: 0 | R143: 0 | S143: 0
B144: 630
B145: 631 | C145: 871 | D145: Distribution Load Dispatching
B146: 632 | E146: Utah | G146: 0 | H146: 0 | I146: 0 | J146: 0 | K146: 0 | L146: 0 | M146: 0 | N146: 0 | O146: 0 | P146: 0 | Q146: 0 | R146: 0 | S146: 0
B147: 633 | E147: Wyoming | G147: 0 | H147: 0 | I147: 0 | J147: 0 | K147: 0 | L147: 0 | M147: 0 | N147: 0 | O147: 0 | P147: 0 | Q147: 0 | R147: 0 | S147: 0
A148: %,FACCOUNT,TQGCACCTS,N871 | B148: 634 | E148: Total | G148: 0 | H148: 0 | I148: 0 | J148: 0 | K148: 0 | L148: 0 | M148: 0 | N148: 0 | O148: 0 | P148: 0 | Q148: 0 | R148: 0 | S148: 0
B149: 635
B150: 636 | C150: 872 | D150: Compressor Station Labor & Expenses
B151: 637 | E151: Utah | G151: 0 | H151: 0 | I151: 0 | J151: 0 | K151: 0 | L151: 0 | M151: 0 | N151: 0 | O151: 0 | P151: 0 | Q151: 0 | R151: 0 | S151: 0
B152: 638 | E152: Wyoming | G152: 0 | H152: 0 | I152: 0 | J152: 0 | K152: 0 | L152: 0 | M152: 0 | N152: 0 | O152: 0 | P152: 0 | Q152: 0 | R152: 0 | S152: 0
A153: %,FACCOUNT,TQGCACCTS,N872 | B153: 639 | E153: Total | G153: 0 | H153: 0 | I153: 0 | J153: 0 | K153: 0 | L153: 0 | M153: 0 | N153: 0 | O153: 0 | P153: 0 | Q153: 0 | R153: 0 | S153: 0
B154: 640
B155: 641 | C155: 873 | D155: Compressor Station Fuel & Power
B156: 642 | E156: Utah | G156: 0 | H156: 0 | I156: 0 | J156: 0 | K156: 0 | L156: 0 | M156: 0 | N156: 0 | O156: 0 | P156: 0 | Q156: 0 | R156: 0 | S156: 0
B157: 643 | E157: Wyoming | G157: 0 | H157: 0 | I157: 0 | J157: 0 | K157: 0 | L157: 0 | M157: 0 | N157: 0 | O157: 0 | P157: 0 | Q157: 0 | R157: 0 | S157: 0
A158: %,FACCOUNT,TQGCACCTS,N873 | B158: 644 | E158: Total | G158: 0 | H158: 0 | I158: 0 | J158: 0 | K158: 0 | L158: 0 | M158: 0 | N158: 0 | O158: 0 | P158: 0 | Q158: 0 | R158: 0 | S158: 0
B159: 645
B160: 646 | C160: 874 | D160: Mains & Service Expenses
B161: 647 | E161: Utah | G161: 0 | H161: 0 | I161: 0 | J161: 0 | K161: 0 | L161: 0 | M161: 0 | N161: 0 | O161: 0 | P161: 0 | Q161: 0 | R161: 0 | S161: 0
B162: 648 | E162: Wyoming | G162: 0 | H162: 0 | I162: 0 | J162: 0 | K162: 0 | L162: 0 | M162: 0 | N162: 0 | O162: 0 | P162: 0 | Q162: 0 | R162: 0 | S162: 0
A163: %,FACCOUNT,TQGCACCTS,N874 | B163: 649 | E163: Total | G163: 0 | H163: 0 | I163: 0 | J163: 0 | K163: 0 | L163: 0 | M163: 0 | N163: 0 | O163: 0 | P163: 0 | Q163: 0 | R163: 0 | S163: 0
B164: 650
B165: 651 | C165: 875 | D165: Measuring & Regulating Station Expenses
B166: 652 | E166: Utah | G166: 0 | H166: 0 | I166: 0 | J166: 0 | K166: 0 | L166: 0 | M166: 0 | N166: 0 | O166: 0 | P166: 0 | Q166: 0 | R166: 0 | S166: 0
B167: 653 | E167: Wyoming | G167: 0 | H167: 0 | I167: 0 | J167: 0 | K167: 0 | L167: 0 | M167: 0 | N167: 0 | O167: 0 | P167: 0 | Q167: 0 | R167: 0 | S167: 0
A168: %,FACCOUNT,TQGCACCTS,N875 | B168: 654 | E168: Total | G168: 0 | H168: 0 | I168: 0 | J168: 0 | K168: 0 | L168: 0 | M168: 0 | N168: 0 | O168: 0 | P168: 0 | Q168: 0 | R168: 0 | S168: 0
B169: 655
B170: 656 | C170: 878 | D170: Meter & House Regulator Expenses
B171: 657 | E171: Utah | G171: 0 | H171: 0 | I171: 0 | J171: 0 | K171: 0 | L171: 0 | M171: 0 | N171: 0 | O171: 0 | P171: 0 | Q171: 0 | R171: 0 | S171: 0
B172: 658 | E172: Wyoming | G172: 0 | H172: 0 | I172: 0 | J172: 0 | K172: 0 | L172: 0 | M172: 0 | N172: 0 | O172: 0 | P172: 0 | Q172: 0 | R172: 0 | S172: 0
A173: %,FACCOUNT,TQGCACCTS,N878 | B173: 659 | E173: Total | G173: 0 | H173: 0 | I173: 0 | J173: 0 | K173: 0 | L173: 0 | M173: 0 | N173: 0 | O173: 0 | P173: 0 | Q173: 0 | R173: 0 | S173: 0
B174: 660
B175: 661 | C175: 879 | D175: Customer Installations Expenses
B176: 662 | E176: Utah | G176: 0 | H176: 0 | I176: 0 | J176: 0 | K176: 0 | L176: 0 | M176: 0 | N176: 0 | O176: 0 | P176: 0 | Q176: 0 | R176: 0 | S176: 0
B177: 663 | E177: Wyoming | G177: 0 | H177: 0 | I177: 0 | J177: 0 | K177: 0 | L177: 0 | M177: 0 | N177: 0 | O177: 0 | P177: 0 | Q177: 0 | R177: 0 | S177: 0
A178: %,FACCOUNT,TQGCACCTS,N879 | B178: 664 | E178: Total | G178: 0 | H178: 0 | I178: 0 | J178: 0 | K178: 0 | L178: 0 | M178: 0 | N178: 0 | O178: 0 | P178: 0 | Q178: 0 | R178: 0 | S178: 0
B179: 665
B180: 666 | C180: 880 | D180: Other Expenses
B181: 667 | E181: Utah | G181: 0 | H181: 0 | I181: 0 | J181: 0 | K181: 0 | L181: 0 | M181: 0 | N181: 0 | O181: 0 | P181: 0 | Q181: 0 | R181: 0 | S181: 0
B182: 668 | E182: Wyoming | G182: 0 | H182: 0 | I182: 0 | J182: 0 | K182: 0 | L182: 0 | M182: 0 | N182: 0 | O182: 0 | P182: 0 | Q182: 0 | R182: 0 | S182: 0
A183: %,FACCOUNT,TQGCACCTS,N880 | B183: 669 | E183: Total | G183: 0 | H183: 0 | I183: 0 | J183: 0 | K183: 0 | L183: 0 | M183: 0 | N183: 0 | O183: 0 | P183: 0 | Q183: 0 | R183: 0 | S183: 0
B184: 670
B185: 671 | C185: 881 | D185: Rents
B186: 672 | E186: Utah | G186: 0 | H186: 0 | I186: 0 | J186: 0 | K186: 0 | L186: 0 | M186: 0 | N186: 0 | O186: 0 | P186: 0 | Q186: 0 | R186: 0 | S186: 0
B187: 673 | E187: Wyoming | G187: 0 | H187: 0 | I187: 0 | J187: 0 | K187: 0 | L187: 0 | M187: 0 | N187: 0 | O187: 0 | P187: 0 | Q187: 0 | R187: 0 | S187: 0
A188: %,FACCOUNT,TQGCACCTS,N881 | B188: 674 | E188: Total | G188: 0 | H188: 0 | I188: 0 | J188: 0 | K188: 0 | L188: 0 | M188: 0 | N188: 0 | O188: 0 | P188: 0 | Q188: 0 | R188: 0 | S188: 0
B189: 675
B190: 676 | C190: 885 | D190: Maintenance Supervision & Engineering
B191: 677 | E191: Utah | G191: 0 | H191: 0 | I191: 0 | J191: 0 | K191: 0 | L191: 0 | M191: 0 | N191: 0 | O191: 0 | P191: 0 | Q191: 0 | R191: 0 | S191: 0
B192: 678 | E192: Wyoming | G192: 0 | H192: 0 | I192: 0 | J192: 0 | K192: 0 | L192: 0 | M192: 0 | N192: 0 | O192: 0 | P192: 0 | Q192: 0 | R192: 0 | S192: 0
A193: %,FACCOUNT,TQGCACCTS,N885 | B193: 679 | E193: Total | G193: 0 | H193: 0 | I193: 0 | J193: 0 | K193: 0 | L193: 0 | M193: 0 | N193: 0 | O193: 0 | P193: 0 | Q193: 0 | R193: 0 | S193: 0
B194: 680
B195: 681 | C195: 886 | D195: Maintenance of Structures & Improvements
B196: 682 | E196: Utah | G196: 0 | H196: 0 | I196: 0 | J196: 0 | K196: 0 | L196: 0 | M196: 0 | N196: 0 | O196: 0 | P196: 0 | Q196: 0 | R196: 0 | S196: 0
B197: 683 | E197: Wyoming | G197: 0 | H197: 0 | I197: 0 | J197: 0 | K197: 0 | L197: 0 | M197: 0 | N197: 0 | O197: 0 | P197: 0 | Q197: 0 | R197: 0 | S197: 0
A198: %,FACCOUNT,TQGCACCTS,N886 | B198: 684 | E198: Total | G198: 0 | H198: 0 | I198: 0 | J198: 0 | K198: 0 | L198: 0 | M198: 0 | N198: 0 | O198: 0 | P198: 0 | Q198: 0 | R198: 0 | S198: 0
B199: 685
B200: 686 | C200: 887 | D200: Maintenance of Mains
B201: 687 | E201: Utah | G201: 0 | H201: 0 | I201: 0 | J201: 0 | K201: 0 | L201: 0 | M201: 0 | N201: 0 | O201: 0 | P201: 0 | Q201: 0 | R201: 0 | S201: 0
B202: 688 | E202: Wyoming | G202: 0 | H202: 0 | I202: 0 | J202: 0 | K202: 0 | L202: 0 | M202: 0 | N202: 0 | O202: 0 | P202: 0 | Q202: 0 | R202: 0 | S202: 0
A203: %,FACCOUNT,TQGCACCTS,N887 | B203: 689 | E203: Total | G203: 0 | H203: 0 | I203: 0 | J203: 0 | K203: 0 | L203: 0 | M203: 0 | N203: 0 | O203: 0 | P203: 0 | Q203: 0 | R203: 0 | S203: 0
B204: 690
B205: 691 | C205: 888 | D205: Maint of Compressor Station Equipment
B206: 692 | E206: Utah | G206: 0 | H206: 0 | I206: 0 | J206: 0 | K206: 0 | L206: 0 | M206: 0 | N206: 0 | O206: 0 | P206: 0 | Q206: 0 | R206: 0 | S206: 0
... 813 more rows

Sheet Rate Base
A1: %,LACTUALS
C2: Company: | F2: Company:
C3: Period Ended: | F3: Period Ended:
C4: Date,Time, Stamp: | F4: Date,Time, Stamp:
U5: Historical
U6: 13-Month Avg
U7: Period Ended
G8: =+H8-30 -> 2018-06-17 | H8: 2018-07-17 | I8: 2018-08-16 | J8: 2018-09-01 | K8: 2018-10-01 | L8: 2018-11-01 | M8: 2018-12-01 | N8: 2019-01-01 | O8: 2019-02-01 | P8: 2019-03-01 | Q8: 2019-04-01 | R8: 2019-05-01 | S8: 2019-06-01 | T8: 2019-07-01 | U8: 2019-07-31
C10: UTILITY RATE BASE
D11: NET UTILITY PLANT
D13: Intangible Plant
C14: 101 | D14: Gas Plant In Service
E15: Intangible Plant
B16: 1 | D16: 302 | E16: Franchises & Consents
B17: =+B16+1 -> 2 | E17: Distribution - Wyoming | H17: 0 | I17: 0 | J17: 0 | K17: 0 | L17: 0 | M17: 0 | N17: 0 | O17: 0 | P17: 0 | Q17: 0 | R17: 0 | S17: 0 | T17: 0 | U17: 0
B18: 3 | E18: Distribution - Utah | H18: 0 | I18: 0 | J18: 0 | K18: 0 | L18: 0 | M18: 0 | N18: 0 | O18: 0 | P18: 0 | Q18: 0 | R18: 0 | S18: 0 | T18: 0 | U18: 0
B19: 4
A20: ="%,FACCOUNT,TQGCACCTS,N"&(D16) -> %,FACCOUNT,TQGCACCTS,N302 | B20: 5 | E20: Total Intangible Plant | H20: 0 | I20: 0 | J20: 0 | K20: 0 | L20: 0 | M20: 0 | N20: 0 | O20: 0 | P20: 0 | Q20: 0 | R20: 0 | S20: 0 | T20: 0 | U20: 0
B21: 6
B22: 7 | E22: Production & Gathering Plant
A23: ="%,FACCOUNT,TQGCACCTS,N"&(D23) -> %,FACCOUNT,TQGCACCTS,N325 | B23: 8 | D23: 325 | E23: Land & Land Rights | H23: 0 | I23: 0 | J23: 0 | K23: 0 | L23: 0 | M23: 0 | N23: 0 | O23: 0 | P23: 0 | Q23: 0 | R23: 0 | S23: 0 | T23: 0 | U23: 0
A24: %,FACCOUNT,TQGCACCTS,N326,N327,N328,N329 | B24: 9 | D24: 326...9 | E24: Structures | H24: 0 | I24: 0 | J24: 0 | K24: 0 | L24: 0 | M24: 0 | N24: 0 | O24: 0 | P24: 0 | Q24: 0 | R24: 0 | S24: 0 | T24: 0 | U24: 0
A25: ="%,FACCOUNT,TQGCACCTS,N"&(D25) -> %,FACCOUNT,TQGCACCTS,N330 | B25: 10 | D25: 330 | E25: Gas Wells - Construction | H25: 0 | I25: 0 | J25: 0 | K25: 0 | L25: 0 | M25: 0 | N25: 0 | O25: 0 | P25: 0 | Q25: 0 | R25: 0 | S25: 0 | T25: 0 | U25: 0
A26: ="%,FACCOUNT,TQGCACCTS,N"&(D26) -> %,FACCOUNT,TQGCACCTS,N331 | B26: 11 | D26: 331 | E26: Gas Wells - Equipment | H26: 0 | I26: 0 | J26: 0 | K26: 0 | L26: 0 | M26: 0 | N26: 0 | O26: 0 | P26: 0 | Q26: 0 | R26: 0 | S26: 0 | T26: 0 | U26: 0
A27: %,FACCOUNT,TQGCACCTS,N332,N333,N334 | B27: 12 | D27: 332...4 | E27: Field Lines & Comp, Meas & Reg St Eqpt | H27: 0 | I27: 0 | J27: 0 | K27: 0 | L27: 0 | M27: 0 | N27: 0 | O27: 0 | P27: 0 | Q27: 0 | R27: 0 | S27: 0 | T27: 0 | U27: 0
A28: ="%,FACCOUNT,TQGCACCTS,N"&(D28) -> %,FACCOUNT,TQGCACCTS,N336 | B28: 13 | D28: 336 | E28: Purification Equipment | H28: 0 | I28: 0 | J28: 0 | K28: 0 | L28: 0 | M28: 0 | N28: 0 | O28: 0 | P28: 0 | Q28: 0 | R28: 0 | S28: 0 | T28: 0 | U28: 0
A29: ="%,FACCOUNT,TQGCACCTS,N"&(D29) -> %,FACCOUNT,TQGCACCTS,N337 | B29: 14 | D29: 337 | E29: Other Equipment | H29: 0 | I29: 0 | J29: 0 | K29: 0 | L29: 0 | M29: 0 | N29: 0 | O29: 0 | P29: 0 | Q29: 0 | R29: 0 | S29: 0 | T29: 0 | U29: 0
B30: 15
B31: 16 | E31: Total Production & Gathering Plant | H31: 0 | I31: 0 | J31: 0 | K31: 0 | L31: 0 | M31: 0 | N31: 0 | O31: 0 | P31: 0 | Q31: 0 | R31: 0 | S31: 0 | T31: 0 | U31: 0
B32: 17
B33: 18 | E33: Distribution Plant
B34: 19 | D34: 374 | E34: Land & Land Rights
B35: 20 | F35: Wyoming | H35: 0 | I35: 0 | J35: 0 | K35: 0 | L35: 0 | M35: 0 | N35: 0 | O35: 0 | P35: 0 | Q35: 0 | R35: 0 | S35: 0 | T35: 0 | U35: 0
A36: ="%,FACCOUNT,TQGCACCTS,N"&(D34) -> %,FACCOUNT,TQGCACCTS,N374 | B36: 21 | F36: Utah | H36: 0 | I36: 0 | J36: 0 | K36: 0 | L36: 0 | M36: 0 | N36: 0 | O36: 0 | P36: 0 | Q36: 0 | R36: 0 | S36: 0 | T36: 0 | U36: 0
B37: 22 | F37: Total | H37: 0 | I37: 0 | J37: 0 | K37: 0 | L37: 0 | M37: 0 | N37: 0 | O37: 0 | P37: 0 | Q37: 0 | R37: 0 | S37: 0 | T37: 0 | U37: 0
B38: 23
B39: 24 | D39: 375 | E39: Structures & Improvements
B40: 25 | F40: Wyoming | H40: 0 | I40: 0 | J40: 0 | K40: 0 | L40: 0 | M40: 0 | N40: 0 | O40: 0 | P40: 0 | Q40: 0 | R40: 0 | S40: 0 | T40: 0 | U40: 0
A41: ="%,FACCOUNT,TQGCACCTS,N"&(D39) -> %,FACCOUNT,TQGCACCTS,N375 | B41: 26 | F41: Utah | H41: 0 | I41: 0 | J41: 0 | K41: 0 | L41: 0 | M41: 0 | N41: 0 | O41: 0 | P41: 0 | Q41: 0 | R41: 0 | S41: 0 | T41: 0 | U41: 0
B42: 27 | F42: Total | H42: 0 | I42: 0 | J42: 0 | K42: 0 | L42: 0 | M42: 0 | N42: 0 | O42: 0 | P42: 0 | Q42: 0 | R42: 0 | S42: 0 | T42: 0 | U42: 0
B43: 28
B44: 29 | D44: 376 | E44: Mains
B45: 30 | F45: Dist - Wy - Mains - SD
B46: 31 | F46: Dist - Wy - Mains - LD
B47: 32 | F47: Dist - Wy - Mains - Feeders
B48: 33 | F48: Wyoming | H48: 0 | I48: 0 | J48: 0 | K48: 0 | L48: 0 | M48: 0 | N48: 0 | O48: 0 | P48: 0 | Q48: 0 | R48: 0 | S48: 0 | T48: 0 | U48: 0
B49: 34 | F49: Dist - Ut - Mains - SD
B50: 35 | F50: Dist - Ut - Mains - LD
B51: 36 | F51: Dist - Ut - Mains - Feeders
A52: ="%,FACCOUNT,TQGCACCTS,N"&(D44) -> %,FACCOUNT,TQGCACCTS,N376 | B52: 37 | F52: Utah | H52: 0 | I52: 0 | J52: 0 | K52: 0 | L52: 0 | M52: 0 | N52: 0 | O52: 0 | P52: 0 | Q52: 0 | R52: 0 | S52: 0 | T52: 0 | U52: 0
B53: 38 | F53: Total | H53: 0 | I53: 0 | J53: 0 | K53: 0 | L53: 0 | M53: 0 | N53: 0 | O53: 0 | P53: 0 | Q53: 0 | R53: 0 | S53: 0 | T53: 0 | U53: 0
B54: 39 | H54: 0 | I54: 0 | J54: 0 | K54: 0 | L54: 0 | M54: 0 | N54: 0 | O54: 0 | P54: 0 | Q54: 0 | R54: 0 | S54: 0 | T54: 0 | U54: 0
B55: 40 | D55: 377 | E55: Compressor Station Equipment
B56: 41 | F56: Wyoming | H56: 0 | I56: 0 | J56: 0 | K56: 0 | L56: 0 | M56: 0 | N56: 0 | O56: 0 | P56: 0 | Q56: 0 | R56: 0 | S56: 0 | T56: 0 | U56: 0
A57: ="%,FACCOUNT,TQGCACCTS,N"&(D55) -> %,FACCOUNT,TQGCACCTS,N377 | B57: 42 | F57: Utah | H57: 0 | I57: 0 | J57: 0 | K57: 0 | L57: 0 | M57: 0 | N57: 0 | O57: 0 | P57: 0 | Q57: 0 | R57: 0 | S57: 0 | T57: 0 | U57: 0
B58: 43 | F58: Total | H58: 0 | I58: 0 | J58: 0 | K58: 0 | L58: 0 | M58: 0 | N58: 0 | O58: 0 | P58: 0 | Q58: 0 | R58: 0 | S58: 0 | T58: 0 | U58: 0
B59: 44
B60: 45 | D60: 378 | E60: Measuring & Regulation Station Equip
B61: 46 | F61: Wyoming | H61: 0 | I61: 0 | J61: 0 | K61: 0 | L61: 0 | M61: 0 | N61: 0 | O61: 0 | P61: 0 | Q61: 0 | R61: 0 | S61: 0 | T61: 0 | U61: 0
A62: ="%,FACCOUNT,TQGCACCTS,N"&(D60) -> %,FACCOUNT,TQGCACCTS,N378 | B62: 47 | F62: Utah | H62: 0 | I62: 0 | J62: 0 | K62: 0 | L62: 0 | M62: 0 | N62: 0 | O62: 0 | P62: 0 | Q62: 0 | R62: 0 | S62: 0 | T62: 0 | U62: 0
B63: 48 | F63: Total | H63: 0 | I63: 0 | J63: 0 | K63: 0 | L63: 0 | M63: 0 | N63: 0 | O63: 0 | P63: 0 | Q63: 0 | R63: 0 | S63: 0 | T63: 0 | U63: 0
B64: 49
B65: 50 | D65: 380 | E65: Services
B66: 51 | F66: Wyoming | H66: 0 | I66: 0 | J66: 0 | K66: 0 | L66: 0 | M66: 0 | N66: 0 | O66: 0 | P66: 0 | Q66: 0 | R66: 0 | S66: 0 | T66: 0 | U66: 0
A67: ="%,FACCOUNT,TQGCACCTS,N"&(D65) -> %,FACCOUNT,TQGCACCTS,N380 | B67: 52 | F67: Utah | H67: 0 | I67: 0 | J67: 0 | K67: 0 | L67: 0 | M67: 0 | N67: 0 | O67: 0 | P67: 0 | Q67: 0 | R67: 0 | S67: 0 | T67: 0 | U67: 0
B68: 53 | F68: Total | H68: 0 | I68: 0 | J68: 0 | K68: 0 | L68: 0 | M68: 0 | N68: 0 | O68: 0 | P68: 0 | Q68: 0 | R68: 0 | S68: 0 | T68: 0 | U68: 0
B69: 54
B70: 55 | D70: 381...2 | E70: Meters & Meter Installation
B71: 56 | F71: Wyoming | H71: 0 | I71: 0 | J71: 0 | K71: 0 | L71: 0 | M71: 0 | N71: 0 | O71: 0 | P71: 0 | Q71: 0 | R71: 0 | S71: 0 | T71: 0 | U71: 0
A72: %,FACCOUNT,TQGCACCTS,N381,N382 | B72: 57 | F72: Utah | H72: 0 | I72: 0 | J72: 0 | K72: 0 | L72: 0 | M72: 0 | N72: 0 | O72: 0 | P72: 0 | Q72: 0 | R72: 0 | S72: 0 | T72: 0 | U72: 0
B73: 58 | F73: Total | H73: 0 | I73: 0 | J73: 0 | K73: 0 | L73: 0 | M73: 0 | N73: 0 | O73: 0 | P73: 0 | Q73: 0 | R73: 0 | S73: 0 | T73: 0 | U73: 0
B74: 59
B75: 60 | D75: 383...4 | E75: House Regulators & Reg Installations
B76: 61 | F76: Wyoming | H76: 0 | I76: 0 | J76: 0 | K76: 0 | L76: 0 | M76: 0 | N76: 0 | O76: 0 | P76: 0 | Q76: 0 | R76: 0 | S76: 0 | T76: 0 | U76: 0
A77: %,FACCOUNT,TQGCACCTS,N383,N384 | B77: 62 | F77: Utah | H77: 0 | I77: 0 | J77: 0 | K77: 0 | L77: 0 | M77: 0 | N77: 0 | O77: 0 | P77: 0 | Q77: 0 | R77: 0 | S77: 0 | T77: 0 | U77: 0
B78: 63 | F78: Total | H78: 0 | I78: 0 | J78: 0 | K78: 0 | L78: 0 | M78: 0 | N78: 0 | O78: 0 | P78: 0 | Q78: 0 | R78: 0 | S78: 0 | T78: 0 | U78: 0
B79: 64
B80: 65 | D80: 387 | E80: Other Equipment
B81: =+B80+1 -> 66 | F81: Wyoming | H81: 0 | I81: 0 | J81: 0 | K81: 0 | L81: 0 | M81: 0 | N81: 0 | O81: 0 | P81: 0 | Q81: 0 | R81: 0 | S81: 0 | T81: 0 | U81: 0
A82: ="%,FACCOUNT,TQGCACCTS,N"&(D80) -> %,FACCOUNT,TQGCACCTS,N387 | B82: 67 | F82: Utah | H82: 0 | I82: 0 | J82: 0 | K82: 0 | L82: 0 | M82: 0 | N82: 0 | O82: 0 | P82: 0 | Q82: 0 | R82: 0 | S82: 0 | T82: 0 | U82: 0
B83: 68 | F83: Total | H83: 0 | I83: 0 | J83: 0 | K83: 0 | L83: 0 | M83: 0 | N83: 0 | O83: 0 | P83: 0 | Q83: 0 | R83: 0 | S83: 0 | T83: 0 | U83: 0
B84: 69
B85: 70 | E85: Total Distribution Plant | H85: 0 | I85: 0 | J85: 0 | K85: 0 | L85: 0 | M85: 0 | N85: 0 | O85: 0 | P85: 0 | Q85: 0 | R85: 0 | S85: 0 | T85: 0 | U85: 0
B86: 71
B87: 72 | C87: General Plant
B88: 73 | D88: 389 | E88: Land & Land Rights
B89: 74 | F89: Distribution - Wyoming | H89: 0 | I89: 0 | J89: 0 | K89: 0 | L89: 0 | M89: 0 | N89: 0 | O89: 0 | P89: 0 | Q89: 0 | R89: 0 | S89: 0 | T89: 0 | U89: 0
A90: ="%,FACCOUNT,TQGCACCTS,N"&(D88) -> %,FACCOUNT,TQGCACCTS,N389 | B90: 75 | F90: Distribution - Utah | H90: 0 | I90: 0 | J90: 0 | K90: 0 | L90: 0 | M90: 0 | N90: 0 | O90: 0 | P90: 0 | Q90: 0 | R90: 0 | S90: 0 | T90: 0 | U90: 0
B91: 76 | F91: Total | H91: 0 | I91: 0 | J91: 0 | K91: 0 | L91: 0 | M91: 0 | N91: 0 | O91: 0 | P91: 0 | Q91: 0 | R91: 0 | S91: 0 | T91: 0 | U91: 0
B92: 77
B93: 78 | D93: 390 | E93: Structures & Improvements
B94: 79 | F94: Distribution - Wyoming | H94: 0 | I94: 0 | J94: 0 | K94: 0 | L94: 0 | M94: 0 | N94: 0 | O94: 0 | P94: 0 | Q94: 0 | R94: 0 | S94: 0 | T94: 0 | U94: 0
A95: ="%,FACCOUNT,TQGCACCTS,N"&(D93) -> %,FACCOUNT,TQGCACCTS,N390 | B95: 80 | F95: Distribution - Utah | H95: 0 | I95: 0 | J95: 0 | K95: 0 | L95: 0 | M95: 0 | N95: 0 | O95: 0 | P95: 0 | Q95: 0 | R95: 0 | S95: 0 | T95: 0 | U95: 0
B96: 81 | F96: General | H96: 0 | I96: 0 | J96: 0 | K96: 0 | L96: 0 | M96: 0 | N96: 0 | O96: 0 | P96: 0 | Q96: 0 | R96: 0 | S96: 0 | T96: 0 | U96: 0
B97: 82 | F97: Total | H97: 0 | I97: 0 | J97: 0 | K97: 0 | L97: 0 | M97: 0 | N97: 0 | O97: 0 | P97: 0 | Q97: 0 | R97: 0 | S97: 0 | T97: 0 | U97: 0
B98: 83
B99: 84 | D99: 391 | E99: Office Furniture & Equipment
B100: 85 | F100: Distribution - Wyoming | H100: 0 | I100: 0 | J100: 0 | K100: 0 | L100: 0 | M100: 0 | N100: 0 | O100: 0 | P100: 0 | Q100: 0 | R100: 0 | S100: 0 | T100: 0 | U100: 0
A101: ="%,FACCOUNT,TQGCACCTS,N"&(D99) -> %,FACCOUNT,TQGCACCTS,N391 | B101: 86 | F101: Distribution - Utah | H101: 0 | I101: 0 | J101: 0 | K101: 0 | L101: 0 | M101: 0 | N101: 0 | O101: 0 | P101: 0 | Q101: 0 | R101: 0 | S101: 0 | T101: 0 | U101: 0
B102: 87 | F102: General | H102: 0 | I102: 0 | J102: 0 | K102: 0 | L102: 0 | M102: 0 | N102: 0 | O102: 0 | P102: 0 | Q102: 0 | R102: 0 | S102: 0 | T102: 0 | U102: 0
B103: 88 | F103: Total | H103: 0 | I103: 0 | J103: 0 | K103: 0 | L103: 0 | M103: 0 | N103: 0 | O103: 0 | P103: 0 | Q103: 0 | R103: 0 | S103: 0 | T103: 0 | U103: 0
B104: 89
B105: 90 | D105: 392 | E105: Transportation Equipment
B106: 91 | F106: Distribution - Wyoming | H106: 0 | I106: 0 | J106: 0 | K106: 0 | L106: 0 | M106: 0 | N106: 0 | O106: 0 | P106: 0 | Q106: 0 | R106: 0 | S106: 0 | T106: 0 | U106: 0
A107: ="%,FACCOUNT,TQGCACCTS,N"&(D105) -> %,FACCOUNT,TQGCACCTS,N392 | B107: 92 | F107: Distribution - Utah | H107: 0 | I107: 0 | J107: 0 | K107: 0 | L107: 0 | M107: 0 | N107: 0 | O107: 0 | P107: 0 | Q107: 0 | R107: 0 | S107: 0 | T107: 0 | U107: 0
B108: 93 | F108: General | H108: 0 | I108: 0 | J108: 0 | K108: 0 | L108: 0 | M108: 0 | N108: 0 | O108: 0 | P108: 0 | Q108: 0 | R108: 0 | S108: 0 | T108: 0 | U108: 0
B109: 94 | F109: Total | H109: 0 | I109: 0 | J109: 0 | K109: 0 | L109: 0 | M109: 0 | N109: 0 | O109: 0 | P109: 0 | Q109: 0 | R109: 0 | S109: 0 | T109: 0 | U109: 0
B110: 95
B111: 96 | D111: 393 | E111: Stores Equipment
B112: 97 | F112: Distribution - Wyoming | H112: 0 | I112: 0 | J112: 0 | K112: 0 | L112: 0 | M112: 0 | N112: 0 | O112: 0 | P112: 0 | Q112: 0 | R112: 0 | S112: 0 | T112: 0 | U112: 0
A113: ="%,FACCOUNT,TQGCACCTS,N"&(D111) -> %,FACCOUNT,TQGCACCTS,N393 | B113: 98 | F113: Distribution - Utah | H113: 0 | I113: 0 | J113: 0 | K113: 0 | L113: 0 | M113: 0 | N113: 0 | O113: 0 | P113: 0 | Q113: 0 | R113: 0 | S113: 0 | T113: 0 | U113: 0
B114: 99 | F114: Total | H114: 0 | I114: 0 | J114: 0 | K114: 0 | L114: 0 | M114: 0 | N114: 0 | O114: 0 | P114: 0 | Q114: 0 | R114: 0 | S114: 0 | T114: 0 | U114: 0
B115: 100
B116: 101 | D116: 394 | E116: Tools, Shop & Garage Equipment
B117: 102 | F117: Distribution - Wyoming | H117: 0 | I117: 0 | J117: 0 | K117: 0 | L117: 0 | M117: 0 | N117: 0 | O117: 0 | P117: 0 | Q117: 0 | R117: 0 | S117: 0 | T117: 0 | U117: 0
A118: ="%,FACCOUNT,TQGCACCTS,N"&(D116) -> %,FACCOUNT,TQGCACCTS,N394 | B118: 103 | F118: Distribution - Utah | H118: 0 | I118: 0 | J118: 0 | K118: 0 | L118: 0 | M118: 0 | N118: 0 | O118: 0 | P118: 0 | Q118: 0 | R118: 0 | S118: 0 | T118: 0 | U118: 0
B119: 104 | F119: General | H119: 0 | I119: 0 | J119: 0 | K119: 0 | L119: 0 | M119: 0 | N119: 0 | O119: 0 | P119: 0 | Q119: 0 | R119: 0 | S119: 0 | T119: 0 | U119: 0
B120: 105 | F120: Total | H120: 0 | I120: 0 | J120: 0 | K120: 0 | L120: 0 | M120: 0 | N120: 0 | O120: 0 | P120: 0 | Q120: 0 | R120: 0 | S120: 0 | T120: 0 | U120: 0
B121: 106
B122: 107 | D122: 395 | E122: Laboratory Equipment
B123: 108 | F123: Distribution - Wyoming | H123: 0 | I123: 0 | J123: 0 | K123: 0 | L123: 0 | M123: 0 | N123: 0 | O123: 0 | P123: 0 | Q123: 0 | R123: 0 | S123: 0 | T123: 0 | U123: 0
A124: ="%,FACCOUNT,TQGCACCTS,N"&(D122) -> %,FACCOUNT,TQGCACCTS,N395 | B124: 109 | F124: Distribution - Utah | H124: 0 | I124: 0 | J124: 0 | K124: 0 | L124: 0 | M124: 0 | N124: 0 | O124: 0 | P124: 0 | Q124: 0 | R124: 0 | S124: 0 | T124: 0 | U124: 0
B125: 110 | F125: General | H125: 0 | I125: 0 | J125: 0 | K125: 0 | L125: 0 | M125: 0 | N125: 0 | O125: 0 | P125: 0 | Q125: 0 | R125: 0 | S125: 0 | T125: 0 | U125: 0
B126: 111 | F126: Total | H126: 0 | I126: 0 | J126: 0 | K126: 0 | L126: 0 | M126: 0 | N126: 0 | O126: 0 | P126: 0 | Q126: 0 | R126: 0 | S126: 0 | T126: 0 | U126: 0
B127: 112
B128: 113 | D128: 396 | E128: Power Operated Equipment
B129: 114 | F129: Distribution - Wyoming | H129: 0 | I129: 0 | J129: 0 | K129: 0 | L129: 0 | M129: 0 | N129: 0 | O129: 0 | P129: 0 | Q129: 0 | R129: 0 | S129: 0 | T129: 0 | U129: 0
A130: ="%,FACCOUNT,TQGCACCTS,N"&(D128) -> %,FACCOUNT,TQGCACCTS,N396 | B130: 115 | F130: Distribution - Utah | H130: 0 | I130: 0 | J130: 0 | K130: 0 | L130: 0 | M130: 0 | N130: 0 | O130: 0 | P130: 0 | Q130: 0 | R130: 0 | S130: 0 | T130: 0 | U130: 0
B131: 116 | F131: General | H131: 0 | I131: 0 | J131: 0 | K131: 0 | L131: 0 | M131: 0 | N131: 0 | O131: 0 | P131: 0 | Q131: 0 | R131: 0 | S131: 0 | T131: 0 | U131: 0
B132: 117 | F132: Total | H132: 0 | I132: 0 | J132: 0 | K132: 0 | L132: 0 | M132: 0 | N132: 0 | O132: 0 | P132: 0 | Q132: 0 | R132: 0 | S132: 0 | T132: 0 | U132: 0
B133: 118
B134: 119 | D134: 397 | E134: Communication Equipment
B135: 120 | F135: Distribution - Wyoming | H135: 0 | I135: 0 | J135: 0 | K135: 0 | L135: 0 | M135: 0 | N135: 0 | O135: 0 | P135: 0 | Q135: 0 | R135: 0 | S135: 0 | T135: 0 | U135: 0
A136: ="%,FACCOUNT,TQGCACCTS,N"&(D134) -> %,FACCOUNT,TQGCACCTS,N397 | B136: 121 | F136: Distribution - Utah | H136: 0 | I136: 0 | J136: 0 | K136: 0 | L136: 0 | M136: 0 | N136: 0 | O136: 0 | P136: 0 | Q136: 0 | R136: 0 | S136: 0 | T136: 0 | U136: 0
B137: 122 | F137: Total | H137: 0 | I137: 0 | J137: 0 | K137: 0 | L137: 0 | M137: 0 | N137: 0 | O137: 0 | P137: 0 | Q137: 0 | R137: 0 | S137: 0 | T137: 0 | U137: 0
B138: 123
B139: 124 | D139: 398 | E139: Miscellaneous Equipment
B140: 125 | F140: Distribution - Wyoming | H140: 0 | I140: 0 | J140: 0 | K140: 0 | L140: 0 | M140: 0 | N140: 0 | O140: 0 | P140: 0 | Q140: 0 | R140: 0 | S140: 0 | T140: 0 | U140: 0
A141: ="%,FACCOUNT,TQGCACCTS,N"&(D139) -> %,FACCOUNT,TQGCACCTS,N398 | B141: 126 | F141: Distribution - Utah | H141: 0 | I141: 0 | J141: 0 | K141: 0 | L141: 0 | M141: 0 | N141: 0 | O141: 0 | P141: 0 | Q141: 0 | R141: 0 | S141: 0 | T141: 0 | U141: 0
B142: 127 | F142: General | H142: 0 | I142: 0 | J142: 0 | K142: 0 | L142: 0 | M142: 0 | N142: 0 | O142: 0 | P142: 0 | Q142: 0 | R142: 0 | S142: 0 | T142: 0 | U142: 0
B143: 128 | F143: Total | H143: 0 | I143: 0 | J143: 0 | K143: 0 | L143: 0 | M143: 0 | N143: 0 | O143: 0 | P143: 0 | Q143: 0 | R143: 0 | S143: 0 | T143: 0 | U143: 0
B144: 129
B145: =+B144+1 -> 130 | E145: Total General Plant | H145: 0 | I145: 0 | J145: 0 | K145: 0 | L145: 0 | M145: 0 | N145: 0 | O145: 0 | P145: 0 | Q145: 0 | R145: 0 | S145: 0 | T145: 0 | U145: 0
B146: 131
B147: 132 | C147: 101 | D147: Gas Plant in Service
B148: 133 | E148: Production | H148: 79968136 | I148: 79968136 | J148: 79968136 | K148: 79968136 | L148: 79968136 | M148: 79968136 | N148: 79968136 | O148: 79968136 | P148: 79968136 | Q148: 79968136 | R148: 79968136 | S148: 79968136 | T148: 79968136 | U148: =((H148/2)+SUM(I148:S148)+(T148/2))/12 -> 79968136
B149: 134 | E149: Distribution - Wyoming | H149: 0 | I149: 0 | J149: 0 | K149: 0 | L149: 0 | M149: 0 | N149: 0 | O149: 0 | P149: 0 | Q149: 0 | R149: 0 | S149: 0 | T149: 0 | U149: 0
B150: 135 | E150: Distribution - Utah | H150: 0 | I150: 0 | J150: 0 | K150: 0 | L150: 0 | M150: 0 | N150: 0 | O150: 0 | P150: 0 | Q150: 0 | R150: 0 | S150: 0 | T150: 0 | U150: 0
B151: 136 | E151: General | H151: 0 | I151: 0 | J151: 0 | K151: 0 | L151: 0 | M151: 0 | N151: 0 | O151: 0 | P151: 0 | Q151: 0 | R151: 0 | S151: 0 | T151: 0 | U151: 0
B152: 137 | E152: Total | H152: 0 | I152: 0 | J152: 0 | K152: 0 | L152: 0 | M152: 0 | N152: 0 | O152: 0 | P152: 0 | Q152: 0 | R152: 0 | S152: 0 | T152: 0 | U152: 0
B153: 138
B154: 139 | C154: 105 | D154: Gas Plant Held for Future Use
B155: 140 | E155: Distribution - Utah | H155: 5036.83 | I155: 5036.83 | J155: 5036.83 | K155: 5036.83 | L155: 5036.83 | M155: 5036.83 | N155: 5036.83 | O155: 5036.83 | P155: 5036.83 | Q155: 5036.83 | R155: 0 | S155: 0 | T155: 5036.83 | U155: =((H155/2)+SUM(I155:S155)+(T155/2))/12 -> 4197.358333
A156: %,FACCOUNT,TQGCACCTS,N105 | B156: 141 | E156: Total | H156: 5036.83 | I156: 5036.83 | J156: 5036.83 | K156: 5036.83 | L156: 5036.83 | M156: 5036.83 | N156: 5036.83 | O156: 5036.83 | P156: 5036.83 | Q156: 5036.83 | R156: 0 | S156: 0 | T156: 5036.83 | U156: =SUM(U155) -> 4197.358333
B157: 142
B158: 143 | C158: 106 | D158: Completed Construction Not Classified - Gas
B159: 144 | E159: Production | H159: 0 | I159: 0 | J159: 0 | K159: 0 | L159: 0 | M159: 0 | N159: 0 | O159: 0 | P159: 0 | Q159: 0 | R159: 0 | S159: 0 | T159: 0 | U159: =((H159/2)+SUM(I159:S159)+(T159/2))/12 -> 0
B160: 145 | E160: Distribution - Wyoming | H160: 1993330.38 | I160: 2239100.69 | J160: 276963.56 | K160: 950180.8 | L160: 1588249.67 | M160: 1993330.38 | N160: 2239100.69 | O160: 694464.74 | P160: 694528.8 | Q160: 694464.74 | R160: 800826.87 | S160: 800805.98 | T160: 1993330.38 | U160: =((H160/2)+SUM(I160:S160)+(T160/2))/12 -> 1247112.275
B161: 146 | E161: Distribution - Utah | H161: 12826474.79 | I161: 9308466.12 | J161: 6777010.31 | K161: 9121644.75 | L161: 9719600.222 | M161: 12826474.79 | N161: 9308466.12 | O161: 651695.31 | P161: 128043.798 | Q161: 145144.738 | R161: 5137049.41 | S161: 8133513.82 | T161: 12826474.79 | U161: =((H161/2)+SUM(I161:S161)+(T161/2))/12 -> 7006965.348
B162: 147 | E162: General | H162: 1200519.75 | I162: 1438369 | J162: 471060.27 | K162: 1131562.37 | L162: 1107897.09 | M162: 1200519.75 | N162: 1438369 | O162: 0 | P162: 38447 | Q162: 407051.99 | R162: 1705726.65 | S162: 2337329.59 | T162: 1200519.75 | U162: =((H162/2)+SUM(I162:S162)+(T162/2))/12 -> 1039737.705
B163: 148 | E163: Total | H163: 16020324.92 | I163: 12985935.81 | J163: 7525034.14 | K163: 11203387.92 | L163: 12415746.98 | M163: 16020324.92 | N163: 12985935.81 | O163: 1346160.05 | P163: 861019.598 | Q163: 1246661.468 | R163: 7643602.93 | S163: 11271649.39 | T163: 16020324.92 | U163: =SUM(U159:U162) -> 9293815.328
B164: 149
B165: 150 | C165: 108 | D165: Accum Prov for Depreciation of Gas Plant in Service
B166: 151 | E166: Production | H166: -69869425 | I166: -69910892 | J166: -69952359 | K166: -69993826 | L166: -70035293 | M166: -70076759 | N166: -70076759 | O166: -70118226 | P166: -70159693 | Q166: -70201160 | R166: -70242627 | S166: -70242627 | T166: -70325561 | U166: =((H166/2)+SUM(I166:S166)+(T166/2))/12 -> -70092309.5
B167: 152 | E167: Distribution - Wyoming | H167: 0 | I167: 0 | J167: 0 | K167: 0 | L167: 0 | M167: 0 | N167: 0 | O167: 0 | P167: 0 | Q167: 0 | R167: 0 | S167: 0 | T167: 0 | U167: 0
B168: 153 | E168: Distribution - Utah | H168: 0 | I168: 0 | J168: 0 | K168: 0 | L168: 0 | M168: 0 | N168: 0 | O168: 0 | P168: 0 | Q168: 0 | R168: 0 | S168: 0 | T168: 0 | U168: 0
B169: 154 | E169: General | H169: 0 | I169: 0 | J169: 0 | K169: 0 | L169: 0 | M169: 0 | N169: 0 | O169: 0 | P169: 0 | Q169: 0 | R169: 0 | S169: 0 | T169: 0 | U169: 0
B170: 155 | E170: Total | H170: 0 | I170: 0 | J170: 0 | K170: 0 | L170: 0 | M170: 0 | N170: 0 | O170: 0 | P170: 0 | Q170: 0 | R170: 0 | S170: 0 | T170: 0 | U170: 0
B171: 156
B172: 157 | C172: 111 | D172: Accum Prov for Amortization of Gas Plant in Service
B173: 158 | E173: Production | H173: -6150277 | I173: -6150277 | J173: -6150277 | K173: -6150277 | L173: -6150277 | M173: -6150277 | N173: -6150277 | O173: -6150277 | P173: -6150277 | Q173: -6150277 | R173: -6150277 | S173: -6150277 | T173: -6150277 | U173: =((H173/2)+SUM(I173:S173)+(T173/2))/12 -> -6150277
B174: 159 | E174: Distribution - Wyoming | H174: 0 | I174: 0 | J174: 0 | K174: 0 | L174: 0 | M174: 0 | N174: 0 | O174: 0 | P174: 0 | Q174: 0 | R174: 0 | S174: 0 | T174: 0 | U174: 0
B175: 160 | E175: Distribution - Utah | H175: 0 | I175: 0 | J175: 0 | K175: 0 | L175: 0 | M175: 0 | N175: 0 | O175: 0 | P175: 0 | Q175: 0 | R175: 0 | S175: 0 | T175: 0 | U175: 0
B176: 161 | E176: General | H176: 0 | I176: 0 | J176: 0 | K176: 0 | L176: 0 | M176: 0 | N176: 0 | O176: 0 | P176: 0 | Q176: 0 | R176: 0 | S176: 0 | T176: 0 | U176: 0
B177: 162 | E177: Total | H177: 0 | I177: 0 | J177: 0 | K177: 0 | L177: 0 | M177: 0 | N177: 0 | O177: 0 | P177: 0 | Q177: 0 | R177: 0 | S177: 0 | T177: 0 | U177: 0
B178: 163
B179: 164 | C179: 254 | D179: Other Regulatory Liabilities - ARC
B180: 165 | E180: Production | H180: 0 | I180: 0 | J180: 0 | K180: 0 | L180: 0 | M180: 0 | N180: 0 | O180: 0 | P180: 0 | Q180: 0 | R180: 0 | S180: 0 | T180: 0 | U180: =((H180/2)+SUM(I180:S180)+(T180/2))/12 -> 0
B181: 166 | E181: Distribution - Wyoming | H181: -6140761.11 | I181: -6196748.98 | J181: -6236339.07 | K181: -6213637.67 | L181: -6181248.29 | M181: -6140761.11 | N181: -6196748.98 | O181: -6315729.01 | P181: -6315729.01 | Q181: -6315729.01 | R181: -6315729.01 | S181: -6315729.01 | T181: -6140761.11 | U181: =((H181/2)+SUM(I181:S181)+(T181/2))/12 -> -6240407.522
B182: 167 | E182: Distribution - Utah | H182: -186299261 | I182: -186248871.4 | J182: -186481184.8 | K182: -186218622.3 | L182: -186141349.6 | M182: -186299261 | N182: -186248871.4 | O182: -188074206.6 | P182: -190128957.9 | Q182: -190128957.9 | R182: -190128957.9 | S182: -189034810.8 | T182: -186299261 | U182: =((H182/2)+SUM(I182:S182)+(T182/2))/12 -> -187619442.7
B183: 168 | E183: General | H183: 0 | I183: 0 | J183: 0 | K183: 0 | L183: 0 | M183: 0 | N183: 0 | O183: -243070289.1 | P183: -242946363.8 | Q183: -242946423.6 | R183: -242946314.1 | S183: -242946364.2 | T183: 0 | U183: =((H183/2)+SUM(I183:S183)+(T183/2))/12 -> -101237979.6
B184: 169 | E184: Total | H184: -192440022.1 | I184: -192445620.4 | J184: -192717523.9 | K184: -192432259.9 | L184: -192322597.8 | M184: -192440022.1 | N184: -192445620.4 | O184: -437460224.7 | P184: -439391050.7 | Q184: -439391110.5 | R184: -439391001 | S184: -438296904 | T184: -192440022.1 | U184: =SUM(U180:U183) -> -295097829.8
B185: 170
B186: 171
B187: 172 | C187: System Net Utility Plant
B188: 173 | E188: Production | H188: 3943397 | I188: 3943397 | J188: 4067798 | K188: 4026331 | L188: 3984864 | M188: 3943397 | N188: 3943397 | O188: 4151984.34 | P188: 4109268.97 | Q188: 4067798.08 | R188: 4031368.03 | S188: 3989901.15 | T188: 3943397 | U188: =((H188/2)+SUM(I188:S188)+(T188/2))/12 -> 4016908.464
B189: 174 | E189: Distribution - Wyoming | H189: 52431596.46 | I189: 54642591.47 | J189: 50207898.39 | K189: 50797307.51 | L189: 51973211.94 | M189: 52431596.46 | N189: 54642591.47 | O189: 49033703.41 | P189: 49580125.16 | Q189: 49778428.24 | R189: 49714135.47 | S189: 49977066.05 | T189: 52431596.46 | U189: =((H189/2)+SUM(I189:S189)+(T189/2))/12 -> 51267521
B190: 175 | E190: Distribution - Utah | H190: 1668454071 | I190: 1706662742 | J190: 1654258710 | K190: 1659765109 | L190: 1663136893 | M190: 1668454071 | N190: 1706662742 | O190: 1760221866 | P190: 1772598425 | Q190: 1771848862 | R190: 1786527824 | S190: 1794474336 | T190: 1668454071 | U190: =((H190/2)+SUM(I190:S190)+(T190/2))/12 -> 1717755471
B191: 176 | E191: General | H191: 137256374.6 | I191: 137913169.7 | J191: 138028505.8 | K191: 138248889.8 | L191: 137938090 | M191: 137256374.6 | N191: 137913169.7 | O191: -110034117.7 | P191: -111005141.7 | Q191: -111676571.5 | R191: -111496718.5 | S191: -111961102.8 | T191: 137256374.6 | U191: =((H191/2)+SUM(I191:S191)+(T191/2))/12 -> 34031743.51
B192: 177 | E192: Total
B193: 178
B194: 179 | D194: System Net Utility Plant | H194: 2055097758 | I194: 2096125168 | J194: 2039897929 | K194: 2045873926 | L194: 2049945459 | M194: 2055097758 | N194: 2096125168 | O194: 1703373436 | P194: 1715282677 | Q194: 1714018517 | R194: 1728776609 | S194: 1736480200 | T194: 2055097758 | U194: =U152+U156+U163+U170+U177 -> 9298012.687
A195: %,FACCOUNT,TQGCACCTS,N154,N156 | B195: 180
B196: 181
B197: 182 | C197: WORKING CAPITAL
B198: 183
A199: %,FACCOUNT,TQGCACCTS,N164 | B199: 184 | C199: 154 | D199: Plant Materials & Operating Supplies
B200: 185 | E200: Distribution - Wyoming | H200: 0 | I200: 0 | J200: 0 | K200: 0 | L200: 0 | M200: 0 | N200: 0 | O200: 1037567.411 | P200: 1031653.019 | Q200: 1023482.995 | R200: 827969.4963 | S200: 760572.8485 | T200: 0 | U200: =((H200/2)+SUM(I200:S200)+(T200/2))/12 -> 390103.8141
B201: 186 | E201: Distribution - Utah | H201: 22002243.22 | I201: 22628439.69 | J201: 24060178.7 | K201: 24379560.43 | L201: 25423043.52 | M201: 22002243.22 | N201: 22628439.69 | O201: 30755104.55 | P201: 30579792.81 | Q201: 30337620.65 | R201: 24542297.83 | S201: 22544556.84 | T201: 22002243.22 | U201: =((H201/2)+SUM(I201:S201)+(T201/2))/12 -> 25156960.1
B202: 187 | E202: Total | H202: 22002243.22 | I202: 22628439.69 | J202: 24060178.7 | K202: 24379560.43 | L202: 25423043.52 | M202: 22002243.22 | N202: 22628439.69 | O202: 31792671.96 | P202: 31611445.83 | Q202: 31361103.65 | R202: 25370267.33 | S202: 23305129.69 | T202: 22002243.22 | U202: =SUM(U200:U201) -> 25547063.91
... 83 more rows

Sheet RevRun Fcst
D3: TEMPERATURE ADJUSTED INPUT DATA FROM REVRUN SYSTEM
D4: 08/06/19
T7: 12-Month
B8: Rate Class | D8: Description | H8: Oct19 | I8: Nov19 | J8: Dec19 | K8: Jan20 | L8: Feb20 | M8: Mar20 | N8: Apr20 | O8: May20 | P8: Jun20 | Q8: Jul20 | R8: Aug20 | S8: Sep20 | T8: Total
B10: UTILITY OPERATING REVENUE
B11: TARIFF DTH SALES AND REVENUE
A13: 13 | B13: Utah | G13: 1 | H13: 10 | I13: 11 | J13: 12 | K13: 1 | L13: 2 | M13: 3 | N13: 4 | O13: 5 | P13: 6 | Q13: 7 | R13: 8 | S13: 9
A14: 14 | C14: GS | D14: Distribution Non-Gas Rev | G14: 2 | H14: 17246248.88 | I14: 32788119.36 | J14: 47033088.97 | K14: 50074020.67 | L14: 43660955.46 | M14: 36240836.96 | N14: 21034573.37 | O14: 15955785.58 | P14: 12678934.83 | Q14: 11752135.08 | R14: 11448874.39 | S14: 11980737.87 | T14: 311894311.4
A15: 15 | G15: 3
A16: 16 | D16: Supplier Non-Gas Revenue | G16: 4 | H16: 3386638.71 | I16: 13522558.52 | J16: 21410546.2 | K16: 23099743.26 | L16: 19490647.34 | M16: 15361826.09 | N16: 4714678.24 | O16: 2864367.98 | P16: 1677334.41 | Q16: 1347941.41 | R16: 1234116.51 | S16: 1423872.63 | T16: 109534271.3
A17: 17 | G17: 5
A18: 18 | D18: Commodity Revenue | G18: 6 | H18: 20342678.94 | I18: 38137076.36 | J18: 60383220.71 | K18: 65147188.78 | L18: 54968614.48 | M18: 43324281.7 | N18: 28319875.33 | O18: 17205531.27 | P18: 10075321.97 | Q18: 8096741.86 | R18: 7413024.6 | S18: 8552841.4 | T18: 361966397.4
A19: 19 | D19: Total Revenue | G19: 7 | H19: 40975566.53 | I19: 84447754.24 | J19: 128826855.9 | K19: 138320952.7 | L19: 118120217.3 | M19: 94926944.75 | N19: 54069126.94 | O19: 36025684.83 | P19: 24431591.21 | Q19: 21196818.35 | R19: 20096015.5 | S19: 21957451.9 | T19: 783394980.1
A20: 20 | D20: # of Customers | G20: 8 | H20: 1043993 | I20: 1048260 | J20: 1053238 | K20: 1058287 | L20: 1059912 | M20: 1062554 | N20: 1062832 | O20: 1063564 | P20: 1063866 | Q20: 1061844 | R20: 1063412 | S20: 1064284 | T20: 1058837.167
A21: 21 | D21: Total Dth | G21: 9 | H21: 6191522 | I21: 11607446 | J21: 18378309 | K21: 19828276 | L21: 16730313 | M21: 13186230 | N21: 8619471 | O21: 5236696 | P21: 3066537 | Q21: 2464334 | R21: 2256237 | S21: 2603153 | T21: 110168524
A22: 22 | G22: 10
A23: 23 | C23: GS-C | D23: Distribution Non-Gas Rev | G23: 11 | T23: 0
A24: 24 | G24: 12
A25: 25 | D25: Supplier Non-Gas Revenue | G25: 13 | T25: 0
A26: 26 | G26: 14
A27: 27 | D27: Commodity Revenue | G27: 15 | T27: 0
A28: 28 | D28: Total Revenue | G28: 16 | T28: 0
A29: 29 | D29: # of Customers | G29: 17
A30: 30 | D30: Total Dth | G30: 18 | T30: 0
A31: 31 | G31: 19
A32: 32 | C32: GSS | D32: Distribution Non-Gas Rev | G32: 20 | H32: 0 | I32: 0 | J32: 0 | K32: 0 | L32: 0 | M32: 0 | N32: 0 | O32: 0 | P32: 0 | Q32: 0 | R32: 0 | S32: 0 | T32: 0
A33: 33 | G33: 21 | H33: 0 | I33: 0 | J33: 0 | K33: 0 | L33: 0 | M33: 0 | N33: 0 | O33: 0 | P33: 0 | Q33: 0 | R33: 0 | S33: 0
A34: 34 | D34: Supplier Non-Gas Revenue | G34: 22 | H34: 0 | I34: 0 | J34: 0 | K34: 0 | L34: 0 | M34: 0 | N34: 0 | O34: 0 | P34: 0 | Q34: 0 | R34: 0 | S34: 0 | T34: 0
A35: 35 | G35: 23 | H35: 0 | I35: 0 | J35: 0 | K35: 0 | L35: 0 | M35: 0 | N35: 0 | O35: 0 | P35: 0 | Q35: 0 | R35: 0 | S35: 0
A36: 36 | D36: Commodity Revenue | G36: 24 | H36: 0 | I36: 0 | J36: 0 | K36: 0 | L36: 0 | M36: 0 | N36: 0 | O36: 0 | P36: 0 | Q36: 0 | R36: 0 | S36: 0 | T36: 0
A37: 37 | D37: Total Revenue | G37: 25 | H37: 0 | I37: 0 | J37: 0 | K37: 0 | L37: 0 | M37: 0 | N37: 0 | O37: 0 | P37: 0 | Q37: 0 | R37: 0 | S37: 0 | T37: 0
A38: 38 | D38: # of Customers | G38: 26 | H38: 0 | I38: 0 | J38: 0 | K38: 0 | L38: 0 | M38: 0 | N38: 0 | O38: 0 | P38: 0 | Q38: 0 | R38: 0 | S38: 0 | T38: 0
A39: 39 | D39: Total Dth | G39: 27 | H39: 0 | I39: 0 | J39: 0 | K39: 0 | L39: 0 | M39: 0 | N39: 0 | O39: 0 | P39: 0 | Q39: 0 | R39: 0 | S39: 0 | T39: 0
A40: 40 | G40: 28
A41: 41 | C41: F-S | D41: Distribution Non-Gas Rev | G41: 29 | H41: 146380.22 | I41: 264184.73 | J41: 290373.01 | K41: 337168.55 | L41: 316625.35 | M41: 282565.47 | N41: 158198.03 | O41: 147751.54 | P41: 151024.63 | Q41: 124201.13 | R41: 117161.8 | S41: 123224.11 | T41: 2458858.57
A42: 42 | G42: 30
A43: 43 | D43: Supplier Non-Gas Revenue | G43: 31 | H43: 114668.89 | I43: 268426.52 | J43: 325417.09 | K43: 402778.2 | L43: 368635.15 | M43: 312655.56 | N43: 150164.05 | O43: 127282.8 | P43: 124117.43 | Q43: 83047.42 | R43: 75096.52 | S43: 81733.04 | T43: 2434022.67
A44: 44 | G44: 32
A45: 45 | D45: Commodity Revenue | G45: 33 | H45: 688786.89 | I45: 777267.29 | J45: 942291.62 | K45: 1166301.78 | L45: 1067435.69 | M45: 905338.82 | N45: 901997.39 | O45: 764555.42 | P45: 745541.84 | Q45: 498844.8 | R45: 451085.76 | S45: 490949.58 | T45: 9400396.88
A46: 46 | D46: Total Revenue | G46: 34 | H46: 949836 | I46: 1309878.54 | J46: 1558081.72 | K46: 1906248.53 | L46: 1752696.19 | M46: 1500559.85 | N46: 1210359.47 | O46: 1039589.76 | P46: 1020683.9 | Q46: 706093.35 | R46: 643344.08 | S46: 695906.73 | T46: 14293278.12
A47: 47 | D47: # of Customers | G47: 35 | H47: 459 | I47: 459 | J47: 459 | K47: 459 | L47: 459 | M47: 459 | N47: 459 | O47: 459 | P47: 459 | Q47: 426 | R47: 426 | S47: 426 | T47: 450.75
A48: 48 | D48: Total Dth | G48: 36 | H48: 209640 | I48: 236570 | J48: 286797 | K48: 354977 | L48: 324886 | M48: 275550 | N48: 274533 | O48: 232701 | P48: 226914 | Q48: 151829 | R48: 137293 | S48: 149426 | T48: 2861116
A49: 49 | G49: 37
A50: 50 | C50: F-3 | D50: Distribution Non-Gas Rev | G50: 38 | H50: 0 | I50: 0 | J50: 0 | K50: 0 | L50: 0 | M50: 0 | N50: 0 | O50: 0 | P50: 0 | Q50: 0 | R50: 0 | S50: 0 | T50: 0
A51: 51 | D51: Supplier Non-Gas Revenue | G51: 39
A52: 52 | D52: Supplier Non-Gas Demand Revenue | G52: 40 | H52: 0 | I52: 0 | J52: 0 | K52: 0 | L52: 0 | M52: 0 | N52: 0 | O52: 0 | P52: 0 | Q52: 0 | R52: 0 | S52: 0 | T52: 0
A53: 53 | D53: Commodity Tariff Revenue | G53: 41
A54: 54 | D54: Commodity Demand Revenue | G54: 42 | H54: 0 | I54: 0 | J54: 0 | K54: 0 | L54: 0 | M54: 0 | N54: 0 | O54: 0 | P54: 0 | Q54: 0 | R54: 0 | S54: 0 | T54: 0
A55: 55 | D55: Total Revenue | G55: 43 | H55: 0 | I55: 0 | J55: 0 | K55: 0 | L55: 0 | M55: 0 | N55: 0 | O55: 0 | P55: 0 | Q55: 0 | R55: 0 | S55: 0 | T55: 0
A56: 56 | D56: # of Customers | G56: 44 | H56: 0 | I56: 0 | J56: 0 | K56: 0 | L56: 0 | M56: 0 | N56: 0 | O56: 0 | P56: 0 | Q56: 0 | R56: 0 | S56: 0 | T56: 0
A57: 57 | D57: Total Sales Dth | G57: 45 | H57: 0 | I57: 0 | J57: 0 | K57: 0 | L57: 0 | M57: 0 | N57: 0 | O57: 0 | P57: 0 | Q57: 0 | R57: 0 | S57: 0 | T57: 0
A58: 58 | G58: 46
A59: 59 | C59: NGV | D59: Distribution Non-Gas Rev | G59: 47 | H59: 150991.48 | I59: 146113.89 | J59: 132681.67 | K59: 121430.53 | L59: 137716.4 | M59: 129897.18 | N59: 127313.82 | O59: 139526.64 | P59: 144687.07 | Q59: 136195.3 | R59: 154234.82 | S59: 138099.82 | T59: 1658888.62
A60: 60 | G60: 48
A61: 61 | D61: Supplier Non-Gas Revenue | G61: 49 | H61: 20194.81 | I61: 19542.45 | J61: 17745.91 | K61: 16241.1 | L61: 18419.3 | M61: 17373.49 | N61: 17027.97 | O61: 18661.41 | P61: 19351.61 | Q61: 18215.85 | R61: 20628.61 | S61: 18470.58 | T61: 221873.09
A62: 62 | G62: 50
A63: 63 | D63: Commodity Revenue | G63: 51 | H63: 78925.96 | I63: 76376.36 | J63: 69355.1 | K63: 63473.93 | L63: 71986.84 | M63: 67899.59 | N63: 66549.22 | O63: 72933.08 | P63: 75630.54 | Q63: 71191.73 | R63: 80621.32 | S63: 72187.26 | T63: 867130.93
A64: 64 | D64: Total Revenue | G64: 52 | H64: 250112.25 | I64: 242032.7 | J64: 219782.68 | K64: 201145.56 | L64: 228122.54 | M64: 215170.26 | N64: 210891.01 | O64: 231121.13 | P64: 239669.22 | Q64: 225602.88 | R64: 255484.75 | S64: 228757.66 | T64: 2747892.64
A65: 65 | D65: # of Customers | G65: 53 | H65: 1 | I65: 1 | J65: 1 | K65: 1 | L65: 1 | M65: 1 | N65: 1 | O65: 1 | P65: 1 | Q65: 1 | R65: 1 | S65: 1 | T65: 1
A66: 66 | D66: Total Dth | G66: 54 | H66: 24022 | I66: 23246 | J66: 21109 | K66: 19319 | L66: 21910 | M66: 20666 | N66: 20255 | O66: 22198 | P66: 23019 | Q66: 21668 | R66: 24538 | S66: 21971 | T66: 263921
A67: 67 | G67: 55
A68: 68 | C68: F-4 | D68: Distribution Non-Gas Rev | G68: 56 | H68: 0 | I68: 0 | J68: 0 | K68: 0 | L68: 0 | M68: 0 | N68: 0 | O68: 0 | P68: 0 | Q68: 0 | R68: 0 | S68: 0 | T68: 0
A69: 69 | G69: 57
A70: 70 | D70: Supplier Non-Gas Revenue | G70: 58 | H70: 0 | I70: 0 | J70: 0 | K70: 0 | L70: 0 | M70: 0 | N70: 0 | O70: 0 | P70: 0 | Q70: 0 | R70: 0 | S70: 0 | T70: 0
A71: 71 | G71: 59
A72: 72 | D72: Commodity Revenue | G72: 60 | H72: 0 | I72: 0 | J72: 0 | K72: 0 | L72: 0 | M72: 0 | N72: 0 | O72: 0 | P72: 0 | Q72: 0 | R72: 0 | S72: 0 | T72: 0
A73: 73 | D73: Total Revenue | G73: 61 | H73: 0 | I73: 0 | J73: 0 | K73: 0 | L73: 0 | M73: 0 | N73: 0 | O73: 0 | P73: 0 | Q73: 0 | R73: 0 | S73: 0 | T73: 0
A74: 74 | D74: # of Customers | G74: 62 | H74: 0 | I74: 0 | J74: 0 | K74: 0 | L74: 0 | M74: 0 | N74: 0 | O74: 0 | P74: 0 | Q74: 0 | R74: 0 | S74: 0 | T74: 0
A75: 75 | D75: Total Dth | G75: 63 | H75: 0 | I75: 0 | J75: 0 | K75: 0 | L75: 0 | M75: 0 | N75: 0 | O75: 0 | P75: 0 | Q75: 0 | R75: 0 | S75: 0 | T75: 0
A76: 76 | G76: 64
A77: 77 | C77: I-2 | D77: Distribution Non-Gas Rev | G77: 65 | H77: 0 | I77: 0 | J77: 0 | K77: 0 | L77: 0 | M77: 0 | N77: 0 | O77: 0 | P77: 0 | Q77: 0 | R77: 0 | S77: 0 | T77: 0
A78: 78 | G78: 66
A79: 79 | D79: Supplier Non-Gas Revenue | G79: 67 | H79: 0 | I79: 0 | J79: 0 | K79: 0 | L79: 0 | M79: 0 | N79: 0 | O79: 0 | P79: 0 | Q79: 0 | R79: 0 | S79: 0 | T79: 0
A80: 80 | G80: 68
A81: 81 | D81: Commodity Revenue | G81: 69 | H81: 0 | I81: 0 | J81: 0 | K81: 0 | L81: 0 | M81: 0 | N81: 0 | O81: 0 | P81: 0 | Q81: 0 | R81: 0 | S81: 0 | T81: 0
A82: 82 | D82: Total Revenue | G82: 70 | H82: 0 | I82: 0 | J82: 0 | K82: 0 | L82: 0 | M82: 0 | N82: 0 | O82: 0 | P82: 0 | Q82: 0 | R82: 0 | S82: 0 | T82: 0
A83: 83 | D83: # of Customers | G83: 71
A84: 84 | D84: Total Dth | G84: 72 | H84: 0 | I84: 0 | J84: 0 | K84: 0 | L84: 0 | M84: 0 | N84: 0 | O84: 0 | P84: 0 | Q84: 0 | R84: 0 | S84: 0 | T84: 0
A85: 85 | G85: 73
A86: 104 | C86: ISE | D86: Distribution Non-Gas Rev | G86: 74 | H86: 0 | I86: 0 | J86: 0 | K86: 0 | L86: 0 | M86: 0 | N86: 0 | O86: 0 | P86: 0 | Q86: 0 | R86: 0 | S86: 0 | T86: 0
A87: 105 | G87: 75
A88: 106 | D88: Supplier Non-Gas Revenue | G88: 76 | H88: 0 | I88: 0 | J88: 0 | K88: 0 | L88: 0 | M88: 0 | N88: 0 | O88: 0 | P88: 0 | Q88: 0 | R88: 0 | S88: 0 | T88: 0
A89: 107 | G89: 77
A90: 108 | D90: Commodity Revenue | G90: 78 | H90: 0 | I90: 0 | J90: 0 | K90: 0 | L90: 0 | M90: 0 | N90: 0 | O90: 0 | P90: 0 | Q90: 0 | R90: 0 | S90: 0 | T90: 0
A91: 109 | D91: Total Revenue | G91: 79 | H91: 0 | I91: 0 | J91: 0 | K91: 0 | L91: 0 | M91: 0 | N91: 0 | O91: 0 | P91: 0 | Q91: 0 | R91: 0 | S91: 0 | T91: 0
A92: 110 | D92: # of Customers | G92: 80 | H92: 0 | I92: 0 | J92: 0 | K92: 0 | L92: 0 | M92: 0 | N92: 0 | O92: 0 | P92: 0 | Q92: 0 | R92: 0 | S92: 0 | T92: 0
A93: 111 | D93: Total Dth | G93: 81 | H93: 0 | I93: 0 | J93: 0 | K93: 0 | L93: 0 | M93: 0 | N93: 0 | O93: 0 | P93: 0 | Q93: 0 | R93: 0 | S93: 0 | T93: 0
A94: 112 | G94: 82
A95: 86 | C95: IS | D95: Distribution Non-Gas Rev | G95: 83 | H95: 10291.27 | I95: 11426 | J95: 13526.69 | K95: 13059.35 | L95: 11521.68 | M95: 11975.25 | N95: 11155.12 | O95: 10150.78 | P95: 10260.5 | Q95: 8654.31 | R95: 9182.34 | S95: 9918.74 | T95: 131122.03
A96: 87 | G96: 84
A97: 88 | D97: Supplier Non-Gas Revenue | G97: 85 | H97: 1517.08 | I97: 2118.94 | J97: 3336.25 | K97: 3060.31 | L97: 2173.02 | M97: 2431.59 | N97: 1966.01 | O97: 1485.21 | P97: 1510.1 | Q97: 1145.69 | R97: 1265.49 | S97: 1432.56 | T97: 23442.25
A98: 89 | G98: 86
A99: 90 | D99: Commodity Revenue | G99: 87 | H99: 27835.35 | I99: 38878.15 | J99: 61213.45 | K99: 56150.39 | L99: 39870.39 | M99: 44614.75 | N99: 36072.27 | O99: 27250.52 | P99: 27707.21 | Q99: 21021.08 | R99: 23219.12 | S99: 26284.56 | T99: 430117.24
A100: 91 | D100: Total Revenue | G100: 88 | H100: 39643.7 | I100: 52423.09 | J100: 78076.39 | K100: 72270.05 | L100: 53565.09 | M100: 59021.59 | N100: 49193.4 | O100: 38886.51 | P100: 39477.81 | Q100: 30821.08 | R100: 33666.95 | S100: 37635.86 | T100: 584681.52
A101: 92 | D101: # of Customers | G101: 89 | H101: 18 | I101: 18 | J101: 18 | K101: 18 | L101: 18 | M101: 18 | N101: 18 | O101: 18 | P101: 18 | Q101: 18 | R101: 18 | S101: 18 | T101: 18
A102: 93 | D102: Total Dth | G102: 90 | H102: 8472 | I102: 11833 | J102: 18631 | K102: 17090 | L102: 12135 | M102: 13579 | N102: 10979 | O102: 8294 | P102: 8433 | Q102: 6398 | R102: 7067 | S102: 8000 | T102: 130911
A103: 94 | G103: 91
A104: 95 | C104: IS-2 | D104: Distribution Non-Gas Rev | G104: 92 | H104: 0 | I104: 0 | J104: 0 | K104: 0 | L104: 0 | M104: 0 | N104: 0 | O104: 0 | P104: 0 | Q104: 0 | R104: 0 | S104: 0 | T104: 0
A105: 96 | G105: 93
A106: 97 | D106: Supplier Non-Gas Revenue | G106: 94 | H106: 0 | I106: 0 | J106: 0 | K106: 0 | L106: 0 | M106: 0 | N106: 0 | O106: 0 | P106: 0 | Q106: 0 | R106: 0 | S106: 0 | T106: 0
A107: 98 | G107: 95
A108: 99 | D108: Commodity Revenue | G108: 96 | H108: 0 | I108: 0 | J108: 0 | K108: 0 | L108: 0 | M108: 0 | N108: 0 | O108: 0 | P108: 0 | Q108: 0 | R108: 0 | S108: 0 | T108: 0
A109: 100 | D109: Total Revenue | G109: 97 | H109: 0 | I109: 0 | J109: 0 | K109: 0 | L109: 0 | M109: 0 | N109: 0 | O109: 0 | P109: 0 | Q109: 0 | R109: 0 | S109: 0 | T109: 0
A110: 101 | D110: # of Customers | G110: 98 | H110: 0 | I110: 0 | J110: 0 | K110: 0 | L110: 0 | M110: 0 | N110: 0 | O110: 0 | P110: 0 | Q110: 0 | R110: 0 | S110: 0 | T110: 0
A111: 102 | D111: Total Dth | G111: 99 | H111: 0 | I111: 0 | J111: 0 | K111: 0 | L111: 0 | M111: 0 | N111: 0 | O111: 0 | P111: 0 | Q111: 0 | R111: 0 | S111: 0 | T111: 0
A112: 103 | G112: 100 | H112: 0 | I112: 0 | J112: 0 | K112: 0 | L112: 0 | M112: 0 | N112: 0 | O112: 0 | P112: 0 | Q112: 0 | R112: 0 | S112: 0
A113: 113 | C113: FT-1L | D113: Distribution Non-Gas Rev | G113: 101 | H113: 0 | I113: 0 | J113: 0 | K113: 0 | L113: 0 | M113: 0 | N113: 0 | O113: 0 | P113: 0 | Q113: 0 | R113: 0 | S113: 0 | T113: 0
A114: 114 | G114: 102 | H114: 0 | I114: 0 | J114: 0 | K114: 0 | L114: 0 | M114: 0 | N114: 0 | O114: 0 | P114: 0 | Q114: 0 | R114: 0 | S114: 0
A115: 115 | D115: Supplier Non-Gas Revenue | G115: 103 | H115: 0 | I115: 0 | J115: 0 | K115: 0 | L115: 0 | M115: 0 | N115: 0 | O115: 0 | P115: 0 | Q115: 0 | R115: 0 | S115: 0 | T115: 0
A116: 116 | G116: 104 | H116: 0 | I116: 0 | J116: 0 | K116: 0 | L116: 0 | M116: 0 | N116: 0 | O116: 0 | P116: 0 | Q116: 0 | R116: 0 | S116: 0
A117: 117 | D117: Commodity Revenue | G117: 105 | H117: 0 | I117: 0 | J117: 0 | K117: 0 | L117: 0 | M117: 0 | N117: 0 | O117: 0 | P117: 0 | Q117: 0 | R117: 0 | S117: 0 | T117: 0
A118: 118 | D118: Total Revenue | G118: 106 | H118: 0 | I118: 0 | J118: 0 | K118: 0 | L118: 0 | M118: 0 | N118: 0 | O118: 0 | P118: 0 | Q118: 0 | R118: 0 | S118: 0 | T118: 0
A119: 119 | D119: # of Customers | G119: 107 | H119: 0 | I119: 0 | J119: 0 | K119: 0 | L119: 0 | M119: 0 | N119: 0 | O119: 0 | P119: 0 | Q119: 0 | R119: 0 | S119: 0 | T119: 0
A120: 120 | D120: Total Dth | G120: 108 | H120: 0 | I120: 0 | J120: 0 | K120: 0 | L120: 0 | M120: 0 | N120: 0 | O120: 0 | P120: 0 | Q120: 0 | R120: 0 | S120: 0 | T120: 0
A121: 121 | G121: 109
A122: 122 | C122: FT-1 | D122: Distribution Non-Gas Rev | G122: 110 | H122: 88866.29 | I122: 95706.74 | J122: 100986.47 | K122: 101585.93 | L122: 99227.16 | M122: 93992.85 | N122: 89846.22 | O122: 84161 | P122: 109920.69 | Q122: 168490.78 | R122: 176443.75 | S122: 93076.4 | T122: 1302304.28
A123: 123 | G123: 111
A124: 124 | D124: Supplier Non-Gas Revenue | G124: 112 | H124: 0 | I124: 0 | J124: 0 | K124: 0 | L124: 0 | M124: 0 | N124: 0 | O124: 0 | P124: 0 | Q124: 0 | R124: 0 | S124: 0 | T124: 0
A125: 125 | G125: 113
